Workbook

Sheet MEDIÇÃO 04 (hidden)
A1: EMBASA - EMPRESA BAIANA DE ÁGUAS E SANEAMENTO S. A . | J1: MODALIDADE: CONCORRÊNCIA NACIONAL
A2: PROGRAMA: | J2: DATA DA PROPOSTA: 08/11/2010
A3: TIPO DE EMPREENDIMENTO: RECUPERAÇÃO DA ÁREA DE JAZIDA CONSTRUÇÃO DA BARRAGEM DE SANTA HELENA | G3: MEDIÇÃO Nº 04 | J3: INÍCIO DA OBRA: 03/01/2011
A4: AGENTE FINANCEIRO: RECURSOS PRÓPRIOS | J4: FIM DA OBRA: 03/05/2011
A5: CONTRATADA: TECTRAN BAHIA LTDA | J5: VALOR DO CONTRATO INICIAL: R$ 1.180.944,81
A6: LOCALIZAÇÃO: DIAS D'ÁVILA - MATA DE SÃO JOÃO - BA | D6: PERÍODO DA MEDIÇÃO: | F6: 01/04/2011 a | G6: 2011-04-30 | J6: VALOR DO CONTRATO ATUALIZADO: R$1.180.944,81
A7: DATA DE ASSINATURA DO CONTRATO: 18/02/2010 | J7: CONTRATO Nº: 1.205/10
A8: ÍTEM | B8: CÓDIGO | C8: DESCRIÇÃO DOS SERVIÇOS | D8: UN | E8: P. UNIT. | F8: QUANTIDADE | K8: VALOR EM R$
F9: MEDIDO | G9: MEDIDO ANTERIOR | H9: MEDIDO ACUMULADO | I9: CONTRATADO | J9: SALDO | K9: MEDIDO | L9: MEDIDO ANTERIOR | M9: MEDIDO ACUMULADO | N9: CONTRATADO | O9: SALDO
A10: 01 | C10: MOBILIZAÇÃO E DESMOBILIZAÇÃO DO CANTEIRO DE OBRA
A11: 01.01 | C11: MOBILIZAÇÃO E DESMOBILIZAÇÃO DO CANTEIRO DE OBRA
A12: 01.01.01 | C12: MOBILIZAÇÃO E DESMOBILIZAÇÃO DO CANTEIRO DE OBRA
A13: 01.01.01.01 | B13: 019201 | C13: MOBILIZACÃO E INSTALACÃO DE CANTEIRO DE OBRAS | D13: vb | E13: 41,990.00 | G13: 1.00 | H13: =F13+G13 -> 1.00 | I13: 1.00 | J13: =I13-H13 -> 0 | K13: =ROUND($E13*F13,2) -> 0 | L13: 41,990.00 | M13: 41,990.00 | N13: 41,990.00 | O13: =ROUND(N13-M13,2) -> 0
A14: 01.01.01.02 | B14: 019204 | C14: DESMOBILIZACÃO DE CANTEIRO DE OBRAS | D14: vb | E14: 4,680.00 | G14: 0 | H14: =F14+G14 -> 0 | I14: 1.00 | J14: =I14-H14 -> 1.00 | K14: 0 | L14: 0 | M14: 0 | N14: 4,680.00 | O14: =ROUND(N14-M14,2) -> 4,680.00
A15: 01.01.01.03 | B15: 030110 | C15: PLACA DE IDENTIFICACAO DA OBRA PADRAO EMBASA, INCLUSIVE FORNECIMENTO, TRANSPORTE E INSTALAÇÃO (DP0301-04) | D15: m² | E15: 89.47 | G15: 8.00 | H15: =F15+G15 -> 8.00 | I15: 12.00 | J15: =I15-H15 -> 4.00 | K15: 0 | L15: 715.76 | M15: 715.76 | N15: 1,073.64 | O15: =ROUND(N15-M15,2) -> 357.88
M16: =ROUND($E16*H16,2) -> 0
C17: TOTAL DO SUBITEM 01.01 | K17: =SUM(K10:K16) -> 0 | L17: =SUM(L10:L16) -> 42,705.76 | M17: =SUM(M13:M15) -> 42,705.76 | N17: =SUM(N10:N16) -> 47,743.64 | O17: =SUM(O10:O16) -> 5,037.88
C18: TOTAL DO SUBITEM 01 | K18: =K17 -> 0 | L18: =L17 -> 42,705.76 | M18: =M17 -> 42,705.76 | N18: =N17 -> 47,743.64 | O18: =O17 -> 5,037.88
C19: TOTAL DO SUBITEM 01 COM K= 1,05 | K19: =ROUND(K18*1.05,2) -> 0 | L19: =ROUND(L18*1.05,2) -> 44,841.05 | M19: =M18*1.05 -> 44,841.05 | N19: =ROUND(N18*1.05,2) -> 50,130.82 | O19: =ROUND(O18*1.05,2) -> 5,289.77 | P19: =K19/N19 -> 0
M20: =ROUND($E20*H20,2) -> 0
A21: 02 | C21: SERVIÇOS PRELIMINARES | M21: 0
A22: 02.01 | C22: SERVIÇOS PRELIMINARES | M22: 0
A23: 02.01.01 | C23: MOVIMENTO DE TERRA | M23: 0
A24: 02.01.01.01 | B24: 020301 | C24: LIMPEZA MANUAL DO TERRENO, INCLUSIVE RASPAGEM, JUNTAMENTO E QUEIMA DO MATERIAL | D24: m² | E24: 1.72 | F24: 2,000.00 | G24: 3,000.00 | H24: =F24+G24 -> 5,000.00 | I24: 5,000.00 | J24: =I24-H24 -> 0 | K24: =ROUND($E24*F24,2) -> 3,440.00 | L24: 5,160.00 | M24: 8,600.00 | N24: 8,600.00 | O24: =ROUND(N24-M24,2) -> 0
A25: 02.01.01.02 | B25: 050661 | C25: REGULARIZAÇÃO DE TALUDES POR PROCESSO MANUAL | D25: m² | E25: 1.46 | F25: 3,500.00 | G25: 1,500.00 | H25: 5,000.00 | I25: 5,000.00 | J25: =I25-H25 -> 0 | K25: 5,110.00 | L25: 2,190.00 | M25: 7,300.00 | N25: 7,300.00 | O25: 0
A26: 02.01.01.03 | B26: 050613 | C26: ESCAVAÇÃO E TRANSPORTE ATÉ 30m C/ TRATOR DE ESTEIRAS C/ LAMINA, P/ EMPILHAMENTO EM MATERIAL DE 1ª CAT. | D26: m³ | E26: 1.55 | G26: 17,100.00 | H26: 17,100.00 | I26: 5,000.00 | J26: =I26-H26 -> (12,100.00) | K26: 0 | L26: 26,505.00 | M26: 26,505.00 | N26: 7,750.00 | O26: -18,755.00
A27: 02.01.01.04 | B27: 060104 | C27: CARGA E DESCARGA DE SOLO | D27: m³ | E27: 1.76 | G27: 17,100.00 | H27: 17,100.00 | I27: 5,000.00 | J27: (12,100.00) | K27: 0 | L27: 30,096.00 | M27: 30,096.00 | N27: 8,800.00 | O27: -21,296.00
A28: 02.01.01.05 | B28: 060204 | C28: MOMENTO DE TRANSPORTE DE SOLO, EM CAMINHAO BASCULANTE | D28: m³xkm | E28: 0.52 | G28: 17,100.00 | H28: 17,100.00 | I28: 5,000.00 | J28: (12,100.00) | K28: 0 | L28: 8,892.00 | M28: 8,892.00 | N28: 2,600.00 | O28: -6,292.00
A29: 02.01.01.06 | B29: 060125 | C29: ESPALHAMENTO MECANICO DE SOLO EM BOTA-FORA | D29: m³ | E29: 1.04 | G29: 17,100.00 | H29: 17,100.00 | I29: 5,000.00 | J29: (12,100.00) | K29: 0 | L29: 17,784.00 | M29: 17,784.00 | N29: 5,200.00 | O29: -12,584.00
A30: 02.01.01.08 | B30: 020407 | C30: ROÇAGEM EM CAPOEIRA DENSA A MACHADO, INCLUSIVE RASPAGEM MANUAL, JUNTAMENTO, QUEIMA DO MATERIAL E REMOÇÃO MANUAL DOS RESÍODOS PARA FORA DA ÁREA ROÇADA | D30: m² | E30: 3.45 | G30: 1,000.00 | H30: 1,000.00 | I30: 1,000.00 | J30: 0 | K30: 0 | L30: 3,450.00 | M30: 3,450.00 | N30: 3,450.00 | O30: 0
A31: 02.01.01.09 | B31: 050310 | C31: ESCAVAÇÃO MANUAL DE POÇOS E CAVAS DE FUNDAÇÃO EM SOLO DE 1ª CATEGORIA EXECUTADA C/ PROFUNDIDADE ACIMA DE 4,50m | D31: m³ | E31: 21.74 | F31: 123.36 | G31: 0 | H31: 123.36 | I31: 1,000.00 | J31: 876.64 | K31: 2,681.85 | L31: 0 | M31: 2,681.85 | N31: 21,740.00 | O31: 19,058.15
A32: 02.01.01.10 | B32: 050404 | C32: EXECUÇÃO DE ATERRO EM VALAS POÇOS/CAVAS DE FUNDAÇÃO COM FORNECIMENTO DE AREIA, INCLUSIVE LANÇAMENTO, ESPALHAMENTO, COMPACTAÇÃO C/ PLACA VIBRATORIA, SOQUETE PNEUMATICO OU SOQUETE MANUAL | D32: m³ | E32: 25.03 | G32: 0 | H32: 0 | I32: 1,000.00 | J32: 1,000.00 | K32: 0 | L32: 0 | M32: 0 | N32: 25,030.00 | O32: 25,030.00
A33: 02.01.01.11 | B33: 050807 | C33: COMPACTACÃO DE ATERRO P/ ENSECADEIRAS C/ SOLO, INCLUSIVE DESTORROAMENTO, UMIDECIMENTO, HOMOGENEIZAÇÃO E COMPACTAÇÃO C/ ROLO | D33: m³ | E33: 1.46 | G33: 8,100.00 | H33: 8,100.00 | I33: 1,000.00 | J33: (7,100.00) | K33: 0 | L33: 11,826.00 | M33: 11,826.00 | N33: 1,460.00 | O33: -10,366.00
A34: 02.01.01.12 | B34: 050658 | C34: REGULARIZAÇÃO DE TALUDES POR PROCESSO MECÂNICO | D34: m² | E34: 0.12 | G34: 10,000.00 | H34: 10,000.00 | I34: 10,000.00 | J34: 0 | K34: 0 | L34: 1,200.00 | M34: 1,200.00 | N34: 1,200.00 | O34: 0
M35: 0
C36: TOTAL DO SUBITEM 02.01 | K36: =SUM(K24:K35) -> 11,231.85 | L36: =SUM(L24:L35) -> 107,103.00 | M36: =SUM(M24:M35) -> 118,334.85 | N36: =SUM(N24:N35) -> 93,130.00 | O36: =SUM(O24:O35) -> (25,204.85)
C37: TOTAL DO SUBITEM 02 | K37: =K36 -> 11,231.85 | L37: =L36 -> 107,103.00 | M37: =M36 -> 118,334.85 | N37: =N36 -> 93,130.00 | O37: =O36 -> (25,204.85)
C38: TOTAL DO SUBITEM 02 COM K= 1,05 | K38: =ROUND(K37*1.05,2) -> 11,793.44 | L38: =ROUND(L37*1.05,2) -> 112,458.15 | M38: =ROUND(M37*1.05,2) -> 124,251.59 | N38: =ROUND(N37*1.05,2) -> 97,786.50 | O38: =ROUND(O37*1.05,2) -> (26,465.09) | P38: =K38/N38 -> 0.1206039689
M39: 0
A40: 03 | C40: DRENAGEM | M40: =ROUND($E40*H40,2) -> 0
A41: 03.01 | C41: DRENAGEM | M41: 0
A42: 03.01.01 | C42: SERVIÇOS DIVERSOS | M42: 0
A43: 03.01.01.01 | B43: 100307 | C43: CAIXA DE PASSAGEM/RECEPCAO EM ALVEN. DE TIJOLO MACICO, TAMPA EM CONCRETO ARMADO, SECAO INTERNA 1,00 X 1,00m, h<=1,30 m (CP TIPO III / CR TIPO III) DP1003-01/02 | D43: un | E43: 770.52 | G43: 5.00 | H43: =F43+G43 -> 5.00 | I43: 10.00 | J43: =I43-H43 -> 5.00 | K43: =ROUND($E43*F43,2) -> 0 | L43: 3,852.60 | M43: 3,852.60 | N43: 7,705.20 | O43: =ROUND(N43-M43,2) -> 3,852.60
A44: 03.01.01.02 | B44: 119121 | C44: FORNECIMENTO E EXECUCAO DE CANALETA REVESTIDA COM SINTEMAX (0,80x0,30)m CONFORME PROJETO. | D44: m | E44: 35.00 | G44: 0 | H44: 0 | I44: 1,500.00 | J44: 1,500.00 | K44: 0 | L44: 0 | M44: 0 | N44: 52,500.00 | O44: 52,500.00
A45: 03.01.01.03 | B45: 119122 | C45: FORNECIMENTO E EXECUCAO DE LEIRAS DE PROTECAO, INCLUSIVE CAMADA DE TERRA VEGETAL, TRANSPORTE E IRRIGACAO ATE A PEGA TOTAL, CONFORME PROJETO. | D45: m | E45: 15.00 | G45: 0 | H45: 0 | I45: 500.00 | J45: 500.00 | K45: 0 | L45: 0 | M45: 0 | N45: 7,500.00 | O45: 7,500.00
A46: 03.01.01.04 | B46: 119123 | C46: FORNECIMENTO E EXECUCAO DE REGULARIZACAO COM FEIXES DE FIBRAS VEGETAIS INCLUSIVE TRANSPORTE, CONFORME PROJETO. | D46: m | E46: 18.01 | G46: 0 | H46: 0 | I46: 1,200.00 | J46: 1,200.00 | K46: 0 | L46: 0 | M46: 0 | N46: 21,612.00 | O46: 21,612.00
A47: 03.01.01.05 | B47: 119120 | C47: FORNECIMENTO E INSTALAÇAO DE ESTRUTURAS DISSIPADORAS DE ENERGIA (DESCIDAS D'AGUA) COM BERMALONGA D20 / D40 CONFORME PROJETO (50% DE CADA) | D47: m | E47: 15.00 | G47: 0 | H47: 0 | I47: 2,500.00 | J47: 2,500.00 | K47: 0 | L47: 0 | M47: 0 | N47: 37,500.00 | O47: 37,500.00
A48: 03.01.01.06 | B48: 110619 | C48: EXECUÇÃO DE DESCIDA D'AGUA EM ALVENARIA DE PEDRA ARGAMASSADA S/ REVESTIMENTO (DP1106-01) | D48: m³ | E48: 274.43 | G48: 0 | H48: 0 | I48: 200.00 | J48: 200.00 | K48: 0 | L48: 0 | M48: 0 | N48: 54,886.00 | O48: 54,886.00
A49: 03.01.01.07 | B49: 119124 | C49: FORNECIMENTO E CONSTRUCAO DE CALHAS VERDES DE DRENAGEM COM (0,40x0,40)m REVESTIDA COM BIOMANTAS INCLUSIVE TRANSPORTE, CONFORME PROJETO. | D49: m | E49: 35.00 | G49: 0 | H49: 0 | I49: 500.00 | J49: 500.00 | K49: 0 | L49: 0 | M49: 0 | N49: 17,500.00 | O49: 17,500.00
A50: 03.01.01.08 | B50: 119125 | C50: CONSTRUCAO DE BACIAS DE RETENÇAO UTILIZANDO MAQUINAS DE TERRAPLENAGEM INCLUSIVE DESLOCAMENTO DOS EQUIPAMENTOS, CONFORME PROJETO. | D50: m³ | E50: 28.00 | G50: 11,120.00 | H50: 11,120.00 | I50: 4,000.00 | J50: (7,120.00) | K50: 0 | L50: 311,360.00 | M50: 311,360.00 | N50: 112,000.00 | O50: (199,360.00)
M51: 0
C52: TOTAL DO SUBITEM 03.01 | K52: =SUM(K43:K51) -> 0 | L52: =SUM(L43:L51) -> 315,212.60 | M52: =SUM(M43:M51) -> 315,212.60 | N52: =SUM(N43:N51) -> 311,203.20 | O52: =SUM(O43:O51) -> (4,009.40)
C53: TOTAL DO SUBITEM 03 | K53: =K52 -> 0 | L53: =L52 -> 315,212.60 | M53: =M52 -> 315,212.60 | N53: =N52 -> 311,203.20 | O53: =O52 -> (4,009.40)
C54: TOTAL DO SUBITEM 03 COM K= 1,05 | K54: =ROUND(K53*1.05,2) -> 0 | L54: =ROUND(L53*1.05,2) -> 330,973.23 | M54: =ROUND(M53*1.05,2) -> 330,973.23 | N54: =ROUND(N53*1.05,2) -> 326,763.36 | O54: =ROUND(O53*1.05,2) -> (4,209.87) | P54: =K54/N54 -> 0
M55: 0
M56: 0
M57: 0
A58: 04 | C58: CERCAMENTO | M58: 0
A59: 04.01 | C59: CERCAMENTO | M59: 0
A60: 04.01.01 | C60: SERVIÇOS DIVERSOS | M60: 0
A61: 04.01.01.01 | B61: 029207 | C61: REMOCAO DE CERCA C/TELA E/OU ARAME. | D61: m | E61: 9.18 | G61: 0 | H61: =F61+G61 -> 0 | I61: 500.00 | J61: =I61-H61 -> 500.00 | K61: =ROUND($E61*F61,2) -> 0 | L61: 0 | M61: 0 | N61: =ROUND($E61*I61,2) -> 4,590.00 | O61: =ROUND(N61-M61,2) -> 4,590.00
A62: 04.01.01.02 | B62: 180401 | C62: CERCA C/ TELA DE ARAME GALVANIZADO REVESTIDA EM PVC C/MALHA DE 2", 12BWG C/ ESTACAS DE CONCRETO PRE-MOLDADAS,C/ PONTA INCLINADA E DIMENSOES DE 0,10x0,10x3,00m, (DP1804-01) | D62: m | E62: 87.83 | G62: 0 | H62: =F62+G62 -> 0 | I62: 500.00 | J62: =I62-H62 -> 500.00 | K62: 0 | L62: 0 | M62: 0 | N62: =ROUND($E62*I62,2) -> 43,915.00 | O62: =ROUND(N62-M62,2) -> 43,915.00
A63: 04.01.01.03 | B63: 189401 | C63: REPARO DE CERCA C/ ARAME FARPADO. | D63: m | E63: 15.46 | G63: 0 | H63: =F63+G63 -> 0 | I63: 300.00 | J63: =I63-H63 -> 300.00 | K63: 0 | L63: 0 | M63: 0 | N63: =ROUND($E63*I63,2) -> 4,638.00 | O63: =ROUND(N63-M63,2) -> 4,638.00
L64: =ROUND($E64*G64,2) -> 0 | M64: 0
C65: TOTAL DO SUBITEM 04.01 | K65: =SUM(K61:K64) -> 0 | L65: =SUM(L61:L64) -> 0 | M65: =SUM(M61:M64) -> 0 | N65: =SUM(N61:N64) -> 53,143.00 | O65: =SUM(O61:O64) -> 53,143.00
C66: TOTAL DO SUBITEM 04 | K66: =K65 -> 0 | L66: =L65 -> 0 | M66: =M65 -> 0 | N66: =N65 -> 53,143.00 | O66: =O65 -> 53,143.00
C67: TOTAL DO SUBITEM 04 COM K= 1,05 | K67: =ROUND(K66*1.05,2) -> 0 | L67: =ROUND(L66*1.05,2) -> 0 | M67: =ROUND(M66*1.05,2) -> 0 | N67: =ROUND(N66*1.05,2) -> 55,800.15 | O67: =ROUND(O66*1.05,2) -> 55,800.15 | P67: =K67/N67 -> 0
M68: 0
G70: 0 | H70: =F70+G70 -> 0 | J70: =I70-H70 -> 0 | K70: =ROUND($E70*F70,2) -> 0
M71: 0
A72: 05 | C72: REVESTIMENTO VEGETAL DE TALUDES, BERMAS E AREAS SEMI-PLANAS CONFORME ESPECIFICAÇÃO | M72: 0
A73: 05.01 | C73: REVESTIMENTO VEGETAL DE TALUDES, BERMAS E AREAS SEMI-PLANAS CONFORME ESPECIFICAÇÃO | M73: 0
A74: 05.01.01 | C74: SERVICOS DIVERSOS | M74: 0
A75: 05.01.01.01 | B75: 119126 | C75: EXECUÇÃO DE REVEGETAÇÃO HIDRO-SEMEADURA EM AREAS PLANAS OU SEMI PLANAS, INCLUSIVE ACOMPANHAMENTO, TRANSPORTE E IRRIGACAO ATE A PEGA TOTAL, CONFORME PROJETO. | D75: m² | E75: 1.50 | F75: =22205+7011.665 -> 29,216.67 | G75: 0 | H75: =F75+G75 -> 29,216.67 | I75: 50,000.00 | J75: =I75-H75 -> 20,783.34 | K75: =ROUND($E75*F75,2) -> 43,825.00 | L75: 0 | M75: 43,825.00 | N75: 75,000.00 | O75: =ROUND(N75-M75,2) -> 31,175.00
A76: 05.01.01.02 | B76: 180607 | C76: PLANTIO DE ARVORES, C/ h >= 2,00 m, INCLUSIVE PREPARO E ADUBAÇÃO DO SOLO E IRRIGAÇÃO ATE A PEGA TOTAL | D76: un | E76: 38.13 | G76: 0 | H76: 0 | I76: 2,000.00 | J76: 2,000.00 | K76: 0 | L76: 0 | M76: 0 | N76: 76,260.00 | O76: 76,260.00
A77: 05.01.01.03 | B77: 180601 | C77: PLANTIO DE GRAMA EM PLACA,INCLUSIVE CAMADA DE TERRA VEGETAL, e=0,05m, TRANSPORTE E IRRIGAÇÕO ATÉ A PEGA TOTAL | D77: m² | E77: 10.92 | G77: 0 | H77: 0 | I77: 2,000.00 | J77: 2,000.00 | K77: 0 | L77: 0 | M77: 0 | N77: 21,840.00 | O77: 21,840.00
A78: 05.01.01.04 | B78: 119127 | C78: FORNECIMENTO E EXECUÇÃO DE CORDÃO VEGETADO COM CAPIM VETIVER, INCLUSIVE CAMADA DE TERRA VEGETAL, TRANSPORTE E IRRIGAÇÃO ATÉ A PEGA TOTAL, CONFORME PROJETO. | D78: m | E78: 18.01 | G78: 0 | H78: 0 | I78: 1,500.00 | J78: 1,500.00 | K78: 0 | L78: 0 | M78: 0 | N78: 27,015.00 | O78: 27,015.00
A79: 05.01.01.05 | B79: 119128 | C79: FORNECIMENTO E INSTALAÇÃO DE BIOMANTAS DE PALHA UNIDIMENSIONAL TIPO TELA BIOTEXTIL 400 UP,INCLUSIVE TRANSPORTE, CONFORME PROJETO. | D79: m² | E79: 4.90 | F79: 2,500.00 | G79: 0 | H79: 2,500.00 | I79: 5,000.00 | J79: 2,500.00 | K79: 12,250.00 | L79: 0 | M79: 12,250.00 | N79: 24,500.00 | O79: 12,250.00
A80: 05.01.01.06 | B80: 119129 | C80: FORNECIMENTO E INSTALAÇÃO DE BIOMANTAS ANTI EROSIVAS DE FIBRA DE COCO TRIDIMENSIONAL, TIPO TELA BIOTEXTIL 400 TF, INCLUSIVE TRANSPORTE,CONFORME PROJETO. | D80: m² | E80: 14.00 | F80: 3,500.00 | G80: 0 | H80: 3,500.00 | I80: 7,000.00 | J80: 3,500.00 | K80: 49,000.00 | L80: 0 | M80: 49,000.00 | N80: 98,000.00 | O80: 49,000.00
A81: 05.01.01.07 | B81: 119130 | C81: FORNECIMENTO E INSTALAÇÃO DE BIOMANTAS ANTI EROSIVAS DE FIBRA DE COCO BIDIMENSIONAL, TIPO TELA FIBRAX 300 BF, INCLUSIVE TRANSPORTE, COMFORME PROJETO. | D81: m² | E81: 6.90 | F81: 3,500.00 | G81: 0 | H81: 3,500.00 | I81: 7,000.00 | J81: 3,500.00 | K81: 24,150.00 | L81: 0 | M81: 24,150.00 | N81: 48,300.00 | O81: 24,150.00
A82: 05.01.01.08 | B82: 119131 | C82: FORNECIMENTO E FIXAÇÃO DE GRAMPOS DE AÇO CA-50, CONFORME PROJETO. | D82: un | E82: 2.00 | F82: 2,000.00 | G82: 0 | H82: 2,000.00 | I82: 4,000.00 | J82: 2,000.00 | K82: 4,000.00 | L82: 0 | M82: 4,000.00 | N82: 8,000.00 | O82: 4,000.00
A83: 05.01.01.09 | B83: 110704 | C83: ENROCAMENTO C/ PEDRA DE MÃO, C/ ARRUMAÇÃO MANUAL, INCLUSIVE FORNECIMENTO DO MATERIAL | D83: m³ | E83: 126.49 | G83: 30.00 | H83: 30.00 | I83: 100.00 | J83: 70.00 | K83: 0 | L83: 3,794.70 | M83: 3,794.70 | N83: 12,649.00 | O83: 8,854.30
M84: 0
C85: TOTAL DO SUBITEM 05.01 | K85: =SUM(K75:K83) -> 133,225.00 | L85: =SUM(L75:L83) -> 3,794.70 | M85: =SUM(M75:M83) -> 137,019.70 | N85: =SUM(N75:N83) -> 391,564.00 | O85: =SUM(O75:O83) -> 254,544.30
C86: TOTAL DO SUBITEM 05 | K86: =K85 -> 133,225.00 | L86: =L85 -> 3,794.70 | M86: =M85 -> 137,019.70 | N86: =N85 -> 391,564.00 | O86: =O85 -> 254,544.30
C87: TOTAL DO SUBITEM 05 COM K= 1,05 | K87: =ROUND(K86*1.05,2) -> 139,886.25 | L87: =ROUND(L86*1.05,2) -> 3,984.44 | M87: =ROUND(M86*1.05,2) -> 143,870.69 | N87: =ROUND(N86*1.05,2) -> 411,142.20 | O87: =ROUND(O86*1.05,2) -> 267,271.52 | P87: =K87/N87 -> 0.340238122
M88: 0
A89: 06 | C89: SERVIÇOS COMPLEMENTARES | M89: 0
A90: 06.01 | C90: SERVIÇOS COMPLEMENTARES | M90: 0
A91: 06.01.01 | C91: SERVIÇOS COMPLEMENTARES | M91: 0
A92: 06.01.01.01 | B92: 020407 | C92: ROÇAGEM EM CAPOEIRA DENSA A MACHADO,INCLUSIVE RASPAGEM,MANUAL,JUNTAMENTO,QUEIMA DO MATERIAL E REMOÇÃO MANUAL DOS RESIDUOS P/FORA DA AREA ROÇADA. | D92: m² | E92: 3.45 | F92: 3000.00 | G92: 2,000.00 | H92: =F92+G92 -> 5,000.00 | I92: 5,000.00 | J92: 0 | K92: =ROUND($E92*F92,2) -> 10,350.00 | L92: =ROUND($E92*G92,2) -> 6,900.00 | M92: 17,250.00 | N92: =E92*I92 -> 17,250.00 | O92: =ROUND(N92-M92,2) -> 0
A93: 06.01.01.02 | B93: 119132 | C93: LIMPEZA DE CANALETAS | D93: m | E93: 6.49 | G93: 0 | H93: =F93+G93 -> 0 | I93: 1,000.00 | J93: 1,000.00 | K93: =ROUND($E93*F93,2) -> 0 | L93: =ROUND($E93*G93,2) -> 0 | M93: 0 | N93: =E93*I93 -> 6,490.00 | O93: =ROUND(N93-M93,2) -> 6,490.00
M94: 0
C95: TOTAL DO SUBITEM 06.01 | K95: =SUM(K92:K94) -> 10,350.00 | L95: =SUM(L92:L94) -> 6,900.00 | M95: =SUM(M92:M94) -> 17,250.00 | N95: =SUM(N92:N93) -> 23,740.00 | O95: =N95-M95 -> 6,490.00
C96: TOTAL DO SUBITEM 06 | K96: =K95 -> 10,350.00 | L96: =L95 -> 6,900.00 | M96: =M95 -> 17,250.00 | N96: =N95 -> 23,740.00 | O96: =N96-M96 -> 6,490.00
C97: TOTAL DO SUBITEM 06 COM K= 1,05 | K97: =K96*1.05 -> 10,867.50 | L97: =L96*1.05 -> 7,245.00 | M97: =M96*1.05 -> 18,112.50 | N97: =1.05*N96 -> 24,927.00 | O97: =N97-M97 -> 6,814.50 | P97: =K97/N97 -> 0.4359730413
M98: 0
A99: 07 | C99: CONTENÇÕES | M99: 0
A100: 07.01 | C100: CONTENÇÕES | M100: 0
A101: 07.01.01 | C101: SERVICOS DIVERSOS | M101: 0
A102: 07.01.01.01 | B102: 119136 | C102: FORNECIMENTO E COLOCAÇÃO DE PIQUETES DE MADEIRA PARA CONTENÇÃO DOS ROLOS DAS MANTAS,INCLUSIVE TRANSPORTE, CONFORME PROJETO. | D102: m | E102: 0.39 | G102: 0 | H102: =F102+G102 -> 0 | I102: 5,000.00 | J102: 5,000.00 | K102: =ROUND($E102*F102,2) -> 0 | L102: 0 | M102: 0 | N102: 1,950.00 | O102: =ROUND(N102-M102,2) -> 1,950.00
A103: 07.01.01.02 | B103: 119133 | C103: EXECUÇÃO DE CONTENÇÃO C/ SOLO-PNEUS, INCLUSIVE, FORNECIMENTO, TRANSPORTE E ENCHIMENTO DOS PNEUS, CONFORME PROJETO | D103: m³ | E103: 50.00 | G103: 0 | H103: 0 | I103: 500.00 | J103: 500.00 | K103: 0 | L103: 0 | M103: 0 | N103: 25,000.00 | O103: 25,000.00
A104: 07.01.01.03 | B104: 119134 | C104: FORNECIMENTO E EXECUÇÃO DAS PALICADAS DE MADEIRA IMUNIZADAS,INCLUSIVE TRANSPORTE, CONFORME PROJETO. | D104: m | E104: 149.99 | F104: 100.00 | G104: 60.00 | H104: 160.00 | I104: 250.00 | J104: 90.00 | K104: 14,999.00 | L104: 8,999.40 | M104: 23,998.40 | N104: 37,497.50 | O104: 13,499.10
A105: 07.01.01.04 | B105: 119135 | C105: FORNECIMENTO E COLOCAÇÃO DOS SACOS DE JUTA, INCLUSIVE TRANSPORTE, CONFORME PROJETO. | D105: m | E105: 2.00 | F105: 800.00 | G105: 0 | H105: 800.00 | I105: 2,500.00 | J105: 1,700.00 | K105: 1,600.00 | L105: 0 | M105: 1,600.00 | N105: 5,000.00 | O105: 3,400.00
A106: 07.01.01.05 | B106: 110704 | C106: ENROCAMENTO C/ PEDRA DE MAO, C/ ARRUMAÇÃO MANUAL, INCLUSIVE FORNECIMENTO DO MATERIAL | D106: m³ | E106: 126.49 | F106: 112.00 | G106: 0 | H106: 112.00 | I106: 200.00 | J106: 88.00 | K106: 14,166.88 | L106: 0 | M106: 14,166.88 | N106: 25,298.00 | O106: 11,131.12
A107: 07.01.01.06 | B107: 180607 | C107: PLANTIO DE ARVORES, C/ h >= 2,00 m, INCLUSIVE PREPARO E ADUBAÇÃO DO SOLO E IRRIGAÇÃO ATÉ A PEGA TOTAL | D107: un | E107: 38.13 | G107: 0 | H107: 0 | I107: 2,000.00 | J107: 2,000.00 | K107: 0 | L107: 0 | M107: 0 | N107: 76,260.00 | O107: 76,260.00
A108: 07.01.01.07 | B108: 111016 | C108: FORNECIMENTO E COLOCAÇÃO DE MANTA GEOTEXTIL TECIDA C/ GRAMATURA DE 445 g/mý | D108: m² | E108: 11.06 | G108: 0 | H108: 0 | I108: 3,000.00 | J108: 3,000.00 | K108: 0 | L108: 0 | M108: 0 | N108: 33,180.00 | O108: 33,180.00
C110: TOTAL DO SUBITEM 07.01 | K110: =SUM(K102:K109) -> 30,765.88 | L110: =SUM(L102:L109) -> 8,999.40 | M110: =SUM(M102:M109) -> 39,765.28 | N110: =SUM(N102:N109) -> 204,185.50 | O110: =SUM(O102:O109) -> 164,420.22
C111: TOTAL DO SUBITEM 07 | K111: =K110 -> 30,765.88 | L111: =L110 -> 8,999.40 | M111: =M110 -> 39,765.28 | N111: =N110 -> 204,185.50 | O111: =O110 -> 164,420.22
C112: TOTAL DO SUBITEM 07 COM K= 1,05 | K112: =ROUND(K111*1.05,2) -> 32,304.17 | L112: =ROUND(L111*1.05,2) -> 9,449.37 | M112: =ROUND(M111*1.05,2) -> 41,753.54 | N112: =ROUND(N111*1.05,2) -> 214,394.78 | O112: =ROUND(O111*1.05,2) -> 172,641.23 | P112: =K112/N112 -> 0.1506761032
A114: TOTAL GERAL SERVIÇOS | K114: =K18+K37+K53+K66+K86+K96+K111 -> 185,572.73 | L114: =L18+L37+L53+L66+L86+L96+L111 -> 484,715.46 | M114: =M18+M37+M53+M66+M86+M96+M111 -> 670,288.19 | N114: =N18+N37+N53+N66+N86+N96+N111 -> 1,124,709.34 | O114: =O18+O37+O53+O66+O86+O96+O111 -> 454,421.15
A115: TOTAL GERAL SERVIÇOS COM K= 1,05 | K115: =ROUND(K114*1.05,2) -> 194,851.37 | L115: =ROUND(L114*1.05,2) -> 508,951.23 | M115: =K115+L115 -> 703,802.60 | N115: =ROUND(N114*1.05,2) -> 1,180,944.81 | O115: =ROUND(O114*1.05,2) -> 477,142.21 | P115: =M115+O115 -> 1,180,944.81
P119: =(M115/N115)*100 -> 59.60 | Q119: %
C120: CONSTRUTORA: TECTRAN BAHIA LTDA | H120: FISCALIZAÇÃO: EMBASA - EMPRESA BAIANA DE ÁGUAS E SANEAMENTO S/A
C121: Engº Fernando Gomes de Oliveira | G121: Engª Sandra Maria Araújo Ideião

Sheet MEDIÇÃO 05 (2) (hidden)
A1: EMBASA - EMPRESA BAIANA DE ÁGUAS E SANEAMENTO S. A . | J1: MODALIDADE: CONCORRÊNCIA NACIONAL
A2: PROGRAMA: | J2: DATA DA PROPOSTA: 08/11/2010
A3: TIPO DE EMPREENDIMENTO: RECUPERAÇÃO DA ÁREA DE JAZIDA CONSTRUÇÃO DA BARRAGEM DE SANTA HELENA | G3: MEDIÇÃO Nº 04 | J3: INÍCIO DA OBRA: 03/01/2011
A4: AGENTE FINANCEIRO: RECURSOS PRÓPRIOS | J4: FIM DA OBRA: 03/05/2011
A5: CONTRATADA: TECTRAN BAHIA LTDA | J5: VALOR DO CONTRATO INICIAL: R$ 1.180.944,81
A6: LOCALIZAÇÃO: DIAS D'ÁVILA - MATA DE SÃO JOÃO - BA | D6: PERÍODO DA MEDIÇÃO: | F6: 01/04/2011 a | G6: 2011-04-30 | J6: VALOR DO CONTRATO ATUALIZADO: R$1.180.944,81
A7: DATA DE ASSINATURA DO CONTRATO: 18/02/2010 | J7: CONTRATO Nº: 1.205/10
A8: ÍTEM | B8: CÓDIGO | C8: DESCRIÇÃO DOS SERVIÇOS | D8: UN | E8: P. UNIT. | F8: QUANTIDADE | K8: VALOR EM R$
F9: MEDIDO | G9: MEDIDO ANTERIOR | H9: MEDIDO ACUMULADO | I9: CONTRATADO | J9: SALDO | K9: MEDIDO | L9: MEDIDO ANTERIOR | M9: MEDIDO ACUMULADO | N9: CONTRATADO | O9: SALDO
A10: 01 | C10: MOBILIZAÇÃO E DESMOBILIZAÇÃO DO CANTEIRO DE OBRA
A11: 01.01 | C11: MOBILIZAÇÃO E DESMOBILIZAÇÃO DO CANTEIRO DE OBRA
A12: 01.01.01 | C12: MOBILIZAÇÃO E DESMOBILIZAÇÃO DO CANTEIRO DE OBRA
A13: 01.01.01.01 | B13: 019201 | C13: MOBILIZACÃO E INSTALACÃO DE CANTEIRO DE OBRAS | D13: vb | E13: 41,990.00 | G13: 1.00 | H13: =F13+G13 -> 1.00 | I13: 1.00 | J13: =I13-H13 -> 0 | K13: =ROUND($E13*F13,2) -> 0 | L13: 41,990.00 | M13: 41,990.00 | N13: 41,990.00 | O13: =ROUND(N13-M13,2) -> 0
A14: 01.01.01.02 | B14: 019204 | C14: DESMOBILIZACÃO DE CANTEIRO DE OBRAS | D14: vb | E14: 4,680.00 | G14: 0 | H14: =F14+G14 -> 0 | I14: 1.00 | J14: =I14-H14 -> 1.00 | K14: 0 | L14: 0 | M14: 0 | N14: 4,680.00 | O14: =ROUND(N14-M14,2) -> 4,680.00
A15: 01.01.01.03 | B15: 030110 | C15: PLACA DE IDENTIFICACAO DA OBRA PADRAO EMBASA, INCLUSIVE FORNECIMENTO, TRANSPORTE E INSTALAÇÃO (DP0301-04) | D15: m² | E15: 89.47 | G15: 8.00 | H15: =F15+G15 -> 8.00 | I15: 12.00 | J15: =I15-H15 -> 4.00 | K15: 0 | L15: 715.76 | M15: 715.76 | N15: 1,073.64 | O15: =ROUND(N15-M15,2) -> 357.88
M16: =ROUND($E16*H16,2) -> 0
C17: TOTAL DO SUBITEM 01.01 | K17: =SUM(K10:K16) -> 0 | L17: =SUM(L10:L16) -> 42,705.76 | M17: =SUM(M13:M15) -> 42,705.76 | N17: =SUM(N10:N16) -> 47,743.64 | O17: =SUM(O10:O16) -> 5,037.88
C18: TOTAL DO SUBITEM 01 | K18: =K17 -> 0 | L18: =L17 -> 42,705.76 | M18: =M17 -> 42,705.76 | N18: =N17 -> 47,743.64 | O18: =O17 -> 5,037.88
C19: TOTAL DO SUBITEM 01 COM K= 1,05 | K19: =ROUND(K18*1.05,2) -> 0 | L19: =ROUND(L18*1.05,2) -> 44,841.05 | M19: =M18*1.05 -> 44,841.05 | N19: =ROUND(N18*1.05,2) -> 50,130.82 | O19: =ROUND(O18*1.05,2) -> 5,289.77 | P19: =K19/N19 -> 0
M20: =ROUND($E20*H20,2) -> 0
A21: 02 | C21: SERVIÇOS PRELIMINARES | M21: 0
A22: 02.01 | C22: SERVIÇOS PRELIMINARES | M22: 0
A23: 02.01.01 | C23: MOVIMENTO DE TERRA | M23: 0
A24: 02.01.01.01 | B24: 020301 | C24: LIMPEZA MANUAL DO TERRENO, INCLUSIVE RASPAGEM, JUNTAMENTO E QUEIMA DO MATERIAL | D24: m² | E24: 1.72 | F24: 2,000.00 | G24: 3,000.00 | H24: =F24+G24 -> 5,000.00 | I24: 5,000.00 | J24: =I24-H24 -> 0 | K24: =ROUND($E24*F24,2) -> 3,440.00 | L24: 5,160.00 | M24: 8,600.00 | N24: 8,600.00 | O24: =ROUND(N24-M24,2) -> 0
A25: 02.01.01.02 | B25: 050661 | C25: REGULARIZAÇÃO DE TALUDES POR PROCESSO MANUAL | D25: m² | E25: 1.46 | F25: 3,500.00 | G25: 1,500.00 | H25: 5,000.00 | I25: 5,000.00 | J25: =I25-H25 -> 0 | K25: 5,110.00 | L25: 2,190.00 | M25: 7,300.00 | N25: 7,300.00 | O25: 0
A26: 02.01.01.03 | B26: 050613 | C26: ESCAVAÇÃO E TRANSPORTE ATÉ 30m C/ TRATOR DE ESTEIRAS C/ LAMINA, P/ EMPILHAMENTO EM MATERIAL DE 1ª CAT. | D26: m³ | E26: 1.55 | G26: 17,100.00 | H26: 17,100.00 | I26: 5,000.00 | J26: =I26-H26 -> (12,100.00) | K26: 0 | L26: 26,505.00 | M26: 26,505.00 | N26: 7,750.00 | O26: (18,755.00)
A27: 02.01.01.04 | B27: 060104 | C27: CARGA E DESCARGA DE SOLO | D27: m³ | E27: 1.76 | G27: 17,100.00 | H27: 17,100.00 | I27: 5,000.00 | J27: (12,100.00) | K27: 0 | L27: 30,096.00 | M27: 30,096.00 | N27: 8,800.00 | O27: (21,296.00)
A28: 02.01.01.05 | B28: 060204 | C28: MOMENTO DE TRANSPORTE DE SOLO, EM CAMINHAO BASCULANTE | D28: m³xkm | E28: 0.52 | G28: 17,100.00 | H28: 17,100.00 | I28: 5,000.00 | J28: (12,100.00) | K28: 0 | L28: 8,892.00 | M28: 8,892.00 | N28: 2,600.00 | O28: (6,292.00)
A29: 02.01.01.06 | B29: 060125 | C29: ESPALHAMENTO MECANICO DE SOLO EM BOTA-FORA | D29: m³ | E29: 1.04 | G29: 17,100.00 | H29: 17,100.00 | I29: 5,000.00 | J29: (12,100.00) | K29: 0 | L29: 17,784.00 | M29: 17,784.00 | N29: 5,200.00 | O29: (12,584.00)
A30: 02.01.01.08 | B30: 020407 | C30: ROÇAGEM EM CAPOEIRA DENSA A MACHADO, INCLUSIVE RASPAGEM MANUAL, JUNTAMENTO, QUEIMA DO MATERIAL E REMOÇÃO MANUAL DOS RESÍODOS PARA FORA DA ÁREA ROÇADA | D30: m² | E30: 3.45 | G30: 1,000.00 | H30: 1,000.00 | I30: 1,000.00 | J30: 0 | K30: 0 | L30: 3,450.00 | M30: 3,450.00 | N30: 3,450.00 | O30: 0
A31: 02.01.01.09 | B31: 050310 | C31: ESCAVAÇÃO MANUAL DE POÇOS E CAVAS DE FUNDAÇÃO EM SOLO DE 1ª CATEGORIA EXECUTADA C/ PROFUNDIDADE ACIMA DE 4,50m | D31: m³ | E31: 21.74 | F31: 123.36 | G31: 0 | H31: 123.36 | I31: 1,000.00 | J31: 876.64 | K31: 2,681.85 | L31: 0 | M31: 2,681.85 | N31: 21,740.00 | O31: 19,058.15
A32: 02.01.01.10 | B32: 050404 | C32: EXECUÇÃO DE ATERRO EM VALAS POÇOS/CAVAS DE FUNDAÇÃO COM FORNECIMENTO DE AREIA, INCLUSIVE LANÇAMENTO, ESPALHAMENTO, COMPACTAÇÃO C/ PLACA VIBRATORIA, SOQUETE PNEUMATICO OU SOQUETE MANUAL | D32: m³ | E32: 25.03 | G32: 0 | H32: 0 | I32: 1,000.00 | J32: 1,000.00 | K32: 0 | L32: 0 | M32: 0 | N32: 25,030.00 | O32: 25,030.00
A33: 02.01.01.11 | B33: 050807 | C33: COMPACTACÃO DE ATERRO P/ ENSECADEIRAS C/ SOLO, INCLUSIVE DESTORROAMENTO, UMIDECIMENTO, HOMOGENEIZAÇÃO E COMPACTAÇÃO C/ ROLO | D33: m³ | E33: 1.46 | G33: 8,100.00 | H33: 8,100.00 | I33: 1,000.00 | J33: (7,100.00) | K33: 0 | L33: 11,826.00 | M33: 11,826.00 | N33: 1,460.00 | O33: (10,366.00)
A34: 02.01.01.12 | B34: 050658 | C34: REGULARIZAÇÃO DE TALUDES POR PROCESSO MECÂNICO | D34: m² | E34: 0.12 | G34: 10,000.00 | H34: 10,000.00 | I34: 10,000.00 | J34: 0 | K34: 0 | L34: 1,200.00 | M34: 1,200.00 | N34: 1,200.00 | O34: 0
M35: 0
C36: TOTAL DO SUBITEM 02.01 | K36: =SUM(K24:K35) -> 11,231.85 | L36: =SUM(L24:L35) -> 107,103.00 | M36: =SUM(M24:M35) -> 118,334.85 | N36: =SUM(N24:N35) -> 93,130.00 | O36: =SUM(O24:O35) -> (25,204.85)
C37: TOTAL DO SUBITEM 02 | K37: =K36 -> 11,231.85 | L37: =L36 -> 107,103.00 | M37: =M36 -> 118,334.85 | N37: =N36 -> 93,130.00 | O37: =O36 -> (25,204.85)
C38: TOTAL DO SUBITEM 02 COM K= 1,05 | K38: =ROUND(K37*1.05,2) -> 11,793.44 | L38: =ROUND(L37*1.05,2) -> 112,458.15 | M38: =ROUND(M37*1.05,2) -> 124,251.59 | N38: =ROUND(N37*1.05,2) -> 97,786.50 | O38: =ROUND(O37*1.05,2) -> (26,465.09) | P38: =K38/N38 -> 0.1206039689
M39: 0
A40: 03 | C40: DRENAGEM | M40: =ROUND($E40*H40,2) -> 0
A41: 03.01 | C41: DRENAGEM | M41: 0
A42: 03.01.01 | C42: SERVIÇOS DIVERSOS | M42: 0
A43: 03.01.01.01 | B43: 100307 | C43: CAIXA DE PASSAGEM/RECEPCAO EM ALVEN. DE TIJOLO MACICO, TAMPA EM CONCRETO ARMADO, SECAO INTERNA 1,00 X 1,00m, h<=1,30 m (CP TIPO III / CR TIPO III) DP1003-01/02 | D43: un | E43: 770.52 | G43: 5.00 | H43: =F43+G43 -> 5.00 | I43: 10.00 | J43: =I43-H43 -> 5.00 | K43: =ROUND($E43*F43,2) -> 0 | L43: 3,852.60 | M43: 3,852.60 | N43: 7,705.20 | O43: =ROUND(N43-M43,2) -> 3,852.60
A44: 03.01.01.02 | B44: 119121 | C44: FORNECIMENTO E EXECUCAO DE CANALETA REVESTIDA COM SINTEMAX (0,80x0,30)m CONFORME PROJETO. | D44: m | E44: 35.00 | G44: 0 | H44: 0 | I44: 1,500.00 | J44: 1,500.00 | K44: 0 | L44: 0 | M44: 0 | N44: 52,500.00 | O44: 52,500.00
A45: 03.01.01.03 | B45: 119122 | C45: FORNECIMENTO E EXECUCAO DE LEIRAS DE PROTECAO, INCLUSIVE CAMADA DE TERRA VEGETAL, TRANSPORTE E IRRIGACAO ATE A PEGA TOTAL, CONFORME PROJETO. | D45: m | E45: 15.00 | G45: 0 | H45: 0 | I45: 500.00 | J45: 500.00 | K45: 0 | L45: 0 | M45: 0 | N45: 7,500.00 | O45: 7,500.00
A46: 03.01.01.04 | B46: 119123 | C46: FORNECIMENTO E EXECUCAO DE REGULARIZACAO COM FEIXES DE FIBRAS VEGETAIS INCLUSIVE TRANSPORTE, CONFORME PROJETO. | D46: m | E46: 18.01 | G46: 0 | H46: 0 | I46: 1,200.00 | J46: 1,200.00 | K46: 0 | L46: 0 | M46: 0 | N46: 21,612.00 | O46: 21,612.00
A47: 03.01.01.05 | B47: 119120 | C47: FORNECIMENTO E INSTALAÇAO DE ESTRUTURAS DISSIPADORAS DE ENERGIA (DESCIDAS D'AGUA) COM BERMALONGA D20 / D40 CONFORME PROJETO (50% DE CADA) | D47: m | E47: 15.00 | G47: 0 | H47: 0 | I47: 2,500.00 | J47: 2,500.00 | K47: 0 | L47: 0 | M47: 0 | N47: 37,500.00 | O47: 37,500.00
A48: 03.01.01.06 | B48: 110619 | C48: EXECUÇÃO DE DESCIDA D'AGUA EM ALVENARIA DE PEDRA ARGAMASSADA S/ REVESTIMENTO (DP1106-01) | D48: m³ | E48: 274.43 | G48: 0 | H48: 0 | I48: 200.00 | J48: 200.00 | K48: 0 | L48: 0 | M48: 0 | N48: 54,886.00 | O48: 54,886.00
A49: 03.01.01.07 | B49: 119124 | C49: FORNECIMENTO E CONSTRUCAO DE CALHAS VERDES DE DRENAGEM COM (0,40x0,40)m REVESTIDA COM BIOMANTAS INCLUSIVE TRANSPORTE, CONFORME PROJETO. | D49: m | E49: 35.00 | G49: 0 | H49: 0 | I49: 500.00 | J49: 500.00 | K49: 0 | L49: 0 | M49: 0 | N49: 17,500.00 | O49: 17,500.00
A50: 03.01.01.08 | B50: 119125 | C50: CONSTRUCAO DE BACIAS DE RETENÇAO UTILIZANDO MAQUINAS DE TERRAPLENAGEM INCLUSIVE DESLOCAMENTO DOS EQUIPAMENTOS, CONFORME PROJETO. | D50: m³ | E50: 28.00 | G50: 11,120.00 | H50: 11,120.00 | I50: 4,000.00 | J50: (7,120.00) | K50: 0 | L50: 311,360.00 | M50: 311,360.00 | N50: 112,000.00 | O50: (199,360.00)
M51: 0
C52: TOTAL DO SUBITEM 03.01 | K52: =SUM(K43:K51) -> 0 | L52: =SUM(L43:L51) -> 315,212.60 | M52: =SUM(M43:M51) -> 315,212.60 | N52: =SUM(N43:N51) -> 311,203.20 | O52: =SUM(O43:O51) -> (4,009.40)
C53: TOTAL DO SUBITEM 03 | K53: =K52 -> 0 | L53: =L52 -> 315,212.60 | M53: =M52 -> 315,212.60 | N53: =N52 -> 311,203.20 | O53: =O52 -> (4,009.40)
C54: TOTAL DO SUBITEM 03 COM K= 1,05 | K54: =ROUND(K53*1.05,2) -> 0 | L54: =ROUND(L53*1.05,2) -> 330,973.23 | M54: =ROUND(M53*1.05,2) -> 330,973.23 | N54: =ROUND(N53*1.05,2) -> 326,763.36 | O54: =ROUND(O53*1.05,2) -> (4,209.87) | P54: =K54/N54 -> 0
M55: 0
M56: 0
M57: 0
A58: 04 | C58: CERCAMENTO | M58: 0
A59: 04.01 | C59: CERCAMENTO | M59: 0
A60: 04.01.01 | C60: SERVIÇOS DIVERSOS | M60: 0
A61: 04.01.01.01 | B61: 029207 | C61: REMOCAO DE CERCA C/TELA E/OU ARAME. | D61: m | E61: 9.18 | G61: 0 | H61: =F61+G61 -> 0 | I61: 500.00 | J61: =I61-H61 -> 500.00 | K61: =ROUND($E61*F61,2) -> 0 | L61: 0 | M61: 0 | N61: =ROUND($E61*I61,2) -> 4,590.00 | O61: =ROUND(N61-M61,2) -> 4,590.00
A62: 04.01.01.02 | B62: 180401 | C62: CERCA C/ TELA DE ARAME GALVANIZADO REVESTIDA EM PVC C/MALHA DE 2", 12BWG C/ ESTACAS DE CONCRETO PRE-MOLDADAS,C/ PONTA INCLINADA E DIMENSOES DE 0,10x0,10x3,00m, (DP1804-01) | D62: m | E62: 87.83 | G62: 0 | H62: =F62+G62 -> 0 | I62: 500.00 | J62: =I62-H62 -> 500.00 | K62: 0 | L62: 0 | M62: 0 | N62: =ROUND($E62*I62,2) -> 43,915.00 | O62: =ROUND(N62-M62,2) -> 43,915.00
A63: 04.01.01.03 | B63: 189401 | C63: REPARO DE CERCA C/ ARAME FARPADO. | D63: m | E63: 15.46 | G63: 0 | H63: =F63+G63 -> 0 | I63: 300.00 | J63: =I63-H63 -> 300.00 | K63: 0 | L63: 0 | M63: 0 | N63: =ROUND($E63*I63,2) -> 4,638.00 | O63: =ROUND(N63-M63,2) -> 4,638.00
L64: =ROUND($E64*G64,2) -> 0 | M64: 0
C65: TOTAL DO SUBITEM 04.01 | K65: =SUM(K61:K64) -> 0 | L65: =SUM(L61:L64) -> 0 | M65: =SUM(M61:M64) -> 0 | N65: =SUM(N61:N64) -> 53,143.00 | O65: =SUM(O61:O64) -> 53,143.00
C66: TOTAL DO SUBITEM 04 | K66: =K65 -> 0 | L66: =L65 -> 0 | M66: =M65 -> 0 | N66: =N65 -> 53,143.00 | O66: =O65 -> 53,143.00
C67: TOTAL DO SUBITEM 04 COM K= 1,05 | K67: =ROUND(K66*1.05,2) -> 0 | L67: =ROUND(L66*1.05,2) -> 0 | M67: =ROUND(M66*1.05,2) -> 0 | N67: =ROUND(N66*1.05,2) -> 55,800.15 | O67: =ROUND(O66*1.05,2) -> 55,800.15 | P67: =K67/N67 -> 0
M68: 0
G70: 0 | H70: =F70+G70 -> 0 | J70: =I70-H70 -> 0 | K70: =ROUND($E70*F70,2) -> 0
M71: 0
A72: 05 | C72: REVESTIMENTO VEGETAL DE TALUDES, BERMAS E AREAS SEMI-PLANAS CONFORME ESPECIFICAÇÃO | M72: 0
A73: 05.01 | C73: REVESTIMENTO VEGETAL DE TALUDES, BERMAS E AREAS SEMI-PLANAS CONFORME ESPECIFICAÇÃO | M73: 0
A74: 05.01.01 | C74: SERVICOS DIVERSOS | M74: 0
A75: 05.01.01.01 | B75: 119126 | C75: EXECUÇÃO DE REVEGETAÇÃO HIDRO-SEMEADURA EM AREAS PLANAS OU SEMI PLANAS, INCLUSIVE ACOMPANHAMENTO, TRANSPORTE E IRRIGACAO ATE A PEGA TOTAL, CONFORME PROJETO. | D75: m² | E75: 1.50 | F75: 22,205.00 | G75: 0 | H75: =F75+G75 -> 22,205.00 | I75: 50,000.00 | J75: =I75-H75 -> 27,795.00 | K75: =ROUND($E75*F75,2) -> 33,307.50 | L75: 0 | M75: 33,307.50 | N75: 75,000.00 | O75: =ROUND(N75-M75,2) -> 41,692.50
A76: 05.01.01.02 | B76: 180607 | C76: PLANTIO DE ARVORES, C/ h >= 2,00 m, INCLUSIVE PREPARO E ADUBAÇÃO DO SOLO E IRRIGAÇÃO ATE A PEGA TOTAL | D76: un | E76: 38.13 | F76: =I76*0.15 -> 300.00 | G76: 0 | H76: 300.00 | I76: 2,000.00 | J76: 1,700.00 | K76: 11,439.00 | L76: 0 | M76: 11,439.00 | N76: 76,260.00 | O76: 64,821.00
A77: 05.01.01.03 | B77: 180601 | C77: PLANTIO DE GRAMA EM PLACA,INCLUSIVE CAMADA DE TERRA VEGETAL, e=0,05m, TRANSPORTE E IRRIGAÇÕO ATÉ A PEGA TOTAL | D77: m² | E77: 10.92 | F77: 1,000.00 | G77: 0 | H77: 1,000.00 | I77: 2,000.00 | J77: 1,000.00 | K77: 10,920.00 | L77: 0 | M77: 10,920.00 | N77: 21,840.00 | O77: 10,920.00
A78: 05.01.01.04 | B78: 119127 | C78: FORNECIMENTO E EXECUÇÃO DE CORDÃO VEGETADO COM CAPIM VETIVER, INCLUSIVE CAMADA DE TERRA VEGETAL, TRANSPORTE E IRRIGAÇÃO ATÉ A PEGA TOTAL, CONFORME PROJETO. | D78: m | E78: 18.01 | F78: 750.00 | G78: 0 | H78: 750.00 | I78: 1,500.00 | J78: 750.00 | K78: 13,507.50 | L78: 0 | M78: 13,507.50 | N78: 27,015.00 | O78: 13,507.50
A79: 05.01.01.05 | B79: 119128 | C79: FORNECIMENTO E INSTALAÇÃO DE BIOMANTAS DE PALHA UNIDIMENCIONAL TIPO TELA BIOTEXTIL 400 UP,INCLUSIVE TRANSPORTE, CONFORME PROJETO. | D79: m² | E79: 4.90 | F79: 2,500.00 | G79: 0 | H79: 2,500.00 | I79: 5,000.00 | J79: 2,500.00 | K79: 12,250.00 | L79: 0 | M79: 12,250.00 | N79: 24,500.00 | O79: 12,250.00
A80: 05.01.01.06 | B80: 119129 | C80: FORNECIMENTO E INSTALAÇÃO DE BIOMANTAS ANTI EROSIVAS DE FIBRA DE COCO TRIDIMENSIONAL, TIPO TELA BIOTEXTIL 400 TF, INCLUSIVE TRANSPORTE,CONFORME PROJETO. | D80: m² | E80: 14.00 | F80: 3,500.00 | G80: 0 | H80: 3,500.00 | I80: 7,000.00 | J80: 3,500.00 | K80: 49,000.00 | L80: 0 | M80: 49,000.00 | N80: 98,000.00 | O80: 49,000.00
A81: 05.01.01.07 | B81: 119130 | C81: FORNECIMENTO E INSTALAÇÃO DE BIOMANTAS ANTI EROSIVAS DE FIBRA DE COCO BIDIMENSIONAL, TIPO TELA FIBRAX 300 BF, INCLUSIVE TRANSPORTE, COMFORME PROJETO. | D81: m² | E81: 6.90 | F81: 3,500.00 | G81: 0 | H81: 3,500.00 | I81: 7,000.00 | J81: 3,500.00 | K81: 24,150.00 | L81: 0 | M81: 24,150.00 | N81: 48,300.00 | O81: 24,150.00
A82: 05.01.01.08 | B82: 119131 | C82: FORNECIMENTO E FIXAÇÃO DE GRAMPOS DE AÇO CA-50, CONFORME PROJETO. | D82: un | E82: 2.00 | F82: 2,000.00 | G82: 0 | H82: 2,000.00 | I82: 4,000.00 | J82: 2,000.00 | K82: 4,000.00 | L82: 0 | M82: 4,000.00 | N82: 8,000.00 | O82: 4,000.00
A83: 05.01.01.09 | B83: 110704 | C83: ENROCAMENTO C/ PEDRA DE MÃO, C/ ARRUMAÇÃO MANUAL, INCLUSIVE FORNECIMENTO DO MATERIAL | D83: m³ | E83: 126.49 | G83: 30.00 | H83: 30.00 | I83: 100.00 | J83: 70.00 | K83: 0 | L83: 3,794.70 | M83: 3,794.70 | N83: 12,649.00 | O83: 8,854.30
M84: 0
C85: TOTAL DO SUBITEM 05.01 | K85: =SUM(K75:K83) -> 158,574.00 | L85: =SUM(L75:L83) -> 3,794.70 | M85: =SUM(M75:M83) -> 162,368.70 | N85: =SUM(N75:N83) -> 391,564.00 | O85: =SUM(O75:O83) -> 229,195.30
C86: TOTAL DO SUBITEM 05 | K86: =K85 -> 158,574.00 | L86: =L85 -> 3,794.70 | M86: =M85 -> 162,368.70 | N86: =N85 -> 391,564.00 | O86: =O85 -> 229,195.30
C87: TOTAL DO SUBITEM 05 COM K= 1,05 | K87: =ROUND(K86*1.05,2) -> 166,502.70 | L87: =ROUND(L86*1.05,2) -> 3,984.44 | M87: =ROUND(M86*1.05,2) -> 170,487.14 | N87: =ROUND(N86*1.05,2) -> 411,142.20 | O87: =ROUND(O86*1.05,2) -> 240,655.07 | P87: =K87/N87 -> 0.4049759426
M88: 0
A89: 06 | C89: SERVIÇOS COMPLEMENTARES | M89: 0
A90: 06.01 | C90: SERVIÇOS COMPLEMENTARES | M90: 0
A91: 06.01.01 | C91: SERVIÇOS COMPLEMENTARES | M91: 0
A92: 06.01.01.01 | B92: 020407 | C92: ROÇAGEM EM CAPOEIRA DENSA A MACHADO,INCLUSIVE RASPAGEM,MANUAL,JUNTAMENTO,QUEIMA DO MATERIAL E REMOÇÃO MANUAL DOS RESIDUOS P/FORA DA AREA ROÇADA. | D92: m² | E92: 3.45 | G92: 2,000.00 | H92: =F92+G92 -> 2,000.00 | I92: 5,000.00 | J92: 3,000.00 | K92: =ROUND($E92*F92,2) -> 0 | L92: =ROUND($E92*G92,2) -> 6,900.00 | M92: 6,900.00 | N92: =E92*I92 -> 17,250.00 | O92: =ROUND(N92-M92,2) -> 10,350.00
A93: 06.01.01.02 | B93: 119132 | C93: LIMPEZA DE CANALETAS | D93: m | E93: 6.49 | G93: 0 | H93: =F93+G93 -> 0 | I93: 1,000.00 | J93: 1,000.00 | K93: =ROUND($E93*F93,2) -> 0 | L93: =ROUND($E93*G93,2) -> 0 | M93: 0 | N93: =E93*I93 -> 6,490.00 | O93: =ROUND(N93-M93,2) -> 6,490.00
M94: 0
C95: TOTAL DO SUBITEM 06.01 | K95: =SUM(K92:K94) -> 0 | L95: =SUM(L92:L94) -> 6,900.00 | M95: =SUM(M92:M94) -> 6,900.00 | N95: =SUM(N92:N93) -> 23,740.00 | O95: =N95-M95 -> 16,840.00
C96: TOTAL DO SUBITEM 06 | K96: =K95 -> 0 | L96: =L95 -> 6,900.00 | M96: =M95 -> 6,900.00 | N96: =N95 -> 23,740.00 | O96: =N96-M96 -> 16,840.00
C97: TOTAL DO SUBITEM 06 COM K= 1,05 | K97: =K96*1.05 -> 0 | L97: =L96*1.05 -> 7,245.00 | M97: =M96*1.05 -> 7,245.00 | N97: =1.05*N96 -> 24,927.00 | O97: =N97-M97 -> 17,682.00 | P97: =K97/N97 -> 0
M98: 0
A99: 07 | C99: CONTENÇÕES | M99: 0
A100: 07.01 | C100: CONTENÇÕES | M100: 0
A101: 07.01.01 | C101: SERVICOS DIVERSOS | M101: 0
A102: 07.01.01.01 | B102: 119136 | C102: FORNECIMENTO E COLOCAÇÃO DE PIQUETES DE MADEIRA PARA CONTENÇÃO DOS ROLOS DAS MANTAS,INCLUSIVE TRANSPORTE, CONFORME PROJETO. | D102: m | E102: 0.39 | G102: 0 | H102: =F102+G102 -> 0 | I102: 5,000.00 | J102: 5,000.00 | K102: =ROUND($E102*F102,2) -> 0 | L102: 0 | M102: 0 | N102: 1,950.00 | O102: =ROUND(N102-M102,2) -> 1,950.00
A103: 07.01.01.02 | B103: 119133 | C103: EXECUÇÃO DE CONTENÇÃO C/ SOLO-PNEUS, INCLUSIVE, FORNECIMENTO, TRANSPORTE E ENCHIMENTO DOS PNEUS, CONFORME PROJETO | D103: m³ | E103: 50.00 | G103: 0 | H103: 0 | I103: 500.00 | J103: 500.00 | K103: 0 | L103: 0 | M103: 0 | N103: 25,000.00 | O103: 25,000.00
A104: 07.01.01.03 | B104: 119134 | C104: FORNECIMENTO E EXECUÇÃO DAS PALICADAS DE MADEIRA IMUNIZADAS,INCLUSIVE TRANSPORTE, CONFORME PROJETO. | D104: m | E104: 149.99 | G104: 60.00 | H104: 60.00 | I104: 250.00 | J104: 190.00 | K104: 0 | L104: 8,999.40 | M104: 8,999.40 | N104: 37,497.50 | O104: 28,498.10
A105: 07.01.01.04 | B105: 119135 | C105: FORNECIMENTO E COLOCAÇÃO DOS SACOS DE JUTA, INCLUSIVE TRANSPORTE, CONFORME PROJETO. | D105: m | E105: 2.00 | F105: 800.00 | G105: 0 | H105: 800.00 | I105: 2,500.00 | J105: 1,700.00 | K105: 1,600.00 | L105: 0 | M105: 1,600.00 | N105: 5,000.00 | O105: 3,400.00
A106: 07.01.01.05 | B106: 110704 | C106: ENROCAMENTO C/ PEDRA DE MAO, C/ ARRUMAÇÃO MANUAL, INCLUSIVE FORNECIMENTO DO MATERIAL | D106: m³ | E106: 126.49 | F106: 112.00 | G106: 0 | H106: 112.00 | I106: 200.00 | J106: 88.00 | K106: 14,166.88 | L106: 0 | M106: 14,166.88 | N106: 25,298.00 | O106: 11,131.12
A107: 07.01.01.06 | B107: 180607 | C107: PLANTIO DE ARVORES, C/ h >= 2,00 m, INCLUSIVE PREPARO E ADUBAÇÃO DO SOLO E IRRIGAÇÃO ATÉ A PEGA TOTAL | D107: un | E107: 38.13 | G107: 0 | H107: 0 | I107: 2,000.00 | J107: 2,000.00 | K107: 0 | L107: 0 | M107: 0 | N107: 76,260.00 | O107: 76,260.00
A108: 07.01.01.07 | B108: 111016 | C108: FORNECIMENTO E COLOCAÇÃO DE MANTA GEOTEXTIL TECIDA C/ GRAMATURA DE 445 g/mý | D108: m² | E108: 11.06 | G108: 0 | H108: 0 | I108: 3,000.00 | J108: 3,000.00 | K108: 0 | L108: 0 | M108: 0 | N108: 33,180.00 | O108: 33,180.00
C110: TOTAL DO SUBITEM 07.01 | K110: =SUM(K102:K109) -> 15,766.88 | L110: =SUM(L102:L109) -> 8,999.40 | M110: =SUM(M102:M109) -> 24,766.28 | N110: =SUM(N102:N109) -> 204,185.50 | O110: =SUM(O102:O109) -> 179,419.22
C111: TOTAL DO SUBITEM 07 | K111: =K110 -> 15,766.88 | L111: =L110 -> 8,999.40 | M111: =M110 -> 24,766.28 | N111: =N110 -> 204,185.50 | O111: =O110 -> 179,419.22
C112: TOTAL DO SUBITEM 07 COM K= 1,05 | K112: =ROUND(K111*1.05,2) -> 16,555.22 | L112: =ROUND(L111*1.05,2) -> 9,449.37 | M112: =ROUND(M111*1.05,2) -> 26,004.59 | N112: =ROUND(N111*1.05,2) -> 214,394.78 | O112: =ROUND(O111*1.05,2) -> 188,390.18 | P112: =K112/N112 -> 0.07721839123
A114: TOTAL GERAL SERVIÇOS | K114: =K18+K37+K53+K66+K86+K96+K111 -> 185,572.73 | L114: =L18+L37+L53+L66+L86+L96+L111 -> 484,715.46 | M114: =M18+M37+M53+M66+M86+M96+M111 -> 670,288.19 | N114: =N18+N37+N53+N66+N86+N96+N111 -> 1,124,709.34 | O114: =O18+O37+O53+O66+O86+O96+O111 -> 454,421.15
A115: TOTAL GERAL SERVIÇOS COM K= 1,05 | K115: =ROUND(K114*1.05,2) -> 194,851.37 | L115: =ROUND(L114*1.05,2) -> 508,951.23 | M115: =K115+L115 -> 703,802.60 | N115: =ROUND(N114*1.05,2) -> 1,180,944.81 | O115: =ROUND(O114*1.05,2) -> 477,142.21 | P115: =M115+O115 -> 1,180,944.81
P119: =(M115/N115)*100 -> 59.60 | Q119: %
C120: CONSTRUTORA: TECTRAN BAHIA LTDA | H120: FISCALIZAÇÃO: EMBASA - EMPRESA BAIANA DE ÁGUAS E SANEAMENTO S/A
C121: Engº Fernando Gomes de Oliveira | G121: Engª Sandra Maria Araújo Ideião

Sheet Bm 01
D1: MEDIÇÃO SERVIÇOS Nº: 01 | G1: PERÍODO MEDIÇÃO: 15/06/2019 a 30/03/2020
F2: MODALIDADE: TOMADA DE PREÇOS Nº. 001/2019 | K2: FONTE DE RECURSOS: RECURSOS PRÓPRIOS E Convênio PAC 2 – 5506/2013
A3: CONTRATANTE: PREFEITURA MUNICIPAL DE PALMAS DE MONTE ALTO - BA | F3: DATA DA PROPOSTA: 24/04/2019
A4: TIPO DE EMPREENDIMENTO: CONCLUSÃO DE QUADRA POLIESPORTIVA COBERTA | F4: INÍCIO DA OBRA: 15/06/2019 | K4: FIM DA OBRA: 31/12/2020 | O4: 30.00%
A5: CONTRATADA: LUMA PROJETOS E CONSTRUÇÕES LTDA | F5: CONTRATO INICIAL: R$ 524.984,02 | K5: CONTRATO Nº: 001/2019TP | O5: =F9*O4 -> 3,514.86
A6: LOCALIZAÇÃO: Escola Municipal Wilson Lins, Distrito de Espraiados - Palmas de Monte Alto - BA | F6: CONTRATO ATUALIZADO: R$ 524.984,02 | K6: DATA DE ASSINATURA DO CONTRATO: | O6: medição | P6: mat | Q6: mo
A7: ITEM | B7: DESCRIÇÃO DOS SERVIÇOS | C7: DADOS DO CONTRATO | G7: REALIZAÇÃO FÍSICA | J7: REALIZAÇÃO FINANCEIRA | M7: % EXECUTADA | O7: =J176 -> 114,571.20 | P7: =O7*0.6 -> 68,742.72 | Q7: =O7*0.4 -> 45,828.48
C8: UN | D8: QUANTIDADE | E8: PREÇO UNITÁRIO | F8: VR TOTAL | G8: ATUAL | H8: ANTERIOR | I8: TOTAL | J8: ATUAL | K8: ANTERIOR | L8: TOTAL | M8: ATUAL | N8: TOTAL
A9: 1 | B9: PAREDES E PAINÉIS | F9: =SUM(F10) -> 11,716.19 | J9: =SUM(J10) -> 10,544.57 | K9: =SUM(K10) -> 0 | L9: =SUM(L10) -> 10,544.57 | M9: =J9/F9 -> 90.00% | N9: =L9/F9 -> 90.00%
A10: 1.1 | B10: Elemento vazado de concreto (50x50x10cm) anti-chuva assentados com argamassa (cimento e areia traço 1:3) | C10: m2 | D10: 148.10 | E10: 79.11 | F10: =ROUND(D10*E10,2) -> 11,716.19 | G10: 133.29 | I10: =G10+H10 -> 133.29 | J10: =ROUND(G10*E10,2) -> 10,544.57 | L10: =J10+K10 -> 10,544.57 | M10: 90.00% | N10: 90.00%
A11: 2 | B11: COBERTURA | F11: =SUM(F12) -> 59,131.12 | J11: =SUM(J12) -> 47,304.90 | K11: =SUM(K12) -> 0 | L11: =SUM(L12) -> 47,304.90 | M11: 80.00% | N11: 80.00%
A12: 2.1 | B12: Telha metálica em chapa galvanizada e=0.5mm | C12: m2 | D12: 1,114.00 | E12: 53.08 | F12: =ROUND(D12*E12,2) -> 59,131.12 | G12: 891.20 | I12: =G12+H12 -> 891.20 | J12: =ROUND(G12*E12,2) -> 47,304.90 | L12: =J12+K12 -> 47,304.90 | M12: 80.00% | N12: 80.00%
A13: 3 | B13: ESQUADRIAS | F13: =SUM(F14:F17) -> 5,931.43 | J13: =SUM(J14:J17) -> 0 | K13: =SUM(K14:K17) -> 0 | L13: =SUM(L14:L17) -> 0 | M13: 0.00% | N13: 0.00%
A14: 3.1 | B14: Porta de madeira (1,00x2,10 m) com bandeira (1,00x0,80 m) - inclusive ferragens, conforme projeto de esquadrias | C14: Unidade | D14: 2.00 | E14: 940.08 | F14: =ROUND(D14*E14,2) -> 1,880.16 | I14: =G14+H14 -> 0 | J14: =ROUND(G14*E14,2) -> 0 | L14: =J14+K14 -> 0 | M14: 0.00% | N14: 0.00%
A15: 3.2 | B15: Porta de madeira (0,90x2,10 m) - inclusive ferragens, conforme projeto de esquadrias | C15: Unidade | D15: 1.00 | E15: 828.69 | F15: =ROUND(D15*E15,2) -> 828.69 | I15: =G15+H15 -> 0 | J15: =ROUND(G15*E15,2) -> 0 | L15: =J15+K15 -> 0 | M15: 0.00% | N15: 0.00%
A16: 3.3 | B16: Porta de madeira - Banheiros e Sanitários (0,60 m) completa inclusive targeta metálica | C16: Unidade | D16: 4.00 | E16: 565.77 | F16: =ROUND(D16*E16,2) -> 2,263.08 | I16: =G16+H16 -> 0 | J16: =ROUND(G16*E16,2) -> 0 | L16: =J16+K16 -> 0 | M16: 0.00% | N16: 0.00%
A17: 3.4 | B17: Porta de madeira - Banheiros e Sanitários (0,80 m) completa inclusive targeta metálica - WC PNE | C17: Unidade | D17: 2.00 | E17: 479.75 | F17: =ROUND(D17*E17,2) -> 959.50 | I17: =G17+H17 -> 0 | J17: =ROUND(G17*E17,2) -> 0 | L17: =J17+K17 -> 0 | M17: 0.00% | N17: 0.00%
A18: 4 | B18: REVESTIMENTOS | F18: =SUM(F19:F20) -> 20,020.64 | J18: =SUM(J19:J20) -> 0 | K18: =SUM(K19:K20) -> 0 | L18: =SUM(L19:L20) -> 0 | M18: =J18/F18 -> 0.00% | N18: =L18/F18 -> 0.00%
A19: 4.1 | B19: Revestimento cerâmico de paredes PEI IV - cerâmica 20 x 20 cm - incl. rejunte - conforme projeto | C19: m2 | D19: 328.00 | E19: 48.29 | F19: =ROUND(D19*E19,2) -> 15,839.12 | I19: =G19+H19 -> 0 | J19: =ROUND(G19*E19,2) -> 0 | L19: =J19+K19 -> 0 | M19: 0.00% | N19: 0.00%
A20: 4.2 | B20: Revestimento cerâmico de paredes PEI IV - cerâmica 10 x 10 cm - incl. rejunte - conforme projeto | C20: m2 | D20: 81.10 | E20: 51.56 | F20: =ROUND(D20*E20,2) -> 4,181.52 | I20: =G20+H20 -> 0 | J20: =ROUND(G20*E20,2) -> 0 | L20: =J20+K20 -> 0 | M20: 0.00% | N20: 0.00%
A21: 5 | B21: PISOS | F21: =SUM(F22:F26) -> 62,634.19 | J21: =SUM(J22:J26) -> 0 | K21: =SUM(K22:K26) -> 0 | L21: =SUM(L22:L26) -> 0 | M21: 0.00% | N21: 0.00%
A22: 5.1 | B22: Lastro de brita graduada apiloada (esp.=6 cm) | C22: m2 | D22: 633.20 | E22: 13.43 | F22: =ROUND(D22*E22,2) -> 8,503.88 | I22: =G22+H22 -> 0 | J22: =ROUND(G22*E22,2) -> 0 | L22: =J22+K22 -> 0 | M22: 0.00% | N22: 0.00%
A23: 5.2 | B23: Piso em concreto armado com tela e juntas de dilatação (esp.=10cm) | C23: m2 | D23: 633.20 | E23: 55.99 | F23: =ROUND(D23*E23,2) -> 35,452.87 | I23: =G23+H23 -> 0 | J23: =ROUND(G23*E23,2) -> 0 | L23: =J23+K23 -> 0 | M23: 0.00% | N23: 0.00%
A24: 5.3 | B24: Piso em concreto simples desempolado (esp.=5cm), inclusive contrapiso | C24: m2 | D24: 107.47 | E24: 25.78 | F24: =ROUND(D24*E24,2) -> 2,770.58 | I24: =G24+H24 -> 0 | J24: =ROUND(G24*E24,2) -> 0 | L24: =J24+K24 -> 0 | M24: 0.00% | N24: 0.00%
A25: 5.4 | B25: Junta de retração, serrada com disco diamantado, parapavimentos em placa de concreto, profund.= 5cm, inclusive preenchimento com mastique | C25: m | D25: 627.05 | E25: 21.64 | F25: =ROUND(D25*E25,2) -> 13,569.36 | I25: =G25+H25 -> 0 | J25: =ROUND(G25*E25,2) -> 0 | L25: =J25+K25 -> 0 | M25: 0.00% | N25: 0.00%
A26: 5.5 | B26: Piso cerâmico esmaltado PEI V - 33 x 33 cm - incl. rejunte - conforme projeto | C26: m2 | D26: 62.50 | E26: 37.40 | F26: =ROUND(D26*E26,2) -> 2,337.50 | I26: =G26+H26 -> 0 | J26: =ROUND(G26*E26,2) -> 0 | L26: =J26+K26 -> 0 | M26: 0.00% | N26: 0.00%
A27: 6 | B27: PINTURA | F27: =SUM(F28:F35) -> 80,615.19 | J27: =SUM(J28:J35) -> 15,841.08 | K27: =SUM(K28:K35) -> 0 | L27: =SUM(L28:L35) -> 15,841.08 | M27: =J27/F27 -> 19.65% | N27: =L27/F27 -> 19.65%
A28: 6.1 | B28: Aplicação de selador acrílico | C28: m2 | D28: 847.20 | E28: 2.72 | F28: =ROUND(D28*E28,2) -> 2,304.38 | I28: =G28+H28 -> 0 | J28: =ROUND(G28*E28,2) -> 0 | L28: =J28+K28 -> 0 | M28: 0.00% | N28: 0.00%
A29: 6.2 | B29: Demarcação de quadra com tinta acrílica | C29: m | D29: 360.00 | E29: 11.18 | F29: 4,024.80 | I29: 0 | J29: 0 | L29: 0 | M29: 0.00% | N29: 0.00%
A30: 6.3 | B30: Emassamento de superfície, comaplicação de 02 demãosde massa acrílica | C30: m2 | D30: 88.60 | E30: 22.59 | F30: 2,001.47 | I30: 0 | J30: 0 | L30: 0 | M30: 0.00% | N30: 0.00%
A31: 6.4 | B31: Esmalte sintético em estrutura de aço carbono 50 micracom revólver | C31: m2 | D31: 1,114.00 | E31: 15.76 | F31: 17,556.64 | G31: 557.00 | I31: 557.00 | J31: 8,778.32 | L31: 8,778.32 | M31: 50.00% | N31: 50.00%
A32: 6.5 | B32: Pintura c/ primer epoxi em estrutura de aço carbono 25 micra com revólver | C32: m2 | D32: 1,114.00 | E32: 6.34 | F32: 7,062.76 | G32: 1,114.00 | I32: 1,114.00 | J32: 7,062.76 | L32: 7,062.76 | M32: 100.00% | N32: 100.00%
A33: 6.6 | B33: Pintura de acabamento com aplicação de 02 demaõs de tinta acrílica | C33: m2 | D33: 847.20 | E33: 11.23 | F33: 9,514.06 | I33: 0 | J33: 0 | L33: 0 | M33: 0.00% | N33: 0.00%
A34: 6.7 | B34: Pintura de piso com tinta à base de resina epóxi | C34: m2 | D34: 480.00 | E34: 58.23 | F34: 27,950.40 | I34: 0 | J34: 0 | L34: 0 | M34: 0.00% | N34: 0.00%
A35: 6.8 | B35: Pintura em tinta PVA latex (02 demãos), inclusive emassamento | C35: m2 | D35: 476.00 | E35: 21.43 | F35: 10,200.68 | I35: 0 | J35: 0 | L35: 0 | M35: 0.00% | N35: 0.00%
A36: 7 | B36: INSTALAÇÕES HIDRÁULICAS | F36: =SUM(F37:F46) -> 3,977.15 | J36: =SUM(J37:J46) -> 0 | K36: =SUM(K37:K46) -> 0 | L36: =SUM(L37:L46) -> 0 | M36: =J36/F36 -> 0.00% | N36: =L36/F36 -> 0.00%
A37: 7.1 | B37: Caixa d´água em fibra de vidro - cap. 3.000 litros | C37: Unidade | D37: 1.00 | E37: 681.62 | F37: =ROUND(D37*E37,2) -> 681.62 | I37: =G37+H37 -> 0 | J37: =ROUND(G37*E37,2) -> 0 | L37: =J37+K37 -> 0 | M37: 0.00% | N37: 0.00%
A38: 7.2 | B38: Engate flexível plástico | C38: Unidade | D38: 10.00 | E38: 7.65 | F38: 76.50 | I38: 0 | J38: 0 | L38: 0 | M38: 0.00% | N38: 0.00%
A39: 7.3 | B39: \"Torneira cromada para lavatório1/2\"\"\" | C39: Unidade | D39: 8.00 | E39: 49.65 | F39: 397.20 | I39: 0 | J39: 0 | L39: 0 | M39: 0.00% | N39: 0.00%
A40: 7.4 | B40: \"Torneira de bóia p/caixa d'agua em pvc d = 3/4\"\"\" | C40: Unidade | D40: 1.00 | E40: 35.72 | F40: 35.72 | I40: 0 | J40: 0 | L40: 0 | M40: 0.00% | N40: 0.00%
A41: 7.5 | B41: Tubo PVCrígido soldável - 20 mm | C41: M | D41: 5.00 | E41: 16.33 | F41: 81.65 | I41: 0 | J41: 0 | L41: 0 | M41: 0.00% | N41: 0.00%
A42: 7.6 | B42: Tubo PVCrígido soldável - 25 mm | C42: M | D42: 5.00 | E42: 19.36 | F42: 96.80 | I42: 0 | J42: 0 | L42: 0 | M42: 0.00% | N42: 0.00%
A43: 7.7 | B43: Tubo PVC rígido soldável - 32 mm | C43: M | D43: 5.00 | E43: 26.42 | F43: 132.10 | I43: 0 | J43: 0 | L43: 0 | M43: 0.00% | N43: 0.00%
A44: 7.8 | B44: Tubo PVC rígido soldável - 50 mm | C44: M | D44: 5.00 | E44: 14.76 | F44: 73.80 | I44: 0 | J44: 0 | L44: 0 | M44: 0.00% | N44: 0.00%
A45: 7.9 | B45: Vaso sanitario para deficientes físicos para válvula de descarga, em louca branca, com acessórios,inclusive assento,conjunto de fixação, anelde vedação, tubo PVC de ligação | C45: Unidade | D45: 2.00 | E45: 779.18 | F45: 1,558.36 | I45: 0 | J45: 0 | L45: 0 | M45: 0.00% | N45: 0.00%
A46: 7.10 | B46: Vaso sanitario sifonado, para louca branca, com acessórios, inclusive assento plástico, anel de vedação, tubo PVC de ligação | C46: Unidade | D46: 4.00 | E46: 210.85 | F46: 843.40 | I46: 0 | J46: 0 | L46: 0 | M46: 0.00% | N46: 0.00%
A47: 8 | B47: INSTALAÇÕES SANITÁRIAS | F47: =SUM(F48:F53) -> 4,149.25 | J47: =SUM(J48:J53) -> 0 | K47: =SUM(K48:K53) -> 0 | L47: =SUM(L48:L53) -> 0 | M47: =J47/F47 -> 0.00% | N47: =L47/F47 -> 0.00%
A48: 8.1 | B48: Fossa séptica, em concreto armado, (d2,50 x h 12,00) | C48: Unidade | D48: 1.00 | E48: 1,308.04 | F48: =ROUND(D48*E48,2) -> 1,308.04 | I48: =G48+H48 -> 0 | J48: =ROUND(G48*E48,2) -> 0 | L48: =J48+K48 -> 0 | M48: 0.00% | N48: 0.00%
A49: 8.2 | B49: \"Sifão de copo para pia e lavatório 1\"\" - 1.1/2\"\"\" | C49: Unidade | D49: 9.00 | E49: 152.77 | F49: 1,374.93 | I49: 0 | J49: 0 | L49: 0 | M49: 0.00% | N49: 0.00%
A50: 8.3 | B50: Sumidouro em alvenaria (d 2,30 x h 6,00) | C50: Unidade | D50: 1.00 | E50: 1,308.04 | F50: 1,308.04 | I50: 0 | J50: 0 | L50: 0 | M50: 0.00% | N50: 0.00%
A51: 8.4 | B51: Tubo rígido c/ ponta lisa 100 mm | C51: M | D51: 2.00 | E51: 37.75 | F51: 75.50 | I51: 0 | J51: 0 | L51: 0 | M51: 0.00% | N51: 0.00%
A52: 8.5 | B52: Tubo rígido c/ ponta lisa 40 mm | C52: M | D52: 2.00 | E52: 13.47 | F52: 26.94 | I52: 0 | J52: 0 | L52: 0 | M52: 0.00% | N52: 0.00%
A53: 8.6 | B53: \"Válvula para lavatório e tanque 1\"\"\" | C53: Unidade | D53: 9.00 | E53: 6.20 | F53: 55.80 | I53: 0 | J53: 0 | L53: 0 | M53: 0.00% | N53: 0.00%
A54: 9 | B54: DRENAGEM PLUVIAL | F54: =SUM(F55:F59) -> 19,871.36 | J54: =SUM(J55:J59) -> 2,647.73 | K54: =SUM(K55:K59) -> 0 | L54: =SUM(L55:L59) -> 2,647.73 | M54: =J54/F54 -> 13.32% | N54: =L54/F54 -> 13.32%
A55: 9.1 | B55: Calha em chapa de aço galvanizado n° 24 | C55: M | D55: 72.00 | E55: 40.86 | F55: =ROUND(D55*E55,2) -> 2,941.92 | G55: 64.80 | I55: =G55+H55 -> 64.80 | J55: =ROUND(G55*E55,2) -> 2,647.73 | L55: =J55+K55 -> 2,647.73 | M55: 90.00% | N55: 90.00%
A56: 9.2 | B56: Tubo de queda - água pluvial DN=150 mm | C56: M | D56: 20.00 | E56: 45.96 | F56: =ROUND(D56*E56,2) -> 919.20 | I56: =G56+H56 -> 0 | J56: =ROUND(G56*E56,2) -> 0 | L56: =J56+K56 -> 0 | M56: 0.00% | N56: 0.00%
A57: 9.3 | B57: Joelho PVC 90° d=150 mm - tubulação pluvial | C57: M | D57: 4.00 | E57: 91.39 | F57: =ROUND(D57*E57,2) -> 365.56 | I57: =G57+H57 -> 0 | J57: =ROUND(G57*E57,2) -> 0 | L57: =J57+K57 -> 0 | M57: 0.00% | N57: 0.00%
A58: 9.4 | B58: \"Ralohemisférico tipo \"\"abacaxi\"\" com tela de aço com funil de saída cônico\" | C58: Unidade | D58: 4.00 | E58: 58.09 | F58: =ROUND(D58*E58,2) -> 232.36 | I58: =G58+H58 -> 0 | J58: =ROUND(G58*E58,2) -> 0 | L58: =J58+K58 -> 0 | M58: 0.00% | N58: 0.00%
A59: 9.5 | B59: Canaleta de concreto c/ tampa removível em chapa de aço (0,25 x 0,25 x 0,25m) | C59: M | D59: 72.00 | E59: 214.06 | F59: =ROUND(D59*E59,2) -> 15,412.32 | I59: =G59+H59 -> 0 | J59: =ROUND(G59*E59,2) -> 0 | L59: =J59+K59 -> 0 | M59: 0.00% | N59: 0.00%
A60: 10 | B60: INSTALAÇÕES ELÉTRICAS | F60: =SUM(F61:F89) -> 16,337.59 | J60: =SUM(J61:J89) -> 0 | K60: =SUM(K61:K89) -> 0 | L60: =SUM(L61:L89) -> 0 | M60: =J60/F60 -> 0.00% | N60: =L60/F60 -> 0.00%
A61: 10.1 | B61: \"Condulete em alumínio tipo T de 3/4\"\", inclusive acessórios\" | C61: Unidade | D61: 5.00 | E61: 18.54 | F61: =ROUND(D61*E61,2) -> 92.70 | I61: =G61+H61 -> 0 | J61: =ROUND(G61*E61,2) -> 0 | L61: =J61+K61 -> 0 | M61: 0.00% | N61: 0.00%
A62: 10.2 | B62: \"Condulete em alumínio tipo L de 3/4\"\", inclusive acessórios\" | C62: Unidade | D62: 5.00 | E62: 12.18 | F62: 60.90 | I62: 0 | J62: 0 | L62: 0 | M62: 0.00% | N62: 0.00%
A63: 10.3 | B63: \"Condulete em alumínio tipo TA de 3/4\"\", inclusive acessórios\" | C63: Unidade | D63: 4.00 | E63: 16.38 | F63: 65.52 | I63: 0 | J63: 0 | L63: 0 | M63: 0.00% | N63: 0.00%
A64: 10.4 | B64: \"Condulete em alumínio tipo XA de 3/4\"\", inclusive acessórios\" | C64: Unidade | D64: 1.00 | E64: 18.91 | F64: 18.91 | I64: 0 | J64: 0 | L64: 0 | M64: 0.00% | N64: 0.00%
A65: 10.5 | B65: \"Caixa de PVC 4x2\"\", inclusive espelho\" | C65: Unidade | D65: 16.00 | E65: 8.47 | F65: 135.52 | I65: 0 | J65: 0 | L65: 0 | M65: 0.00% | N65: 0.00%
A66: 10.6 | B66: Condutor de cobre unipolar, isolaçãoem PVC/70ºC, camada de proteção em PVC, não propagador de chamas, classe de tensão 750V,encordoamento classe 5, flexível, com seção 2,5 mm² | C66: M | D66: 190.00 | E66: 2.77 | F66: 526.30 | I66: 0 | J66: 0 | L66: 0 | M66: 0.00% | N66: 0.00%
A67: 10.7 | B67: Condutor de cobre unipolar, isolação em PVC/70ºC, camada de proteção em PVC, não propagador de chamas, classe detensão 750V,encordoamento classe 5, flexível, com seção 4 mm² | C67: M | D67: 820.00 | E67: 4.36 | F67: 3,575.20 | I67: 0 | J67: 0 | L67: 0 | M67: 0.00% | N67: 0.00%
A68: 10.8 | B68: Condutor de cobre unipolar, isolação em PVC/70ºC, camada de proteção em PVC, não propagador de chamas, classe de tensão 750V, encordoamento classe 5, flexível, com seção 16mm² | C68: M | D68: 14.00 | E68: 14.68 | F68: 205.52 | I68: 0 | J68: 0 | L68: 0 | M68: 0.00% | N68: 0.00%
A69: 10.9 | B69: Condutor de cobre unipolar, isolação em PVC/90ºC, camada de proteção em PVC, não propagador de chamas, classe de tensão 1000V, encordoamento classe 5, flexível, com seção 35 mm² | C69: M | D69: 41.00 | E69: 22.02 | F69: 902.82 | I69: 0 | J69: 0 | L69: 0 | M69: 0.00% | N69: 0.00%
A70: 10.10 | B70: Tomada 2p + t de embutir, 10 A, completa | C70: Unidade | D70: 2.00 | E70: 24.88 | F70: 49.76 | I70: 0 | J70: 0 | L70: 0 | M70: 0.00% | N70: 0.00%
A71: 10.11 | B71: Tomada 2p + t para piso, 10 A, completa | C71: Unidade | D71: 1.00 | E71: 12.36 | F71: 12.36 | I71: 0 | J71: 0 | L71: 0 | M71: 0.00% | N71: 0.00%
A72: 10.12 | B72: Interruptor 1 tecla simples | C72: Unidade | D72: 7.00 | E72: 23.53 | F72: 164.71 | I72: 0 | J72: 0 | L72: 0 | M72: 0.00% | N72: 0.00%
A73: 10.13 | B73: Disjuntor termomagnetico monopolar 10 A, padrão DIN (linha branca) | C73: Unidade | D73: 5.00 | E73: 15.87 | F73: 79.35 | I73: 0 | J73: 0 | L73: 0 | M73: 0.00% | N73: 0.00%
A74: 10.14 | B74: Disjuntor termomagnetico binopolar 20 A, padrão DIN (linha branca) | C74: Unidade | D74: 5.00 | E74: 15.87 | F74: 79.35 | I74: 0 | J74: 0 | L74: 0 | M74: 0.00% | N74: 0.00%
A75: 10.15 | B75: Disjuntortermomagneticobinopolar 25 A, padrão DIN (linha branca) | C75: Unidade | D75: 8.00 | E75: 15.87 | F75: 126.96 | I75: 0 | J75: 0 | L75: 0 | M75: 0.00% | N75: 0.00%
A76: 10.16 | B76: Disjuntor termomagnetico triopolar 150 A, padrão DIN (linha branca) | C76: Unidade | D76: 2.00 | E76: 397.51 | F76: 795.02 | I76: 0 | J76: 0 | L76: 0 | M76: 0.00% | N76: 0.00%
A77: 10.17 | B77: Disjuntor termomagnetico triopolar 175 A, padrão DIN (linha branca) | C77: Unidade | D77: 1.00 | E77: 1,018.63 | F77: 1,018.63 | I77: 0 | J77: 0 | L77: 0 | M77: 0.00% | N77: 0.00%
A78: 10.18 | B78: Dispositivo residual diferencial - DR 125A In 30 mA | C78: Unidade | D78: 1.00 | E78: 211.00 | F78: 211.00 | I78: 0 | J78: 0 | L78: 0 | M78: 0.00% | N78: 0.00%
A79: 10.19 | B79: Quadro de distribuição de embutir,com barramento, em chapa de aço, para 4 disjuntores unipolares + 8 bipolares + 1 tripolar +1 DR, padrão europeu(linha branca), exclusive disjuntores | C79: Unidade | D79: 1.00 | E79: 254.55 | F79: 254.55 | I79: 0 | J79: 0 | L79: 0 | M79: 0.00% | N79: 0.00%
A80: 10.20 | B80: Quadro de distribuição de embutir, com barramento, em chapa de aço, para 1 disjuntor unipolar + 5bipolares + 2 tripolares,padrão europeu (linha branca), exclusive disjuntores | C80: Unidade | D80: 1.00 | E80: 399.47 | F80: 399.47 | I80: 0 | J80: 0 | L80: 0 | M80: 0.00% | N80: 0.00%
A81: 10.21 | B81: \"Eletrodutode pvc rígido roscável, 1\"\", inclusive curvas\" | C81: M | D81: 5.00 | E81: 12.10 | F81: 60.50 | I81: 0 | J81: 0 | L81: 0 | M81: 0.00% | N81: 0.00%
A82: 10.22 | B82: \"Eletroduto de pvc rígido roscável, 3/4\"\", inclusive curvas\" | C82: M | D82: 5.00 | E82: 9.29 | F82: 46.45 | I82: 0 | J82: 0 | L82: 0 | M82: 0.00% | N82: 0.00%
A83: 10.23 | B83: \"Eletroduto de pvc rígido roscável, 1.1/2\"\", inclusive curvas\" | C83: M | D83: 5.00 | E83: 12.69 | F83: 63.45 | I83: 0 | J83: 0 | L83: 0 | M83: 0.00% | N83: 0.00%
A84: 10.24 | B84: Eletrodutode ferro galvanizado d= 3/4\"\" - inclusive braçadeiras\" | C84: M | D84: 86.00 | E84: 14.99 | F84: 1,289.14 | I84: 0 | J84: 0 | L84: 0 | M84: 0.00% | N84: 0.00%
A85: 10.25 | B85: \"Eletroduto de ferro galvanizado d= 1\"\" - inclusive braçadeiras\" | C85: M | D85: 17.00 | E85: 18.46 | F85: 313.82 | I85: 0 | J85: 0 | L85: 0 | M85: 0.00% | N85: 0.00%
A86: 10.26 | B86: \"Eletrodutode ferro galvanizado d= 1.1/2\"\" - inclusive braçadeiras\" | C86: M | D86: 34.00 | E86: 31.87 | F86: 1,083.58 | I86: 0 | J86: 0 | L86: 0 | M86: 0.00% | N86: 0.00%
A87: 10.27 | B87: Luminária calha sobrepor p/lamp.fluorescente 2x40w, completa, incl.reator eletronico e lampadas | C87: Unidade | D87: 6.00 | E87: 95.01 | F87: 570.06 | I87: 0 | J87: 0 | L87: 0 | M87: 0.00% | N87: 0.00%
A88: 10.28 | B88: Luminária calha sobrepor p/lamp.fluorescente 1x40w, completa, incl.reator eletronico e lampadas | C88: Unidade | D88: 1.00 | E88: 77.49 | F88: 77.49 | I88: 0 | J88: 0 | L88: 0 | M88: 0.00% | N88: 0.00%
A89: 10.29 | B89: Lumináriablindada p/ alta pressão, linha industrial projetor hermético para lâmpada de luz mista de 500 W, com proteção da lâmpada | C89: Unidade | D89: 15.00 | E89: 270.57 | F89: 4,058.55 | I89: 0 | J89: 0 | L89: 0 | M89: 0.00% | N89: 0.00%
A90: 11 | B90: SISTEMA DE PROTEÇÃO CONTRA DESCARGAS ATMOSFÉRICAS (SPDA) | F90: =SUM(F91:F96) -> 2,031.80 | J90: =SUM(J91:J96) -> 0 | K90: =SUM(K91:K96) -> 0 | L90: =SUM(L91:L96) -> 0 | M90: =J90/F90 -> 0.00% | N90: =L90/F90 -> 0.00%
A91: 11.1 | B91: Caixa de inspeção 30x30x40 cm com tampa de ferro fundido | C91: Unidade | D91: 5.00 | E91: 60.19 | F91: =ROUND(D91*E91,2) -> 300.95 | I91: =G91+H91 -> 0 | J91: =ROUND(G91*E91,2) -> 0 | L91: =J91+K91 -> 0 | M91: 0.00% | N91: 0.00%
A92: 11.2 | B92: \"Conector de bronze para haste 5/8\"\"\" | C92: Unidade | D92: 12.00 | E92: 13.54 | F92: 162.48 | I92: 0 | J92: 0 | L92: 0 | M92: 0.00% | N92: 0.00%
A93: 11.3 | B93: Cordoalha de cobre nu 35 mm² | C93: Unidade | D93: 24.00 | E93: 39.16 | F93: 939.84 | I93: 0 | J93: 0 | L93: 0 | M93: 0.00% | N93: 0.00%
A94: 11.4 | B94: \"Haste tipo Coopperweld 5/8\"\" - 3m\" | C94: Unidade | D94: 5.00 | E94: 51.10 | F94: 255.50 | I94: 0 | J94: 0 | L94: 0 | M94: 0.00% | N94: 0.00%
A95: 11.5 | B95: Tubo PVC 40 mm | C95: Unidade | D95: 18.00 | E95: 16.11 | F95: 289.98 | I95: 0 | J95: 0 | L95: 0 | M95: 0.00% | N95: 0.00%
A96: 11.6 | B96: Terminal de pressão tipo prensa com 4 parafusos | C96: Unidade | D96: 5.00 | E96: 16.61 | F96: 83.05 | I96: 0 | J96: 0 | L96: 0 | M96: 0.00% | N96: 0.00%
A97: 12 | B97: SERVIÇOS DIVERSOS | F97: =SUM(F98:F109) -> 38,229.80 | J97: =SUM(J98:J109) -> 0 | K97: =SUM(K98:K109) -> 0 | L97: =SUM(L98:L109) -> 0 | M97: =J97/F97 -> 0.00% | N97: =L97/F97 -> 0.00%
A98: 12.1 | B98: \"Alambrado com tela de arame galvanizado fio 12 bwg, malha 2\"\", revestido em pvc, fixada com tubos de ferro galvanizado 2\"\"\" | C98: m2 | D98: 147.00 | E98: 141.99 | F98: =ROUND(D98*E98,2) -> 20,872.53 | I98: =G98+H98 -> 0 | J98: =ROUND(G98*E98,2) -> 0 | L98: =J98+K98 -> 0 | M98: 0.00% | N98: 0.00%
A99: 12.2 | B99: \"Portão em tubo de ferro galvanizado 2\"\" e tela dearame galvanizado fio 12 bwg, malha 2\"\", revestido em pvc, inclusive dobradiças e fechadura\" | C99: Unidade | D99: 4.00 | E99: 660.58 | F99: 2,642.32 | I99: 0 | J99: 0 | L99: 0 | M99: 0.00% | N99: 0.00%
A100: 12.3 | B100: Bancada em granito cinza andorinha para lavatório com testeiras - espessura 2cm, largura 50 cm, conforme projeto | C100: M | D100: 4.80 | E100: 136.61 | F100: 655.73 | I100: 0 | J100: 0 | L100: 0 | M100: 0.00% | N100: 0.00%
A101: 12.4 | B101: Banco deconcreto armado polido (l=0,45m) sem arestas,conforme projeto | C101: M | D101: 4.80 | E101: 133.19 | F101: 639.31 | I101: 0 | J101: 0 | L101: 0 | M101: 0.00% | N101: 0.00%
A102: 12.5 | B102: \"Barra de apoio para deficiente em ferro galvanizado de 11/2\"\", l = 140cm (lavatório), inclusive parafusos de fixação e pintura\" | C102: Unidade | D102: 2.00 | E102: 116.59 | F102: 233.18 | I102: 0 | J102: 0 | L102: 0 | M102: 0.00% | N102: 0.00%
A103: 12.6 | B103: \"Barra de apoio para deficiente em ferro galvanizado de 11/2\"\", l = 80cm (bacia sanitária e mictório), inclusive parafusos de fixação e pintura\" | C103: Unidade | D103: 8.00 | E103: 470.82 | F103: 3,766.56 | I103: 0 | J103: 0 | L103: 0 | M103: 0.00% | N103: 0.00%
A104: 12.7 | B104: Espelho plano 4mm | C104: m2 | D104: 4.50 | E104: 367.49 | F104: 1,653.71 | I104: 0 | J104: 0 | L104: 0 | M104: 0.00% | N104: 0.00%
A105: 12.8 | B105: Estrutura metálica c/ tabelas de basquete | C105: CJ | D105: 1.00 | E105: 2,357.10 | F105: 2,357.10 | I105: 0 | J105: 0 | L105: 0 | M105: 0.00% | N105: 0.00%
A106: 12.9 | B106: Estrutura metálica de traves de futsal | C106: CJ | D106: 1.00 | E106: 2,135.69 | F106: 2,135.69 | I106: 0 | J106: 0 | L106: 0 | M106: 0.00% | N106: 0.00%
A107: 12.10 | B107: Estrutura metálica p/ rede de voley | C107: CJ | D107: 1.00 | E107: 867.40 | F107: 867.40 | I107: 0 | J107: 0 | L107: 0 | M107: 0.00% | N107: 0.00%
A108: 12.11 | B108: Soleira em granito cinza andorinha, l = 15 cm, e = 2 cm | C108: M | D108: 2.90 | E108: 78.11 | F108: 226.52 | I108: 0 | J108: 0 | L108: 0 | M108: 0.00% | N108: 0.00%
A109: 12.12 | B109: Limpeza geral | C109: m2 | D109: 861.56 | E109: 2.53 | F109: 2,179.75 | I109: 0 | J109: 0 | L109: 0 | M109: 0.00% | N109: 0.00%
A110: 13 | B110: SERVIÇOS PRELIMINARES | F110: =SUM(F111:F114) -> 11,075.86 | J110: =SUM(J111:J114) -> 842.16 | K110: =SUM(K111:K114) -> 0 | L110: =SUM(L111:L114) -> 842.16 | M110: =J110/F110 -> 7.60% | N110: =L110/F110 -> 7.60%
A111: 13.1 | B111: Execução de almoxarifado emcanteiro de obra emchapa de madeira compensada, incluso as prateleiras. | C111: m2 | D111: 12.00 | E111: 632.92 | F111: =ROUND(D111*E111,2) -> 7,595.04 | I111: =G111+H111 -> 0 | J111: =ROUND(G111*E111,2) -> 0 | L111: =J111+K111 -> 0 | M111: =J111/F111 -> 0.00% | N111: =L111/F111 -> 0.00%
A112: 13.2 | B112: Placa da obra emaço galvanizado, inclusive assentamento. | C112: m2 | D112: 3.00 | E112: 340.39 | F112: =ROUND(D112*E112,2) -> 1,021.17 | I112: =G112+H112 -> 0 | J112: =ROUND(G112*E112,2) -> 0 | L112: =J112+K112 -> 0 | M112: =J112/F112 -> 0.00% | N112: =L112/F112 -> 0.00%
A113: 13.3 | B113: Instalação provisória de energia elétrica, áerea, trifasica, em poste galvanizado, exclusive fornecimento de medidor. | C113: Unidade | D113: 1.00 | E113: 1,617.49 | F113: =ROUND(D113*E113,2) -> 1,617.49 | I113: =G113+H113 -> 0 | J113: =ROUND(G113*E113,2) -> 0 | L113: =J113+K113 -> 0 | M113: =J113/F113 -> 0.00% | N113: =L113/F113 -> 0.00%
A114: 13.4 | B114: Capina e limpeza manual de terreno. | C114: m2 | D114: 633.20 | E114: 1.33 | F114: =ROUND(D114*E114,2) -> 842.16 | G114: 633.20 | I114: =G114+H114 -> 633.20 | J114: =ROUND(G114*E114,2) -> 842.16 | L114: =J114+K114 -> 842.16 | M114: =J114/F114 -> 100.00% | N114: =L114/F114 -> 100.00%
A115: 14 | B115: SUPERESTRUTURA | F115: =SUM(F116,F123) -> 7,996.34 | J115: =SUM(J116,J123) -> 3,908.01 | K115: =SUM(K116,K123) -> 0 | L115: =SUM(L116,L123) -> 3,908.01 | M115: =J115/F115 -> 48.87% | N115: =L115/F115 -> 48.87%
A116: 14.1 | B116: PILARES | F116: =SUM(F117:F122) -> 7,702.34 | J116: =SUM(J117:J122) -> 3,614.01 | K116: =SUM(K117:K122) -> 0 | L116: =SUM(L117:L122) -> 3,614.01 | M116: 46.92% | N116: 46.92%
A117: 14.1.1 | B117: Tratamento em concreto com estuque e lixamento. | C117: m2 | D117: 50.00 | E117: 35.90 | F117: =ROUND(D117*E117,2) -> 1,795.00 | G117: 25.00 | I117: =G117+H117 -> 25.00 | J117: =ROUND(G117*E117,2) -> 897.50 | L117: =J117+K117 -> 897.50 | M117: 50.00% | N117: 50.00%
A118: 14.1.2 | B118: Preparo de substrato por escarificação mecaânica (CORTE DE CONCRETO) para espessuras até 3 cm. | C118: m2 | D118: 4.80 | E118: 154.75 | F118: 742.80 | G118: 2.40 | I118: 2.40 | J118: 371.40 | L118: 371.40 | M118: 50.00% | N118: 50.00%
A119: 14.1.3 | B119: Preparação do substrato (SUPERFICIE DE CONCRETO) E armadura por escovamento manual. | C119: m2 | D119: 4.80 | E119: 6.71 | F119: 32.21 | G119: 2.40 | I119: 2.40 | J119: 16.10 | L119: 16.10 | M119: 49.98% | N119: 49.98%
A120: 14.1.4 | B120: Passivação de armadura com primer a base de zinco. | C120: m2 | D120: 4.80 | E120: 105.58 | F120: 506.78 | G120: 2.40 | I120: 2.40 | J120: 253.39 | L120: 253.39 | M120: 50.00% | N120: 50.00%
A121: 14.1.5 | B121: Microconcreto fluido (AUTOADENSÁVEL) Com grout até 40% de pó de pedra, lançamento e cura. | C121: M3 | D121: 0.14 | E121: 3,387.99 | F121: 474.32 | I121: 0 | J121: 0 | L121: 0 | M121: 0.00% | N121: 0.00%
A122: 14.1.6 | B122: Ancoragem de alvenarias de bloco cerâmicos com concreto armado. | C122: Serviço | D122: 1.00 | E122: 4,151.23 | F122: 4,151.23 | G122: 0.50 | I122: 0.50 | J122: 2,075.62 | L122: 2,075.62 | M122: 50.00% | N122: 50.00%
A123: 14.2 | B123: LAJE PREMOLDADA | F123: =SUM(F124) -> 294.00 | J123: =SUM(J124) -> 294.00 | K123: =SUM(K124) -> 0 | L123: =SUM(L124) -> 294.00 | M123: =J123/F123 -> 100.00% | N123: =L123/F123 -> 100.00%
A124: 14.2.1 | B124: Laje pre-moldada p/forro, sobrecarga 100kg/m2, vãos até 3,50m/e=8 cm, com lajotas e capa c/ concreto FCK=20MPA, 3cm, inter-eixo 38 cm, com escoramento (reaproveitamento de 3X) E ferragem negativa. | C124: m2 | D124: 3.87 | E124: 75.97 | F124: =ROUND(D124*E124,2) -> 294.00 | G124: 3.87 | I124: =G124+H124 -> 3.87 | J124: =ROUND(G124*E124,2) -> 294.00 | L124: =J124+K124 -> 294.00 | M124: =J124/F124 -> 100.00% | N124: =L124/F124 -> 100.00%
A125: 15 | B125: PAREDES E PAINÉIS | F125: =SUM(F126:F128) -> 1,945.71 | J125: =SUM(J126:J128) -> 1,784.85 | K125: =SUM(K126:K128) -> 0 | L125: =SUM(L126:L128) -> 1,784.85 | M125: =J125/F125 -> 91.73% | N125: =L125/F125 -> 91.73%
A126: 15.1 | B126: Alvenaria de bloco cerâmico de vedação, 9x19x24 cm, e=19 cm, com argamassa traço - 1:2:8 (CIMENTO/CAL/AREIA), Junta = 2 cm. | C126: m2 | D126: 13.78 | E126: 39.63 | F126: =ROUND(D126*E126,2) -> 546.10 | G126: 13.78 | I126: =G126+H126 -> 13.78 | J126: =ROUND(G126*E126,2) -> 546.10 | L126: =J126+K126 -> 546.10 | M126: 100.00% | N126: 100.00%
A127: 15.2 | B127: Alvenaria de tijolo cerâmico maciço (4x9x17), espessura de 0,04 m (FACÃO), com argamssa traço - 1:2:8 (CIMENTO/CAL/AREIA) com junta de 2,0 cm. | C127: m2 | D127: 24.66 | E127: 43.71 | F127: =ROUND(D127*E127,2) -> 1,077.89 | G127: 24.66 | I127: =G127+H127 -> 24.66 | J127: =ROUND(G127*E127,2) -> 1,077.89 | L127: =J127+K127 -> 1,077.89 | M127: 100.00% | N127: 100.00%
A128: 15.3 | B128: Cobogó de cimento tipo "VENEZIANA", dimensões de 40 x 40 x 9 cm. | C128: m2 | D128: 6.00 | E128: 53.62 | F128: =ROUND(D128*E128,2) -> 321.72 | G128: 3.00 | I128: =G128+H128 -> 3.00 | J128: =ROUND(G128*E128,2) -> 160.86 | L128: =J128+K128 -> 160.86 | M128: 50.00% | N128: 50.00%
A129: 16 | B129: REVESTIMENTOS | F129: =SUM(F130:F132) -> 2,674.72 | J129: =SUM(J130:J132) -> 1,992.38 | K129: =SUM(K130:K132) -> 0 | L129: =SUM(L130:L132) -> 1,992.38 | M129: 74.49% | N129: 74.49%
A130: 16.1 | B130: Chapisco aplicado em alvenaria (SEM PRESENÇA DE VÃOS) e estruturas de concreto de fachadas, com colher de pedriro, argamassa traço 1:3 com preparo manual. | C130: m2 | D130: 64.66 | E130: 6.19 | F130: =ROUND(D130*E130,2) -> 400.25 | G130: 64.66 | I130: =G130+H130 -> 64.66 | J130: =ROUND(G130*E130,2) -> 400.25 | L130: =J130+K130 -> 400.25 | M130: 100.00% | N130: 100.00%
A131: 16.2 | B131: Emboço, para recebimento de cerâmica, em argamassa de traço 1:2:8, preparo mecânico com betoneira 400 litros, aplicado manualmente em faces internas da paredes, para ambientes com área entre 5 m2 e 10 m2, com espessura de 20 mm. | C131: m2 | D131: 49.32 | E131: 32.59 | F131: =ROUND(D131*E131,2) -> 1,607.34 | G131: 34.52 | I131: =G131+H131 -> 34.52 | J131: =ROUND(G131*E131,2) -> 1,125.14 | L131: =J131+K131 -> 1,125.14 | M131: 70.00% | N131: 70.00%
A132: 16.3 | B132: Massa única, Para recebimento de pintura, em argamassa de traço 1:2:8, preparo mecânico com betoneira 400 litros, aplicada manualmenteem faces internas de paredes, espessura de 20 mm. | C132: m2 | D132: 33.44 | E132: 19.95 | F132: =ROUND(D132*E132,2) -> 667.13 | G132: 23.41 | I132: =G132+H132 -> 23.41 | J132: =ROUND(G132*E132,2) -> 466.99 | L132: =J132+K132 -> 466.99 | M132: 70.00% | N132: 70.00%
A133: 17 | B133: PISOS | F133: =SUM(F134) -> 2,564.59 | J133: =SUM(J134) -> 0 | K133: =SUM(K134) -> 0 | L133: =SUM(L134) -> 0 | M133: =J133/F133 -> 0.00% | N133: =L133/F133 -> 0.00%
A134: 17.1 | B134: Piso em concreto 20 MPA preparo mecanico, espessura de 7 cm, incluso selante elastico a base de poliuretano e contrapiso. | C134: m2 | D134: 99.48 | E134: 25.78 | F134: =ROUND(D134*E134,2) -> 2,564.59 | I134: =G134+H134 -> 0 | J134: =ROUND(G134*E134,2) -> 0 | L134: =J134+K134 -> 0 | M134: =J134/F134 -> 0.00% | N134: =L134/F134 -> 0.00%
A135: 18 | B135: PINTURA | F135: =SUM(F136) -> 1,246.46 | J135: =SUM(J136) -> 0 | K135: =SUM(K136) -> 0 | L135: =SUM(L136) -> 0 | M135: =J135/F135 -> 0.00% | N135: =L135/F135 -> 0.00%
A136: 18.1 | B136: Junta de dilatação para impermeabilização, com selante elastico monocomponente a base de poliuretano, dimensões de 1 x 1 cm. | C136: M | D136: 57.60 | E136: 21.64 | F136: =ROUND(D136*E136,2) -> 1,246.46 | I136: =G136+H136 -> 0 | J136: =ROUND(G136*E136,2) -> 0 | L136: =J136+K136 -> 0 | M136: =J136/F136 -> 0.00% | N136: =L136/F136 -> 0.00%
A137: 19 | B137: INSTALAÇÕES HIDRÁULICAS | F137: =SUM(F138:F143) -> 710.99 | J137: =SUM(J138:J143) -> 97.24 | K137: =SUM(K138:K143) -> 0 | L137: =SUM(L138:L143) -> 97.24 | M137: =J137/F137 -> 13.68% | N137: =L137/F137 -> 13.68%
A138: 19.1 | B138: Adaptador com flnge e anel de vedação, PVC, soldavel, DN 25 mm X 3/4", instalado em reservação de água de edificação que possua reservatório de fibra/fibrocimento, fornecimento e instalação. | C138: Unidade | D138: 3.00 | E138: 21.95 | F138: =ROUND(D138*E138,2) -> 65.85 | I138: =G138+H138 -> 0 | J138: =ROUND(G138*E138,2) -> 0 | L138: =J138+K138 -> 0 | M138: 0.00% | N138: 0.00%
A139: 19.2 | B139: Adaptador com flnge e anel de vedação, PVC, soldavel, DN 50 mm X 1 1/24", instalado em reservação de água de edificação que possua reservatório de fibra/fibrocimento, fornecimento e instalação. | C139: Unidade | D139: 2.00 | E139: 48.96 | F139: 97.92 | I139: 0 | J139: 0 | L139: 0 | M139: 0.00% | N139: 0.00%
A140: 19.3 | B140: Joelho de 90 graus, CPVC, soldavel, DN 25 mm, instalado em reservação de água de edificação. | C140: Unidade | D140: 4.00 | E140: 13.63 | F140: 54.52 | I140: 0 | J140: 0 | L140: 0 | M140: 0.00% | N140: 0.00%
A141: 19.4 | B141: Joelho de 90 graus, CPVC, soldavel, DN 50 mm, instalado em reservação de água de edificação. | C141: Unidade | D141: 6.00 | E141: 65.91 | F141: 395.46 | I141: 0 | J141: 0 | L141: 0 | M141: 0.00% | N141: 0.00%
A142: 19.5 | B142: Joelho 90 graus com bucha de latão, PVC, soldável, DN 25 mm X 1/2" instalado em ramal ou sub-ramal de água - Fornecimento e instalação. | C142: Unidade | D142: 2.00 | E142: 12.83 | F142: 25.66 | G142: 2.00 | I142: 2.00 | J142: 25.66 | L142: 25.66 | M142: 100.00% | N142: 100.00%
A143: 19.6 | B143: Tubo PVC, soldável, DN 40 mm, instalado em prumada de água - Fornecimento e instalação. | C143: M | D143: 6.00 | E143: 11.93 | F143: 71.58 | G143: 6.00 | I143: 6.00 | J143: 71.58 | L143: 71.58 | M143: 100.00% | N143: 100.00%
A144: 20 | B144: INSTALAÇÕES SANITÁRIAS | F144: =SUM(F145:F149) -> 1,420.85 | J144: =SUM(J145:J149) -> 780.55 | K144: =SUM(K145:K149) -> 0 | L144: =SUM(L145:L149) -> 780.55 | M144: =J144/F144 -> 54.94% | N144: =L144/F144 -> 54.94%
A145: 20.1 | B145: Junção simples , PVC, serie normal, esgoto predial, DN 100 X 100 mm, junta elástica, fornecido e instalado em ramal de descarga ou ramal de esgotosanitário. | C145: Unidade | D145: 5.00 | E145: 39.53 | F145: =ROUND(D145*E145,2) -> 197.65 | I145: =G145+H145 -> 0 | J145: =ROUND(G145*E145,2) -> 0 | L145: =J145+K145 -> 0 | M145: 0.00% | N145: 0.00%
A146: 20.2 | B146: Junção simples, PVC, serie R, água pluvial, DN 100 X 75 mm, junta elástica, fornecido e instalado em ramal de encaminhamento. | C146: Unidade | D146: 5.00 | E146: 53.80 | F146: =ROUND(D146*E146,2) -> 269.00 | I146: =G146+H146 -> 0 | J146: =ROUND(G146*E146,2) -> 0 | L146: =J146+K146 -> 0 | M146: 0.00% | N146: 0.00%
A147: 20.3 | B147: Tubo PVC, serie normal, esgoto predial, DN 100 mm, fornecido e instalado em ramal de descarga ou ramal de esgoto sanitário. | C147: m | D147: 23.00 | E147: 37.75 | F147: =ROUND(D147*E147,2) -> 868.25 | G147: 18.40 | I147: =G147+H147 -> 18.40 | J147: =ROUND(G147*E147,2) -> 694.60 | L147: =J147+K147 -> 694.60 | M147: 80.00% | N147: 80.00%
A148: 20.4 | B148: Tubo PVC, serie normal, esgoto predial, DN 40 mm, fornecido e instalado em ramal de descarga ou ramal de esgoto sanitário. | C148: m | D148: 2.00 | E148: 13.47 | F148: =ROUND(D148*E148,2) -> 26.94 | G148: 2.00 | I148: =G148+H148 -> 2.00 | J148: =ROUND(G148*E148,2) -> 26.94 | L148: =J148+K148 -> 26.94 | M148: 100.00% | N148: 100.00%
A149: 20.5 | B149: Tubo PVC, serie normal, esgoto predial, DN 50 mm, fornecido e instalado em ramal de descarga ou ramal de esgoto sanitário. | C149: m | D149: 3.00 | E149: 19.67 | F149: =ROUND(D149*E149,2) -> 59.01 | G149: 3.00 | I149: =G149+H149 -> 3.00 | J149: =ROUND(G149*E149,2) -> 59.01 | L149: =J149+K149 -> 59.01 | M149: 100.00% | N149: 100.00%
A150: 21 | B150: NSTALAÇÕES ELÉTRICAS | F150: =SUM(F151:F152) -> 143.22 | J150: =SUM(J151:J152) -> 0 | K150: =SUM(K151:K152) -> 0 | L150: =SUM(L151:L152) -> 0 | M150: 0.00% | N150: 0.00%
A151: 21.1 | B151: Caixa retangular 4" X 2" em PVC, intalada em parede - Fornecimento e instalação. | C151: Unidade | D151: 8.00 | E151: 8.47 | F151: =ROUND(D151*E151,2) -> 67.76 | I151: =G151+H151 -> 0 | J151: =ROUND(G151*E151,2) -> 0 | L151: =J151+K151 -> 0 | M151: 0.00% | N151: 0.00%
A152: 21.2 | B152: Caixa octogonal 4" X 4", PVC, instalada em laje - Fornecimento e instalação. | C152: Unidade | D152: 7.00 | E152: 10.78 | F152: =ROUND(D152*E152,2) -> 75.46 | I152: =G152+H152 -> 0 | J152: =ROUND(G152*E152,2) -> 0 | L152: =J152+K152 -> 0 | M152: 0.00% | N152: 0.00%
A153: 22 | B153: SERVIÇOS DIVERSOS | F153: =SUM(F154) -> 599.52 | J153: =SUM(J154) -> 0 | K153: =SUM(K154) -> 0 | L153: =SUM(L154) -> 0 | M153: =J153/F153 -> 0.00% | N153: =L153/F153 -> 0.00%
A154: 22.1 | B154: Chuveiro elétrico comum corpo plastico tipo ducha, fornecimento e instalação | C154: Unidade | D154: 8.00 | E154: 74.94 | F154: =ROUND(D154*E154,2) -> 599.52 | I154: =G154+H154 -> 0 | J154: =ROUND(G154*E154,2) -> 0 | L154: =J154+K154 -> 0 | M154: =J154/F154 -> 0.00% | N154: =L154/F154 -> 0.00%
A155: 23 | B155: URBANIZAÇÃO DA ÁREA EXTERNA DA QUADRA | F155: =SUM(F156:F174) -> 169,960.05 | J155: =SUM(J156:J174) -> 28,827.73 | K155: =SUM(K156:K174) -> 0 | L155: =SUM(L156:L174) -> 28,827.73 | M155: =J155/F155 -> 16.96% | N155: =L155/F155 -> 16.96%
A156: 23.1 | B156: Escavação manual solo de 1a.cat. prof. até 1.50m | C156: m3 | D156: 1.66 | E156: 42.51 | F156: =ROUND(D156*E156,2) -> 70.57 | I156: =G156+H156 -> 0 | J156: =ROUND(G156*E156,2) -> 0 | L156: =J156+K156 -> 0 | M156: =J156/F156 -> 0.00% | N156: =L156/F156 -> 0.00%
A157: 23.2 | B157: Corte e dobra de aço AÇO CA-50, diametro de 8.0 MM, utilizado em estruturas diversas. | C157: kg | D157: 260.96 | E157: 7.30 | F157: 1,905.01 | G157: 260.96 | I157: 260.96 | J157: 1,905.01 | L157: 1,905.01 | M157: 100.00% | N157: 100.00%
A158: 23.3 | B158: Corte e dobra de aço AÇO CA-60, diametro de 5.0 MM, utilizado em estruturas diversas. | C158: kg | D158: 97.15 | E158: 7.47 | F158: 725.71 | G158: 97.15 | I158: 97.15 | J158: 725.71 | L158: 725.71 | M158: 100.00% | N158: 100.00%
A159: 23.4 | B159: Forma plana chapa compensada plastificada, esp.= 12mm util. 5x | C159: m2 | D159: 82.94 | E159: 26.35 | F159: 2,185.47 | G159: 82.94 | I159: 82.94 | J159: 2,185.47 | L159: 2,185.47 | M159: 100.00% | N159: 100.00%
A160: 23.5 | B160: Concretagem de peças, FCK = 25 MPA, Com uso de baldes com seção media menor ou igual a 0,25 m2 - Lançamento, adensamento e acabamento. | C160: m3 | D160: 3.53 | E160: 531.32 | F160: 1,875.56 | G160: 3.53 | I160: 3.53 | J160: 1,875.56 | L160: 1,875.56 | M160: 100.00% | N160: 100.00%
A161: 23.6 | B161: Alvenaria de tijolo cerâmico (9x19x24)cm, e= 0,09m, com argamassa (traço 1:2:8 - cimento/cal/areia), junta de 2,0cm | C161: m2 | D161: 119.58 | E161: 39.63 | F161: 4,738.96 | G161: 119.58 | I161: 119.58 | J161: 4,738.96 | L161: 4,738.96 | M161: 100.00% | N161: 100.00%
A162: 23.7 | B162: Alvenaria de tijolo cerâmico (9x19x24)cm, e= 0,19m, com argamassa (traço 1:2:8 - cimento/cal/areia), junta de 2,0cm | C162: m2 | D162: 32.45 | E162: 67.91 | F162: 2,203.68 | G162: 32.45 | I162: 32.45 | J162: 2,203.68 | L162: 2,203.68 | M162: 100.00% | N162: 100.00%
A163: 23.8 | B163: Elemento vazado de concreto (40x40x7cm) assentados com argamassa (imento e areia traço 1:3) | C163: m2 | D163: 53.68 | E163: 53.62 | F163: 2,878.32 | G163: 10.74 | I163: 10.74 | J163: 575.66 | L163: 575.66 | M163: 20.00% | N163: 20.00%
A164: 23.9 | B164: Piso em concreto simples desempolado (esp.=5cm), inclusive contrapiso | C164: m2 | D164: 94.28 | E164: 25.78 | F164: 2,430.54 | I164: 0 | J164: 0 | L164: 0 | M164: 0.00% | N164: 0.00%
A165: 23.10 | B165: Assentamento de guia (meio fio) em trecho reto,confeccionada em concreto pré-fabricada, dimensões 100X15X13X30 CM (COMPRIMENTO X BASE INFERIOR X BASE SUPERIOR X ALTURA), para vias urbanas. | C165: M | D165: 100.00 | E165: 41.95 | F165: 4,195.00 | I165: 0 | J165: 0 | L165: 0 | M165: 0.00% | N165: 0.00%
A166: 23.11 | B166: Chapisco c/ argamassa de cimento e areia s/ peneirar traço 1:3 esp.= 5mm p/ parede | C166: m2 | D166: 527.98 | E166: 6.19 | F166: 3,268.20 | G166: 527.98 | I166: 527.98 | J166: 3,268.20 | L166: 3,268.20 | M166: 100.00% | N166: 100.00%
A167: 23.12 | B167: Reboco c/argamassa pré-fabricada, adesivo de alta resistência p/tinta epóxi esp= 5mmp/parede | C167: m2 | D167: 711.12 | E167: 19.95 | F167: 14,186.84 | G167: 568.90 | I167: 568.90 | J167: 11,349.48 | L167: 11,349.48 | M167: 80.00% | N167: 80.00%
A168: 23.13 | B168: Aterro c/ controle, mat. c/ aquisição compactação manual | C168: m3 | D168: 35.10 | E168: 143.78 | F168: 5,046.68 | I168: 0 | J168: 0 | L168: 0 | M168: 0.00% | N168: 0.00%
A169: 23.14 | B169: Execução de passeio (calçada) ou piso de concreto moldado in loco, usinado, acabamento convencional, Espessura de 6 CM, ARMADO. | C169: m2 | D169: 36.75 | E169: 55.99 | F169: 2,057.63 | I169: 0 | J169: 0 | L169: 0 | M169: 0.00% | N169: 0.00%
A170: 23.15 | B170: Lastro de concreto magro, aplicado em pisos ou radiers, Espessura de 5 cm. | C170: m2 | D170: 30.50 | E170: 25.25 | F170: 770.13 | I170: 0 | J170: 0 | L170: 0 | M170: 0.00% | N170: 0.00%
A171: 23.16 | B171: Guarda corpo em tubo de aço galvanizado de 1 1/2" | C171: M | D171: 24.50 | E171: 253.83 | F171: 6,218.84 | I171: 0 | J171: 0 | L171: 0 | M171: 0.00% | N171: 0.00%
A172: 23.17 | B172: Execução de pátio/estacionamento em piso intertravado, com bloco retangular cor natural de 20 X 10 cm, espessura de 8 CM. | C172: m2 | D172: 1,764.31 | E172: 60.10 | F172: 106,035.03 | I172: 0 | J172: 0 | L172: 0 | M172: 0.00% | N172: 0.00%
A173: 23.18 | B173: Pintura de acabamento com aplicação de 02 demaõs de tinta acrílica | C173: m2 | D173: 764.80 | E173: 11.23 | F173: 8,588.70 | I173: 0 | J173: 0 | L173: 0 | M173: 0.00% | N173: 0.00%
A174: 23.19 | B174: Esmalte sintético em estrutura de aço carbono 50 micracom revólver, inclusive base. | C174: m2 | D174: 36.75 | E174: 15.76 | F174: 579.18 | I174: 0 | J174: 0 | L174: 0 | M174: 0.00% | N174: 0.00%
A176: TOTAL | F176: =F9+F11+F13+F18+F21+F27+F36+F47+F54+F60+F90+F97+F110+F115+F125+F129+F133+F135+F137+F144+F150+F153+F155 -> 524,984.02 | J176: =J9+J11+J13+J18+J21+J27+J36+J47+J54+J60+J90+J97+J110+J115+J125+J129+J133+J135+J137+J144+J150+J153+J155 -> 114,571.20 | K176: =K9+K11+K13+K18+K21+K27+K36+K47+K54+K60+K90+K97+K110+K115+K125+K129+K133+K135+K137+K144+K150+K153+K155 -> 0.00 | L176: =L9+L11+L13+L18+L21+L27+L36+L47+L54+L60+L90+L97+L110+L115+L125+L129+L133+L135+L137+L144+L150+L153+L155 -> 114,571.20 | M176: =J176/F176 -> 21.82% | N176: =L176/F176 -> 21.82%
B181: LUMA PROJETOS E CONSTRUÇÕES LTDA | G181: Resp.: Técnico Fiscalização da Obra | L181: Prefeitura Municipal
B182: CNPJ: 08.869.425/0001-43 | G182: Carimbo e Assinatura | L182: Carimbo e Assinatura
E186: Valor total medido para ser pago pelo saldo do FNDE | F186: =J97+J90+J60+J54+J47+J36+J27+J21+J18+J13+J11+J9 -> R$ 76,338.28
E187: Valor total medido para ser pago com recursos proprios | F187: =J110+J115+J125+J129+J133+J135+J137+J144+J150+J153+J155 -> R$ 38,232.92
E188: VALOR TOTAL DA MEDIÇÃO 01: Cento e quatorze mil, quinhentos e setenta e um reais, vinte centavos. | F188: =F186+F187 -> R$ 114,571.20

Sheet Bm 02
D1: MEDIÇÃO SERVIÇOS Nº: 02 | G1: PERÍODO MEDIÇÃO: 31/03/2020 a 22/04/2020
F2: MODALIDADE: TOMADA DE PREÇOS Nº. 001/2019 | K2: FONTE DE RECURSOS: RECURSOS PRÓPRIOS E Convênio PAC 2 – 5506/2013
A3: CONTRATANTE: PREFEITURA MUNICIPAL DE PALMAS DE MONTE ALTO - BA | F3: DATA DA PROPOSTA: 24/04/2019
A4: TIPO DE EMPREENDIMENTO: CONCLUSÃO DE QUADRA POLIESPORTIVA COBERTA | F4: INÍCIO DA OBRA: 15/06/2019 | K4: FIM DA OBRA: 31/12/2020 | O4: 30.00%
A5: CONTRATADA: LUMA PROJETOS E CONSTRUÇÕES LTDA | F5: CONTRATO INICIAL: R$ 524.984,02 | K5: CONTRATO Nº: 001/2019TP | O5: =F9*O4 -> 3,514.86
A6: LOCALIZAÇÃO: Escola Municipal Wilson Lins, Distrito de Espraiados - Palmas de Monte Alto - BA | F6: CONTRATO ATUALIZADO: R$ 524.984,02 | K6: DATA DE ASSINATURA DO CONTRATO: | O6: medição | P6: mat | Q6: mo
A7: ITEM | B7: DESCRIÇÃO DOS SERVIÇOS | C7: DADOS DO CONTRATO | G7: REALIZAÇÃO FÍSICA | J7: REALIZAÇÃO FINANCEIRA | M7: % EXECUTADA | O7: =J176 -> 91,527.95 | P7: =O7*0.6 -> 54,916.77 | Q7: =O7*0.4 -> 36,611.18
C8: UN | D8: QUANTIDADE | E8: PREÇO UNITÁRIO | F8: VR TOTAL | G8: ATUAL | H8: ANTERIOR | I8: TOTAL | J8: ATUAL | K8: ANTERIOR | L8: TOTAL | M8: ATUAL | N8: TOTAL
A9: 1 | B9: PAREDES E PAINÉIS | F9: =SUM(F10) -> 11,716.19 | J9: =SUM(J10) -> 1,171.62 | K9: =SUM(K10) -> 10,544.57 | L9: =SUM(L10) -> 11,716.19 | M9: =J9/F9 -> 10.00% | N9: =L9/F9 -> 100.00%
A10: 1.1 | B10: Elemento vazado de concreto (50x50x10cm) anti-chuva assentados com argamassa (cimento e areia traço 1:3) | C10: m2 | D10: 148.10 | E10: 79.11 | F10: =ROUND(D10*E10,2) -> 11,716.19 | G10: 14.81 | H10: ='Bm 01'!I10 -> 133.29 | I10: =G10+H10 -> 148.10 | J10: =ROUND(G10*E10,2) -> 1,171.62 | K10: ='Bm 01'!L10 -> 10,544.57 | L10: =J10+K10 -> 11,716.19 | M10: 10.00% | N10: 100.00%
A11: 2 | B11: COBERTURA | F11: =SUM(F12) -> 59,131.12 | J11: =SUM(J12) -> 5,913.11 | K11: =SUM(K12) -> 47,304.90 | L11: =SUM(L12) -> 53,218.01 | M11: 10.00% | N11: 90.00%
A12: 2.1 | B12: Telha metálica em chapa galvanizada e=0.5mm | C12: m2 | D12: 1,114.00 | E12: 53.08 | F12: =ROUND(D12*E12,2) -> 59,131.12 | G12: 111.40 | H12: ='Bm 01'!I12 -> 891.20 | I12: =G12+H12 -> 1,002.60 | J12: =ROUND(G12*E12,2) -> 5,913.11 | K12: ='Bm 01'!L12 -> 47,304.90 | L12: =J12+K12 -> 53,218.01 | M12: 10.00% | N12: 90.00%
A13: 3 | B13: ESQUADRIAS | F13: =SUM(F14:F17) -> 5,931.43 | J13: =SUM(J14:J17) -> 0 | K13: =SUM(K14:K17) -> 0 | L13: =SUM(L14:L17) -> 0 | M13: 0.00% | N13: 0.00%
A14: 3.1 | B14: Porta de madeira (1,00x2,10 m) com bandeira (1,00x0,80 m) - inclusive ferragens, conforme projeto de esquadrias | C14: Unidade | D14: 2.00 | E14: 940.08 | F14: =ROUND(D14*E14,2) -> 1,880.16 | H14: ='Bm 01'!I14 -> 0 | I14: =G14+H14 -> 0 | J14: =ROUND(G14*E14,2) -> 0 | K14: ='Bm 01'!L14 -> 0 | L14: =J14+K14 -> 0 | M14: 0.00% | N14: 0.00%
A15: 3.2 | B15: Porta de madeira (0,90x2,10 m) - inclusive ferragens, conforme projeto de esquadrias | C15: Unidade | D15: 1.00 | E15: 828.69 | F15: =ROUND(D15*E15,2) -> 828.69 | H15: ='Bm 01'!I15 -> 0 | I15: =G15+H15 -> 0 | J15: =ROUND(G15*E15,2) -> 0 | K15: ='Bm 01'!L15 -> 0 | L15: =J15+K15 -> 0 | M15: 0.00% | N15: 0.00%
A16: 3.3 | B16: Porta de madeira - Banheiros e Sanitários (0,60 m) completa inclusive targeta metálica | C16: Unidade | D16: 4.00 | E16: 565.77 | F16: =ROUND(D16*E16,2) -> 2,263.08 | H16: ='Bm 01'!I16 -> 0 | I16: =G16+H16 -> 0 | J16: =ROUND(G16*E16,2) -> 0 | K16: ='Bm 01'!L16 -> 0 | L16: =J16+K16 -> 0 | M16: 0.00% | N16: 0.00%
A17: 3.4 | B17: Porta de madeira - Banheiros e Sanitários (0,80 m) completa inclusive targeta metálica - WC PNE | C17: Unidade | D17: 2.00 | E17: 479.75 | F17: =ROUND(D17*E17,2) -> 959.50 | H17: ='Bm 01'!I17 -> 0 | I17: =G17+H17 -> 0 | J17: =ROUND(G17*E17,2) -> 0 | K17: ='Bm 01'!L17 -> 0 | L17: =J17+K17 -> 0 | M17: 0.00% | N17: 0.00%
A18: 4 | B18: REVESTIMENTOS | F18: =SUM(F19:F20) -> 20,020.64 | J18: =SUM(J19:J20) -> 0 | K18: =SUM(K19:K20) -> 0 | L18: =SUM(L19:L20) -> 0 | M18: 0.00% | N18: 0.00%
A19: 4.1 | B19: Revestimento cerâmico de paredes PEI IV - cerâmica 20 x 20 cm - incl. rejunte - conforme projeto | C19: m2 | D19: 328.00 | E19: 48.29 | F19: =ROUND(D19*E19,2) -> 15,839.12 | H19: ='Bm 01'!I19 -> 0 | I19: =G19+H19 -> 0 | J19: =ROUND(G19*E19,2) -> 0 | K19: ='Bm 01'!L19 -> 0 | L19: =J19+K19 -> 0 | M19: 0.00% | N19: 0.00%
A20: 4.2 | B20: Revestimento cerâmico de paredes PEI IV - cerâmica 10 x 10 cm - incl. rejunte - conforme projeto | C20: m2 | D20: 81.10 | E20: 51.56 | F20: =ROUND(D20*E20,2) -> 4,181.52 | H20: ='Bm 01'!I20 -> 0 | I20: =G20+H20 -> 0 | J20: =ROUND(G20*E20,2) -> 0 | K20: ='Bm 01'!L20 -> 0 | L20: =J20+K20 -> 0 | M20: 0.00% | N20: 0.00%
A21: 5 | B21: PISOS | F21: =SUM(F22:F26) -> 62,634.19 | J21: =SUM(J22:J26) -> 46,727.33 | K21: =SUM(K22:K26) -> 0 | L21: =SUM(L22:L26) -> 46,727.33 | M21: 74.60% | N21: 74.60%
A22: 5.1 | B22: Lastro de brita graduada apiloada (esp.=6 cm) | C22: m2 | D22: 633.20 | E22: 13.43 | F22: =ROUND(D22*E22,2) -> 8,503.88 | G22: 633.20 | H22: ='Bm 01'!I22 -> 0 | I22: =G22+H22 -> 633.20 | J22: =ROUND(G22*E22,2) -> 8,503.88 | K22: ='Bm 01'!L22 -> 0 | L22: =J22+K22 -> 8,503.88 | M22: 100.00% | N22: 100.00%
A23: 5.2 | B23: Piso em concreto armado com tela e juntas de dilatação (esp.=10cm) | C23: m2 | D23: 633.20 | E23: 55.99 | F23: =ROUND(D23*E23,2) -> 35,452.87 | G23: 633.20 | H23: ='Bm 01'!I23 -> 0 | I23: =G23+H23 -> 633.20 | J23: =ROUND(G23*E23,2) -> 35,452.87 | K23: ='Bm 01'!L23 -> 0 | L23: =J23+K23 -> 35,452.87 | M23: 100.00% | N23: 100.00%
A24: 5.3 | B24: Piso em concreto simples desempolado (esp.=5cm), inclusive contrapiso | C24: m2 | D24: 107.47 | E24: 25.78 | F24: =ROUND(D24*E24,2) -> 2,770.58 | G24: 107.47 | H24: ='Bm 01'!I24 -> 0 | I24: =G24+H24 -> 107.47 | J24: =ROUND(G24*E24,2) -> 2,770.58 | K24: ='Bm 01'!L24 -> 0 | L24: =J24+K24 -> 2,770.58 | M24: 100.00% | N24: 100.00%
A25: 5.4 | B25: Junta de retração, serrada com disco diamantado, parapavimentos em placa de concreto, profund.= 5cm, inclusive preenchimento com mastique | C25: m | D25: 627.05 | E25: 21.64 | F25: =ROUND(D25*E25,2) -> 13,569.36 | H25: ='Bm 01'!I25 -> 0 | I25: =G25+H25 -> 0 | J25: =ROUND(G25*E25,2) -> 0 | K25: ='Bm 01'!L25 -> 0 | L25: =J25+K25 -> 0 | M25: 0.00% | N25: 0.00%
A26: 5.5 | B26: Piso cerâmico esmaltado PEI V - 33 x 33 cm - incl. rejunte - conforme projeto | C26: m2 | D26: 62.50 | E26: 37.40 | F26: =ROUND(D26*E26,2) -> 2,337.50 | H26: ='Bm 01'!I26 -> 0 | I26: =G26+H26 -> 0 | J26: =ROUND(G26*E26,2) -> 0 | K26: ='Bm 01'!L26 -> 0 | L26: =J26+K26 -> 0 | M26: 0.00% | N26: 0.00%
A27: 6 | B27: PINTURA | F27: =SUM(F28:F35) -> 80,615.19 | J27: =SUM(J28:J35) -> 5,266.99 | K27: =SUM(K28:K35) -> 15,841.08 | L27: =SUM(L28:L35) -> 21,108.07 | M27: 6.53% | N27: 26.18%
A28: 6.1 | B28: Aplicação de selador acrílico | C28: m2 | D28: 847.20 | E28: 2.72 | F28: =ROUND(D28*E28,2) -> 2,304.38 | H28: ='Bm 01'!I28 -> 0 | I28: =G28+H28 -> 0 | J28: =ROUND(G28*E28,2) -> 0 | K28: ='Bm 01'!L28 -> 0 | L28: =J28+K28 -> 0 | M28: 0.00% | N28: 0.00%
A29: 6.2 | B29: Demarcação de quadra com tinta acrílica | C29: m | D29: 360.00 | E29: 11.18 | F29: 4,024.80 | H29: ='Bm 01'!I29 -> 0 | I29: 0 | J29: 0 | K29: ='Bm 01'!L29 -> 0 | L29: 0 | M29: 0.00% | N29: 0.00%
A30: 6.3 | B30: Emassamento de superfície, comaplicação de 02 demãosde massa acrílica | C30: m2 | D30: 88.60 | E30: 22.59 | F30: 2,001.47 | H30: ='Bm 01'!I30 -> 0 | I30: 0 | J30: 0 | K30: ='Bm 01'!L30 -> 0 | L30: 0 | M30: 0.00% | N30: 0.00%
A31: 6.4 | B31: Esmalte sintético em estrutura de aço carbono 50 micracom revólver | C31: m2 | D31: 1,114.00 | E31: 15.76 | F31: 17,556.64 | G31: 334.20 | H31: ='Bm 01'!I31 -> 557.00 | I31: 891.20 | J31: 5,266.99 | K31: ='Bm 01'!L31 -> 8,778.32 | L31: 14,045.31 | M31: 30.00% | N31: 80.00%
A32: 6.5 | B32: Pintura c/ primer epoxi em estrutura de aço carbono 25 micra com revólver | C32: m2 | D32: 1,114.00 | E32: 6.34 | F32: 7,062.76 | H32: ='Bm 01'!I32 -> 1,114.00 | I32: 1,114.00 | J32: 0 | K32: ='Bm 01'!L32 -> 7,062.76 | L32: 7,062.76 | M32: 0.00% | N32: 100.00%
A33: 6.6 | B33: Pintura de acabamento com aplicação de 02 demaõs de tinta acrílica | C33: m2 | D33: 847.20 | E33: 11.23 | F33: 9,514.06 | H33: ='Bm 01'!I33 -> 0 | I33: 0 | J33: 0 | K33: ='Bm 01'!L33 -> 0 | L33: 0 | M33: 0.00% | N33: 0.00%
A34: 6.7 | B34: Pintura de piso com tinta à base de resina epóxi | C34: m2 | D34: 480.00 | E34: 58.23 | F34: 27,950.40 | H34: ='Bm 01'!I34 -> 0 | I34: 0 | J34: 0 | K34: ='Bm 01'!L34 -> 0 | L34: 0 | M34: 0.00% | N34: 0.00%
A35: 6.8 | B35: Pintura em tinta PVA latex (02 demãos), inclusive emassamento | C35: m2 | D35: 476.00 | E35: 21.43 | F35: 10,200.68 | H35: ='Bm 01'!I35 -> 0 | I35: 0 | J35: 0 | K35: ='Bm 01'!L35 -> 0 | L35: 0 | M35: 0.00% | N35: 0.00%
A36: 7 | B36: INSTALAÇÕES HIDRÁULICAS | F36: =SUM(F37:F46) -> 3,977.15 | J36: =SUM(J37:J46) -> 1,575.39 | K36: =SUM(K37:K46) -> 0 | L36: =SUM(L37:L46) -> 1,575.39 | M36: 39.61% | N36: 39.61%
A37: 7.1 | B37: Caixa d´água em fibra de vidro - cap. 3.000 litros | C37: Unidade | D37: 1.00 | E37: 681.62 | F37: =ROUND(D37*E37,2) -> 681.62 | G37: 1.00 | H37: ='Bm 01'!I37 -> 0 | I37: =G37+H37 -> 1.00 | J37: =ROUND(G37*E37,2) -> 681.62 | K37: ='Bm 01'!L37 -> 0 | L37: =J37+K37 -> 681.62 | M37: 100.00% | N37: 100.00%
A38: 7.2 | B38: Engate flexível plástico | C38: Unidade | D38: 10.00 | E38: 7.65 | F38: 76.50 | G38: 10.00 | H38: ='Bm 01'!I38 -> 0 | I38: 10.00 | J38: 76.50 | K38: ='Bm 01'!L38 -> 0 | L38: 76.50 | M38: 100.00% | N38: 100.00%
A39: 7.3 | B39: \"Torneira cromada para lavatório1/2\"\"\" | C39: Unidade | D39: 8.00 | E39: 49.65 | F39: 397.20 | G39: 8.00 | H39: ='Bm 01'!I39 -> 0 | I39: 8.00 | J39: 397.20 | K39: ='Bm 01'!L39 -> 0 | L39: 397.20 | M39: 100.00% | N39: 100.00%
A40: 7.4 | B40: \"Torneira de bóia p/caixa d'agua em pvc d = 3/4\"\"\" | C40: Unidade | D40: 1.00 | E40: 35.72 | F40: 35.72 | G40: 1.00 | H40: ='Bm 01'!I40 -> 0 | I40: 1.00 | J40: 35.72 | K40: ='Bm 01'!L40 -> 0 | L40: 35.72 | M40: 100.00% | N40: 100.00%
A41: 7.5 | B41: Tubo PVCrígido soldável - 20 mm | C41: M | D41: 5.00 | E41: 16.33 | F41: 81.65 | G41: 5.00 | H41: ='Bm 01'!I41 -> 0 | I41: 5.00 | J41: 81.65 | K41: ='Bm 01'!L41 -> 0 | L41: 81.65 | M41: 100.00% | N41: 100.00%
A42: 7.6 | B42: Tubo PVCrígido soldável - 25 mm | C42: M | D42: 5.00 | E42: 19.36 | F42: 96.80 | G42: 5.00 | H42: ='Bm 01'!I42 -> 0 | I42: 5.00 | J42: 96.80 | K42: ='Bm 01'!L42 -> 0 | L42: 96.80 | M42: 100.00% | N42: 100.00%
A43: 7.7 | B43: Tubo PVC rígido soldável - 32 mm | C43: M | D43: 5.00 | E43: 26.42 | F43: 132.10 | G43: 5.00 | H43: ='Bm 01'!I43 -> 0 | I43: 5.00 | J43: 132.10 | K43: ='Bm 01'!L43 -> 0 | L43: 132.10 | M43: 100.00% | N43: 100.00%
A44: 7.8 | B44: Tubo PVC rígido soldável - 50 mm | C44: M | D44: 5.00 | E44: 14.76 | F44: 73.80 | G44: 5.00 | H44: ='Bm 01'!I44 -> 0 | I44: 5.00 | J44: 73.80 | K44: ='Bm 01'!L44 -> 0 | L44: 73.80 | M44: 100.00% | N44: 100.00%
A45: 7.9 | B45: Vaso sanitario para deficientes físicos para válvula de descarga, em louca branca, com acessórios,inclusive assento,conjunto de fixação, anelde vedação, tubo PVC de ligação | C45: Unidade | D45: 2.00 | E45: 779.18 | F45: 1,558.36 | H45: ='Bm 01'!I45 -> 0 | I45: 0 | J45: 0 | K45: ='Bm 01'!L45 -> 0 | L45: 0 | M45: 0.00% | N45: 0.00%
A46: 7.10 | B46: Vaso sanitario sifonado, para louca branca, com acessórios, inclusive assento plástico, anel de vedação, tubo PVC de ligação | C46: Unidade | D46: 4.00 | E46: 210.85 | F46: 843.40 | H46: ='Bm 01'!I46 -> 0 | I46: 0 | J46: 0 | K46: ='Bm 01'!L46 -> 0 | L46: 0 | M46: 0.00% | N46: 0.00%
A47: 8 | B47: INSTALAÇÕES SANITÁRIAS | F47: =SUM(F48:F53) -> 4,149.25 | J47: =SUM(J48:J53) -> 2,718.52 | K47: =SUM(K48:K53) -> 0 | L47: =SUM(L48:L53) -> 2,718.52 | M47: 65.52% | N47: 65.52%
A48: 8.1 | B48: Fossa séptica, em concreto armado, (d2,50 x h 12,00) | C48: Unidade | D48: 1.00 | E48: 1,308.04 | F48: =ROUND(D48*E48,2) -> 1,308.04 | G48: 1.00 | H48: ='Bm 01'!I48 -> 0 | I48: =G48+H48 -> 1.00 | J48: =ROUND(G48*E48,2) -> 1,308.04 | K48: ='Bm 01'!L48 -> 0 | L48: =J48+K48 -> 1,308.04 | M48: 100.00% | N48: 100.00%
A49: 8.2 | B49: \"Sifão de copo para pia e lavatório 1\"\" - 1.1/2\"\"\" | C49: Unidade | D49: 9.00 | E49: 152.77 | F49: 1,374.93 | H49: ='Bm 01'!I49 -> 0 | I49: 0 | J49: 0 | K49: ='Bm 01'!L49 -> 0 | L49: 0 | M49: 0.00% | N49: 0.00%
A50: 8.3 | B50: Sumidouro em alvenaria (d 2,30 x h 6,00) | C50: Unidade | D50: 1.00 | E50: 1,308.04 | F50: 1,308.04 | G50: 1.00 | H50: ='Bm 01'!I50 -> 0 | I50: 1.00 | J50: 1,308.04 | K50: ='Bm 01'!L50 -> 0 | L50: 1,308.04 | M50: 100.00% | N50: 100.00%
A51: 8.4 | B51: Tubo rígido c/ ponta lisa 100 mm | C51: M | D51: 2.00 | E51: 37.75 | F51: 75.50 | G51: 2.00 | H51: ='Bm 01'!I51 -> 0 | I51: 2.00 | J51: 75.50 | K51: ='Bm 01'!L51 -> 0 | L51: 75.50 | M51: 100.00% | N51: 100.00%
A52: 8.5 | B52: Tubo rígido c/ ponta lisa 40 mm | C52: M | D52: 2.00 | E52: 13.47 | F52: 26.94 | G52: 2.00 | H52: ='Bm 01'!I52 -> 0 | I52: 2.00 | J52: 26.94 | K52: ='Bm 01'!L52 -> 0 | L52: 26.94 | M52: 100.00% | N52: 100.00%
A53: 8.6 | B53: \"Válvula para lavatório e tanque 1\"\"\" | C53: Unidade | D53: 9.00 | E53: 6.20 | F53: 55.80 | H53: ='Bm 01'!I53 -> 0 | I53: 0 | J53: 0 | K53: ='Bm 01'!L53 -> 0 | L53: 0 | M53: 0.00% | N53: 0.00%
A54: 9 | B54: DRENAGEM PLUVIAL | F54: =SUM(F55:F59) -> 19,871.36 | J54: =SUM(J55:J59) -> 14,165.28 | K54: =SUM(K55:K59) -> 2,647.73 | L54: =SUM(L55:L59) -> 16,813.01 | M54: 71.28% | N54: 84.61%
A55: 9.1 | B55: Calha em chapa de aço galvanizado n° 24 | C55: M | D55: 72.00 | E55: 40.86 | F55: =ROUND(D55*E55,2) -> 2,941.92 | G55: 7.20 | H55: ='Bm 01'!I55 -> 64.80 | I55: =G55+H55 -> 72.00 | J55: =ROUND(G55*E55,2) -> 294.19 | K55: ='Bm 01'!L55 -> 2,647.73 | L55: =J55+K55 -> 2,941.92 | M55: 10.00% | N55: 100.00%
A56: 9.2 | B56: Tubo de queda - água pluvial DN=150 mm | C56: M | D56: 20.00 | E56: 45.96 | F56: =ROUND(D56*E56,2) -> 919.20 | H56: ='Bm 01'!I56 -> 0 | I56: =G56+H56 -> 0 | J56: =ROUND(G56*E56,2) -> 0 | K56: ='Bm 01'!L56 -> 0 | L56: =J56+K56 -> 0 | M56: 0.00% | N56: 0.00%
A57: 9.3 | B57: Joelho PVC 90° d=150 mm - tubulação pluvial | C57: M | D57: 4.00 | E57: 91.39 | F57: =ROUND(D57*E57,2) -> 365.56 | H57: ='Bm 01'!I57 -> 0 | I57: =G57+H57 -> 0 | J57: =ROUND(G57*E57,2) -> 0 | K57: ='Bm 01'!L57 -> 0 | L57: =J57+K57 -> 0 | M57: 0.00% | N57: 0.00%
A58: 9.4 | B58: \"Ralohemisférico tipo \"\"abacaxi\"\" com tela de aço com funil de saída cônico\" | C58: Unidade | D58: 4.00 | E58: 58.09 | F58: =ROUND(D58*E58,2) -> 232.36 | H58: ='Bm 01'!I58 -> 0 | I58: =G58+H58 -> 0 | J58: =ROUND(G58*E58,2) -> 0 | K58: ='Bm 01'!L58 -> 0 | L58: =J58+K58 -> 0 | M58: 0.00% | N58: 0.00%
A59: 9.5 | B59: Canaleta de concreto c/ tampa removível em chapa de aço (0,25 x 0,25 x 0,25m) | C59: M | D59: 72.00 | E59: 214.06 | F59: =ROUND(D59*E59,2) -> 15,412.32 | G59: 64.80 | H59: ='Bm 01'!I59 -> 0 | I59: =G59+H59 -> 64.80 | J59: =ROUND(G59*E59,2) -> 13,871.09 | K59: ='Bm 01'!L59 -> 0 | L59: =J59+K59 -> 13,871.09 | M59: 90.00% | N59: 90.00%
A60: 10 | B60: INSTALAÇÕES ELÉTRICAS | F60: =SUM(F61:F89) -> 16,337.59 | J60: =SUM(J61:J89) -> 0 | K60: =SUM(K61:K89) -> 0 | L60: =SUM(L61:L89) -> 0 | M60: 0.00% | N60: 0.00%
A61: 10.1 | B61: \"Condulete em alumínio tipo T de 3/4\"\", inclusive acessórios\" | C61: Unidade | D61: 5.00 | E61: 18.54 | F61: =ROUND(D61*E61,2) -> 92.70 | H61: ='Bm 01'!I61 -> 0 | I61: =G61+H61 -> 0 | J61: =ROUND(G61*E61,2) -> 0 | K61: ='Bm 01'!L61 -> 0 | L61: =J61+K61 -> 0 | M61: 0.00% | N61: 0.00%
A62: 10.2 | B62: \"Condulete em alumínio tipo L de 3/4\"\", inclusive acessórios\" | C62: Unidade | D62: 5.00 | E62: 12.18 | F62: 60.90 | H62: ='Bm 01'!I62 -> 0 | I62: 0 | J62: 0 | K62: ='Bm 01'!L62 -> 0 | L62: 0 | M62: 0.00% | N62: 0.00%
A63: 10.3 | B63: \"Condulete em alumínio tipo TA de 3/4\"\", inclusive acessórios\" | C63: Unidade | D63: 4.00 | E63: 16.38 | F63: 65.52 | H63: ='Bm 01'!I63 -> 0 | I63: 0 | J63: 0 | K63: ='Bm 01'!L63 -> 0 | L63: 0 | M63: 0.00% | N63: 0.00%
A64: 10.4 | B64: \"Condulete em alumínio tipo XA de 3/4\"\", inclusive acessórios\" | C64: Unidade | D64: 1.00 | E64: 18.91 | F64: 18.91 | H64: ='Bm 01'!I64 -> 0 | I64: 0 | J64: 0 | K64: ='Bm 01'!L64 -> 0 | L64: 0 | M64: 0.00% | N64: 0.00%
A65: 10.5 | B65: \"Caixa de PVC 4x2\"\", inclusive espelho\" | C65: Unidade | D65: 16.00 | E65: 8.47 | F65: 135.52 | H65: ='Bm 01'!I65 -> 0 | I65: 0 | J65: 0 | K65: ='Bm 01'!L65 -> 0 | L65: 0 | M65: 0.00% | N65: 0.00%
A66: 10.6 | B66: Condutor de cobre unipolar, isolaçãoem PVC/70ºC, camada de proteção em PVC, não propagador de chamas, classe de tensão 750V,encordoamento classe 5, flexível, com seção 2,5 mm² | C66: M | D66: 190.00 | E66: 2.77 | F66: 526.30 | H66: ='Bm 01'!I66 -> 0 | I66: 0 | J66: 0 | K66: ='Bm 01'!L66 -> 0 | L66: 0 | M66: 0.00% | N66: 0.00%
A67: 10.7 | B67: Condutor de cobre unipolar, isolação em PVC/70ºC, camada de proteção em PVC, não propagador de chamas, classe detensão 750V,encordoamento classe 5, flexível, com seção 4 mm² | C67: M | D67: 820.00 | E67: 4.36 | F67: 3,575.20 | H67: ='Bm 01'!I67 -> 0 | I67: 0 | J67: 0 | K67: ='Bm 01'!L67 -> 0 | L67: 0 | M67: 0.00% | N67: 0.00%
A68: 10.8 | B68: Condutor de cobre unipolar, isolação em PVC/70ºC, camada de proteção em PVC, não propagador de chamas, classe de tensão 750V, encordoamento classe 5, flexível, com seção 16mm² | C68: M | D68: 14.00 | E68: 14.68 | F68: 205.52 | H68: ='Bm 01'!I68 -> 0 | I68: 0 | J68: 0 | K68: ='Bm 01'!L68 -> 0 | L68: 0 | M68: 0.00% | N68: 0.00%
A69: 10.9 | B69: Condutor de cobre unipolar, isolação em PVC/90ºC, camada de proteção em PVC, não propagador de chamas, classe de tensão 1000V, encordoamento classe 5, flexível, com seção 35 mm² | C69: M | D69: 41.00 | E69: 22.02 | F69: 902.82 | H69: ='Bm 01'!I69 -> 0 | I69: 0 | J69: 0 | K69: ='Bm 01'!L69 -> 0 | L69: 0 | M69: 0.00% | N69: 0.00%
A70: 10.10 | B70: Tomada 2p + t de embutir, 10 A, completa | C70: Unidade | D70: 2.00 | E70: 24.88 | F70: 49.76 | H70: ='Bm 01'!I70 -> 0 | I70: 0 | J70: 0 | K70: ='Bm 01'!L70 -> 0 | L70: 0 | M70: 0.00% | N70: 0.00%
A71: 10.11 | B71: Tomada 2p + t para piso, 10 A, completa | C71: Unidade | D71: 1.00 | E71: 12.36 | F71: 12.36 | H71: ='Bm 01'!I71 -> 0 | I71: 0 | J71: 0 | K71: ='Bm 01'!L71 -> 0 | L71: 0 | M71: 0.00% | N71: 0.00%
A72: 10.12 | B72: Interruptor 1 tecla simples | C72: Unidade | D72: 7.00 | E72: 23.53 | F72: 164.71 | H72: ='Bm 01'!I72 -> 0 | I72: 0 | J72: 0 | K72: ='Bm 01'!L72 -> 0 | L72: 0 | M72: 0.00% | N72: 0.00%
A73: 10.13 | B73: Disjuntor termomagnetico monopolar 10 A, padrão DIN (linha branca) | C73: Unidade | D73: 5.00 | E73: 15.87 | F73: 79.35 | H73: ='Bm 01'!I73 -> 0 | I73: 0 | J73: 0 | K73: ='Bm 01'!L73 -> 0 | L73: 0 | M73: =J73/F73 -> 0.00% | N73: =L73/F73 -> 0.00%
A74: 10.14 | B74: Disjuntor termomagnetico binopolar 20 A, padrão DIN (linha branca) | C74: Unidade | D74: 5.00 | E74: 15.87 | F74: 79.35 | H74: ='Bm 01'!I74 -> 0 | I74: 0 | J74: 0 | K74: ='Bm 01'!L74 -> 0 | L74: 0 | M74: 0.00% | N74: 0.00%
A75: 10.15 | B75: Disjuntortermomagneticobinopolar 25 A, padrão DIN (linha branca) | C75: Unidade | D75: 8.00 | E75: 15.87 | F75: 126.96 | H75: ='Bm 01'!I75 -> 0 | I75: 0 | J75: 0 | K75: ='Bm 01'!L75 -> 0 | L75: 0 | M75: 0.00% | N75: 0.00%
A76: 10.16 | B76: Disjuntor termomagnetico triopolar 150 A, padrão DIN (linha branca) | C76: Unidade | D76: 2.00 | E76: 397.51 | F76: 795.02 | H76: ='Bm 01'!I76 -> 0 | I76: 0 | J76: 0 | K76: ='Bm 01'!L76 -> 0 | L76: 0 | M76: 0.00% | N76: 0.00%
A77: 10.17 | B77: Disjuntor termomagnetico triopolar 175 A, padrão DIN (linha branca) | C77: Unidade | D77: 1.00 | E77: 1,018.63 | F77: 1,018.63 | H77: ='Bm 01'!I77 -> 0 | I77: 0 | J77: 0 | K77: ='Bm 01'!L77 -> 0 | L77: 0 | M77: 0.00% | N77: 0.00%
A78: 10.18 | B78: Dispositivo residual diferencial - DR 125A In 30 mA | C78: Unidade | D78: 1.00 | E78: 211.00 | F78: 211.00 | H78: ='Bm 01'!I78 -> 0 | I78: 0 | J78: 0 | K78: ='Bm 01'!L78 -> 0 | L78: 0 | M78: 0.00% | N78: 0.00%
A79: 10.19 | B79: Quadro de distribuição de embutir,com barramento, em chapa de aço, para 4 disjuntores unipolares + 8 bipolares + 1 tripolar +1 DR, padrão europeu(linha branca), exclusive disjuntores | C79: Unidade | D79: 1.00 | E79: 254.55 | F79: 254.55 | H79: ='Bm 01'!I79 -> 0 | I79: 0 | J79: 0 | K79: ='Bm 01'!L79 -> 0 | L79: 0 | M79: 0.00% | N79: 0.00%
A80: 10.20 | B80: Quadro de distribuição de embutir, com barramento, em chapa de aço, para 1 disjuntor unipolar + 5bipolares + 2 tripolares,padrão europeu (linha branca), exclusive disjuntores | C80: Unidade | D80: 1.00 | E80: 399.47 | F80: 399.47 | H80: ='Bm 01'!I80 -> 0 | I80: 0 | J80: 0 | K80: ='Bm 01'!L80 -> 0 | L80: 0 | M80: 0.00% | N80: 0.00%
A81: 10.21 | B81: \"Eletrodutode pvc rígido roscável, 1\"\", inclusive curvas\" | C81: M | D81: 5.00 | E81: 12.10 | F81: 60.50 | H81: ='Bm 01'!I81 -> 0 | I81: 0 | J81: 0 | K81: ='Bm 01'!L81 -> 0 | L81: 0 | M81: 0.00% | N81: 0.00%
A82: 10.22 | B82: \"Eletroduto de pvc rígido roscável, 3/4\"\", inclusive curvas\" | C82: M | D82: 5.00 | E82: 9.29 | F82: 46.45 | H82: ='Bm 01'!I82 -> 0 | I82: 0 | J82: 0 | K82: ='Bm 01'!L82 -> 0 | L82: 0 | M82: 0.00% | N82: 0.00%
A83: 10.23 | B83: \"Eletroduto de pvc rígido roscável, 1.1/2\"\", inclusive curvas\" | C83: M | D83: 5.00 | E83: 12.69 | F83: 63.45 | H83: ='Bm 01'!I83 -> 0 | I83: 0 | J83: 0 | K83: ='Bm 01'!L83 -> 0 | L83: 0 | M83: 0.00% | N83: 0.00%
A84: 10.24 | B84: Eletrodutode ferro galvanizado d= 3/4\"\" - inclusive braçadeiras\" | C84: M | D84: 86.00 | E84: 14.99 | F84: 1,289.14 | H84: ='Bm 01'!I84 -> 0 | I84: 0 | J84: 0 | K84: ='Bm 01'!L84 -> 0 | L84: 0 | M84: 0.00% | N84: 0.00%
A85: 10.25 | B85: \"Eletroduto de ferro galvanizado d= 1\"\" - inclusive braçadeiras\" | C85: M | D85: 17.00 | E85: 18.46 | F85: 313.82 | H85: ='Bm 01'!I85 -> 0 | I85: 0 | J85: 0 | K85: ='Bm 01'!L85 -> 0 | L85: 0 | M85: 0.00% | N85: 0.00%
A86: 10.26 | B86: \"Eletrodutode ferro galvanizado d= 1.1/2\"\" - inclusive braçadeiras\" | C86: M | D86: 34.00 | E86: 31.87 | F86: 1,083.58 | H86: ='Bm 01'!I86 -> 0 | I86: 0 | J86: 0 | K86: ='Bm 01'!L86 -> 0 | L86: 0 | M86: 0.00% | N86: 0.00%
A87: 10.27 | B87: Luminária calha sobrepor p/lamp.fluorescente 2x40w, completa, incl.reator eletronico e lampadas | C87: Unidade | D87: 6.00 | E87: 95.01 | F87: 570.06 | H87: ='Bm 01'!I87 -> 0 | I87: 0 | J87: 0 | K87: ='Bm 01'!L87 -> 0 | L87: 0 | M87: 0.00% | N87: 0.00%
A88: 10.28 | B88: Luminária calha sobrepor p/lamp.fluorescente 1x40w, completa, incl.reator eletronico e lampadas | C88: Unidade | D88: 1.00 | E88: 77.49 | F88: 77.49 | H88: ='Bm 01'!I88 -> 0 | I88: 0 | J88: 0 | K88: ='Bm 01'!L88 -> 0 | L88: 0 | M88: 0.00% | N88: 0.00%
A89: 10.29 | B89: Lumináriablindada p/ alta pressão, linha industrial projetor hermético para lâmpada de luz mista de 500 W, com proteção da lâmpada | C89: Unidade | D89: 15.00 | E89: 270.57 | F89: 4,058.55 | H89: ='Bm 01'!I89 -> 0 | I89: 0 | J89: 0 | K89: ='Bm 01'!L89 -> 0 | L89: 0 | M89: 0.00% | N89: 0.00%
A90: 11 | B90: SISTEMA DE PROTEÇÃO CONTRA DESCARGAS ATMOSFÉRICAS (SPDA) | F90: =SUM(F91:F96) -> 2,031.80 | J90: =SUM(J91:J96) -> 0 | K90: =SUM(K91:K96) -> 0 | L90: =SUM(L91:L96) -> 0 | M90: 0.00% | N90: 0.00%
A91: 11.1 | B91: Caixa de inspeção 30x30x40 cm com tampa de ferro fundido | C91: Unidade | D91: 5.00 | E91: 60.19 | F91: =ROUND(D91*E91,2) -> 300.95 | H91: ='Bm 01'!I91 -> 0 | I91: =G91+H91 -> 0 | J91: =ROUND(G91*E91,2) -> 0 | K91: ='Bm 01'!L91 -> 0 | L91: =J91+K91 -> 0 | M91: 0.00% | N91: 0.00%
A92: 11.2 | B92: \"Conector de bronze para haste 5/8\"\"\" | C92: Unidade | D92: 12.00 | E92: 13.54 | F92: 162.48 | H92: ='Bm 01'!I92 -> 0 | I92: 0 | J92: 0 | K92: ='Bm 01'!L92 -> 0 | L92: 0 | M92: 0.00% | N92: 0.00%
A93: 11.3 | B93: Cordoalha de cobre nu 35 mm² | C93: Unidade | D93: 24.00 | E93: 39.16 | F93: 939.84 | H93: ='Bm 01'!I93 -> 0 | I93: 0 | J93: 0 | K93: ='Bm 01'!L93 -> 0 | L93: 0 | M93: 0.00% | N93: 0.00%
A94: 11.4 | B94: \"Haste tipo Coopperweld 5/8\"\" - 3m\" | C94: Unidade | D94: 5.00 | E94: 51.10 | F94: 255.50 | H94: ='Bm 01'!I94 -> 0 | I94: 0 | J94: 0 | K94: ='Bm 01'!L94 -> 0 | L94: 0 | M94: 0.00% | N94: 0.00%
A95: 11.5 | B95: Tubo PVC 40 mm | C95: Unidade | D95: 18.00 | E95: 16.11 | F95: 289.98 | H95: ='Bm 01'!I95 -> 0 | I95: 0 | J95: 0 | K95: ='Bm 01'!L95 -> 0 | L95: 0 | M95: 0.00% | N95: 0.00%
A96: 11.6 | B96: Terminal de pressão tipo prensa com 4 parafusos | C96: Unidade | D96: 5.00 | E96: 16.61 | F96: 83.05 | H96: ='Bm 01'!I96 -> 0 | I96: 0 | J96: 0 | K96: ='Bm 01'!L96 -> 0 | L96: 0 | M96: 0.00% | N96: 0.00%
A97: 12 | B97: SERVIÇOS DIVERSOS | F97: =SUM(F98:F109) -> 38,229.80 | J97: =SUM(J98:J109) -> 0 | K97: =SUM(K98:K109) -> 0 | L97: =SUM(L98:L109) -> 0 | M97: 0.00% | N97: 0.00%
A98: 12.1 | B98: \"Alambrado com tela de arame galvanizado fio 12 bwg, malha 2\"\", revestido em pvc, fixada com tubos de ferro galvanizado 2\"\"\" | C98: m2 | D98: 147.00 | E98: 141.99 | F98: =ROUND(D98*E98,2) -> 20,872.53 | H98: ='Bm 01'!I98 -> 0 | I98: =G98+H98 -> 0 | J98: =ROUND(G98*E98,2) -> 0 | K98: ='Bm 01'!L98 -> 0 | L98: =J98+K98 -> 0 | M98: 0.00% | N98: 0.00%
A99: 12.2 | B99: \"Portão em tubo de ferro galvanizado 2\"\" e tela dearame galvanizado fio 12 bwg, malha 2\"\", revestido em pvc, inclusive dobradiças e fechadura\" | C99: Unidade | D99: 4.00 | E99: 660.58 | F99: 2,642.32 | H99: ='Bm 01'!I99 -> 0 | I99: 0 | J99: 0 | K99: ='Bm 01'!L99 -> 0 | L99: 0 | M99: 0.00% | N99: 0.00%
A100: 12.3 | B100: Bancada em granito cinza andorinha para lavatório com testeiras - espessura 2cm, largura 50 cm, conforme projeto | C100: M | D100: 4.80 | E100: 136.61 | F100: 655.73 | H100: ='Bm 01'!I100 -> 0 | I100: 0 | J100: 0 | K100: ='Bm 01'!L100 -> 0 | L100: 0 | M100: 0.00% | N100: 0.00%
A101: 12.4 | B101: Banco deconcreto armado polido (l=0,45m) sem arestas,conforme projeto | C101: M | D101: 4.80 | E101: 133.19 | F101: 639.31 | H101: ='Bm 01'!I101 -> 0 | I101: 0 | J101: 0 | K101: ='Bm 01'!L101 -> 0 | L101: 0 | M101: 0.00% | N101: 0.00%
A102: 12.5 | B102: \"Barra de apoio para deficiente em ferro galvanizado de 11/2\"\", l = 140cm (lavatório), inclusive parafusos de fixação e pintura\" | C102: Unidade | D102: 2.00 | E102: 116.59 | F102: 233.18 | H102: ='Bm 01'!I102 -> 0 | I102: 0 | J102: 0 | K102: ='Bm 01'!L102 -> 0 | L102: 0 | M102: 0.00% | N102: 0.00%
A103: 12.6 | B103: \"Barra de apoio para deficiente em ferro galvanizado de 11/2\"\", l = 80cm (bacia sanitária e mictório), inclusive parafusos de fixação e pintura\" | C103: Unidade | D103: 8.00 | E103: 470.82 | F103: 3,766.56 | H103: ='Bm 01'!I103 -> 0 | I103: 0 | J103: 0 | K103: ='Bm 01'!L103 -> 0 | L103: 0 | M103: 0.00% | N103: 0.00%
A104: 12.7 | B104: Espelho plano 4mm | C104: m2 | D104: 4.50 | E104: 367.49 | F104: 1,653.71 | H104: ='Bm 01'!I104 -> 0 | I104: 0 | J104: 0 | K104: ='Bm 01'!L104 -> 0 | L104: 0 | M104: 0.00% | N104: 0.00%
A105: 12.8 | B105: Estrutura metálica c/ tabelas de basquete | C105: CJ | D105: 1.00 | E105: 2,357.10 | F105: 2,357.10 | H105: ='Bm 01'!I105 -> 0 | I105: 0 | J105: 0 | K105: ='Bm 01'!L105 -> 0 | L105: 0 | M105: 0.00% | N105: 0.00%
A106: 12.9 | B106: Estrutura metálica de traves de futsal | C106: CJ | D106: 1.00 | E106: 2,135.69 | F106: 2,135.69 | H106: ='Bm 01'!I106 -> 0 | I106: 0 | J106: 0 | K106: ='Bm 01'!L106 -> 0 | L106: 0 | M106: 0.00% | N106: 0.00%
A107: 12.10 | B107: Estrutura metálica p/ rede de voley | C107: CJ | D107: 1.00 | E107: 867.40 | F107: 867.40 | H107: ='Bm 01'!I107 -> 0 | I107: 0 | J107: 0 | K107: ='Bm 01'!L107 -> 0 | L107: 0 | M107: 0.00% | N107: 0.00%
A108: 12.11 | B108: Soleira em granito cinza andorinha, l = 15 cm, e = 2 cm | C108: M | D108: 2.90 | E108: 78.11 | F108: 226.52 | H108: ='Bm 01'!I108 -> 0 | I108: 0 | J108: 0 | K108: ='Bm 01'!L108 -> 0 | L108: 0 | M108: 0.00% | N108: 0.00%
A109: 12.12 | B109: Limpeza geral | C109: m2 | D109: 861.56 | E109: 2.53 | F109: 2,179.75 | H109: ='Bm 01'!I109 -> 0 | I109: 0 | J109: 0 | K109: ='Bm 01'!L109 -> 0 | L109: 0 | M109: 0.00% | N109: 0.00%
A110: 13 | B110: SERVIÇOS PRELIMINARES | F110: =SUM(F111:F114) -> 11,075.86 | J110: =SUM(J111:J114) -> 0 | K110: =SUM(K111:K114) -> 842.16 | L110: =SUM(L111:L114) -> 842.16 | M110: =J110/F110 -> 0.00% | N110: =L110/F110 -> 7.60%
A111: 13.1 | B111: Execução de almoxarifado emcanteiro de obra emchapa de madeira compensada, incluso as prateleiras. | C111: m2 | D111: 12.00 | E111: 632.92 | F111: =ROUND(D111*E111,2) -> 7,595.04 | H111: ='Bm 01'!I111 -> 0 | I111: =G111+H111 -> 0 | J111: =ROUND(G111*E111,2) -> 0 | K111: ='Bm 01'!L111 -> 0 | L111: =J111+K111 -> 0 | M111: =J111/F111 -> 0.00% | N111: =L111/F111 -> 0.00%
A112: 13.2 | B112: Placa da obra emaço galvanizado, inclusive assentamento. | C112: m2 | D112: 3.00 | E112: 340.39 | F112: =ROUND(D112*E112,2) -> 1,021.17 | H112: ='Bm 01'!I112 -> 0 | I112: =G112+H112 -> 0 | J112: =ROUND(G112*E112,2) -> 0 | K112: ='Bm 01'!L112 -> 0 | L112: =J112+K112 -> 0 | M112: =J112/F112 -> 0.00% | N112: =L112/F112 -> 0.00%
A113: 13.3 | B113: Instalação provisória de energia elétrica, áerea, trifasica, em poste galvanizado, exclusive fornecimento de medidor. | C113: Unidade | D113: 1.00 | E113: 1,617.49 | F113: =ROUND(D113*E113,2) -> 1,617.49 | H113: ='Bm 01'!I113 -> 0 | I113: =G113+H113 -> 0 | J113: =ROUND(G113*E113,2) -> 0 | K113: ='Bm 01'!L113 -> 0 | L113: =J113+K113 -> 0 | M113: =J113/F113 -> 0.00% | N113: =L113/F113 -> 0.00%
A114: 13.4 | B114: Capina e limpeza manual de terreno. | C114: m2 | D114: 633.20 | E114: 1.33 | F114: =ROUND(D114*E114,2) -> 842.16 | H114: ='Bm 01'!I114 -> 633.20 | I114: =G114+H114 -> 633.20 | J114: =ROUND(G114*E114,2) -> 0 | K114: ='Bm 01'!L114 -> 842.16 | L114: =J114+K114 -> 842.16 | M114: =J114/F114 -> 0.00% | N114: =L114/F114 -> 100.00%
A115: 14 | B115: SUPERESTRUTURA | F115: =SUM(F116,F123) -> 7,996.34 | J115: =SUM(J116,J123) -> 0 | K115: =SUM(K116,K123) -> 3,908.01 | L115: =SUM(L116,L123) -> 3,908.01 | M115: =J115/F115 -> 0.00% | N115: =L115/F115 -> 48.87%
A116: 14.1 | B116: PILARES | F116: =SUM(F117:F122) -> 7,702.34 | J116: =SUM(J117:J122) -> 0 | K116: =SUM(K117:K122) -> 3,614.01 | L116: =SUM(L117:L122) -> 3,614.01 | M116: 0.00% | N116: 46.92%
A117: 14.1.1 | B117: Tratamento em concreto com estuque e lixamento. | C117: m2 | D117: 50.00 | E117: 35.90 | F117: =ROUND(D117*E117,2) -> 1,795.00 | H117: ='Bm 01'!I117 -> 25.00 | I117: =G117+H117 -> 25.00 | J117: =ROUND(G117*E117,2) -> 0 | K117: ='Bm 01'!L117 -> 897.50 | L117: =J117+K117 -> 897.50 | M117: 0.00% | N117: 50.00%
A118: 14.1.2 | B118: Preparo de substrato por escarificação mecaânica (CORTE DE CONCRETO) para espessuras até 3 cm. | C118: m2 | D118: 4.80 | E118: 154.75 | F118: 742.80 | H118: ='Bm 01'!I118 -> 2.40 | I118: 2.40 | J118: 0 | K118: ='Bm 01'!L118 -> 371.40 | L118: 371.40 | M118: 0.00% | N118: 50.00%
A119: 14.1.3 | B119: Preparação do substrato (SUPERFICIE DE CONCRETO) E armadura por escovamento manual. | C119: m2 | D119: 4.80 | E119: 6.71 | F119: 32.21 | H119: ='Bm 01'!I119 -> 2.40 | I119: 2.40 | J119: 0 | K119: ='Bm 01'!L119 -> 16.10 | L119: 16.10 | M119: 0.00% | N119: 49.98%
A120: 14.1.4 | B120: Passivação de armadura com primer a base de zinco. | C120: m2 | D120: 4.80 | E120: 105.58 | F120: 506.78 | H120: ='Bm 01'!I120 -> 2.40 | I120: 2.40 | J120: 0 | K120: ='Bm 01'!L120 -> 253.39 | L120: 253.39 | M120: 0.00% | N120: 50.00%
A121: 14.1.5 | B121: Microconcreto fluido (AUTOADENSÁVEL) Com grout até 40% de pó de pedra, lançamento e cura. | C121: M3 | D121: 0.14 | E121: 3,387.99 | F121: 474.32 | H121: ='Bm 01'!I121 -> 0 | I121: 0 | J121: 0 | K121: ='Bm 01'!L121 -> 0 | L121: 0 | M121: 0.00% | N121: 0.00%
A122: 14.1.6 | B122: Ancoragem de alvenarias de bloco cerâmicos com concreto armado. | C122: Serviço | D122: 1.00 | E122: 4,151.23 | F122: 4,151.23 | H122: ='Bm 01'!I122 -> 0.50 | I122: 0.50 | J122: 0 | K122: ='Bm 01'!L122 -> 2,075.62 | L122: 2,075.62 | M122: 0.00% | N122: 50.00%
A123: 14.2 | B123: LAJE PREMOLDADA | F123: =SUM(F124) -> 294.00 | J123: =SUM(J124) -> 0 | K123: =SUM(K124) -> 294.00 | L123: =SUM(L124) -> 294.00 | M123: =J123/F123 -> 0.00% | N123: =L123/F123 -> 100.00%
A124: 14.2.1 | B124: Laje pre-moldada p/forro, sobrecarga 100kg/m2, vãos até 3,50m/e=8 cm, com lajotas e capa c/ concreto FCK=20MPA, 3cm, inter-eixo 38 cm, com escoramento (reaproveitamento de 3X) E ferragem negativa. | C124: m2 | D124: 3.87 | E124: 75.97 | F124: =ROUND(D124*E124,2) -> 294.00 | H124: ='Bm 01'!I124 -> 3.87 | I124: =G124+H124 -> 3.87 | J124: =ROUND(G124*E124,2) -> 0 | K124: ='Bm 01'!L124 -> 294.00 | L124: =J124+K124 -> 294.00 | M124: =J124/F124 -> 0.00% | N124: =L124/F124 -> 100.00%
A125: 15 | B125: PAREDES E PAINÉIS | F125: =SUM(F126:F128) -> 1,945.71 | J125: =SUM(J126:J128) -> 160.86 | K125: =SUM(K126:K128) -> 1,784.85 | L125: =SUM(L126:L128) -> 1,945.71 | M125: =J125/F125 -> 8.27% | N125: =L125/F125 -> 100.00%
A126: 15.1 | B126: Alvenaria de bloco cerâmico de vedação, 9x19x24 cm, e=19 cm, com argamassa traço - 1:2:8 (CIMENTO/CAL/AREIA), Junta = 2 cm. | C126: m2 | D126: 13.78 | E126: 39.63 | F126: =ROUND(D126*E126,2) -> 546.10 | H126: ='Bm 01'!I126 -> 13.78 | I126: =G126+H126 -> 13.78 | J126: =ROUND(G126*E126,2) -> 0 | K126: ='Bm 01'!L126 -> 546.10 | L126: =J126+K126 -> 546.10 | M126: 0.00% | N126: 100.00%
A127: 15.2 | B127: Alvenaria de tijolo cerâmico maciço (4x9x17), espessura de 0,04 m (FACÃO), com argamssa traço - 1:2:8 (CIMENTO/CAL/AREIA) com junta de 2,0 cm. | C127: m2 | D127: 24.66 | E127: 43.71 | F127: =ROUND(D127*E127,2) -> 1,077.89 | H127: ='Bm 01'!I127 -> 24.66 | I127: =G127+H127 -> 24.66 | J127: =ROUND(G127*E127,2) -> 0 | K127: ='Bm 01'!L127 -> 1,077.89 | L127: =J127+K127 -> 1,077.89 | M127: 0.00% | N127: 100.00%
A128: 15.3 | B128: Cobogó de cimento tipo "VENEZIANA", dimensões de 40 x 40 x 9 cm. | C128: m2 | D128: 6.00 | E128: 53.62 | F128: =ROUND(D128*E128,2) -> 321.72 | G128: 3.00 | H128: ='Bm 01'!I128 -> 3.00 | I128: =G128+H128 -> 6.00 | J128: =ROUND(G128*E128,2) -> 160.86 | K128: ='Bm 01'!L128 -> 160.86 | L128: =J128+K128 -> 321.72 | M128: 50.00% | N128: 100.00%
A129: 16 | B129: REVESTIMENTOS | F129: =SUM(F130:F132) -> 2,674.72 | J129: =SUM(J130:J132) -> 682.34 | K129: =SUM(K130:K132) -> 1,992.38 | L129: =SUM(L130:L132) -> 2,674.72 | M129: 25.51% | N129: 100.00%
A130: 16.1 | B130: Chapisco aplicado em alvenaria (SEM PRESENÇA DE VÃOS) e estruturas de concreto de fachadas, com colher de pedriro, argamassa traço 1:3 com preparo manual. | C130: m2 | D130: 64.66 | E130: 6.19 | F130: =ROUND(D130*E130,2) -> 400.25 | H130: ='Bm 01'!I130 -> 64.66 | I130: =G130+H130 -> 64.66 | J130: =ROUND(G130*E130,2) -> 0 | K130: ='Bm 01'!L130 -> 400.25 | L130: =J130+K130 -> 400.25 | M130: 0.00% | N130: 100.00%
A131: 16.2 | B131: Emboço, para recebimento de cerâmica, em argamassa de traço 1:2:8, preparo mecânico com betoneira 400 litros, aplicado manualmente em faces internas da paredes, para ambientes com área entre 5 m2 e 10 m2, com espessura de 20 mm. | C131: m2 | D131: 49.32 | E131: 32.59 | F131: =ROUND(D131*E131,2) -> 1,607.34 | G131: 14.80 | H131: ='Bm 01'!I131 -> 34.52 | I131: =G131+H131 -> 49.32 | J131: =ROUND(G131*E131,2) -> 482.20 | K131: ='Bm 01'!L131 -> 1,125.14 | L131: =J131+K131 -> 1,607.34 | M131: 30.00% | N131: 100.00%
A132: 16.3 | B132: Massa única, Para recebimento de pintura, em argamassa de traço 1:2:8, preparo mecânico com betoneira 400 litros, aplicada manualmenteem faces internas de paredes, espessura de 20 mm. | C132: m2 | D132: 33.44 | E132: 19.95 | F132: =ROUND(D132*E132,2) -> 667.13 | G132: 10.03 | H132: ='Bm 01'!I132 -> 23.41 | I132: =G132+H132 -> 33.44 | J132: =ROUND(G132*E132,2) -> 200.14 | K132: ='Bm 01'!L132 -> 466.99 | L132: =J132+K132 -> 667.13 | M132: 30.00% | N132: 100.00%
A133: 17 | B133: PISOS | F133: =SUM(F134) -> 2,564.59 | J133: =SUM(J134) -> 0 | K133: =SUM(K134) -> 0 | L133: =SUM(L134) -> 0 | M133: =J133/F133 -> 0.00% | N133: =L133/F133 -> 0.00%
A134: 17.1 | B134: Piso em concreto 20 MPA preparo mecanico, espessura de 7 cm, incluso selante elastico a base de poliuretano e contrapiso. | C134: m2 | D134: 99.48 | E134: 25.78 | F134: =ROUND(D134*E134,2) -> 2,564.59 | H134: ='Bm 01'!I134 -> 0 | I134: =G134+H134 -> 0 | J134: =ROUND(G134*E134,2) -> 0 | K134: ='Bm 01'!L134 -> 0 | L134: =J134+K134 -> 0 | M134: =J134/F134 -> 0.00% | N134: =L134/F134 -> 0.00%
A135: 18 | B135: PINTURA | F135: =SUM(F136) -> 1,246.46 | J135: =SUM(J136) -> 0 | K135: =SUM(K136) -> 0 | L135: =SUM(L136) -> 0 | M135: =J135/F135 -> 0.00% | N135: =L135/F135 -> 0.00%
A136: 18.1 | B136: Junta de dilatação para impermeabilização, com selante elastico monocomponente a base de poliuretano, dimensões de 1 x 1 cm. | C136: M | D136: 57.60 | E136: 21.64 | F136: =ROUND(D136*E136,2) -> 1,246.46 | H136: ='Bm 01'!I136 -> 0 | I136: =G136+H136 -> 0 | J136: =ROUND(G136*E136,2) -> 0 | K136: ='Bm 01'!L136 -> 0 | L136: =J136+K136 -> 0 | M136: =J136/F136 -> 0.00% | N136: =L136/F136 -> 0.00%
A137: 19 | B137: INSTALAÇÕES HIDRÁULICAS | F137: =SUM(F138:F143) -> 710.99 | J137: =SUM(J138:J143) -> 449.98 | K137: =SUM(K138:K143) -> 97.24 | L137: =SUM(L138:L143) -> 547.22 | M137: =J137/F137 -> 63.29% | N137: =L137/F137 -> 76.97%
A138: 19.1 | B138: Adaptador com flnge e anel de vedação, PVC, soldavel, DN 25 mm X 3/4", instalado em reservação de água de edificação que possua reservatório de fibra/fibrocimento, fornecimento e instalação. | C138: Unidade | D138: 3.00 | E138: 21.95 | F138: =ROUND(D138*E138,2) -> 65.85 | H138: ='Bm 01'!I138 -> 0 | I138: =G138+H138 -> 0 | J138: =ROUND(G138*E138,2) -> 0 | K138: ='Bm 01'!L138 -> 0 | L138: =J138+K138 -> 0 | M138: 0.00% | N138: 0.00%
A139: 19.2 | B139: Adaptador com flnge e anel de vedação, PVC, soldavel, DN 50 mm X 1 1/24", instalado em reservação de água de edificação que possua reservatório de fibra/fibrocimento, fornecimento e instalação. | C139: Unidade | D139: 2.00 | E139: 48.96 | F139: 97.92 | H139: ='Bm 01'!I139 -> 0 | I139: 0 | J139: 0 | K139: ='Bm 01'!L139 -> 0 | L139: 0 | M139: 0.00% | N139: 0.00%
A140: 19.3 | B140: Joelho de 90 graus, CPVC, soldavel, DN 25 mm, instalado em reservação de água de edificação. | C140: Unidade | D140: 4.00 | E140: 13.63 | F140: 54.52 | G140: 4.00 | H140: ='Bm 01'!I140 -> 0 | I140: 4.00 | J140: 54.52 | K140: ='Bm 01'!L140 -> 0 | L140: 54.52 | M140: 100.00% | N140: 100.00%
A141: 19.4 | B141: Joelho de 90 graus, CPVC, soldavel, DN 50 mm, instalado em reservação de água de edificação. | C141: Unidade | D141: 6.00 | E141: 65.91 | F141: 395.46 | G141: 6.00 | H141: ='Bm 01'!I141 -> 0 | I141: 6.00 | J141: 395.46 | K141: ='Bm 01'!L141 -> 0 | L141: 395.46 | M141: 100.00% | N141: 100.00%
A142: 19.5 | B142: Joelho 90 graus com bucha de latão, PVC, soldável, DN 25 mm X 1/2" instalado em ramal ou sub-ramal de água - Fornecimento e instalação. | C142: Unidade | D142: 2.00 | E142: 12.83 | F142: 25.66 | H142: ='Bm 01'!I142 -> 2.00 | I142: 2.00 | J142: 0 | K142: ='Bm 01'!L142 -> 25.66 | L142: 25.66 | M142: 0.00% | N142: 100.00%
A143: 19.6 | B143: Tubo PVC, soldável, DN 40 mm, instalado em prumada de água - Fornecimento e instalação. | C143: M | D143: 6.00 | E143: 11.93 | F143: 71.58 | H143: ='Bm 01'!I143 -> 6.00 | I143: 6.00 | J143: 0 | K143: ='Bm 01'!L143 -> 71.58 | L143: 71.58 | M143: 0.00% | N143: 100.00%
A144: 20 | B144: INSTALAÇÕES SANITÁRIAS | F144: =SUM(F145:F149) -> 1,420.85 | J144: =SUM(J145:J149) -> 640.30 | K144: =SUM(K145:K149) -> 780.55 | L144: =SUM(L145:L149) -> 1,420.85 | M144: 45.06% | N144: 100.00%
A145: 20.1 | B145: Junção simples , PVC, serie normal, esgoto predial, DN 100 X 100 mm, junta elástica, fornecido e instalado em ramal de descarga ou ramal de esgotosanitário. | C145: Unidade | D145: 5.00 | E145: 39.53 | F145: =ROUND(D145*E145,2) -> 197.65 | G145: 5.00 | H145: ='Bm 01'!I145 -> 0 | I145: =G145+H145 -> 5.00 | J145: =ROUND(G145*E145,2) -> 197.65 | K145: ='Bm 01'!L145 -> 0 | L145: =J145+K145 -> 197.65 | M145: 100.00% | N145: 100.00%
A146: 20.2 | B146: Junção simples, PVC, serie R, água pluvial, DN 100 X 75 mm, junta elástica, fornecido e instalado em ramal de encaminhamento. | C146: Unidade | D146: 5.00 | E146: 53.80 | F146: =ROUND(D146*E146,2) -> 269.00 | G146: 5.00 | H146: ='Bm 01'!I146 -> 0 | I146: =G146+H146 -> 5.00 | J146: =ROUND(G146*E146,2) -> 269.00 | K146: ='Bm 01'!L146 -> 0 | L146: =J146+K146 -> 269.00 | M146: 100.00% | N146: 100.00%
A147: 20.3 | B147: Tubo PVC, serie normal, esgoto predial, DN 100 mm, fornecido e instalado em ramal de descarga ou ramal de esgoto sanitário. | C147: m | D147: 23.00 | E147: 37.75 | F147: =ROUND(D147*E147,2) -> 868.25 | G147: 4.60 | H147: ='Bm 01'!I147 -> 18.40 | I147: =G147+H147 -> 23.00 | J147: =ROUND(G147*E147,2) -> 173.65 | K147: ='Bm 01'!L147 -> 694.60 | L147: =J147+K147 -> 868.25 | M147: 20.00% | N147: 100.00%
A148: 20.4 | B148: Tubo PVC, serie normal, esgoto predial, DN 40 mm, fornecido e instalado em ramal de descarga ou ramal de esgoto sanitário. | C148: m | D148: 2.00 | E148: 13.47 | F148: =ROUND(D148*E148,2) -> 26.94 | H148: ='Bm 01'!I148 -> 2.00 | I148: =G148+H148 -> 2.00 | J148: =ROUND(G148*E148,2) -> 0 | K148: ='Bm 01'!L148 -> 26.94 | L148: =J148+K148 -> 26.94 | M148: 0.00% | N148: 100.00%
A149: 20.5 | B149: Tubo PVC, serie normal, esgoto predial, DN 50 mm, fornecido e instalado em ramal de descarga ou ramal de esgoto sanitário. | C149: m | D149: 3.00 | E149: 19.67 | F149: =ROUND(D149*E149,2) -> 59.01 | H149: ='Bm 01'!I149 -> 3.00 | I149: =G149+H149 -> 3.00 | J149: =ROUND(G149*E149,2) -> 0 | K149: ='Bm 01'!L149 -> 59.01 | L149: =J149+K149 -> 59.01 | M149: 0.00% | N149: 100.00%
A150: 21 | B150: NSTALAÇÕES ELÉTRICAS | F150: =SUM(F151:F152) -> 143.22 | J150: =SUM(J151:J152) -> 0 | K150: =SUM(K151:K152) -> 0 | L150: =SUM(L151:L152) -> 0 | M150: 0.00% | N150: 0.00%
A151: 21.1 | B151: Caixa retangular 4" X 2" em PVC, intalada em parede - Fornecimento e instalação. | C151: Unidade | D151: 8.00 | E151: 8.47 | F151: =ROUND(D151*E151,2) -> 67.76 | H151: ='Bm 01'!I151 -> 0 | I151: =G151+H151 -> 0 | J151: =ROUND(G151*E151,2) -> 0 | K151: ='Bm 01'!L151 -> 0 | L151: =J151+K151 -> 0 | M151: 0.00% | N151: 0.00%
A152: 21.2 | B152: Caixa octogonal 4" X 4", PVC, instalada em laje - Fornecimento e instalação. | C152: Unidade | D152: 7.00 | E152: 10.78 | F152: =ROUND(D152*E152,2) -> 75.46 | H152: ='Bm 01'!I152 -> 0 | I152: =G152+H152 -> 0 | J152: =ROUND(G152*E152,2) -> 0 | K152: ='Bm 01'!L152 -> 0 | L152: =J152+K152 -> 0 | M152: 0.00% | N152: 0.00%
A153: 22 | B153: SERVIÇOS DIVERSOS | F153: =SUM(F154) -> 599.52 | J153: =SUM(J154) -> 0 | K153: =SUM(K154) -> 0 | L153: =SUM(L154) -> 0 | M153: =J153/F153 -> 0.00% | N153: =L153/F153 -> 0.00%
A154: 22.1 | B154: Chuveiro elétrico comum corpo plastico tipo ducha, fornecimento e instalação | C154: Unidade | D154: 8.00 | E154: 74.94 | F154: =ROUND(D154*E154,2) -> 599.52 | H154: ='Bm 01'!I154 -> 0 | I154: =G154+H154 -> 0 | J154: =ROUND(G154*E154,2) -> 0 | K154: ='Bm 01'!L154 -> 0 | L154: =J154+K154 -> 0 | M154: =J154/F154 -> 0.00% | N154: =L154/F154 -> 0.00%
A155: 23 | B155: URBANIZAÇÃO DA ÁREA EXTERNA DA QUADRA | F155: =SUM(F156:F174) -> 169,960.05 | J155: =SUM(J156:J174) -> 12,056.23 | K155: =SUM(K156:K174) -> 28,827.73 | L155: =SUM(L156:L174) -> 40,883.96 | M155: =J155/F155 -> 7.09% | N155: =L155/F155 -> 24.06%
A156: 23.1 | B156: Escavação manual solo de 1a.cat. prof. até 1.50m | C156: m3 | D156: 1.66 | E156: 42.51 | F156: =ROUND(D156*E156,2) -> 70.57 | G156: 1.66 | H156: ='Bm 01'!I156 -> 0 | I156: =G156+H156 -> 1.66 | J156: =ROUND(G156*E156,2) -> 70.57 | K156: ='Bm 01'!L156 -> 0 | L156: =J156+K156 -> 70.57 | M156: =J156/F156 -> 100.00% | N156: =L156/F156 -> 100.00%
A157: 23.2 | B157: Corte e dobra de aço AÇO CA-50, diametro de 8.0 MM, utilizado em estruturas diversas. | C157: kg | D157: 260.96 | E157: 7.30 | F157: 1,905.01 | H157: ='Bm 01'!I157 -> 260.96 | I157: 260.96 | J157: 0 | K157: ='Bm 01'!L157 -> 1,905.01 | L157: 1,905.01 | M157: 0.00% | N157: 100.00%
A158: 23.3 | B158: Corte e dobra de aço AÇO CA-60, diametro de 5.0 MM, utilizado em estruturas diversas. | C158: kg | D158: 97.15 | E158: 7.47 | F158: 725.71 | H158: ='Bm 01'!I158 -> 97.15 | I158: 97.15 | J158: 0 | K158: ='Bm 01'!L158 -> 725.71 | L158: 725.71 | M158: 0.00% | N158: 100.00%
A159: 23.4 | B159: Forma plana chapa compensada plastificada, esp.= 12mm util. 5x | C159: m2 | D159: 82.94 | E159: 26.35 | F159: 2,185.47 | H159: ='Bm 01'!I159 -> 82.94 | I159: 82.94 | J159: 0 | K159: ='Bm 01'!L159 -> 2,185.47 | L159: 2,185.47 | M159: 0.00% | N159: 100.00%
A160: 23.5 | B160: Concretagem de peças, FCK = 25 MPA, Com uso de baldes com seção media menor ou igual a 0,25 m2 - Lançamento, adensamento e acabamento. | C160: m3 | D160: 3.53 | E160: 531.32 | F160: 1,875.56 | H160: ='Bm 01'!I160 -> 3.53 | I160: 3.53 | J160: 0 | K160: ='Bm 01'!L160 -> 1,875.56 | L160: 1,875.56 | M160: 0.00% | N160: 100.00%
A161: 23.6 | B161: Alvenaria de tijolo cerâmico (9x19x24)cm, e= 0,09m, com argamassa (traço 1:2:8 - cimento/cal/areia), junta de 2,0cm | C161: m2 | D161: 119.58 | E161: 39.63 | F161: 4,738.96 | H161: ='Bm 01'!I161 -> 119.58 | I161: 119.58 | J161: 0 | K161: ='Bm 01'!L161 -> 4,738.96 | L161: 4,738.96 | M161: 0.00% | N161: 100.00%
A162: 23.7 | B162: Alvenaria de tijolo cerâmico (9x19x24)cm, e= 0,19m, com argamassa (traço 1:2:8 - cimento/cal/areia), junta de 2,0cm | C162: m2 | D162: 32.45 | E162: 67.91 | F162: 2,203.68 | H162: ='Bm 01'!I162 -> 32.45 | I162: 32.45 | J162: 0 | K162: ='Bm 01'!L162 -> 2,203.68 | L162: 2,203.68 | M162: 0.00% | N162: 100.00%
A163: 23.8 | B163: Elemento vazado de concreto (40x40x7cm) assentados com argamassa (imento e areia traço 1:3) | C163: m2 | D163: 53.68 | E163: 53.62 | F163: 2,878.32 | G163: 42.94 | H163: ='Bm 01'!I163 -> 10.74 | I163: 53.68 | J163: 2,302.66 | K163: ='Bm 01'!L163 -> 575.66 | L163: 2,878.32 | M163: 80.00% | N163: 100.00%
A164: 23.9 | B164: Piso em concreto simples desempolado (esp.=5cm), inclusive contrapiso | C164: m2 | D164: 94.28 | E164: 25.78 | F164: 2,430.54 | H164: ='Bm 01'!I164 -> 0 | I164: 0 | J164: 0 | K164: ='Bm 01'!L164 -> 0 | L164: 0 | M164: 0.00% | N164: 0.00%
A165: 23.10 | B165: Assentamento de guia (meio fio) em trecho reto,confeccionada em concreto pré-fabricada, dimensões 100X15X13X30 CM (COMPRIMENTO X BASE INFERIOR X BASE SUPERIOR X ALTURA), para vias urbanas. | C165: M | D165: 100.00 | E165: 41.95 | F165: 4,195.00 | H165: ='Bm 01'!I165 -> 0 | I165: 0 | J165: 0 | K165: ='Bm 01'!L165 -> 0 | L165: 0 | M165: 0.00% | N165: 0.00%
A166: 23.11 | B166: Chapisco c/ argamassa de cimento e areia s/ peneirar traço 1:3 esp.= 5mm p/ parede | C166: m2 | D166: 527.98 | E166: 6.19 | F166: 3,268.20 | H166: ='Bm 01'!I166 -> 527.98 | I166: 527.98 | J166: 0 | K166: ='Bm 01'!L166 -> 3,268.20 | L166: 3,268.20 | M166: 0.00% | N166: 100.00%
A167: 23.12 | B167: Reboco c/argamassa pré-fabricada, adesivo de alta resistência p/tinta epóxi esp= 5mmp/parede | C167: m2 | D167: 711.12 | E167: 19.95 | F167: 14,186.84 | G167: 142.22 | H167: ='Bm 01'!I167 -> 568.90 | I167: 711.12 | J167: 2,837.37 | K167: ='Bm 01'!L167 -> 11,349.48 | L167: 14,186.85 | M167: 20.00% | N167: 100.00%
A168: 23.13 | B168: Aterro c/ controle, mat. c/ aquisição compactação manual | C168: m3 | D168: 35.10 | E168: 143.78 | F168: 5,046.68 | G168: 35.10 | H168: ='Bm 01'!I168 -> 0 | I168: 35.10 | J168: 5,046.68 | K168: ='Bm 01'!L168 -> 0 | L168: 5,046.68 | M168: 100.00% | N168: 100.00%
A169: 23.14 | B169: Execução de passeio (calçada) ou piso de concreto moldado in loco, usinado, acabamento convencional, Espessura de 6 CM, ARMADO. | C169: m2 | D169: 36.75 | E169: 55.99 | F169: 2,057.63 | G169: 18.38 | H169: ='Bm 01'!I169 -> 0 | I169: 18.38 | J169: 1,028.82 | K169: ='Bm 01'!L169 -> 0 | L169: 1,028.82 | M169: 50.00% | N169: 50.00%
A170: 23.15 | B170: Lastro de concreto magro, aplicado em pisos ou radiers, Espessura de 5 cm. | C170: m2 | D170: 30.50 | E170: 25.25 | F170: 770.13 | G170: 30.50 | H170: ='Bm 01'!I170 -> 0 | I170: 30.50 | J170: 770.13 | K170: ='Bm 01'!L170 -> 0 | L170: 770.13 | M170: 100.00% | N170: 100.00%
A171: 23.16 | B171: Guarda corpo em tubo de aço galvanizado de 1 1/2" | C171: M | D171: 24.50 | E171: 253.83 | F171: 6,218.84 | H171: ='Bm 01'!I171 -> 0 | I171: 0 | J171: 0 | K171: ='Bm 01'!L171 -> 0 | L171: 0 | M171: 0.00% | N171: 0.00%
A172: 23.17 | B172: Execução de pátio/estacionamento em piso intertravado, com bloco retangular cor natural de 20 X 10 cm, espessura de 8 CM. | C172: m2 | D172: 1,764.31 | E172: 60.10 | F172: 106,035.03 | H172: ='Bm 01'!I172 -> 0 | I172: 0 | J172: 0 | K172: ='Bm 01'!L172 -> 0 | L172: 0 | M172: 0.00% | N172: 0.00%
A173: 23.18 | B173: Pintura de acabamento com aplicação de 02 demaõs de tinta acrílica | C173: m2 | D173: 764.80 | E173: 11.23 | F173: 8,588.70 | H173: ='Bm 01'!I173 -> 0 | I173: 0 | J173: 0 | K173: ='Bm 01'!L173 -> 0 | L173: 0 | M173: 0.00% | N173: 0.00%
A174: 23.19 | B174: Esmalte sintético em estrutura de aço carbono 50 micracom revólver, inclusive base. | C174: m2 | D174: 36.75 | E174: 15.76 | F174: 579.18 | H174: ='Bm 01'!I174 -> 0 | I174: 0 | J174: 0 | K174: ='Bm 01'!L174 -> 0 | L174: 0 | M174: 0.00% | N174: 0.00%
A176: TOTAL | F176: =F9+F11+F13+F18+F21+F27+F36+F47+F54+F60+F90+F97+F110+F115+F125+F129+F133+F135+F137+F144+F150+F153+F155 -> 524,984.02 | J176: =J9+J11+J13+J18+J21+J27+J36+J47+J54+J60+J90+J97+J110+J115+J125+J129+J133+J135+J137+J144+J150+J153+J155 -> 91,527.95 | K176: =K9+K11+K13+K18+K21+K27+K36+K47+K54+K60+K90+K97+K110+K115+K125+K129+K133+K135+K137+K144+K150+K153+K155 -> 114,571.20 | L176: =L9+L11+L13+L18+L21+L27+L36+L47+L54+L60+L90+L97+L110+L115+L125+L129+L133+L135+L137+L144+L150+L153+L155 -> 206,099.15 | M176: =J176/F176 -> 17.43% | N176: =L176/F176 -> 39.26%
B181: LUMA PROJETOS E CONSTRUÇÕES LTDA | G181: Resp.: Técnico Fiscalização da Obra | L181: Prefeitura Municipal
B182: CNPJ: 08.869.425/0001-43 | G182: Carimbo e Assinatura | L182: Carimbo e Assinatura
E186: Valor total medido para ser pago pelo saldo do FNDE | F186: =J97+J90+J60+J54+J47+J36+J27+J21+J18+J13+J11+J9 -> R$ 77,538.24
E187: Valor total medido para ser pago com recursos proprios | F187: =J110+J115+J125+J129+J133+J135+J137+J144+J150+J153+J155 -> R$ 13,989.71
E188: VALOR TOTAL DA MEDIÇÃO 01: Cento e quatorze mil, quinhentos e setenta e um reais, vinte centavos. | F188: =F186+F187 -> R$ 91,527.95

Sheet Bm 03
D1: MEDIÇÃO SERVIÇOS Nº: 03 | G1: PERÍODO MEDIÇÃO: 23/04/2020 a 03/06/2020 | P1: BM 01 | Q1: BM 02 | R1: BM 03 | S1: BM 04
F2: MODALIDADE: TOMADA DE PREÇOS Nº. 001/2019 | K2: FONTE DE RECURSOS: RECURSOS PRÓPRIOS E Convênio PAC 2 – 5506/2013 | O2: TOTAL | P2: ='Bm 01'!F188 -> 114,571.20 | Q2: ='Bm 02'!F188 -> 91,527.95 | R2: =F188 -> 84,350.45
A3: CONTRATANTE: PREFEITURA MUNICIPAL DE PALMAS DE MONTE ALTO - BA | F3: DATA DA PROPOSTA: 24/04/2019 | O3: FNDE | P3: ='Bm 01'!F186 -> 76,338.28 | Q3: ='Bm 02'!F186 -> 77,538.24 | R3: =F186 -> 23,739.73
A4: TIPO DE EMPREENDIMENTO: CONCLUSÃO DE QUADRA POLIESPORTIVA COBERTA | F4: INÍCIO DA OBRA: 15/06/2019 | K4: FIM DA OBRA: 31/12/2020 | O4: PREF. | P4: ='Bm 01'!F187 -> 38,232.92 | Q4: ='Bm 02'!F187 -> 13,989.71 | R4: =F187 -> 60,610.72
A5: CONTRATADA: LUMA PROJETOS E CONSTRUÇÕES LTDA | F5: CONTRATO INICIAL: R$ 524.984,02 | K5: CONTRATO Nº: 001/2019TP
A6: LOCALIZAÇÃO: Escola Municipal Wilson Lins, Distrito de Espraiados - Palmas de Monte Alto - BA | F6: CONTRATO ATUALIZADO: R$ 524.984,02 | K6: DATA DE ASSINATURA DO CONTRATO: | O6: medição | P6: mat | Q6: mo | R6: inss | S6: ir
A7: ITEM | B7: DESCRIÇÃO DOS SERVIÇOS | C7: DADOS DO CONTRATO | G7: REALIZAÇÃO FÍSICA | J7: REALIZAÇÃO FINANCEIRA | M7: % EXECUTADA | O7: =R4 -> 60,610.72 | P7: =O7*0.6 -> 36,366.43 | Q7: =O7*0.4 -> 24,244.29 | R7: =O7*0.035 -> 2,121.38 | S7: =O7*0.015 -> 909.16
C8: UN | D8: QUANTIDADE | E8: PREÇO UNITÁRIO | F8: VR TOTAL | G8: ATUAL | H8: ANTERIOR | I8: TOTAL | J8: ATUAL | K8: ANTERIOR | L8: TOTAL | M8: ATUAL | N8: TOTAL
A9: 1 | B9: PAREDES E PAINÉIS | F9: =SUM(F10) -> 11,716.19 | J9: =SUM(J10) -> 0 | K9: =SUM(K10) -> 11,716.19 | L9: =SUM(L10) -> 11,716.19 | M9: =J9/F9 -> 0.00% | N9: =L9/F9 -> 100.00%
A10: 1.1 | B10: Elemento vazado de concreto (50x50x10cm) anti-chuva assentados com argamassa (cimento e areia traço 1:3) | C10: m2 | D10: 148.10 | E10: 79.11 | F10: =ROUND(D10*E10,2) -> 11,716.19 | H10: ='Bm 02'!I10 -> 148.10 | I10: =G10+H10 -> 148.10 | J10: =ROUND(G10*E10,2) -> 0 | K10: ='Bm 02'!L10 -> 11,716.19 | L10: =J10+K10 -> 11,716.19 | M10: 0.00% | N10: 100.00%
A11: 2 | B11: COBERTURA | F11: =SUM(F12) -> 59,131.12 | J11: =SUM(J12) -> 0 | K11: =SUM(K12) -> 53,218.01 | L11: =SUM(L12) -> 53,218.01 | M11: 0.00% | N11: 90.00%
A12: 2.1 | B12: Telha metálica em chapa galvanizada e=0.5mm | C12: m2 | D12: 1,114.00 | E12: 53.08 | F12: =ROUND(D12*E12,2) -> 59,131.12 | H12: ='Bm 02'!I12 -> 1,002.60 | I12: =G12+H12 -> 1,002.60 | J12: =ROUND(G12*E12,2) -> 0 | K12: ='Bm 02'!L12 -> 53,218.01 | L12: =J12+K12 -> 53,218.01 | M12: 0.00% | N12: 90.00%
A13: 3 | B13: ESQUADRIAS | F13: =SUM(F14:F17) -> 5,931.43 | J13: =SUM(J14:J17) -> 0 | K13: =SUM(K14:K17) -> 0 | L13: =SUM(L14:L17) -> 0 | M13: 0.00% | N13: 0.00%
A14: 3.1 | B14: Porta de madeira (1,00x2,10 m) com bandeira (1,00x0,80 m) - inclusive ferragens, conforme projeto de esquadrias | C14: Unidade | D14: 2.00 | E14: 940.08 | F14: =ROUND(D14*E14,2) -> 1,880.16 | H14: ='Bm 02'!I14 -> 0 | I14: =G14+H14 -> 0 | J14: =ROUND(G14*E14,2) -> 0 | K14: ='Bm 02'!L14 -> 0 | L14: =J14+K14 -> 0 | M14: 0.00% | N14: 0.00%
A15: 3.2 | B15: Porta de madeira (0,90x2,10 m) - inclusive ferragens, conforme projeto de esquadrias | C15: Unidade | D15: 1.00 | E15: 828.69 | F15: =ROUND(D15*E15,2) -> 828.69 | H15: ='Bm 02'!I15 -> 0 | I15: =G15+H15 -> 0 | J15: =ROUND(G15*E15,2) -> 0 | K15: ='Bm 02'!L15 -> 0 | L15: =J15+K15 -> 0 | M15: 0.00% | N15: 0.00%
A16: 3.3 | B16: Porta de madeira - Banheiros e Sanitários (0,60 m) completa inclusive targeta metálica | C16: Unidade | D16: 4.00 | E16: 565.77 | F16: =ROUND(D16*E16,2) -> 2,263.08 | H16: ='Bm 02'!I16 -> 0 | I16: =G16+H16 -> 0 | J16: =ROUND(G16*E16,2) -> 0 | K16: ='Bm 02'!L16 -> 0 | L16: =J16+K16 -> 0 | M16: 0.00% | N16: 0.00%
A17: 3.4 | B17: Porta de madeira - Banheiros e Sanitários (0,80 m) completa inclusive targeta metálica - WC PNE | C17: Unidade | D17: 2.00 | E17: 479.75 | F17: =ROUND(D17*E17,2) -> 959.50 | H17: ='Bm 02'!I17 -> 0 | I17: =G17+H17 -> 0 | J17: =ROUND(G17*E17,2) -> 0 | K17: ='Bm 02'!L17 -> 0 | L17: =J17+K17 -> 0 | M17: 0.00% | N17: 0.00%
A18: 4 | B18: REVESTIMENTOS | F18: =SUM(F19:F20) -> 20,020.64 | J18: =SUM(J19:J20) -> 17,548.04 | K18: =SUM(K19:K20) -> 0 | L18: =SUM(L19:L20) -> 17,548.04 | M18: 87.65% | N18: 87.65%
A19: 4.1 | B19: Revestimento cerâmico de paredes PEI IV - cerâmica 20 x 20 cm - incl. rejunte - conforme projeto | C19: m2 | D19: 328.00 | E19: 48.29 | F19: =ROUND(D19*E19,2) -> 15,839.12 | G19: 280.00 | H19: ='Bm 02'!I19 -> 0 | I19: =G19+H19 -> 280.00 | J19: =ROUND(G19*E19,2) -> 13,521.20 | K19: ='Bm 02'!L19 -> 0 | L19: =J19+K19 -> 13,521.20 | M19: 85.37% | N19: 85.37%
A20: 4.2 | B20: Revestimento cerâmico de paredes PEI IV - cerâmica 10 x 10 cm - incl. rejunte - conforme projeto | C20: m2 | D20: 81.10 | E20: 51.56 | F20: =ROUND(D20*E20,2) -> 4,181.52 | G20: 78.10 | H20: ='Bm 02'!I20 -> 0 | I20: =G20+H20 -> 78.10 | J20: =ROUND(G20*E20,2) -> 4,026.84 | K20: ='Bm 02'!L20 -> 0 | L20: =J20+K20 -> 4,026.84 | M20: 96.30% | N20: 96.30%
A21: 5 | B21: PISOS | F21: =SUM(F22:F26) -> 62,634.19 | J21: =SUM(J22:J26) -> 4,116.37 | K21: =SUM(K22:K26) -> 46,727.33 | L21: =SUM(L22:L26) -> 50,843.70 | M21: 6.57% | N21: 81.18%
A22: 5.1 | B22: Lastro de brita graduada apiloada (esp.=6 cm) | C22: m2 | D22: 633.20 | E22: 13.43 | F22: =ROUND(D22*E22,2) -> 8,503.88 | H22: ='Bm 02'!I22 -> 633.20 | I22: =G22+H22 -> 633.20 | J22: =ROUND(G22*E22,2) -> 0 | K22: ='Bm 02'!L22 -> 8,503.88 | L22: =J22+K22 -> 8,503.88 | M22: 0.00% | N22: 100.00%
A23: 5.2 | B23: Piso em concreto armado com tela e juntas de dilatação (esp.=10cm) | C23: m2 | D23: 633.20 | E23: 55.99 | F23: =ROUND(D23*E23,2) -> 35,452.87 | H23: ='Bm 02'!I23 -> 633.20 | I23: =G23+H23 -> 633.20 | J23: =ROUND(G23*E23,2) -> 0 | K23: ='Bm 02'!L23 -> 35,452.87 | L23: =J23+K23 -> 35,452.87 | M23: 0.00% | N23: 100.00%
A24: 5.3 | B24: Piso em concreto simples desempolado (esp.=5cm), inclusive contrapiso | C24: m2 | D24: 107.47 | E24: 25.78 | F24: =ROUND(D24*E24,2) -> 2,770.58 | H24: ='Bm 02'!I24 -> 107.47 | I24: =G24+H24 -> 107.47 | J24: =ROUND(G24*E24,2) -> 0 | K24: ='Bm 02'!L24 -> 2,770.58 | L24: =J24+K24 -> 2,770.58 | M24: 0.00% | N24: 100.00%
A25: 5.4 | B25: Junta de retração, serrada com disco diamantado, parapavimentos em placa de concreto, profund.= 5cm, inclusive preenchimento com mastique | C25: m | D25: 627.05 | E25: 21.64 | F25: =ROUND(D25*E25,2) -> 13,569.36 | G25: 125.41 | H25: ='Bm 02'!I25 -> 0 | I25: =G25+H25 -> 125.41 | J25: =ROUND(G25*E25,2) -> 2,713.87 | K25: ='Bm 02'!L25 -> 0 | L25: =J25+K25 -> 2,713.87 | M25: 20.00% | N25: 20.00%
A26: 5.5 | B26: Piso cerâmico esmaltado PEI V - 33 x 33 cm - incl. rejunte - conforme projeto | C26: m2 | D26: 62.50 | E26: 37.40 | F26: =ROUND(D26*E26,2) -> 2,337.50 | G26: 37.50 | H26: ='Bm 02'!I26 -> 0 | I26: =G26+H26 -> 37.50 | J26: =ROUND(G26*E26,2) -> 1,402.50 | K26: ='Bm 02'!L26 -> 0 | L26: =J26+K26 -> 1,402.50 | M26: 60.00% | N26: 60.00%
A27: 6 | B27: PINTURA | F27: =SUM(F28:F35) -> 80,615.19 | J27: =SUM(J28:J35) -> 1,755.66 | K27: =SUM(K28:K35) -> 21,108.07 | L27: =SUM(L28:L35) -> 22,863.73 | M27: 2.18% | N27: 28.36%
A28: 6.1 | B28: Aplicação de selador acrílico | C28: m2 | D28: 847.20 | E28: 2.72 | F28: =ROUND(D28*E28,2) -> 2,304.38 | H28: ='Bm 02'!I28 -> 0 | I28: =G28+H28 -> 0 | J28: =ROUND(G28*E28,2) -> 0 | K28: ='Bm 02'!L28 -> 0 | L28: =J28+K28 -> 0 | M28: 0.00% | N28: 0.00%
A29: 6.2 | B29: Demarcação de quadra com tinta acrílica | C29: m | D29: 360.00 | E29: 11.18 | F29: 4,024.80 | H29: ='Bm 02'!I29 -> 0 | I29: 0 | J29: 0 | K29: ='Bm 02'!L29 -> 0 | L29: 0 | M29: 0.00% | N29: 0.00%
A30: 6.3 | B30: Emassamento de superfície, comaplicação de 02 demãosde massa acrílica | C30: m2 | D30: 88.60 | E30: 22.59 | F30: 2,001.47 | H30: ='Bm 02'!I30 -> 0 | I30: 0 | J30: 0 | K30: ='Bm 02'!L30 -> 0 | L30: 0 | M30: 0.00% | N30: 0.00%
A31: 6.4 | B31: Esmalte sintético em estrutura de aço carbono 50 micracom revólver | C31: m2 | D31: 1,114.00 | E31: 15.76 | F31: 17,556.64 | G31: 111.40 | H31: ='Bm 02'!I31 -> 891.20 | I31: 1,002.60 | J31: 1,755.66 | K31: ='Bm 02'!L31 -> 14,045.31 | L31: 15,800.97 | M31: 10.00% | N31: 90.00%
A32: 6.5 | B32: Pintura c/ primer epoxi em estrutura de aço carbono 25 micra com revólver | C32: m2 | D32: 1,114.00 | E32: 6.34 | F32: 7,062.76 | H32: ='Bm 02'!I32 -> 1,114.00 | I32: 1,114.00 | J32: 0 | K32: ='Bm 02'!L32 -> 7,062.76 | L32: 7,062.76 | M32: 0.00% | N32: 100.00%
A33: 6.6 | B33: Pintura de acabamento com aplicação de 02 demaõs de tinta acrílica | C33: m2 | D33: 847.20 | E33: 11.23 | F33: 9,514.06 | H33: ='Bm 02'!I33 -> 0 | I33: 0 | J33: 0 | K33: ='Bm 02'!L33 -> 0 | L33: 0 | M33: 0.00% | N33: 0.00%
A34: 6.7 | B34: Pintura de piso com tinta à base de resina epóxi | C34: m2 | D34: 480.00 | E34: 58.23 | F34: 27,950.40 | H34: ='Bm 02'!I34 -> 0 | I34: 0 | J34: 0 | K34: ='Bm 02'!L34 -> 0 | L34: 0 | M34: 0.00% | N34: 0.00%
A35: 6.8 | B35: Pintura em tinta PVA latex (02 demãos), inclusive emassamento | C35: m2 | D35: 476.00 | E35: 21.43 | F35: 10,200.68 | H35: ='Bm 02'!I35 -> 0 | I35: 0 | J35: 0 | K35: ='Bm 02'!L35 -> 0 | L35: 0 | M35: 0.00% | N35: 0.00%
A36: 7 | B36: INSTALAÇÕES HIDRÁULICAS | F36: =SUM(F37:F46) -> 3,977.15 | J36: =SUM(J37:J46) -> 0 | K36: =SUM(K37:K46) -> 1,575.39 | L36: =SUM(L37:L46) -> 1,575.39 | M36: 0.00% | N36: 39.61%
A37: 7.1 | B37: Caixa d´água em fibra de vidro - cap. 3.000 litros | C37: Unidade | D37: 1.00 | E37: 681.62 | F37: =ROUND(D37*E37,2) -> 681.62 | H37: ='Bm 02'!I37 -> 1.00 | I37: =G37+H37 -> 1.00 | J37: =ROUND(G37*E37,2) -> 0 | K37: ='Bm 02'!L37 -> 681.62 | L37: =J37+K37 -> 681.62 | M37: 0.00% | N37: 100.00%
A38: 7.2 | B38: Engate flexível plástico | C38: Unidade | D38: 10.00 | E38: 7.65 | F38: 76.50 | H38: ='Bm 02'!I38 -> 10.00 | I38: 10.00 | J38: 0 | K38: ='Bm 02'!L38 -> 76.50 | L38: 76.50 | M38: 0.00% | N38: 100.00%
A39: 7.3 | B39: \"Torneira cromada para lavatório1/2\"\"\" | C39: Unidade | D39: 8.00 | E39: 49.65 | F39: 397.20 | H39: ='Bm 02'!I39 -> 8.00 | I39: 8.00 | J39: 0 | K39: ='Bm 02'!L39 -> 397.20 | L39: 397.20 | M39: 0.00% | N39: 100.00%
A40: 7.4 | B40: \"Torneira de bóia p/caixa d'agua em pvc d = 3/4\"\"\" | C40: Unidade | D40: 1.00 | E40: 35.72 | F40: 35.72 | H40: ='Bm 02'!I40 -> 1.00 | I40: 1.00 | J40: 0 | K40: ='Bm 02'!L40 -> 35.72 | L40: 35.72 | M40: 0.00% | N40: 100.00%
A41: 7.5 | B41: Tubo PVCrígido soldável - 20 mm | C41: M | D41: 5.00 | E41: 16.33 | F41: 81.65 | H41: ='Bm 02'!I41 -> 5.00 | I41: 5.00 | J41: 0 | K41: ='Bm 02'!L41 -> 81.65 | L41: 81.65 | M41: 0.00% | N41: 100.00%
A42: 7.6 | B42: Tubo PVCrígido soldável - 25 mm | C42: M | D42: 5.00 | E42: 19.36 | F42: 96.80 | H42: ='Bm 02'!I42 -> 5.00 | I42: 5.00 | J42: 0 | K42: ='Bm 02'!L42 -> 96.80 | L42: 96.80 | M42: 0.00% | N42: 100.00%
A43: 7.7 | B43: Tubo PVC rígido soldável - 32 mm | C43: M | D43: 5.00 | E43: 26.42 | F43: 132.10 | H43: ='Bm 02'!I43 -> 5.00 | I43: 5.00 | J43: 0 | K43: ='Bm 02'!L43 -> 132.10 | L43: 132.10 | M43: 0.00% | N43: 100.00%
A44: 7.8 | B44: Tubo PVC rígido soldável - 50 mm | C44: M | D44: 5.00 | E44: 14.76 | F44: 73.80 | H44: ='Bm 02'!I44 -> 5.00 | I44: 5.00 | J44: 0 | K44: ='Bm 02'!L44 -> 73.80 | L44: 73.80 | M44: 0.00% | N44: 100.00%
A45: 7.9 | B45: Vaso sanitario para deficientes físicos para válvula de descarga, em louca branca, com acessórios,inclusive assento,conjunto de fixação, anelde vedação, tubo PVC de ligação | C45: Unidade | D45: 2.00 | E45: 779.18 | F45: 1,558.36 | H45: ='Bm 02'!I45 -> 0 | I45: 0 | J45: 0 | K45: ='Bm 02'!L45 -> 0 | L45: 0 | M45: 0.00% | N45: 0.00%
A46: 7.10 | B46: Vaso sanitario sifonado, para louca branca, com acessórios, inclusive assento plástico, anel de vedação, tubo PVC de ligação | C46: Unidade | D46: 4.00 | E46: 210.85 | F46: 843.40 | H46: ='Bm 02'!I46 -> 0 | I46: 0 | J46: 0 | K46: ='Bm 02'!L46 -> 0 | L46: 0 | M46: 0.00% | N46: 0.00%
A47: 8 | B47: INSTALAÇÕES SANITÁRIAS | F47: =SUM(F48:F53) -> 4,149.25 | J47: =SUM(J48:J53) -> 0 | K47: =SUM(K48:K53) -> 2,718.52 | L47: =SUM(L48:L53) -> 2,718.52 | M47: 0.00% | N47: 65.52%
A48: 8.1 | B48: Fossa séptica, em concreto armado, (d2,50 x h 12,00) | C48: Unidade | D48: 1.00 | E48: 1,308.04 | F48: =ROUND(D48*E48,2) -> 1,308.04 | H48: ='Bm 02'!I48 -> 1.00 | I48: =G48+H48 -> 1.00 | J48: =ROUND(G48*E48,2) -> 0 | K48: ='Bm 02'!L48 -> 1,308.04 | L48: =J48+K48 -> 1,308.04 | M48: 0.00% | N48: 100.00%
A49: 8.2 | B49: \"Sifão de copo para pia e lavatório 1\"\" - 1.1/2\"\"\" | C49: Unidade | D49: 9.00 | E49: 152.77 | F49: 1,374.93 | H49: ='Bm 02'!I49 -> 0 | I49: 0 | J49: 0 | K49: ='Bm 02'!L49 -> 0 | L49: 0 | M49: 0.00% | N49: 0.00%
A50: 8.3 | B50: Sumidouro em alvenaria (d 2,30 x h 6,00) | C50: Unidade | D50: 1.00 | E50: 1,308.04 | F50: 1,308.04 | H50: ='Bm 02'!I50 -> 1.00 | I50: 1.00 | J50: 0 | K50: ='Bm 02'!L50 -> 1,308.04 | L50: 1,308.04 | M50: 0.00% | N50: 100.00%
A51: 8.4 | B51: Tubo rígido c/ ponta lisa 100 mm | C51: M | D51: 2.00 | E51: 37.75 | F51: 75.50 | H51: ='Bm 02'!I51 -> 2.00 | I51: 2.00 | J51: 0 | K51: ='Bm 02'!L51 -> 75.50 | L51: 75.50 | M51: 0.00% | N51: 100.00%
A52: 8.5 | B52: Tubo rígido c/ ponta lisa 40 mm | C52: M | D52: 2.00 | E52: 13.47 | F52: 26.94 | H52: ='Bm 02'!I52 -> 2.00 | I52: 2.00 | J52: 0 | K52: ='Bm 02'!L52 -> 26.94 | L52: 26.94 | M52: 0.00% | N52: 100.00%
A53: 8.6 | B53: \"Válvula para lavatório e tanque 1\"\"\" | C53: Unidade | D53: 9.00 | E53: 6.20 | F53: 55.80 | H53: ='Bm 02'!I53 -> 0 | I53: 0 | J53: 0 | K53: ='Bm 02'!L53 -> 0 | L53: 0 | M53: 0.00% | N53: 0.00%
A54: 9 | B54: DRENAGEM PLUVIAL | F54: =SUM(F55:F59) -> 19,871.36 | J54: =SUM(J55:J59) -> 0 | K54: =SUM(K55:K59) -> 16,813.01 | L54: =SUM(L55:L59) -> 16,813.01 | M54: 0.00% | N54: 84.61%
A55: 9.1 | B55: Calha em chapa de aço galvanizado n° 24 | C55: M | D55: 72.00 | E55: 40.86 | F55: =ROUND(D55*E55,2) -> 2,941.92 | H55: ='Bm 02'!I55 -> 72.00 | I55: =G55+H55 -> 72.00 | J55: =ROUND(G55*E55,2) -> 0 | K55: ='Bm 02'!L55 -> 2,941.92 | L55: =J55+K55 -> 2,941.92 | M55: 0.00% | N55: 100.00%
A56: 9.2 | B56: Tubo de queda - água pluvial DN=150 mm | C56: M | D56: 20.00 | E56: 45.96 | F56: =ROUND(D56*E56,2) -> 919.20 | H56: ='Bm 02'!I56 -> 0 | I56: =G56+H56 -> 0 | J56: =ROUND(G56*E56,2) -> 0 | K56: ='Bm 02'!L56 -> 0 | L56: =J56+K56 -> 0 | M56: 0.00% | N56: 0.00%
A57: 9.3 | B57: Joelho PVC 90° d=150 mm - tubulação pluvial | C57: M | D57: 4.00 | E57: 91.39 | F57: =ROUND(D57*E57,2) -> 365.56 | H57: ='Bm 02'!I57 -> 0 | I57: =G57+H57 -> 0 | J57: =ROUND(G57*E57,2) -> 0 | K57: ='Bm 02'!L57 -> 0 | L57: =J57+K57 -> 0 | M57: 0.00% | N57: 0.00%
A58: 9.4 | B58: \"Ralohemisférico tipo \"\"abacaxi\"\" com tela de aço com funil de saída cônico\" | C58: Unidade | D58: 4.00 | E58: 58.09 | F58: =ROUND(D58*E58,2) -> 232.36 | H58: ='Bm 02'!I58 -> 0 | I58: =G58+H58 -> 0 | J58: =ROUND(G58*E58,2) -> 0 | K58: ='Bm 02'!L58 -> 0 | L58: =J58+K58 -> 0 | M58: 0.00% | N58: 0.00%
A59: 9.5 | B59: Canaleta de concreto c/ tampa removível em chapa de aço (0,25 x 0,25 x 0,25m) | C59: M | D59: 72.00 | E59: 214.06 | F59: =ROUND(D59*E59,2) -> 15,412.32 | H59: ='Bm 02'!I59 -> 64.80 | I59: =G59+H59 -> 64.80 | J59: =ROUND(G59*E59,2) -> 0 | K59: ='Bm 02'!L59 -> 13,871.09 | L59: =J59+K59 -> 13,871.09 | M59: 0.00% | N59: 90.00%
A60: 10 | B60: INSTALAÇÕES ELÉTRICAS | F60: =SUM(F61:F89) -> 16,337.59 | J60: =SUM(J61:J89) -> 0 | K60: =SUM(K61:K89) -> 0 | L60: =SUM(L61:L89) -> 0 | M60: 0.00% | N60: 0.00%
A61: 10.1 | B61: \"Condulete em alumínio tipo T de 3/4\"\", inclusive acessórios\" | C61: Unidade | D61: 5.00 | E61: 18.54 | F61: =ROUND(D61*E61,2) -> 92.70 | H61: ='Bm 02'!I61 -> 0 | I61: =G61+H61 -> 0 | J61: =ROUND(G61*E61,2) -> 0 | K61: ='Bm 02'!L61 -> 0 | L61: =J61+K61 -> 0 | M61: 0.00% | N61: 0.00%
A62: 10.2 | B62: \"Condulete em alumínio tipo L de 3/4\"\", inclusive acessórios\" | C62: Unidade | D62: 5.00 | E62: 12.18 | F62: 60.90 | H62: ='Bm 02'!I62 -> 0 | I62: 0 | J62: 0 | K62: ='Bm 02'!L62 -> 0 | L62: 0 | M62: 0.00% | N62: 0.00%
A63: 10.3 | B63: \"Condulete em alumínio tipo TA de 3/4\"\", inclusive acessórios\" | C63: Unidade | D63: 4.00 | E63: 16.38 | F63: 65.52 | H63: ='Bm 02'!I63 -> 0 | I63: 0 | J63: 0 | K63: ='Bm 02'!L63 -> 0 | L63: 0 | M63: 0.00% | N63: 0.00%
A64: 10.4 | B64: \"Condulete em alumínio tipo XA de 3/4\"\", inclusive acessórios\" | C64: Unidade | D64: 1.00 | E64: 18.91 | F64: 18.91 | H64: ='Bm 02'!I64 -> 0 | I64: 0 | J64: 0 | K64: ='Bm 02'!L64 -> 0 | L64: 0 | M64: 0.00% | N64: 0.00%
A65: 10.5 | B65: \"Caixa de PVC 4x2\"\", inclusive espelho\" | C65: Unidade | D65: 16.00 | E65: 8.47 | F65: 135.52 | H65: ='Bm 02'!I65 -> 0 | I65: 0 | J65: 0 | K65: ='Bm 02'!L65 -> 0 | L65: 0 | M65: 0.00% | N65: 0.00%
A66: 10.6 | B66: Condutor de cobre unipolar, isolaçãoem PVC/70ºC, camada de proteção em PVC, não propagador de chamas, classe de tensão 750V,encordoamento classe 5, flexível, com seção 2,5 mm² | C66: M | D66: 190.00 | E66: 2.77 | F66: 526.30 | H66: ='Bm 02'!I66 -> 0 | I66: 0 | J66: 0 | K66: ='Bm 02'!L66 -> 0 | L66: 0 | M66: 0.00% | N66: 0.00%
A67: 10.7 | B67: Condutor de cobre unipolar, isolação em PVC/70ºC, camada de proteção em PVC, não propagador de chamas, classe detensão 750V,encordoamento classe 5, flexível, com seção 4 mm² | C67: M | D67: 820.00 | E67: 4.36 | F67: 3,575.20 | H67: ='Bm 02'!I67 -> 0 | I67: 0 | J67: 0 | K67: ='Bm 02'!L67 -> 0 | L67: 0 | M67: 0.00% | N67: 0.00%
A68: 10.8 | B68: Condutor de cobre unipolar, isolação em PVC/70ºC, camada de proteção em PVC, não propagador de chamas, classe de tensão 750V, encordoamento classe 5, flexível, com seção 16mm² | C68: M | D68: 14.00 | E68: 14.68 | F68: 205.52 | H68: ='Bm 02'!I68 -> 0 | I68: 0 | J68: 0 | K68: ='Bm 02'!L68 -> 0 | L68: 0 | M68: 0.00% | N68: 0.00%
A69: 10.9 | B69: Condutor de cobre unipolar, isolação em PVC/90ºC, camada de proteção em PVC, não propagador de chamas, classe de tensão 1000V, encordoamento classe 5, flexível, com seção 35 mm² | C69: M | D69: 41.00 | E69: 22.02 | F69: 902.82 | H69: ='Bm 02'!I69 -> 0 | I69: 0 | J69: 0 | K69: ='Bm 02'!L69 -> 0 | L69: 0 | M69: 0.00% | N69: 0.00%
A70: 10.10 | B70: Tomada 2p + t de embutir, 10 A, completa | C70: Unidade | D70: 2.00 | E70: 24.88 | F70: 49.76 | H70: ='Bm 02'!I70 -> 0 | I70: 0 | J70: 0 | K70: ='Bm 02'!L70 -> 0 | L70: 0 | M70: 0.00% | N70: 0.00%
A71: 10.11 | B71: Tomada 2p + t para piso, 10 A, completa | C71: Unidade | D71: 1.00 | E71: 12.36 | F71: 12.36 | H71: ='Bm 02'!I71 -> 0 | I71: 0 | J71: 0 | K71: ='Bm 02'!L71 -> 0 | L71: 0 | M71: 0.00% | N71: 0.00%
A72: 10.12 | B72: Interruptor 1 tecla simples | C72: Unidade | D72: 7.00 | E72: 23.53 | F72: 164.71 | H72: ='Bm 02'!I72 -> 0 | I72: 0 | J72: 0 | K72: ='Bm 02'!L72 -> 0 | L72: 0 | M72: 0.00% | N72: 0.00%
A73: 10.13 | B73: Disjuntor termomagnetico monopolar 10 A, padrão DIN (linha branca) | C73: Unidade | D73: 5.00 | E73: 15.87 | F73: 79.35 | H73: ='Bm 02'!I73 -> 0 | I73: 0 | J73: 0 | K73: ='Bm 02'!L73 -> 0 | L73: 0 | M73: =J73/F73 -> 0.00% | N73: =L73/F73 -> 0.00%
A74: 10.14 | B74: Disjuntor termomagnetico binopolar 20 A, padrão DIN (linha branca) | C74: Unidade | D74: 5.00 | E74: 15.87 | F74: 79.35 | H74: ='Bm 02'!I74 -> 0 | I74: 0 | J74: 0 | K74: ='Bm 02'!L74 -> 0 | L74: 0 | M74: 0.00% | N74: 0.00%
A75: 10.15 | B75: Disjuntortermomagneticobinopolar 25 A, padrão DIN (linha branca) | C75: Unidade | D75: 8.00 | E75: 15.87 | F75: 126.96 | H75: ='Bm 02'!I75 -> 0 | I75: 0 | J75: 0 | K75: ='Bm 02'!L75 -> 0 | L75: 0 | M75: 0.00% | N75: 0.00%
A76: 10.16 | B76: Disjuntor termomagnetico triopolar 150 A, padrão DIN (linha branca) | C76: Unidade | D76: 2.00 | E76: 397.51 | F76: 795.02 | H76: ='Bm 02'!I76 -> 0 | I76: 0 | J76: 0 | K76: ='Bm 02'!L76 -> 0 | L76: 0 | M76: 0.00% | N76: 0.00%
A77: 10.17 | B77: Disjuntor termomagnetico triopolar 175 A, padrão DIN (linha branca) | C77: Unidade | D77: 1.00 | E77: 1,018.63 | F77: 1,018.63 | H77: ='Bm 02'!I77 -> 0 | I77: 0 | J77: 0 | K77: ='Bm 02'!L77 -> 0 | L77: 0 | M77: 0.00% | N77: 0.00%
A78: 10.18 | B78: Dispositivo residual diferencial - DR 125A In 30 mA | C78: Unidade | D78: 1.00 | E78: 211.00 | F78: 211.00 | H78: ='Bm 02'!I78 -> 0 | I78: 0 | J78: 0 | K78: ='Bm 02'!L78 -> 0 | L78: 0 | M78: 0.00% | N78: 0.00%
A79: 10.19 | B79: Quadro de distribuição de embutir,com barramento, em chapa de aço, para 4 disjuntores unipolares + 8 bipolares + 1 tripolar +1 DR, padrão europeu(linha branca), exclusive disjuntores | C79: Unidade | D79: 1.00 | E79: 254.55 | F79: 254.55 | H79: ='Bm 02'!I79 -> 0 | I79: 0 | J79: 0 | K79: ='Bm 02'!L79 -> 0 | L79: 0 | M79: 0.00% | N79: 0.00%
A80: 10.20 | B80: Quadro de distribuição de embutir, com barramento, em chapa de aço, para 1 disjuntor unipolar + 5bipolares + 2 tripolares,padrão europeu (linha branca), exclusive disjuntores | C80: Unidade | D80: 1.00 | E80: 399.47 | F80: 399.47 | H80: ='Bm 02'!I80 -> 0 | I80: 0 | J80: 0 | K80: ='Bm 02'!L80 -> 0 | L80: 0 | M80: 0.00% | N80: 0.00%
A81: 10.21 | B81: \"Eletrodutode pvc rígido roscável, 1\"\", inclusive curvas\" | C81: M | D81: 5.00 | E81: 12.10 | F81: 60.50 | H81: ='Bm 02'!I81 -> 0 | I81: 0 | J81: 0 | K81: ='Bm 02'!L81 -> 0 | L81: 0 | M81: 0.00% | N81: 0.00%
A82: 10.22 | B82: \"Eletroduto de pvc rígido roscável, 3/4\"\", inclusive curvas\" | C82: M | D82: 5.00 | E82: 9.29 | F82: 46.45 | H82: ='Bm 02'!I82 -> 0 | I82: 0 | J82: 0 | K82: ='Bm 02'!L82 -> 0 | L82: 0 | M82: 0.00% | N82: 0.00%
A83: 10.23 | B83: \"Eletroduto de pvc rígido roscável, 1.1/2\"\", inclusive curvas\" | C83: M | D83: 5.00 | E83: 12.69 | F83: 63.45 | H83: ='Bm 02'!I83 -> 0 | I83: 0 | J83: 0 | K83: ='Bm 02'!L83 -> 0 | L83: 0 | M83: 0.00% | N83: 0.00%
A84: 10.24 | B84: Eletrodutode ferro galvanizado d= 3/4\"\" - inclusive braçadeiras\" | C84: M | D84: 86.00 | E84: 14.99 | F84: 1,289.14 | H84: ='Bm 02'!I84 -> 0 | I84: 0 | J84: 0 | K84: ='Bm 02'!L84 -> 0 | L84: 0 | M84: 0.00% | N84: 0.00%
A85: 10.25 | B85: \"Eletroduto de ferro galvanizado d= 1\"\" - inclusive braçadeiras\" | C85: M | D85: 17.00 | E85: 18.46 | F85: 313.82 | H85: ='Bm 02'!I85 -> 0 | I85: 0 | J85: 0 | K85: ='Bm 02'!L85 -> 0 | L85: 0 | M85: 0.00% | N85: 0.00%
A86: 10.26 | B86: \"Eletrodutode ferro galvanizado d= 1.1/2\"\" - inclusive braçadeiras\" | C86: M | D86: 34.00 | E86: 31.87 | F86: 1,083.58 | H86: ='Bm 02'!I86 -> 0 | I86: 0 | J86: 0 | K86: ='Bm 02'!L86 -> 0 | L86: 0 | M86: 0.00% | N86: 0.00%
A87: 10.27 | B87: Luminária calha sobrepor p/lamp.fluorescente 2x40w, completa, incl.reator eletronico e lampadas | C87: Unidade | D87: 6.00 | E87: 95.01 | F87: 570.06 | H87: ='Bm 02'!I87 -> 0 | I87: 0 | J87: 0 | K87: ='Bm 02'!L87 -> 0 | L87: 0 | M87: 0.00% | N87: 0.00%
A88: 10.28 | B88: Luminária calha sobrepor p/lamp.fluorescente 1x40w, completa, incl.reator eletronico e lampadas | C88: Unidade | D88: 1.00 | E88: 77.49 | F88: 77.49 | H88: ='Bm 02'!I88 -> 0 | I88: 0 | J88: 0 | K88: ='Bm 02'!L88 -> 0 | L88: 0 | M88: 0.00% | N88: 0.00%
A89: 10.29 | B89: Lumináriablindada p/ alta pressão, linha industrial projetor hermético para lâmpada de luz mista de 500 W, com proteção da lâmpada | C89: Unidade | D89: 15.00 | E89: 270.57 | F89: 4,058.55 | H89: ='Bm 02'!I89 -> 0 | I89: 0 | J89: 0 | K89: ='Bm 02'!L89 -> 0 | L89: 0 | M89: 0.00% | N89: 0.00%
A90: 11 | B90: SISTEMA DE PROTEÇÃO CONTRA DESCARGAS ATMOSFÉRICAS (SPDA) | F90: =SUM(F91:F96) -> 2,031.80 | J90: =SUM(J91:J96) -> 0 | K90: =SUM(K91:K96) -> 0 | L90: =SUM(L91:L96) -> 0 | M90: 0.00% | N90: 0.00%
A91: 11.1 | B91: Caixa de inspeção 30x30x40 cm com tampa de ferro fundido | C91: Unidade | D91: 5.00 | E91: 60.19 | F91: =ROUND(D91*E91,2) -> 300.95 | H91: ='Bm 02'!I91 -> 0 | I91: =G91+H91 -> 0 | J91: =ROUND(G91*E91,2) -> 0 | K91: ='Bm 02'!L91 -> 0 | L91: =J91+K91 -> 0 | M91: 0.00% | N91: 0.00%
A92: 11.2 | B92: \"Conector de bronze para haste 5/8\"\"\" | C92: Unidade | D92: 12.00 | E92: 13.54 | F92: 162.48 | H92: ='Bm 02'!I92 -> 0 | I92: 0 | J92: 0 | K92: ='Bm 02'!L92 -> 0 | L92: 0 | M92: 0.00% | N92: 0.00%
A93: 11.3 | B93: Cordoalha de cobre nu 35 mm² | C93: Unidade | D93: 24.00 | E93: 39.16 | F93: 939.84 | H93: ='Bm 02'!I93 -> 0 | I93: 0 | J93: 0 | K93: ='Bm 02'!L93 -> 0 | L93: 0 | M93: 0.00% | N93: 0.00%
A94: 11.4 | B94: \"Haste tipo Coopperweld 5/8\"\" - 3m\" | C94: Unidade | D94: 5.00 | E94: 51.10 | F94: 255.50 | H94: ='Bm 02'!I94 -> 0 | I94: 0 | J94: 0 | K94: ='Bm 02'!L94 -> 0 | L94: 0 | M94: 0.00% | N94: 0.00%
A95: 11.5 | B95: Tubo PVC 40 mm | C95: Unidade | D95: 18.00 | E95: 16.11 | F95: 289.98 | H95: ='Bm 02'!I95 -> 0 | I95: 0 | J95: 0 | K95: ='Bm 02'!L95 -> 0 | L95: 0 | M95: 0.00% | N95: 0.00%
A96: 11.6 | B96: Terminal de pressão tipo prensa com 4 parafusos | C96: Unidade | D96: 5.00 | E96: 16.61 | F96: 83.05 | H96: ='Bm 02'!I96 -> 0 | I96: 0 | J96: 0 | K96: ='Bm 02'!L96 -> 0 | L96: 0 | M96: 0.00% | N96: 0.00%
A97: 12 | B97: SERVIÇOS DIVERSOS | F97: =SUM(F98:F109) -> 38,229.80 | J97: =SUM(J98:J109) -> 319.66 | K97: =SUM(K98:K109) -> 0 | L97: =SUM(L98:L109) -> 319.66 | M97: 0.84% | N97: 0.84%
A98: 12.1 | B98: \"Alambrado com tela de arame galvanizado fio 12 bwg, malha 2\"\", revestido em pvc, fixada com tubos de ferro galvanizado 2\"\"\" | C98: m2 | D98: 147.00 | E98: 141.99 | F98: =ROUND(D98*E98,2) -> 20,872.53 | H98: ='Bm 02'!I98 -> 0 | I98: =G98+H98 -> 0 | J98: =ROUND(G98*E98,2) -> 0 | K98: ='Bm 02'!L98 -> 0 | L98: =J98+K98 -> 0 | M98: 0.00% | N98: 0.00%
A99: 12.2 | B99: \"Portão em tubo de ferro galvanizado 2\"\" e tela dearame galvanizado fio 12 bwg, malha 2\"\", revestido em pvc, inclusive dobradiças e fechadura\" | C99: Unidade | D99: 4.00 | E99: 660.58 | F99: 2,642.32 | H99: ='Bm 02'!I99 -> 0 | I99: 0 | J99: 0 | K99: ='Bm 02'!L99 -> 0 | L99: 0 | M99: 0.00% | N99: 0.00%
A100: 12.3 | B100: Bancada em granito cinza andorinha para lavatório com testeiras - espessura 2cm, largura 50 cm, conforme projeto | C100: M | D100: 4.80 | E100: 136.61 | F100: 655.73 | H100: ='Bm 02'!I100 -> 0 | I100: 0 | J100: 0 | K100: ='Bm 02'!L100 -> 0 | L100: 0 | M100: 0.00% | N100: 0.00%
A101: 12.4 | B101: Banco deconcreto armado polido (l=0,45m) sem arestas,conforme projeto | C101: M | D101: 4.80 | E101: 133.19 | F101: 639.31 | G101: 2.40 | H101: ='Bm 02'!I101 -> 0 | I101: 2.40 | J101: 319.66 | K101: ='Bm 02'!L101 -> 0 | L101: 319.66 | M101: 50.00% | N101: 50.00%
A102: 12.5 | B102: \"Barra de apoio para deficiente em ferro galvanizado de 11/2\"\", l = 140cm (lavatório), inclusive parafusos de fixação e pintura\" | C102: Unidade | D102: 2.00 | E102: 116.59 | F102: 233.18 | H102: ='Bm 02'!I102 -> 0 | I102: 0 | J102: 0 | K102: ='Bm 02'!L102 -> 0 | L102: 0 | M102: 0.00% | N102: 0.00%
A103: 12.6 | B103: \"Barra de apoio para deficiente em ferro galvanizado de 11/2\"\", l = 80cm (bacia sanitária e mictório), inclusive parafusos de fixação e pintura\" | C103: Unidade | D103: 8.00 | E103: 470.82 | F103: 3,766.56 | H103: ='Bm 02'!I103 -> 0 | I103: 0 | J103: 0 | K103: ='Bm 02'!L103 -> 0 | L103: 0 | M103: 0.00% | N103: 0.00%
A104: 12.7 | B104: Espelho plano 4mm | C104: m2 | D104: 4.50 | E104: 367.49 | F104: 1,653.71 | H104: ='Bm 02'!I104 -> 0 | I104: 0 | J104: 0 | K104: ='Bm 02'!L104 -> 0 | L104: 0 | M104: 0.00% | N104: 0.00%
A105: 12.8 | B105: Estrutura metálica c/ tabelas de basquete | C105: CJ | D105: 1.00 | E105: 2,357.10 | F105: 2,357.10 | H105: ='Bm 02'!I105 -> 0 | I105: 0 | J105: 0 | K105: ='Bm 02'!L105 -> 0 | L105: 0 | M105: 0.00% | N105: 0.00%
A106: 12.9 | B106: Estrutura metálica de traves de futsal | C106: CJ | D106: 1.00 | E106: 2,135.69 | F106: 2,135.69 | H106: ='Bm 02'!I106 -> 0 | I106: 0 | J106: 0 | K106: ='Bm 02'!L106 -> 0 | L106: 0 | M106: 0.00% | N106: 0.00%
A107: 12.10 | B107: Estrutura metálica p/ rede de voley | C107: CJ | D107: 1.00 | E107: 867.40 | F107: 867.40 | H107: ='Bm 02'!I107 -> 0 | I107: 0 | J107: 0 | K107: ='Bm 02'!L107 -> 0 | L107: 0 | M107: 0.00% | N107: 0.00%
A108: 12.11 | B108: Soleira em granito cinza andorinha, l = 15 cm, e = 2 cm | C108: M | D108: 2.90 | E108: 78.11 | F108: 226.52 | H108: ='Bm 02'!I108 -> 0 | I108: 0 | J108: 0 | K108: ='Bm 02'!L108 -> 0 | L108: 0 | M108: 0.00% | N108: 0.00%
A109: 12.12 | B109: Limpeza geral | C109: m2 | D109: 861.56 | E109: 2.53 | F109: 2,179.75 | H109: ='Bm 02'!I109 -> 0 | I109: 0 | J109: 0 | K109: ='Bm 02'!L109 -> 0 | L109: 0 | M109: 0.00% | N109: 0.00%
A110: 13 | B110: SERVIÇOS PRELIMINARES | F110: =SUM(F111:F114) -> 11,075.86 | J110: =SUM(J111:J114) -> 0 | K110: =SUM(K111:K114) -> 842.16 | L110: =SUM(L111:L114) -> 842.16 | M110: =J110/F110 -> 0.00% | N110: =L110/F110 -> 7.60%
A111: 13.1 | B111: Execução de almoxarifado emcanteiro de obra emchapa de madeira compensada, incluso as prateleiras. | C111: m2 | D111: 12.00 | E111: 632.92 | F111: =ROUND(D111*E111,2) -> 7,595.04 | H111: ='Bm 02'!I111 -> 0 | I111: =G111+H111 -> 0 | J111: =ROUND(G111*E111,2) -> 0 | K111: ='Bm 02'!L111 -> 0 | L111: =J111+K111 -> 0 | M111: =J111/F111 -> 0.00% | N111: =L111/F111 -> 0.00%
A112: 13.2 | B112: Placa da obra emaço galvanizado, inclusive assentamento. | C112: m2 | D112: 3.00 | E112: 340.39 | F112: =ROUND(D112*E112,2) -> 1,021.17 | H112: ='Bm 02'!I112 -> 0 | I112: =G112+H112 -> 0 | J112: =ROUND(G112*E112,2) -> 0 | K112: ='Bm 02'!L112 -> 0 | L112: =J112+K112 -> 0 | M112: =J112/F112 -> 0.00% | N112: =L112/F112 -> 0.00%
A113: 13.3 | B113: Instalação provisória de energia elétrica, áerea, trifasica, em poste galvanizado, exclusive fornecimento de medidor. | C113: Unidade | D113: 1.00 | E113: 1,617.49 | F113: =ROUND(D113*E113,2) -> 1,617.49 | H113: ='Bm 02'!I113 -> 0 | I113: =G113+H113 -> 0 | J113: =ROUND(G113*E113,2) -> 0 | K113: ='Bm 02'!L113 -> 0 | L113: =J113+K113 -> 0 | M113: =J113/F113 -> 0.00% | N113: =L113/F113 -> 0.00%
A114: 13.4 | B114: Capina e limpeza manual de terreno. | C114: m2 | D114: 633.20 | E114: 1.33 | F114: =ROUND(D114*E114,2) -> 842.16 | H114: ='Bm 02'!I114 -> 633.20 | I114: =G114+H114 -> 633.20 | J114: =ROUND(G114*E114,2) -> 0 | K114: ='Bm 02'!L114 -> 842.16 | L114: =J114+K114 -> 842.16 | M114: =J114/F114 -> 0.00% | N114: =L114/F114 -> 100.00%
A115: 14 | B115: SUPERESTRUTURA | F115: =SUM(F116,F123) -> 7,996.34 | J115: =SUM(J116,J123) -> 0 | K115: =SUM(K116,K123) -> 3,908.01 | L115: =SUM(L116,L123) -> 3,908.01 | M115: =J115/F115 -> 0.00% | N115: =L115/F115 -> 48.87%
A116: 14.1 | B116: PILARES | F116: =SUM(F117:F122) -> 7,702.34 | J116: =SUM(J117:J122) -> 0 | K116: =SUM(K117:K122) -> 3,614.01 | L116: =SUM(L117:L122) -> 3,614.01 | M116: 0.00% | N116: 46.92%
A117: 14.1.1 | B117: Tratamento em concreto com estuque e lixamento. | C117: m2 | D117: 50.00 | E117: 35.90 | F117: =ROUND(D117*E117,2) -> 1,795.00 | H117: ='Bm 02'!I117 -> 25.00 | I117: =G117+H117 -> 25.00 | J117: =ROUND(G117*E117,2) -> 0 | K117: ='Bm 02'!L117 -> 897.50 | L117: =J117+K117 -> 897.50 | M117: 0.00% | N117: 50.00%
A118: 14.1.2 | B118: Preparo de substrato por escarificação mecaânica (CORTE DE CONCRETO) para espessuras até 3 cm. | C118: m2 | D118: 4.80 | E118: 154.75 | F118: 742.80 | H118: ='Bm 02'!I118 -> 2.40 | I118: 2.40 | J118: 0 | K118: ='Bm 02'!L118 -> 371.40 | L118: 371.40 | M118: 0.00% | N118: 50.00%
A119: 14.1.3 | B119: Preparação do substrato (SUPERFICIE DE CONCRETO) E armadura por escovamento manual. | C119: m2 | D119: 4.80 | E119: 6.71 | F119: 32.21 | H119: ='Bm 02'!I119 -> 2.40 | I119: 2.40 | J119: 0 | K119: ='Bm 02'!L119 -> 16.10 | L119: 16.10 | M119: 0.00% | N119: 49.98%
A120: 14.1.4 | B120: Passivação de armadura com primer a base de zinco. | C120: m2 | D120: 4.80 | E120: 105.58 | F120: 506.78 | H120: ='Bm 02'!I120 -> 2.40 | I120: 2.40 | J120: 0 | K120: ='Bm 02'!L120 -> 253.39 | L120: 253.39 | M120: 0.00% | N120: 50.00%
A121: 14.1.5 | B121: Microconcreto fluido (AUTOADENSÁVEL) Com grout até 40% de pó de pedra, lançamento e cura. | C121: M3 | D121: 0.14 | E121: 3,387.99 | F121: 474.32 | H121: ='Bm 02'!I121 -> 0 | I121: 0 | J121: 0 | K121: ='Bm 02'!L121 -> 0 | L121: 0 | M121: 0.00% | N121: 0.00%
A122: 14.1.6 | B122: Ancoragem de alvenarias de bloco cerâmicos com concreto armado. | C122: Serviço | D122: 1.00 | E122: 4,151.23 | F122: 4,151.23 | H122: ='Bm 02'!I122 -> 0.50 | I122: 0.50 | J122: 0 | K122: ='Bm 02'!L122 -> 2,075.62 | L122: 2,075.62 | M122: 0.00% | N122: 50.00%
A123: 14.2 | B123: LAJE PREMOLDADA | F123: =SUM(F124) -> 294.00 | J123: =SUM(J124) -> 0 | K123: =SUM(K124) -> 294.00 | L123: =SUM(L124) -> 294.00 | M123: =J123/F123 -> 0.00% | N123: =L123/F123 -> 100.00%
A124: 14.2.1 | B124: Laje pre-moldada p/forro, sobrecarga 100kg/m2, vãos até 3,50m/e=8 cm, com lajotas e capa c/ concreto FCK=20MPA, 3cm, inter-eixo 38 cm, com escoramento (reaproveitamento de 3X) E ferragem negativa. | C124: m2 | D124: 3.87 | E124: 75.97 | F124: =ROUND(D124*E124,2) -> 294.00 | H124: ='Bm 02'!I124 -> 3.87 | I124: =G124+H124 -> 3.87 | J124: =ROUND(G124*E124,2) -> 0 | K124: ='Bm 02'!L124 -> 294.00 | L124: =J124+K124 -> 294.00 | M124: =J124/F124 -> 0.00% | N124: =L124/F124 -> 100.00%
A125: 15 | B125: PAREDES E PAINÉIS | F125: =SUM(F126:F128) -> 1,945.71 | J125: =SUM(J126:J128) -> 0 | K125: =SUM(K126:K128) -> 1,945.71 | L125: =SUM(L126:L128) -> 1,945.71 | M125: =J125/F125 -> 0.00% | N125: =L125/F125 -> 100.00%
A126: 15.1 | B126: Alvenaria de bloco cerâmico de vedação, 9x19x24 cm, e=19 cm, com argamassa traço - 1:2:8 (CIMENTO/CAL/AREIA), Junta = 2 cm. | C126: m2 | D126: 13.78 | E126: 39.63 | F126: =ROUND(D126*E126,2) -> 546.10 | H126: ='Bm 02'!I126 -> 13.78 | I126: =G126+H126 -> 13.78 | J126: =ROUND(G126*E126,2) -> 0 | K126: ='Bm 02'!L126 -> 546.10 | L126: =J126+K126 -> 546.10 | M126: 0.00% | N126: 100.00%
A127: 15.2 | B127: Alvenaria de tijolo cerâmico maciço (4x9x17), espessura de 0,04 m (FACÃO), com argamssa traço - 1:2:8 (CIMENTO/CAL/AREIA) com junta de 2,0 cm. | C127: m2 | D127: 24.66 | E127: 43.71 | F127: =ROUND(D127*E127,2) -> 1,077.89 | H127: ='Bm 02'!I127 -> 24.66 | I127: =G127+H127 -> 24.66 | J127: =ROUND(G127*E127,2) -> 0 | K127: ='Bm 02'!L127 -> 1,077.89 | L127: =J127+K127 -> 1,077.89 | M127: 0.00% | N127: 100.00%
A128: 15.3 | B128: Cobogó de cimento tipo "VENEZIANA", dimensões de 40 x 40 x 9 cm. | C128: m2 | D128: 6.00 | E128: 53.62 | F128: =ROUND(D128*E128,2) -> 321.72 | H128: ='Bm 02'!I128 -> 6.00 | I128: =G128+H128 -> 6.00 | J128: =ROUND(G128*E128,2) -> 0 | K128: ='Bm 02'!L128 -> 321.72 | L128: =J128+K128 -> 321.72 | M128: 0.00% | N128: 100.00%
A129: 16 | B129: REVESTIMENTOS | F129: =SUM(F130:F132) -> 2,674.72 | J129: =SUM(J130:J132) -> 0 | K129: =SUM(K130:K132) -> 2,674.72 | L129: =SUM(L130:L132) -> 2,674.72 | M129: 0.00% | N129: 100.00%
A130: 16.1 | B130: Chapisco aplicado em alvenaria (SEM PRESENÇA DE VÃOS) e estruturas de concreto de fachadas, com colher de pedriro, argamassa traço 1:3 com preparo manual. | C130: m2 | D130: 64.66 | E130: 6.19 | F130: =ROUND(D130*E130,2) -> 400.25 | H130: ='Bm 02'!I130 -> 64.66 | I130: =G130+H130 -> 64.66 | J130: =ROUND(G130*E130,2) -> 0 | K130: ='Bm 02'!L130 -> 400.25 | L130: =J130+K130 -> 400.25 | M130: 0.00% | N130: 100.00%
A131: 16.2 | B131: Emboço, para recebimento de cerâmica, em argamassa de traço 1:2:8, preparo mecânico com betoneira 400 litros, aplicado manualmente em faces internas da paredes, para ambientes com área entre 5 m2 e 10 m2, com espessura de 20 mm. | C131: m2 | D131: 49.32 | E131: 32.59 | F131: =ROUND(D131*E131,2) -> 1,607.34 | H131: ='Bm 02'!I131 -> 49.32 | I131: =G131+H131 -> 49.32 | J131: =ROUND(G131*E131,2) -> 0 | K131: ='Bm 02'!L131 -> 1,607.34 | L131: =J131+K131 -> 1,607.34 | M131: 0.00% | N131: 100.00%
A132: 16.3 | B132: Massa única, Para recebimento de pintura, em argamassa de traço 1:2:8, preparo mecânico com betoneira 400 litros, aplicada manualmenteem faces internas de paredes, espessura de 20 mm. | C132: m2 | D132: 33.44 | E132: 19.95 | F132: =ROUND(D132*E132,2) -> 667.13 | H132: ='Bm 02'!I132 -> 33.44 | I132: =G132+H132 -> 33.44 | J132: =ROUND(G132*E132,2) -> 0 | K132: ='Bm 02'!L132 -> 667.13 | L132: =J132+K132 -> 667.13 | M132: 0.00% | N132: 100.00%
A133: 17 | B133: PISOS | F133: =SUM(F134) -> 2,564.59 | J133: =SUM(J134) -> 0 | K133: =SUM(K134) -> 0 | L133: =SUM(L134) -> 0 | M133: =J133/F133 -> 0.00% | N133: =L133/F133 -> 0.00%
A134: 17.1 | B134: Piso em concreto 20 MPA preparo mecanico, espessura de 7 cm, incluso selante elastico a base de poliuretano e contrapiso. | C134: m2 | D134: 99.48 | E134: 25.78 | F134: =ROUND(D134*E134,2) -> 2,564.59 | H134: ='Bm 02'!I134 -> 0 | I134: =G134+H134 -> 0 | J134: =ROUND(G134*E134,2) -> 0 | K134: ='Bm 02'!L134 -> 0 | L134: =J134+K134 -> 0 | M134: =J134/F134 -> 0.00% | N134: =L134/F134 -> 0.00%
A135: 18 | B135: PINTURA | F135: =SUM(F136) -> 1,246.46 | J135: =SUM(J136) -> 0 | K135: =SUM(K136) -> 0 | L135: =SUM(L136) -> 0 | M135: =J135/F135 -> 0.00% | N135: =L135/F135 -> 0.00%
A136: 18.1 | B136: Junta de dilatação para impermeabilização, com selante elastico monocomponente a base de poliuretano, dimensões de 1 x 1 cm. | C136: M | D136: 57.60 | E136: 21.64 | F136: =ROUND(D136*E136,2) -> 1,246.46 | H136: ='Bm 02'!I136 -> 0 | I136: =G136+H136 -> 0 | J136: =ROUND(G136*E136,2) -> 0 | K136: ='Bm 02'!L136 -> 0 | L136: =J136+K136 -> 0 | M136: =J136/F136 -> 0.00% | N136: =L136/F136 -> 0.00%
A137: 19 | B137: INSTALAÇÕES HIDRÁULICAS | F137: =SUM(F138:F143) -> 710.99 | J137: =SUM(J138:J143) -> 163.77 | K137: =SUM(K138:K143) -> 547.22 | L137: =SUM(L138:L143) -> 710.99 | M137: =J137/F137 -> 23.03% | N137: =L137/F137 -> 100.00%
A138: 19.1 | B138: Adaptador com flnge e anel de vedação, PVC, soldavel, DN 25 mm X 3/4", instalado em reservação de água de edificação que possua reservatório de fibra/fibrocimento, fornecimento e instalação. | C138: Unidade | D138: 3.00 | E138: 21.95 | F138: =ROUND(D138*E138,2) -> 65.85 | G138: 3.00 | H138: ='Bm 02'!I138 -> 0 | I138: =G138+H138 -> 3.00 | J138: =ROUND(G138*E138,2) -> 65.85 | K138: ='Bm 02'!L138 -> 0 | L138: =J138+K138 -> 65.85 | M138: 100.00% | N138: 100.00%
A139: 19.2 | B139: Adaptador com flnge e anel de vedação, PVC, soldavel, DN 50 mm X 1 1/24", instalado em reservação de água de edificação que possua reservatório de fibra/fibrocimento, fornecimento e instalação. | C139: Unidade | D139: 2.00 | E139: 48.96 | F139: 97.92 | G139: 2.00 | H139: ='Bm 02'!I139 -> 0 | I139: 2.00 | J139: 97.92 | K139: ='Bm 02'!L139 -> 0 | L139: 97.92 | M139: 100.00% | N139: 100.00%
A140: 19.3 | B140: Joelho de 90 graus, CPVC, soldavel, DN 25 mm, instalado em reservação de água de edificação. | C140: Unidade | D140: 4.00 | E140: 13.63 | F140: 54.52 | H140: ='Bm 02'!I140 -> 4.00 | I140: 4.00 | J140: 0 | K140: ='Bm 02'!L140 -> 54.52 | L140: 54.52 | M140: 0.00% | N140: 100.00%
A141: 19.4 | B141: Joelho de 90 graus, CPVC, soldavel, DN 50 mm, instalado em reservação de água de edificação. | C141: Unidade | D141: 6.00 | E141: 65.91 | F141: 395.46 | H141: ='Bm 02'!I141 -> 6.00 | I141: 6.00 | J141: 0 | K141: ='Bm 02'!L141 -> 395.46 | L141: 395.46 | M141: 0.00% | N141: 100.00%
A142: 19.5 | B142: Joelho 90 graus com bucha de latão, PVC, soldável, DN 25 mm X 1/2" instalado em ramal ou sub-ramal de água - Fornecimento e instalação. | C142: Unidade | D142: 2.00 | E142: 12.83 | F142: 25.66 | H142: ='Bm 02'!I142 -> 2.00 | I142: 2.00 | J142: 0 | K142: ='Bm 02'!L142 -> 25.66 | L142: 25.66 | M142: 0.00% | N142: 100.00%
A143: 19.6 | B143: Tubo PVC, soldável, DN 40 mm, instalado em prumada de água - Fornecimento e instalação. | C143: M | D143: 6.00 | E143: 11.93 | F143: 71.58 | H143: ='Bm 02'!I143 -> 6.00 | I143: 6.00 | J143: 0 | K143: ='Bm 02'!L143 -> 71.58 | L143: 71.58 | M143: 0.00% | N143: 100.00%
A144: 20 | B144: INSTALAÇÕES SANITÁRIAS | F144: =SUM(F145:F149) -> 1,420.85 | J144: =SUM(J145:J149) -> 0 | K144: =SUM(K145:K149) -> 1,420.85 | L144: =SUM(L145:L149) -> 1,420.85 | M144: 0.00% | N144: 100.00%
A145: 20.1 | B145: Junção simples , PVC, serie normal, esgoto predial, DN 100 X 100 mm, junta elástica, fornecido e instalado em ramal de descarga ou ramal de esgotosanitário. | C145: Unidade | D145: 5.00 | E145: 39.53 | F145: =ROUND(D145*E145,2) -> 197.65 | H145: ='Bm 02'!I145 -> 5.00 | I145: =G145+H145 -> 5.00 | J145: =ROUND(G145*E145,2) -> 0 | K145: ='Bm 02'!L145 -> 197.65 | L145: =J145+K145 -> 197.65 | M145: 0.00% | N145: 100.00%
A146: 20.2 | B146: Junção simples, PVC, serie R, água pluvial, DN 100 X 75 mm, junta elástica, fornecido e instalado em ramal de encaminhamento. | C146: Unidade | D146: 5.00 | E146: 53.80 | F146: =ROUND(D146*E146,2) -> 269.00 | H146: ='Bm 02'!I146 -> 5.00 | I146: =G146+H146 -> 5.00 | J146: =ROUND(G146*E146,2) -> 0 | K146: ='Bm 02'!L146 -> 269.00 | L146: =J146+K146 -> 269.00 | M146: 0.00% | N146: 100.00%
A147: 20.3 | B147: Tubo PVC, serie normal, esgoto predial, DN 100 mm, fornecido e instalado em ramal de descarga ou ramal de esgoto sanitário. | C147: m | D147: 23.00 | E147: 37.75 | F147: =ROUND(D147*E147,2) -> 868.25 | H147: ='Bm 02'!I147 -> 23.00 | I147: =G147+H147 -> 23.00 | J147: =ROUND(G147*E147,2) -> 0 | K147: ='Bm 02'!L147 -> 868.25 | L147: =J147+K147 -> 868.25 | M147: 0.00% | N147: 100.00%
A148: 20.4 | B148: Tubo PVC, serie normal, esgoto predial, DN 40 mm, fornecido e instalado em ramal de descarga ou ramal de esgoto sanitário. | C148: m | D148: 2.00 | E148: 13.47 | F148: =ROUND(D148*E148,2) -> 26.94 | H148: ='Bm 02'!I148 -> 2.00 | I148: =G148+H148 -> 2.00 | J148: =ROUND(G148*E148,2) -> 0 | K148: ='Bm 02'!L148 -> 26.94 | L148: =J148+K148 -> 26.94 | M148: 0.00% | N148: 100.00%
A149: 20.5 | B149: Tubo PVC, serie normal, esgoto predial, DN 50 mm, fornecido e instalado em ramal de descarga ou ramal de esgoto sanitário. | C149: m | D149: 3.00 | E149: 19.67 | F149: =ROUND(D149*E149,2) -> 59.01 | H149: ='Bm 02'!I149 -> 3.00 | I149: =G149+H149 -> 3.00 | J149: =ROUND(G149*E149,2) -> 0 | K149: ='Bm 02'!L149 -> 59.01 | L149: =J149+K149 -> 59.01 | M149: 0.00% | N149: 100.00%
A150: 21 | B150: NSTALAÇÕES ELÉTRICAS | F150: =SUM(F151:F152) -> 143.22 | J150: =SUM(J151:J152) -> 143.22 | K150: =SUM(K151:K152) -> 0 | L150: =SUM(L151:L152) -> 143.22 | M150: 100.00% | N150: 100.00%
A151: 21.1 | B151: Caixa retangular 4" X 2" em PVC, intalada em parede - Fornecimento e instalação. | C151: Unidade | D151: 8.00 | E151: 8.47 | F151: =ROUND(D151*E151,2) -> 67.76 | G151: 8.00 | H151: ='Bm 02'!I151 -> 0 | I151: =G151+H151 -> 8.00 | J151: =ROUND(G151*E151,2) -> 67.76 | K151: ='Bm 02'!L151 -> 0 | L151: =J151+K151 -> 67.76 | M151: 100.00% | N151: 100.00%
A152: 21.2 | B152: Caixa octogonal 4" X 4", PVC, instalada em laje - Fornecimento e instalação. | C152: Unidade | D152: 7.00 | E152: 10.78 | F152: =ROUND(D152*E152,2) -> 75.46 | G152: 7.00 | H152: ='Bm 02'!I152 -> 0 | I152: =G152+H152 -> 7.00 | J152: =ROUND(G152*E152,2) -> 75.46 | K152: ='Bm 02'!L152 -> 0 | L152: =J152+K152 -> 75.46 | M152: 100.00% | N152: 100.00%
A153: 22 | B153: SERVIÇOS DIVERSOS | F153: =SUM(F154) -> 599.52 | J153: =SUM(J154) -> 0 | K153: =SUM(K154) -> 0 | L153: =SUM(L154) -> 0 | M153: =J153/F153 -> 0.00% | N153: =L153/F153 -> 0.00%
A154: 22.1 | B154: Chuveiro elétrico comum corpo plastico tipo ducha, fornecimento e instalação | C154: Unidade | D154: 8.00 | E154: 74.94 | F154: =ROUND(D154*E154,2) -> 599.52 | H154: ='Bm 02'!I154 -> 0 | I154: =G154+H154 -> 0 | J154: =ROUND(G154*E154,2) -> 0 | K154: ='Bm 02'!L154 -> 0 | L154: =J154+K154 -> 0 | M154: =J154/F154 -> 0.00% | N154: =L154/F154 -> 0.00%
A155: 23 | B155: URBANIZAÇÃO DA ÁREA EXTERNA DA QUADRA | F155: =SUM(F156:F174) -> 169,960.05 | J155: =SUM(J156:J174) -> 60,303.73 | K155: =SUM(K156:K174) -> 40,883.96 | L155: =SUM(L156:L174) -> 101,187.69 | M155: =J155/F155 -> 35.48% | N155: =L155/F155 -> 59.54%
A156: 23.1 | B156: Escavação manual solo de 1a.cat. prof. até 1.50m | C156: m3 | D156: 1.66 | E156: 42.51 | F156: =ROUND(D156*E156,2) -> 70.57 | H156: ='Bm 02'!I156 -> 1.66 | I156: =G156+H156 -> 1.66 | J156: =ROUND(G156*E156,2) -> 0 | K156: ='Bm 02'!L156 -> 70.57 | L156: =J156+K156 -> 70.57 | M156: =J156/F156 -> 0.00% | N156: =L156/F156 -> 100.00%
A157: 23.2 | B157: Corte e dobra de aço AÇO CA-50, diametro de 8.0 MM, utilizado em estruturas diversas. | C157: kg | D157: 260.96 | E157: 7.30 | F157: 1,905.01 | H157: ='Bm 02'!I157 -> 260.96 | I157: 260.96 | J157: 0 | K157: ='Bm 02'!L157 -> 1,905.01 | L157: 1,905.01 | M157: 0.00% | N157: 100.00%
A158: 23.3 | B158: Corte e dobra de aço AÇO CA-60, diametro de 5.0 MM, utilizado em estruturas diversas. | C158: kg | D158: 97.15 | E158: 7.47 | F158: 725.71 | H158: ='Bm 02'!I158 -> 97.15 | I158: 97.15 | J158: 0 | K158: ='Bm 02'!L158 -> 725.71 | L158: 725.71 | M158: 0.00% | N158: 100.00%
A159: 23.4 | B159: Forma plana chapa compensada plastificada, esp.= 12mm util. 5x | C159: m2 | D159: 82.94 | E159: 26.35 | F159: 2,185.47 | H159: ='Bm 02'!I159 -> 82.94 | I159: 82.94 | J159: 0 | K159: ='Bm 02'!L159 -> 2,185.47 | L159: 2,185.47 | M159: 0.00% | N159: 100.00%
A160: 23.5 | B160: Concretagem de peças, FCK = 25 MPA, Com uso de baldes com seção media menor ou igual a 0,25 m2 - Lançamento, adensamento e acabamento. | C160: m3 | D160: 3.53 | E160: 531.32 | F160: 1,875.56 | H160: ='Bm 02'!I160 -> 3.53 | I160: 3.53 | J160: 0 | K160: ='Bm 02'!L160 -> 1,875.56 | L160: 1,875.56 | M160: 0.00% | N160: 100.00%
A161: 23.6 | B161: Alvenaria de tijolo cerâmico (9x19x24)cm, e= 0,09m, com argamassa (traço 1:2:8 - cimento/cal/areia), junta de 2,0cm | C161: m2 | D161: 119.58 | E161: 39.63 | F161: 4,738.96 | H161: ='Bm 02'!I161 -> 119.58 | I161: 119.58 | J161: 0 | K161: ='Bm 02'!L161 -> 4,738.96 | L161: 4,738.96 | M161: 0.00% | N161: 100.00%
A162: 23.7 | B162: Alvenaria de tijolo cerâmico (9x19x24)cm, e= 0,19m, com argamassa (traço 1:2:8 - cimento/cal/areia), junta de 2,0cm | C162: m2 | D162: 32.45 | E162: 67.91 | F162: 2,203.68 | H162: ='Bm 02'!I162 -> 32.45 | I162: 32.45 | J162: 0 | K162: ='Bm 02'!L162 -> 2,203.68 | L162: 2,203.68 | M162: 0.00% | N162: 100.00%
A163: 23.8 | B163: Elemento vazado de concreto (40x40x7cm) assentados com argamassa (imento e areia traço 1:3) | C163: m2 | D163: 53.68 | E163: 53.62 | F163: 2,878.32 | H163: ='Bm 02'!I163 -> 53.68 | I163: 53.68 | J163: 0 | K163: ='Bm 02'!L163 -> 2,878.32 | L163: 2,878.32 | M163: 0.00% | N163: 100.00%
A164: 23.9 | B164: Piso em concreto simples desempolado (esp.=5cm), inclusive contrapiso | C164: m2 | D164: 94.28 | E164: 25.78 | F164: 2,430.54 | G164: 80.00 | H164: ='Bm 02'!I164 -> 0 | I164: 80.00 | J164: 2,062.40 | K164: ='Bm 02'!L164 -> 0 | L164: 2,062.40 | M164: 84.85% | N164: 84.85%
A165: 23.10 | B165: Assentamento de guia (meio fio) em trecho reto,confeccionada em concreto pré-fabricada, dimensões 100X15X13X30 CM (COMPRIMENTO X BASE INFERIOR X BASE SUPERIOR X ALTURA), para vias urbanas. | C165: M | D165: 100.00 | E165: 41.95 | F165: 4,195.00 | G165: 100.00 | H165: ='Bm 02'!I165 -> 0 | I165: 100.00 | J165: 4,195.00 | K165: ='Bm 02'!L165 -> 0 | L165: 4,195.00 | M165: 100.00% | N165: 100.00%
A166: 23.11 | B166: Chapisco c/ argamassa de cimento e areia s/ peneirar traço 1:3 esp.= 5mm p/ parede | C166: m2 | D166: 527.98 | E166: 6.19 | F166: 3,268.20 | H166: ='Bm 02'!I166 -> 527.98 | I166: 527.98 | J166: 0 | K166: ='Bm 02'!L166 -> 3,268.20 | L166: 3,268.20 | M166: 0.00% | N166: 100.00%
A167: 23.12 | B167: Reboco c/argamassa pré-fabricada, adesivo de alta resistência p/tinta epóxi esp= 5mmp/parede | C167: m2 | D167: 711.12 | E167: 19.95 | F167: 14,186.84 | H167: ='Bm 02'!I167 -> 711.12 | I167: 711.12 | J167: 0 | K167: ='Bm 02'!L167 -> 14,186.85 | L167: 14,186.85 | M167: 0.00% | N167: 100.00%
A168: 23.13 | B168: Aterro c/ controle, mat. c/ aquisição compactação manual | C168: m3 | D168: 35.10 | E168: 143.78 | F168: 5,046.68 | H168: ='Bm 02'!I168 -> 35.10 | I168: 35.10 | J168: 0 | K168: ='Bm 02'!L168 -> 5,046.68 | L168: 5,046.68 | M168: 0.00% | N168: 100.00%
A169: 23.14 | B169: Execução de passeio (calçada) ou piso de concreto moldado in loco, usinado, acabamento convencional, Espessura de 6 CM, ARMADO. | C169: m2 | D169: 36.75 | E169: 55.99 | F169: 2,057.63 | G169: 18.37 | H169: ='Bm 02'!I169 -> 18.38 | I169: 36.75 | J169: =F169-K169 -> 1,028.81 | K169: ='Bm 02'!L169 -> 1,028.82 | L169: 2,057.63 | M169: 50.00% | N169: 100.00%
A170: 23.15 | B170: Lastro de concreto magro, aplicado em pisos ou radiers, Espessura de 5 cm. | C170: m2 | D170: 30.50 | E170: 25.25 | F170: 770.13 | H170: ='Bm 02'!I170 -> 30.50 | I170: 30.50 | J170: 0 | K170: ='Bm 02'!L170 -> 770.13 | L170: 770.13 | M170: 0.00% | N170: 100.00%
A171: 23.16 | B171: Guarda corpo em tubo de aço galvanizado de 1 1/2" | C171: M | D171: 24.50 | E171: 253.83 | F171: 6,218.84 | H171: ='Bm 02'!I171 -> 0 | I171: 0 | J171: 0 | K171: ='Bm 02'!L171 -> 0 | L171: 0 | M171: 0.00% | N171: 0.00%
A172: 23.17 | B172: Execução de pátio/estacionamento em piso intertravado, com bloco retangular cor natural de 20 X 10 cm, espessura de 8 CM. | C172: m2 | D172: 1,764.31 | E172: 60.10 | F172: 106,035.03 | G172: 882.16 | H172: ='Bm 02'!I172 -> 0 | I172: 882.16 | J172: 53,017.52 | K172: ='Bm 02'!L172 -> 0 | L172: 53,017.52 | M172: 50.00% | N172: 50.00%
A173: 23.18 | B173: Pintura de acabamento com aplicação de 02 demaõs de tinta acrílica | C173: m2 | D173: 764.80 | E173: 11.23 | F173: 8,588.70 | H173: ='Bm 02'!I173 -> 0 | I173: 0 | J173: 0 | K173: ='Bm 02'!L173 -> 0 | L173: 0 | M173: 0.00% | N173: 0.00%
A174: 23.19 | B174: Esmalte sintético em estrutura de aço carbono 50 micracom revólver, inclusive base. | C174: m2 | D174: 36.75 | E174: 15.76 | F174: 579.18 | H174: ='Bm 02'!I174 -> 0 | I174: 0 | J174: 0 | K174: ='Bm 02'!L174 -> 0 | L174: 0 | M174: 0.00% | N174: 0.00%
A176: TOTAL | F176: =F9+F11+F13+F18+F21+F27+F36+F47+F54+F60+F90+F97+F110+F115+F125+F129+F133+F135+F137+F144+F150+F153+F155 -> 524,984.02 | J176: =J9+J11+J13+J18+J21+J27+J36+J47+J54+J60+J90+J97+J110+J115+J125+J129+J133+J135+J137+J144+J150+J153+J155 -> 84,350.45 | K176: =K9+K11+K13+K18+K21+K27+K36+K47+K54+K60+K90+K97+K110+K115+K125+K129+K133+K135+K137+K144+K150+K153+K155 -> 206,099.15 | L176: =L9+L11+L13+L18+L21+L27+L36+L47+L54+L60+L90+L97+L110+L115+L125+L129+L133+L135+L137+L144+L150+L153+L155 -> 290,449.60 | M176: =J176/F176 -> 16.07% | N176: =L176/F176 -> 55.33%
B181: LUMA PROJETOS E CONSTRUÇÕES LTDA | G181: Resp.: Técnico Fiscalização da Obra | L181: Prefeitura Municipal
B182: CNPJ: 08.869.425/0001-43 | G182: Carimbo e Assinatura | L182: Carimbo e Assinatura
E186: Valor total medido para ser pago pelo saldo do FNDE | F186: =J97+J90+J60+J54+J47+J36+J27+J21+J18+J13+J11+J9 -> R$ 23,739.73
E187: Valor total medido para ser pago com recursos proprios | F187: =J110+J115+J125+J129+J133+J135+J137+J144+J150+J153+J155 -> R$ 60,610.72
E188: VALOR TOTAL DA MEDIÇÃO 01: Cento e quatorze mil, quinhentos e setenta e um reais, vinte centavos. | F188: =F186+F187 -> R$ 84,350.45

Sheet Bm 04
D1: MEDIÇÃO SERVIÇOS Nº: 04 | G1: PERÍODO MEDIÇÃO: 04/06/2020 a 03/07/2020 | P1: BM 01 | Q1: BM 02 | R1: BM 03 | S1: BM 04
F2: MODALIDADE: TOMADA DE PREÇOS Nº. 001/2019 | K2: FONTE DE RECURSOS: RECURSOS PRÓPRIOS E Convênio PAC 2 – 5506/2013 | O2: TOTAL | P2: ='Bm 01'!F188 -> 114,571.20 | Q2: ='Bm 02'!F188 -> 91,527.95 | R2: ='Bm 03'!F188 -> 84,350.45 | S2: =F188 -> 96,798.73
A3: CONTRATANTE: PREFEITURA MUNICIPAL DE PALMAS DE MONTE ALTO - BA | F3: DATA DA PROPOSTA: 24/04/2019 | O3: FNDE | P3: ='Bm 01'!F186 -> 76,338.28 | Q3: ='Bm 02'!F186 -> 77,538.24 | R3: ='Bm 03'!F186 -> 23,739.73 | S3: =F186 -> 38,356.35
A4: TIPO DE EMPREENDIMENTO: CONCLUSÃO DE QUADRA POLIESPORTIVA COBERTA | F4: INÍCIO DA OBRA: 15/06/2019 | K4: FIM DA OBRA: 31/12/2020 | O4: PREF. | P4: ='Bm 01'!F187 -> 38,232.92 | Q4: ='Bm 02'!F187 -> 13,989.71 | R4: ='Bm 03'!F187 -> 60,610.72 | S4: =F187 -> 58,442.38
A5: CONTRATADA: LUMA PROJETOS E CONSTRUÇÕES LTDA | F5: CONTRATO INICIAL: R$ 524.984,02 | K5: CONTRATO Nº: 001/2019TP
A6: LOCALIZAÇÃO: Escola Municipal Wilson Lins, Distrito de Espraiados - Palmas de Monte Alto - BA | F6: CONTRATO ATUALIZADO: R$ 524.984,02 | K6: DATA DE ASSINATURA DO CONTRATO: | O6: medição | P6: mat | Q6: mo | R6: inss | S6: ir
A7: ITEM | B7: DESCRIÇÃO DOS SERVIÇOS | C7: DADOS DO CONTRATO | G7: REALIZAÇÃO FÍSICA | J7: REALIZAÇÃO FINANCEIRA | M7: % EXECUTADA | O7: =J176 -> 96,798.73 | P7: =O7*0.6 -> 58,079.24 | Q7: =O7*0.4 -> 38,719.49 | R7: =O7*0.035 -> 3,387.96 | S7: =O7*0.015 -> 1,451.98
C8: UN | D8: QUANTIDADE | E8: PREÇO UNITÁRIO | F8: VR TOTAL | G8: ATUAL | H8: ANTERIOR | I8: TOTAL | J8: ATUAL | K8: ANTERIOR | L8: TOTAL | M8: ATUAL | N8: TOTAL
A9: 1 | B9: PAREDES E PAINÉIS | F9: =SUM(F10) -> 11,716.19 | J9: =SUM(J10) -> 0 | K9: =SUM(K10) -> 11,716.19 | L9: =SUM(L10) -> 11,716.19 | M9: =J9/F9 -> 0.00% | N9: =L9/F9 -> 100.00%
A10: 1.1 | B10: Elemento vazado de concreto (50x50x10cm) anti-chuva assentados com argamassa (cimento e areia traço 1:3) | C10: m2 | D10: 148.10 | E10: 79.11 | F10: =ROUND(D10*E10,2) -> 11,716.19 | H10: ='Bm 03'!I10 -> 148.10 | I10: =G10+H10 -> 148.10 | J10: =ROUND(G10*E10,2) -> 0 | K10: ='Bm 03'!L10 -> 11,716.19 | L10: =J10+K10 -> 11,716.19 | M10: 0.00% | N10: 100.00%
A11: 2 | B11: COBERTURA | F11: =SUM(F12) -> 59,131.12 | J11: =SUM(J12) -> 5,913.11 | K11: =SUM(K12) -> 53,218.01 | L11: =SUM(L12) -> 59,131.12 | M11: 10.00% | N11: 100.00%
A12: 2.1 | B12: Telha metálica em chapa galvanizada e=0.5mm | C12: m2 | D12: 1,114.00 | E12: 53.08 | F12: =ROUND(D12*E12,2) -> 59,131.12 | G12: =D12-H12 -> 111.40 | H12: ='Bm 03'!I12 -> 1,002.60 | I12: =G12+H12 -> 1,114.00 | J12: =ROUND(G12*E12,2) -> 5,913.11 | K12: ='Bm 03'!L12 -> 53,218.01 | L12: =J12+K12 -> 59,131.12 | M12: 10.00% | N12: 100.00%
A13: 3 | B13: ESQUADRIAS | F13: =SUM(F14:F17) -> 5,931.43 | J13: =SUM(J14:J17) -> 5,931.43 | K13: =SUM(K14:K17) -> 0 | L13: =SUM(L14:L17) -> 5,931.43 | M13: 100.00% | N13: 100.00%
A14: 3.1 | B14: Porta de madeira (1,00x2,10 m) com bandeira (1,00x0,80 m) - inclusive ferragens, conforme projeto de esquadrias | C14: Unidade | D14: 2.00 | E14: 940.08 | F14: =ROUND(D14*E14,2) -> 1,880.16 | G14: 2.00 | H14: ='Bm 03'!I14 -> 0 | I14: =G14+H14 -> 2.00 | J14: =ROUND(G14*E14,2) -> 1,880.16 | K14: ='Bm 03'!L14 -> 0 | L14: =J14+K14 -> 1,880.16 | M14: 100.00% | N14: 100.00%
A15: 3.2 | B15: Porta de madeira (0,90x2,10 m) - inclusive ferragens, conforme projeto de esquadrias | C15: Unidade | D15: 1.00 | E15: 828.69 | F15: =ROUND(D15*E15,2) -> 828.69 | G15: 1.00 | H15: ='Bm 03'!I15 -> 0 | I15: =G15+H15 -> 1.00 | J15: =ROUND(G15*E15,2) -> 828.69 | K15: ='Bm 03'!L15 -> 0 | L15: =J15+K15 -> 828.69 | M15: 100.00% | N15: 100.00%
A16: 3.3 | B16: Porta de madeira - Banheiros e Sanitários (0,60 m) completa inclusive targeta metálica | C16: Unidade | D16: 4.00 | E16: 565.77 | F16: =ROUND(D16*E16,2) -> 2,263.08 | G16: 4.00 | H16: ='Bm 03'!I16 -> 0 | I16: =G16+H16 -> 4.00 | J16: =ROUND(G16*E16,2) -> 2,263.08 | K16: ='Bm 03'!L16 -> 0 | L16: =J16+K16 -> 2,263.08 | M16: 100.00% | N16: 100.00%
A17: 3.4 | B17: Porta de madeira - Banheiros e Sanitários (0,80 m) completa inclusive targeta metálica - WC PNE | C17: Unidade | D17: 2.00 | E17: 479.75 | F17: =ROUND(D17*E17,2) -> 959.50 | G17: 2.00 | H17: ='Bm 03'!I17 -> 0 | I17: =G17+H17 -> 2.00 | J17: =ROUND(G17*E17,2) -> 959.50 | K17: ='Bm 03'!L17 -> 0 | L17: =J17+K17 -> 959.50 | M17: 100.00% | N17: 100.00%
A18: 4 | B18: REVESTIMENTOS | F18: =SUM(F19:F20) -> 20,020.64 | J18: =SUM(J19:J20) -> 2,472.60 | K18: =SUM(K19:K20) -> 17,548.04 | L18: =SUM(L19:L20) -> 20,020.64 | M18: 12.35% | N18: 100.00%
A19: 4.1 | B19: Revestimento cerâmico de paredes PEI IV - cerâmica 20 x 20 cm - incl. rejunte - conforme projeto | C19: m2 | D19: 328.00 | E19: 48.29 | F19: =ROUND(D19*E19,2) -> 15,839.12 | G19: =D19-H19 -> 48.00 | H19: ='Bm 03'!I19 -> 280.00 | I19: =G19+H19 -> 328.00 | J19: =ROUND(G19*E19,2) -> 2,317.92 | K19: ='Bm 03'!L19 -> 13,521.20 | L19: =J19+K19 -> 15,839.12 | M19: 14.63% | N19: 100.00%
A20: 4.2 | B20: Revestimento cerâmico de paredes PEI IV - cerâmica 10 x 10 cm - incl. rejunte - conforme projeto | C20: m2 | D20: 81.10 | E20: 51.56 | F20: =ROUND(D20*E20,2) -> 4,181.52 | G20: =D20-H20 -> 3.00 | H20: ='Bm 03'!I20 -> 78.10 | I20: =G20+H20 -> 81.10 | J20: =ROUND(G20*E20,2) -> 154.68 | K20: ='Bm 03'!L20 -> 4,026.84 | L20: =J20+K20 -> 4,181.52 | M20: 3.70% | N20: 100.00%
A21: 5 | B21: PISOS | F21: =SUM(F22:F26) -> 62,634.19 | J21: =SUM(J22:J26) -> 11,790.49 | K21: =SUM(K22:K26) -> 50,843.70 | L21: =SUM(L22:L26) -> 62,634.19 | M21: 18.82% | N21: 100.00%
A22: 5.1 | B22: Lastro de brita graduada apiloada (esp.=6 cm) | C22: m2 | D22: 633.20 | E22: 13.43 | F22: =ROUND(D22*E22,2) -> 8,503.88 | H22: ='Bm 03'!I22 -> 633.20 | I22: =G22+H22 -> 633.20 | J22: =ROUND(G22*E22,2) -> 0 | K22: ='Bm 03'!L22 -> 8,503.88 | L22: =J22+K22 -> 8,503.88 | M22: 0.00% | N22: 100.00%
A23: 5.2 | B23: Piso em concreto armado com tela e juntas de dilatação (esp.=10cm) | C23: m2 | D23: 633.20 | E23: 55.99 | F23: =ROUND(D23*E23,2) -> 35,452.87 | H23: ='Bm 03'!I23 -> 633.20 | I23: =G23+H23 -> 633.20 | J23: =ROUND(G23*E23,2) -> 0 | K23: ='Bm 03'!L23 -> 35,452.87 | L23: =J23+K23 -> 35,452.87 | M23: 0.00% | N23: 100.00%
A24: 5.3 | B24: Piso em concreto simples desempolado (esp.=5cm), inclusive contrapiso | C24: m2 | D24: 107.47 | E24: 25.78 | F24: =ROUND(D24*E24,2) -> 2,770.58 | H24: ='Bm 03'!I24 -> 107.47 | I24: =G24+H24 -> 107.47 | J24: =ROUND(G24*E24,2) -> 0 | K24: ='Bm 03'!L24 -> 2,770.58 | L24: =J24+K24 -> 2,770.58 | M24: 0.00% | N24: 100.00%
A25: 5.4 | B25: Junta de retração, serrada com disco diamantado, parapavimentos em placa de concreto, profund.= 5cm, inclusive preenchimento com mastique | C25: m | D25: 627.05 | E25: 21.64 | F25: =ROUND(D25*E25,2) -> 13,569.36 | G25: =D25-H25 -> 501.64 | H25: ='Bm 03'!I25 -> 125.41 | I25: =G25+H25 -> 627.05 | J25: =ROUND(G25*E25,2) -> 10,855.49 | K25: ='Bm 03'!L25 -> 2,713.87 | L25: =J25+K25 -> 13,569.36 | M25: 80.00% | N25: 100.00%
A26: 5.5 | B26: Piso cerâmico esmaltado PEI V - 33 x 33 cm - incl. rejunte - conforme projeto | C26: m2 | D26: 62.50 | E26: 37.40 | F26: =ROUND(D26*E26,2) -> 2,337.50 | G26: =D26-H26 -> 25.00 | H26: ='Bm 03'!I26 -> 37.50 | I26: =G26+H26 -> 62.50 | J26: =ROUND(G26*E26,2) -> 935.00 | K26: ='Bm 03'!L26 -> 1,402.50 | L26: =J26+K26 -> 2,337.50 | M26: 40.00% | N26: 100.00%
A27: 6 | B27: PINTURA | F27: =SUM(F28:F35) -> 80,615.19 | J27: =SUM(J28:J35) -> 0 | K27: =SUM(K28:K35) -> 22,863.73 | L27: =SUM(L28:L35) -> 22,863.73 | M27: 0.00% | N27: 28.36%
A28: 6.1 | B28: Aplicação de selador acrílico | C28: m2 | D28: 847.20 | E28: 2.72 | F28: =ROUND(D28*E28,2) -> 2,304.38 | H28: ='Bm 03'!I28 -> 0 | I28: =G28+H28 -> 0 | J28: =ROUND(G28*E28,2) -> 0 | K28: ='Bm 03'!L28 -> 0 | L28: =J28+K28 -> 0 | M28: 0.00% | N28: 0.00%
A29: 6.2 | B29: Demarcação de quadra com tinta acrílica | C29: m | D29: 360.00 | E29: 11.18 | F29: 4,024.80 | H29: ='Bm 03'!I29 -> 0 | I29: 0 | J29: 0 | K29: ='Bm 03'!L29 -> 0 | L29: 0 | M29: 0.00% | N29: 0.00%
A30: 6.3 | B30: Emassamento de superfície, comaplicação de 02 demãosde massa acrílica | C30: m2 | D30: 88.60 | E30: 22.59 | F30: 2,001.47 | H30: ='Bm 03'!I30 -> 0 | I30: 0 | J30: 0 | K30: ='Bm 03'!L30 -> 0 | L30: 0 | M30: 0.00% | N30: 0.00%
A31: 6.4 | B31: Esmalte sintético em estrutura de aço carbono 50 micracom revólver | C31: m2 | D31: 1,114.00 | E31: 15.76 | F31: 17,556.64 | H31: ='Bm 03'!I31 -> 1,002.60 | I31: 1,002.60 | J31: 0 | K31: ='Bm 03'!L31 -> 15,800.97 | L31: 15,800.97 | M31: 0.00% | N31: 90.00%
A32: 6.5 | B32: Pintura c/ primer epoxi em estrutura de aço carbono 25 micra com revólver | C32: m2 | D32: 1,114.00 | E32: 6.34 | F32: 7,062.76 | H32: ='Bm 03'!I32 -> 1,114.00 | I32: 1,114.00 | J32: 0 | K32: ='Bm 03'!L32 -> 7,062.76 | L32: 7,062.76 | M32: 0.00% | N32: 100.00%
A33: 6.6 | B33: Pintura de acabamento com aplicação de 02 demaõs de tinta acrílica | C33: m2 | D33: 847.20 | E33: 11.23 | F33: 9,514.06 | H33: ='Bm 03'!I33 -> 0 | I33: 0 | J33: 0 | K33: ='Bm 03'!L33 -> 0 | L33: 0 | M33: 0.00% | N33: 0.00%
A34: 6.7 | B34: Pintura de piso com tinta à base de resina epóxi | C34: m2 | D34: 480.00 | E34: 58.23 | F34: 27,950.40 | H34: ='Bm 03'!I34 -> 0 | I34: 0 | J34: 0 | K34: ='Bm 03'!L34 -> 0 | L34: 0 | M34: 0.00% | N34: 0.00%
A35: 6.8 | B35: Pintura em tinta PVA latex (02 demãos), inclusive emassamento | C35: m2 | D35: 476.00 | E35: 21.43 | F35: 10,200.68 | H35: ='Bm 03'!I35 -> 0 | I35: 0 | J35: 0 | K35: ='Bm 03'!L35 -> 0 | L35: 0 | M35: 0.00% | N35: 0.00%
A36: 7 | B36: INSTALAÇÕES HIDRÁULICAS | F36: =SUM(F37:F46) -> 3,977.15 | J36: =SUM(J37:J46) -> 1,200.88 | K36: =SUM(K37:K46) -> 1,575.39 | L36: =SUM(L37:L46) -> 2,776.27 | M36: 30.19% | N36: 69.81%
A37: 7.1 | B37: Caixa d´água em fibra de vidro - cap. 3.000 litros | C37: Unidade | D37: 1.00 | E37: 681.62 | F37: =ROUND(D37*E37,2) -> 681.62 | H37: ='Bm 03'!I37 -> 1.00 | I37: =G37+H37 -> 1.00 | J37: =ROUND(G37*E37,2) -> 0 | K37: ='Bm 03'!L37 -> 681.62 | L37: =J37+K37 -> 681.62 | M37: 0.00% | N37: 100.00%
A38: 7.2 | B38: Engate flexível plástico | C38: Unidade | D38: 10.00 | E38: 7.65 | F38: 76.50 | H38: ='Bm 03'!I38 -> 10.00 | I38: 10.00 | J38: 0 | K38: ='Bm 03'!L38 -> 76.50 | L38: 76.50 | M38: 0.00% | N38: 100.00%
A39: 7.3 | B39: \"Torneira cromada para lavatório1/2\"\"\" | C39: Unidade | D39: 8.00 | E39: 49.65 | F39: 397.20 | H39: ='Bm 03'!I39 -> 8.00 | I39: 8.00 | J39: 0 | K39: ='Bm 03'!L39 -> 397.20 | L39: 397.20 | M39: 0.00% | N39: 100.00%
A40: 7.4 | B40: \"Torneira de bóia p/caixa d'agua em pvc d = 3/4\"\"\" | C40: Unidade | D40: 1.00 | E40: 35.72 | F40: 35.72 | H40: ='Bm 03'!I40 -> 1.00 | I40: 1.00 | J40: 0 | K40: ='Bm 03'!L40 -> 35.72 | L40: 35.72 | M40: 0.00% | N40: 100.00%
A41: 7.5 | B41: Tubo PVCrígido soldável - 20 mm | C41: M | D41: 5.00 | E41: 16.33 | F41: 81.65 | H41: ='Bm 03'!I41 -> 5.00 | I41: 5.00 | J41: 0 | K41: ='Bm 03'!L41 -> 81.65 | L41: 81.65 | M41: 0.00% | N41: 100.00%
A42: 7.6 | B42: Tubo PVCrígido soldável - 25 mm | C42: M | D42: 5.00 | E42: 19.36 | F42: 96.80 | H42: ='Bm 03'!I42 -> 5.00 | I42: 5.00 | J42: 0 | K42: ='Bm 03'!L42 -> 96.80 | L42: 96.80 | M42: 0.00% | N42: 100.00%
A43: 7.7 | B43: Tubo PVC rígido soldável - 32 mm | C43: M | D43: 5.00 | E43: 26.42 | F43: 132.10 | H43: ='Bm 03'!I43 -> 5.00 | I43: 5.00 | J43: 0 | K43: ='Bm 03'!L43 -> 132.10 | L43: 132.10 | M43: 0.00% | N43: 100.00%
A44: 7.8 | B44: Tubo PVC rígido soldável - 50 mm | C44: M | D44: 5.00 | E44: 14.76 | F44: 73.80 | H44: ='Bm 03'!I44 -> 5.00 | I44: 5.00 | J44: 0 | K44: ='Bm 03'!L44 -> 73.80 | L44: 73.80 | M44: 0.00% | N44: 100.00%
A45: 7.9 | B45: Vaso sanitario para deficientes físicos para válvula de descarga, em louca branca, com acessórios,inclusive assento,conjunto de fixação, anelde vedação, tubo PVC de ligação | C45: Unidade | D45: 2.00 | E45: 779.18 | F45: 1,558.36 | G45: 1.00 | H45: ='Bm 03'!I45 -> 0 | I45: 1.00 | J45: 779.18 | K45: ='Bm 03'!L45 -> 0 | L45: 779.18 | M45: 50.00% | N45: 50.00%
A46: 7.10 | B46: Vaso sanitario sifonado, para louca branca, com acessórios, inclusive assento plástico, anel de vedação, tubo PVC de ligação | C46: Unidade | D46: 4.00 | E46: 210.85 | F46: 843.40 | G46: 2.00 | H46: ='Bm 03'!I46 -> 0 | I46: 2.00 | J46: 421.70 | K46: ='Bm 03'!L46 -> 0 | L46: 421.70 | M46: 50.00% | N46: 50.00%
A47: 8 | B47: INSTALAÇÕES SANITÁRIAS | F47: =SUM(F48:F53) -> 4,149.25 | J47: =SUM(J48:J53) -> 953.82 | K47: =SUM(K48:K53) -> 2,718.52 | L47: =SUM(L48:L53) -> 3,672.34 | M47: 22.99% | N47: 88.51%
A48: 8.1 | B48: Fossa séptica, em concreto armado, (d2,50 x h 12,00) | C48: Unidade | D48: 1.00 | E48: 1,308.04 | F48: =ROUND(D48*E48,2) -> 1,308.04 | H48: ='Bm 03'!I48 -> 1.00 | I48: =G48+H48 -> 1.00 | J48: =ROUND(G48*E48,2) -> 0 | K48: ='Bm 03'!L48 -> 1,308.04 | L48: =J48+K48 -> 1,308.04 | M48: 0.00% | N48: 100.00%
A49: 8.2 | B49: \"Sifão de copo para pia e lavatório 1\"\" - 1.1/2\"\"\" | C49: Unidade | D49: 9.00 | E49: 152.77 | F49: 1,374.93 | G49: 6.00 | H49: ='Bm 03'!I49 -> 0 | I49: 6.00 | J49: 916.62 | K49: ='Bm 03'!L49 -> 0 | L49: 916.62 | M49: 66.67% | N49: 66.67%
A50: 8.3 | B50: Sumidouro em alvenaria (d 2,30 x h 6,00) | C50: Unidade | D50: 1.00 | E50: 1,308.04 | F50: 1,308.04 | H50: ='Bm 03'!I50 -> 1.00 | I50: 1.00 | J50: 0 | K50: ='Bm 03'!L50 -> 1,308.04 | L50: 1,308.04 | M50: 0.00% | N50: 100.00%
A51: 8.4 | B51: Tubo rígido c/ ponta lisa 100 mm | C51: M | D51: 2.00 | E51: 37.75 | F51: 75.50 | H51: ='Bm 03'!I51 -> 2.00 | I51: 2.00 | J51: 0 | K51: ='Bm 03'!L51 -> 75.50 | L51: 75.50 | M51: 0.00% | N51: 100.00%
A52: 8.5 | B52: Tubo rígido c/ ponta lisa 40 mm | C52: M | D52: 2.00 | E52: 13.47 | F52: 26.94 | H52: ='Bm 03'!I52 -> 2.00 | I52: 2.00 | J52: 0 | K52: ='Bm 03'!L52 -> 26.94 | L52: 26.94 | M52: 0.00% | N52: 100.00%
A53: 8.6 | B53: \"Válvula para lavatório e tanque 1\"\"\" | C53: Unidade | D53: 9.00 | E53: 6.20 | F53: 55.80 | G53: 6.00 | H53: ='Bm 03'!I53 -> 0 | I53: 6.00 | J53: 37.20 | K53: ='Bm 03'!L53 -> 0 | L53: 37.20 | M53: 66.67% | N53: 66.67%
A54: 9 | B54: DRENAGEM PLUVIAL | F54: =SUM(F55:F59) -> 19,871.36 | J54: =SUM(J55:J59) -> 3,058.35 | K54: =SUM(K55:K59) -> 16,813.01 | L54: =SUM(L55:L59) -> 19,871.36 | M54: 15.39% | N54: 100.00%
A55: 9.1 | B55: Calha em chapa de aço galvanizado n° 24 | C55: M | D55: 72.00 | E55: 40.86 | F55: =ROUND(D55*E55,2) -> 2,941.92 | H55: ='Bm 03'!I55 -> 72.00 | I55: =G55+H55 -> 72.00 | J55: =ROUND(G55*E55,2) -> 0 | K55: ='Bm 03'!L55 -> 2,941.92 | L55: =J55+K55 -> 2,941.92 | M55: 0.00% | N55: 100.00%
A56: 9.2 | B56: Tubo de queda - água pluvial DN=150 mm | C56: M | D56: 20.00 | E56: 45.96 | F56: =ROUND(D56*E56,2) -> 919.20 | G56: 20.00 | H56: ='Bm 03'!I56 -> 0 | I56: =G56+H56 -> 20.00 | J56: =ROUND(G56*E56,2) -> 919.20 | K56: ='Bm 03'!L56 -> 0 | L56: =J56+K56 -> 919.20 | M56: 100.00% | N56: 100.00%
A57: 9.3 | B57: Joelho PVC 90° d=150 mm - tubulação pluvial | C57: M | D57: 4.00 | E57: 91.39 | F57: =ROUND(D57*E57,2) -> 365.56 | G57: 4.00 | H57: ='Bm 03'!I57 -> 0 | I57: =G57+H57 -> 4.00 | J57: =ROUND(G57*E57,2) -> 365.56 | K57: ='Bm 03'!L57 -> 0 | L57: =J57+K57 -> 365.56 | M57: 100.00% | N57: 100.00%
A58: 9.4 | B58: \"Ralohemisférico tipo \"\"abacaxi\"\" com tela de aço com funil de saída cônico\" | C58: Unidade | D58: 4.00 | E58: 58.09 | F58: =ROUND(D58*E58,2) -> 232.36 | G58: 4.00 | H58: ='Bm 03'!I58 -> 0 | I58: =G58+H58 -> 4.00 | J58: =ROUND(G58*E58,2) -> 232.36 | K58: ='Bm 03'!L58 -> 0 | L58: =J58+K58 -> 232.36 | M58: 100.00% | N58: 100.00%
A59: 9.5 | B59: Canaleta de concreto c/ tampa removível em chapa de aço (0,25 x 0,25 x 0,25m) | C59: M | D59: 72.00 | E59: 214.06 | F59: =ROUND(D59*E59,2) -> 15,412.32 | G59: =D59-H59 -> 7.20 | H59: ='Bm 03'!I59 -> 64.80 | I59: =G59+H59 -> 72.00 | J59: =ROUND(G59*E59,2) -> 1,541.23 | K59: ='Bm 03'!L59 -> 13,871.09 | L59: =J59+K59 -> 15,412.32 | M59: 10.00% | N59: 100.00%
A60: 10 | B60: INSTALAÇÕES ELÉTRICAS | F60: =SUM(F61:F89) -> 16,337.59 | J60: =SUM(J61:J89) -> 2,800.93 | K60: =SUM(K61:K89) -> 0 | L60: =SUM(L61:L89) -> 2,800.93 | M60: 17.14% | N60: 17.14%
A61: 10.1 | B61: \"Condulete em alumínio tipo T de 3/4\"\", inclusive acessórios\" | C61: Unidade | D61: 5.00 | E61: 18.54 | F61: =ROUND(D61*E61,2) -> 92.70 | G61: 5.00 | H61: ='Bm 03'!I61 -> 0 | I61: =G61+H61 -> 5.00 | J61: =ROUND(G61*E61,2) -> 92.70 | K61: ='Bm 03'!L61 -> 0 | L61: =J61+K61 -> 92.70 | M61: 100.00% | N61: 100.00%
A62: 10.2 | B62: \"Condulete em alumínio tipo L de 3/4\"\", inclusive acessórios\" | C62: Unidade | D62: 5.00 | E62: 12.18 | F62: 60.90 | G62: 5.00 | H62: ='Bm 03'!I62 -> 0 | I62: 5.00 | J62: 60.90 | K62: ='Bm 03'!L62 -> 0 | L62: 60.90 | M62: 100.00% | N62: 100.00%
A63: 10.3 | B63: \"Condulete em alumínio tipo TA de 3/4\"\", inclusive acessórios\" | C63: Unidade | D63: 4.00 | E63: 16.38 | F63: 65.52 | G63: 4.00 | H63: ='Bm 03'!I63 -> 0 | I63: 4.00 | J63: 65.52 | K63: ='Bm 03'!L63 -> 0 | L63: 65.52 | M63: 100.00% | N63: 100.00%
A64: 10.4 | B64: \"Condulete em alumínio tipo XA de 3/4\"\", inclusive acessórios\" | C64: Unidade | D64: 1.00 | E64: 18.91 | F64: 18.91 | G64: 1.00 | H64: ='Bm 03'!I64 -> 0 | I64: 1.00 | J64: 18.91 | K64: ='Bm 03'!L64 -> 0 | L64: 18.91 | M64: 100.00% | N64: 100.00%
A65: 10.5 | B65: \"Caixa de PVC 4x2\"\", inclusive espelho\" | C65: Unidade | D65: 16.00 | E65: 8.47 | F65: 135.52 | G65: 16.00 | H65: ='Bm 03'!I65 -> 0 | I65: 16.00 | J65: 135.52 | K65: ='Bm 03'!L65 -> 0 | L65: 135.52 | M65: 100.00% | N65: 100.00%
A66: 10.6 | B66: Condutor de cobre unipolar, isolaçãoem PVC/70ºC, camada de proteção em PVC, não propagador de chamas, classe de tensão 750V,encordoamento classe 5, flexível, com seção 2,5 mm² | C66: M | D66: 190.00 | E66: 2.77 | F66: 526.30 | H66: ='Bm 03'!I66 -> 0 | I66: 0 | J66: 0 | K66: ='Bm 03'!L66 -> 0 | L66: 0 | M66: 0.00% | N66: 0.00%
A67: 10.7 | B67: Condutor de cobre unipolar, isolação em PVC/70ºC, camada de proteção em PVC, não propagador de chamas, classe detensão 750V,encordoamento classe 5, flexível, com seção 4 mm² | C67: M | D67: 820.00 | E67: 4.36 | F67: 3,575.20 | H67: ='Bm 03'!I67 -> 0 | I67: 0 | J67: 0 | K67: ='Bm 03'!L67 -> 0 | L67: 0 | M67: 0.00% | N67: 0.00%
A68: 10.8 | B68: Condutor de cobre unipolar, isolação em PVC/70ºC, camada de proteção em PVC, não propagador de chamas, classe de tensão 750V, encordoamento classe 5, flexível, com seção 16mm² | C68: M | D68: 14.00 | E68: 14.68 | F68: 205.52 | H68: ='Bm 03'!I68 -> 0 | I68: 0 | J68: 0 | K68: ='Bm 03'!L68 -> 0 | L68: 0 | M68: 0.00% | N68: 0.00%
A69: 10.9 | B69: Condutor de cobre unipolar, isolação em PVC/90ºC, camada de proteção em PVC, não propagador de chamas, classe de tensão 1000V, encordoamento classe 5, flexível, com seção 35 mm² | C69: M | D69: 41.00 | E69: 22.02 | F69: 902.82 | H69: ='Bm 03'!I69 -> 0 | I69: 0 | J69: 0 | K69: ='Bm 03'!L69 -> 0 | L69: 0 | M69: 0.00% | N69: 0.00%
A70: 10.10 | B70: Tomada 2p + t de embutir, 10 A, completa | C70: Unidade | D70: 2.00 | E70: 24.88 | F70: 49.76 | H70: ='Bm 03'!I70 -> 0 | I70: 0 | J70: 0 | K70: ='Bm 03'!L70 -> 0 | L70: 0 | M70: 0.00% | N70: 0.00%
A71: 10.11 | B71: Tomada 2p + t para piso, 10 A, completa | C71: Unidade | D71: 1.00 | E71: 12.36 | F71: 12.36 | H71: ='Bm 03'!I71 -> 0 | I71: 0 | J71: 0 | K71: ='Bm 03'!L71 -> 0 | L71: 0 | M71: 0.00% | N71: 0.00%
A72: 10.12 | B72: Interruptor 1 tecla simples | C72: Unidade | D72: 7.00 | E72: 23.53 | F72: 164.71 | H72: ='Bm 03'!I72 -> 0 | I72: 0 | J72: 0 | K72: ='Bm 03'!L72 -> 0 | L72: 0 | M72: 0.00% | N72: 0.00%
A73: 10.13 | B73: Disjuntor termomagnetico monopolar 10 A, padrão DIN (linha branca) | C73: Unidade | D73: 5.00 | E73: 15.87 | F73: 79.35 | H73: ='Bm 03'!I73 -> 0 | I73: 0 | J73: 0 | K73: ='Bm 03'!L73 -> 0 | L73: 0 | M73: =J73/F73 -> 0.00% | N73: =L73/F73 -> 0.00%
A74: 10.14 | B74: Disjuntor termomagnetico binopolar 20 A, padrão DIN (linha branca) | C74: Unidade | D74: 5.00 | E74: 15.87 | F74: 79.35 | H74: ='Bm 03'!I74 -> 0 | I74: 0 | J74: 0 | K74: ='Bm 03'!L74 -> 0 | L74: 0 | M74: 0.00% | N74: 0.00%
A75: 10.15 | B75: Disjuntortermomagneticobinopolar 25 A, padrão DIN (linha branca) | C75: Unidade | D75: 8.00 | E75: 15.87 | F75: 126.96 | H75: ='Bm 03'!I75 -> 0 | I75: 0 | J75: 0 | K75: ='Bm 03'!L75 -> 0 | L75: 0 | M75: 0.00% | N75: 0.00%
A76: 10.16 | B76: Disjuntor termomagnetico triopolar 150 A, padrão DIN (linha branca) | C76: Unidade | D76: 2.00 | E76: 397.51 | F76: 795.02 | H76: ='Bm 03'!I76 -> 0 | I76: 0 | J76: 0 | K76: ='Bm 03'!L76 -> 0 | L76: 0 | M76: 0.00% | N76: 0.00%
A77: 10.17 | B77: Disjuntor termomagnetico triopolar 175 A, padrão DIN (linha branca) | C77: Unidade | D77: 1.00 | E77: 1,018.63 | F77: 1,018.63 | H77: ='Bm 03'!I77 -> 0 | I77: 0 | J77: 0 | K77: ='Bm 03'!L77 -> 0 | L77: 0 | M77: 0.00% | N77: 0.00%
A78: 10.18 | B78: Dispositivo residual diferencial - DR 125A In 30 mA | C78: Unidade | D78: 1.00 | E78: 211.00 | F78: 211.00 | H78: ='Bm 03'!I78 -> 0 | I78: 0 | J78: 0 | K78: ='Bm 03'!L78 -> 0 | L78: 0 | M78: 0.00% | N78: 0.00%
A79: 10.19 | B79: Quadro de distribuição de embutir,com barramento, em chapa de aço, para 4 disjuntores unipolares + 8 bipolares + 1 tripolar +1 DR, padrão europeu(linha branca), exclusive disjuntores | C79: Unidade | D79: 1.00 | E79: 254.55 | F79: 254.55 | G79: 1.00 | H79: ='Bm 03'!I79 -> 0 | I79: 1.00 | J79: 254.55 | K79: ='Bm 03'!L79 -> 0 | L79: 254.55 | M79: 100.00% | N79: 100.00%
A80: 10.20 | B80: Quadro de distribuição de embutir, com barramento, em chapa de aço, para 1 disjuntor unipolar + 5bipolares + 2 tripolares,padrão europeu (linha branca), exclusive disjuntores | C80: Unidade | D80: 1.00 | E80: 399.47 | F80: 399.47 | G80: 1.00 | H80: ='Bm 03'!I80 -> 0 | I80: 1.00 | J80: 399.47 | K80: ='Bm 03'!L80 -> 0 | L80: 399.47 | M80: 100.00% | N80: 100.00%
A81: 10.21 | B81: \"Eletrodutode pvc rígido roscável, 1\"\", inclusive curvas\" | C81: M | D81: 5.00 | E81: 12.10 | F81: 60.50 | G81: 5.00 | H81: ='Bm 03'!I81 -> 0 | I81: 5.00 | J81: 60.50 | K81: ='Bm 03'!L81 -> 0 | L81: 60.50 | M81: 100.00% | N81: 100.00%
A82: 10.22 | B82: \"Eletroduto de pvc rígido roscável, 3/4\"\", inclusive curvas\" | C82: M | D82: 5.00 | E82: 9.29 | F82: 46.45 | G82: 5.00 | H82: ='Bm 03'!I82 -> 0 | I82: 5.00 | J82: 46.45 | K82: ='Bm 03'!L82 -> 0 | L82: 46.45 | M82: 100.00% | N82: 100.00%
A83: 10.23 | B83: \"Eletroduto de pvc rígido roscável, 1.1/2\"\", inclusive curvas\" | C83: M | D83: 5.00 | E83: 12.69 | F83: 63.45 | G83: 5.00 | H83: ='Bm 03'!I83 -> 0 | I83: 5.00 | J83: 63.45 | K83: ='Bm 03'!L83 -> 0 | L83: 63.45 | M83: 100.00% | N83: 100.00%
A84: 10.24 | B84: Eletrodutode ferro galvanizado d= 3/4\"\" - inclusive braçadeiras\" | C84: M | D84: 86.00 | E84: 14.99 | F84: 1,289.14 | G84: 86.00 | H84: ='Bm 03'!I84 -> 0 | I84: 86.00 | J84: 1,289.14 | K84: ='Bm 03'!L84 -> 0 | L84: 1,289.14 | M84: 100.00% | N84: 100.00%
A85: 10.25 | B85: \"Eletroduto de ferro galvanizado d= 1\"\" - inclusive braçadeiras\" | C85: M | D85: 17.00 | E85: 18.46 | F85: 313.82 | G85: 17.00 | H85: ='Bm 03'!I85 -> 0 | I85: 17.00 | J85: 313.82 | K85: ='Bm 03'!L85 -> 0 | L85: 313.82 | M85: 100.00% | N85: 100.00%
A86: 10.26 | B86: \"Eletrodutode ferro galvanizado d= 1.1/2\"\" - inclusive braçadeiras\" | C86: M | D86: 34.00 | E86: 31.87 | F86: 1,083.58 | H86: ='Bm 03'!I86 -> 0 | I86: 0 | J86: 0 | K86: ='Bm 03'!L86 -> 0 | L86: 0 | M86: 0.00% | N86: 0.00%
A87: 10.27 | B87: Luminária calha sobrepor p/lamp.fluorescente 2x40w, completa, incl.reator eletronico e lampadas | C87: Unidade | D87: 6.00 | E87: 95.01 | F87: 570.06 | H87: ='Bm 03'!I87 -> 0 | I87: 0 | J87: 0 | K87: ='Bm 03'!L87 -> 0 | L87: 0 | M87: 0.00% | N87: 0.00%
A88: 10.28 | B88: Luminária calha sobrepor p/lamp.fluorescente 1x40w, completa, incl.reator eletronico e lampadas | C88: Unidade | D88: 1.00 | E88: 77.49 | F88: 77.49 | H88: ='Bm 03'!I88 -> 0 | I88: 0 | J88: 0 | K88: ='Bm 03'!L88 -> 0 | L88: 0 | M88: 0.00% | N88: 0.00%
A89: 10.29 | B89: Lumináriablindada p/ alta pressão, linha industrial projetor hermético para lâmpada de luz mista de 500 W, com proteção da lâmpada | C89: Unidade | D89: 15.00 | E89: 270.57 | F89: 4,058.55 | H89: ='Bm 03'!I89 -> 0 | I89: 0 | J89: 0 | K89: ='Bm 03'!L89 -> 0 | L89: 0 | M89: 0.00% | N89: 0.00%
A90: 11 | B90: SISTEMA DE PROTEÇÃO CONTRA DESCARGAS ATMOSFÉRICAS (SPDA) | F90: =SUM(F91:F96) -> 2,031.80 | J90: =SUM(J91:J96) -> 2,031.80 | K90: =SUM(K91:K96) -> 0 | L90: =SUM(L91:L96) -> 2,031.80 | M90: 100.00% | N90: 100.00%
A91: 11.1 | B91: Caixa de inspeção 30x30x40 cm com tampa de ferro fundido | C91: Unidade | D91: 5.00 | E91: 60.19 | F91: =ROUND(D91*E91,2) -> 300.95 | G91: 5.00 | H91: ='Bm 03'!I91 -> 0 | I91: =G91+H91 -> 5.00 | J91: =ROUND(G91*E91,2) -> 300.95 | K91: ='Bm 03'!L91 -> 0 | L91: =J91+K91 -> 300.95 | M91: 100.00% | N91: 100.00%
A92: 11.2 | B92: \"Conector de bronze para haste 5/8\"\"\" | C92: Unidade | D92: 12.00 | E92: 13.54 | F92: 162.48 | G92: 12.00 | H92: ='Bm 03'!I92 -> 0 | I92: 12.00 | J92: 162.48 | K92: ='Bm 03'!L92 -> 0 | L92: 162.48 | M92: 100.00% | N92: 100.00%
A93: 11.3 | B93: Cordoalha de cobre nu 35 mm² | C93: Unidade | D93: 24.00 | E93: 39.16 | F93: 939.84 | G93: 24.00 | H93: ='Bm 03'!I93 -> 0 | I93: 24.00 | J93: 939.84 | K93: ='Bm 03'!L93 -> 0 | L93: 939.84 | M93: 100.00% | N93: 100.00%
A94: 11.4 | B94: \"Haste tipo Coopperweld 5/8\"\" - 3m\" | C94: Unidade | D94: 5.00 | E94: 51.10 | F94: 255.50 | G94: 5.00 | H94: ='Bm 03'!I94 -> 0 | I94: 5.00 | J94: 255.50 | K94: ='Bm 03'!L94 -> 0 | L94: 255.50 | M94: 100.00% | N94: 100.00%
A95: 11.5 | B95: Tubo PVC 40 mm | C95: Unidade | D95: 18.00 | E95: 16.11 | F95: 289.98 | G95: 18.00 | H95: ='Bm 03'!I95 -> 0 | I95: 18.00 | J95: 289.98 | K95: ='Bm 03'!L95 -> 0 | L95: 289.98 | M95: 100.00% | N95: 100.00%
A96: 11.6 | B96: Terminal de pressão tipo prensa com 4 parafusos | C96: Unidade | D96: 5.00 | E96: 16.61 | F96: 83.05 | G96: 5.00 | H96: ='Bm 03'!I96 -> 0 | I96: 5.00 | J96: 83.05 | K96: ='Bm 03'!L96 -> 0 | L96: 83.05 | M96: 100.00% | N96: 100.00%
A97: 12 | B97: SERVIÇOS DIVERSOS | F97: =SUM(F98:F109) -> 38,229.80 | J97: =SUM(J98:J109) -> 2,202.94 | K97: =SUM(K98:K109) -> 319.66 | L97: =SUM(L98:L109) -> 2,522.60 | M97: 5.76% | N97: 6.60%
A98: 12.1 | B98: \"Alambrado com tela de arame galvanizado fio 12 bwg, malha 2\"\", revestido em pvc, fixada com tubos de ferro galvanizado 2\"\"\" | C98: m2 | D98: 147.00 | E98: 141.99 | F98: =ROUND(D98*E98,2) -> 20,872.53 | H98: ='Bm 03'!I98 -> 0 | I98: =G98+H98 -> 0 | J98: =ROUND(G98*E98,2) -> 0 | K98: ='Bm 03'!L98 -> 0 | L98: =J98+K98 -> 0 | M98: 0.00% | N98: 0.00%
A99: 12.2 | B99: \"Portão em tubo de ferro galvanizado 2\"\" e tela dearame galvanizado fio 12 bwg, malha 2\"\", revestido em pvc, inclusive dobradiças e fechadura\" | C99: Unidade | D99: 4.00 | E99: 660.58 | F99: 2,642.32 | H99: ='Bm 03'!I99 -> 0 | I99: 0 | J99: 0 | K99: ='Bm 03'!L99 -> 0 | L99: 0 | M99: 0.00% | N99: 0.00%
A100: 12.3 | B100: Bancada em granito cinza andorinha para lavatório com testeiras - espessura 2cm, largura 50 cm, conforme projeto | C100: M | D100: 4.80 | E100: 136.61 | F100: 655.73 | H100: ='Bm 03'!I100 -> 0 | I100: 0 | J100: 0 | K100: ='Bm 03'!L100 -> 0 | L100: 0 | M100: 0.00% | N100: 0.00%
A101: 12.4 | B101: Banco deconcreto armado polido (l=0,45m) sem arestas,conforme projeto | C101: M | D101: 4.80 | E101: 133.19 | F101: 639.31 | G101: 2.40 | H101: ='Bm 03'!I101 -> 2.40 | I101: 4.80 | J101: 319.66 | K101: ='Bm 03'!L101 -> 319.66 | L101: 639.32 | M101: 50.00% | N101: 100.00%
A102: 12.5 | B102: \"Barra de apoio para deficiente em ferro galvanizado de 11/2\"\", l = 140cm (lavatório), inclusive parafusos de fixação e pintura\" | C102: Unidade | D102: 2.00 | E102: 116.59 | F102: 233.18 | H102: ='Bm 03'!I102 -> 0 | I102: 0 | J102: 0 | K102: ='Bm 03'!L102 -> 0 | L102: 0 | M102: 0.00% | N102: 0.00%
A103: 12.6 | B103: \"Barra de apoio para deficiente em ferro galvanizado de 11/2\"\", l = 80cm (bacia sanitária e mictório), inclusive parafusos de fixação e pintura\" | C103: Unidade | D103: 8.00 | E103: 470.82 | F103: 3,766.56 | G103: 4.00 | H103: ='Bm 03'!I103 -> 0 | I103: 4.00 | J103: 1,883.28 | K103: ='Bm 03'!L103 -> 0 | L103: 1,883.28 | M103: 50.00% | N103: 50.00%
A104: 12.7 | B104: Espelho plano 4mm | C104: m2 | D104: 4.50 | E104: 367.49 | F104: 1,653.71 | H104: ='Bm 03'!I104 -> 0 | I104: 0 | J104: 0 | K104: ='Bm 03'!L104 -> 0 | L104: 0 | M104: 0.00% | N104: 0.00%
A105: 12.8 | B105: Estrutura metálica c/ tabelas de basquete | C105: CJ | D105: 1.00 | E105: 2,357.10 | F105: 2,357.10 | H105: ='Bm 03'!I105 -> 0 | I105: 0 | J105: 0 | K105: ='Bm 03'!L105 -> 0 | L105: 0 | M105: 0.00% | N105: 0.00%
A106: 12.9 | B106: Estrutura metálica de traves de futsal | C106: CJ | D106: 1.00 | E106: 2,135.69 | F106: 2,135.69 | H106: ='Bm 03'!I106 -> 0 | I106: 0 | J106: 0 | K106: ='Bm 03'!L106 -> 0 | L106: 0 | M106: 0.00% | N106: 0.00%
A107: 12.10 | B107: Estrutura metálica p/ rede de voley | C107: CJ | D107: 1.00 | E107: 867.40 | F107: 867.40 | H107: ='Bm 03'!I107 -> 0 | I107: 0 | J107: 0 | K107: ='Bm 03'!L107 -> 0 | L107: 0 | M107: 0.00% | N107: 0.00%
A108: 12.11 | B108: Soleira em granito cinza andorinha, l = 15 cm, e = 2 cm | C108: M | D108: 2.90 | E108: 78.11 | F108: 226.52 | H108: ='Bm 03'!I108 -> 0 | I108: 0 | J108: 0 | K108: ='Bm 03'!L108 -> 0 | L108: 0 | M108: 0.00% | N108: 0.00%
A109: 12.12 | B109: Limpeza geral | C109: m2 | D109: 861.56 | E109: 2.53 | F109: 2,179.75 | H109: ='Bm 03'!I109 -> 0 | I109: 0 | J109: 0 | K109: ='Bm 03'!L109 -> 0 | L109: 0 | M109: 0.00% | N109: 0.00%
A110: 13 | B110: SERVIÇOS PRELIMINARES | F110: =SUM(F111:F114) -> 11,075.86 | J110: =SUM(J111:J114) -> 0 | K110: =SUM(K111:K114) -> 842.16 | L110: =SUM(L111:L114) -> 842.16 | M110: =J110/F110 -> 0.00% | N110: =L110/F110 -> 7.60%
A111: 13.1 | B111: Execução de almoxarifado emcanteiro de obra emchapa de madeira compensada, incluso as prateleiras. | C111: m2 | D111: 12.00 | E111: 632.92 | F111: =ROUND(D111*E111,2) -> 7,595.04 | H111: ='Bm 03'!I111 -> 0 | I111: =G111+H111 -> 0 | J111: =ROUND(G111*E111,2) -> 0 | K111: ='Bm 03'!L111 -> 0 | L111: =J111+K111 -> 0 | M111: =J111/F111 -> 0.00% | N111: =L111/F111 -> 0.00%
A112: 13.2 | B112: Placa da obra emaço galvanizado, inclusive assentamento. | C112: m2 | D112: 3.00 | E112: 340.39 | F112: =ROUND(D112*E112,2) -> 1,021.17 | H112: ='Bm 03'!I112 -> 0 | I112: =G112+H112 -> 0 | J112: =ROUND(G112*E112,2) -> 0 | K112: ='Bm 03'!L112 -> 0 | L112: =J112+K112 -> 0 | M112: =J112/F112 -> 0.00% | N112: =L112/F112 -> 0.00%
A113: 13.3 | B113: Instalação provisória de energia elétrica, áerea, trifasica, em poste galvanizado, exclusive fornecimento de medidor. | C113: Unidade | D113: 1.00 | E113: 1,617.49 | F113: =ROUND(D113*E113,2) -> 1,617.49 | H113: ='Bm 03'!I113 -> 0 | I113: =G113+H113 -> 0 | J113: =ROUND(G113*E113,2) -> 0 | K113: ='Bm 03'!L113 -> 0 | L113: =J113+K113 -> 0 | M113: =J113/F113 -> 0.00% | N113: =L113/F113 -> 0.00%
A114: 13.4 | B114: Capina e limpeza manual de terreno. | C114: m2 | D114: 633.20 | E114: 1.33 | F114: =ROUND(D114*E114,2) -> 842.16 | H114: ='Bm 03'!I114 -> 633.20 | I114: =G114+H114 -> 633.20 | J114: =ROUND(G114*E114,2) -> 0 | K114: ='Bm 03'!L114 -> 842.16 | L114: =J114+K114 -> 842.16 | M114: =J114/F114 -> 0.00% | N114: =L114/F114 -> 100.00%
A115: 14 | B115: SUPERESTRUTURA | F115: =SUM(F116,F123) -> 7,996.34 | J115: =SUM(J116,J123) -> 1,245.37 | K115: =SUM(K116,K123) -> 3,908.01 | L115: =SUM(L116,L123) -> 5,153.38 | M115: =J115/F115 -> 15.57% | N115: =L115/F115 -> 64.45%
A116: 14.1 | B116: PILARES | F116: =SUM(F117:F122) -> 7,702.34 | J116: =SUM(J117:J122) -> 1,245.37 | K116: =SUM(K117:K122) -> 3,614.01 | L116: =SUM(L117:L122) -> 4,859.38 | M116: 16.17% | N116: 63.09%
A117: 14.1.1 | B117: Tratamento em concreto com estuque e lixamento. | C117: m2 | D117: 50.00 | E117: 35.90 | F117: =ROUND(D117*E117,2) -> 1,795.00 | H117: ='Bm 03'!I117 -> 25.00 | I117: =G117+H117 -> 25.00 | J117: =ROUND(G117*E117,2) -> 0 | K117: ='Bm 03'!L117 -> 897.50 | L117: =J117+K117 -> 897.50 | M117: 0.00% | N117: 50.00%
A118: 14.1.2 | B118: Preparo de substrato por escarificação mecaânica (CORTE DE CONCRETO) para espessuras até 3 cm. | C118: m2 | D118: 4.80 | E118: 154.75 | F118: 742.80 | H118: ='Bm 03'!I118 -> 2.40 | I118: 2.40 | J118: 0 | K118: ='Bm 03'!L118 -> 371.40 | L118: 371.40 | M118: 0.00% | N118: 50.00%
A119: 14.1.3 | B119: Preparação do substrato (SUPERFICIE DE CONCRETO) E armadura por escovamento manual. | C119: m2 | D119: 4.80 | E119: 6.71 | F119: 32.21 | H119: ='Bm 03'!I119 -> 2.40 | I119: 2.40 | J119: 0 | K119: ='Bm 03'!L119 -> 16.10 | L119: 16.10 | M119: 0.00% | N119: 49.98%
A120: 14.1.4 | B120: Passivação de armadura com primer a base de zinco. | C120: m2 | D120: 4.80 | E120: 105.58 | F120: 506.78 | H120: ='Bm 03'!I120 -> 2.40 | I120: 2.40 | J120: 0 | K120: ='Bm 03'!L120 -> 253.39 | L120: 253.39 | M120: 0.00% | N120: 50.00%
A121: 14.1.5 | B121: Microconcreto fluido (AUTOADENSÁVEL) Com grout até 40% de pó de pedra, lançamento e cura. | C121: M3 | D121: 0.14 | E121: 3,387.99 | F121: 474.32 | H121: ='Bm 03'!I121 -> 0 | I121: 0 | J121: 0 | K121: ='Bm 03'!L121 -> 0 | L121: 0 | M121: 0.00% | N121: 0.00%
A122: 14.1.6 | B122: Ancoragem de alvenarias de bloco cerâmicos com concreto armado. | C122: Serviço | D122: 1.00 | E122: 4,151.23 | F122: 4,151.23 | G122: 0.30 | H122: ='Bm 03'!I122 -> 0.50 | I122: 0.80 | J122: 1,245.37 | K122: ='Bm 03'!L122 -> 2,075.62 | L122: 3,320.99 | M122: 30.00% | N122: 80.00%
A123: 14.2 | B123: LAJE PREMOLDADA | F123: =SUM(F124) -> 294.00 | J123: =SUM(J124) -> 0 | K123: =SUM(K124) -> 294.00 | L123: =SUM(L124) -> 294.00 | M123: =J123/F123 -> 0.00% | N123: =L123/F123 -> 100.00%
A124: 14.2.1 | B124: Laje pre-moldada p/forro, sobrecarga 100kg/m2, vãos até 3,50m/e=8 cm, com lajotas e capa c/ concreto FCK=20MPA, 3cm, inter-eixo 38 cm, com escoramento (reaproveitamento de 3X) E ferragem negativa. | C124: m2 | D124: 3.87 | E124: 75.97 | F124: =ROUND(D124*E124,2) -> 294.00 | H124: ='Bm 03'!I124 -> 3.87 | I124: =G124+H124 -> 3.87 | J124: =ROUND(G124*E124,2) -> 0 | K124: ='Bm 03'!L124 -> 294.00 | L124: =J124+K124 -> 294.00 | M124: =J124/F124 -> 0.00% | N124: =L124/F124 -> 100.00%
A125: 15 | B125: PAREDES E PAINÉIS | F125: =SUM(F126:F128) -> 1,945.71 | J125: =SUM(J126:J128) -> 0 | K125: =SUM(K126:K128) -> 1,945.71 | L125: =SUM(L126:L128) -> 1,945.71 | M125: =J125/F125 -> 0.00% | N125: =L125/F125 -> 100.00%
A126: 15.1 | B126: Alvenaria de bloco cerâmico de vedação, 9x19x24 cm, e=19 cm, com argamassa traço - 1:2:8 (CIMENTO/CAL/AREIA), Junta = 2 cm. | C126: m2 | D126: 13.78 | E126: 39.63 | F126: =ROUND(D126*E126,2) -> 546.10 | H126: ='Bm 03'!I126 -> 13.78 | I126: =G126+H126 -> 13.78 | J126: =ROUND(G126*E126,2) -> 0 | K126: ='Bm 03'!L126 -> 546.10 | L126: =J126+K126 -> 546.10 | M126: 0.00% | N126: 100.00%
A127: 15.2 | B127: Alvenaria de tijolo cerâmico maciço (4x9x17), espessura de 0,04 m (FACÃO), com argamssa traço - 1:2:8 (CIMENTO/CAL/AREIA) com junta de 2,0 cm. | C127: m2 | D127: 24.66 | E127: 43.71 | F127: =ROUND(D127*E127,2) -> 1,077.89 | H127: ='Bm 03'!I127 -> 24.66 | I127: =G127+H127 -> 24.66 | J127: =ROUND(G127*E127,2) -> 0 | K127: ='Bm 03'!L127 -> 1,077.89 | L127: =J127+K127 -> 1,077.89 | M127: 0.00% | N127: 100.00%
A128: 15.3 | B128: Cobogó de cimento tipo "VENEZIANA", dimensões de 40 x 40 x 9 cm. | C128: m2 | D128: 6.00 | E128: 53.62 | F128: =ROUND(D128*E128,2) -> 321.72 | H128: ='Bm 03'!I128 -> 6.00 | I128: =G128+H128 -> 6.00 | J128: =ROUND(G128*E128,2) -> 0 | K128: ='Bm 03'!L128 -> 321.72 | L128: =J128+K128 -> 321.72 | M128: 0.00% | N128: 100.00%
A129: 16 | B129: REVESTIMENTOS | F129: =SUM(F130:F132) -> 2,674.72 | J129: =SUM(J130:J132) -> 0 | K129: =SUM(K130:K132) -> 2,674.72 | L129: =SUM(L130:L132) -> 2,674.72 | M129: 0.00% | N129: 100.00%
A130: 16.1 | B130: Chapisco aplicado em alvenaria (SEM PRESENÇA DE VÃOS) e estruturas de concreto de fachadas, com colher de pedriro, argamassa traço 1:3 com preparo manual. | C130: m2 | D130: 64.66 | E130: 6.19 | F130: =ROUND(D130*E130,2) -> 400.25 | H130: ='Bm 03'!I130 -> 64.66 | I130: =G130+H130 -> 64.66 | J130: =ROUND(G130*E130,2) -> 0 | K130: ='Bm 03'!L130 -> 400.25 | L130: =J130+K130 -> 400.25 | M130: 0.00% | N130: 100.00%
A131: 16.2 | B131: Emboço, para recebimento de cerâmica, em argamassa de traço 1:2:8, preparo mecânico com betoneira 400 litros, aplicado manualmente em faces internas da paredes, para ambientes com área entre 5 m2 e 10 m2, com espessura de 20 mm. | C131: m2 | D131: 49.32 | E131: 32.59 | F131: =ROUND(D131*E131,2) -> 1,607.34 | H131: ='Bm 03'!I131 -> 49.32 | I131: =G131+H131 -> 49.32 | J131: =ROUND(G131*E131,2) -> 0 | K131: ='Bm 03'!L131 -> 1,607.34 | L131: =J131+K131 -> 1,607.34 | M131: 0.00% | N131: 100.00%
A132: 16.3 | B132: Massa única, Para recebimento de pintura, em argamassa de traço 1:2:8, preparo mecânico com betoneira 400 litros, aplicada manualmenteem faces internas de paredes, espessura de 20 mm. | C132: m2 | D132: 33.44 | E132: 19.95 | F132: =ROUND(D132*E132,2) -> 667.13 | H132: ='Bm 03'!I132 -> 33.44 | I132: =G132+H132 -> 33.44 | J132: =ROUND(G132*E132,2) -> 0 | K132: ='Bm 03'!L132 -> 667.13 | L132: =J132+K132 -> 667.13 | M132: 0.00% | N132: 100.00%
A133: 17 | B133: PISOS | F133: =SUM(F134) -> 2,564.59 | J133: =SUM(J134) -> 2,564.59 | K133: =SUM(K134) -> 0 | L133: =SUM(L134) -> 2,564.59 | M133: =J133/F133 -> 100.00% | N133: =L133/F133 -> 100.00%
A134: 17.1 | B134: Piso em concreto 20 MPA preparo mecanico, espessura de 7 cm, incluso selante elastico a base de poliuretano e contrapiso. | C134: m2 | D134: 99.48 | E134: 25.78 | F134: =ROUND(D134*E134,2) -> 2,564.59 | G134: 99.48 | H134: ='Bm 03'!I134 -> 0 | I134: =G134+H134 -> 99.48 | J134: =ROUND(G134*E134,2) -> 2,564.59 | K134: ='Bm 03'!L134 -> 0 | L134: =J134+K134 -> 2,564.59 | M134: =J134/F134 -> 100.00% | N134: =L134/F134 -> 100.00%
A135: 18 | B135: PINTURA | F135: =SUM(F136) -> 1,246.46 | J135: =SUM(J136) -> 1,246.46 | K135: =SUM(K136) -> 0 | L135: =SUM(L136) -> 1,246.46 | M135: =J135/F135 -> 100.00% | N135: =L135/F135 -> 100.00%
A136: 18.1 | B136: Junta de dilatação para impermeabilização, com selante elastico monocomponente a base de poliuretano, dimensões de 1 x 1 cm. | C136: M | D136: 57.60 | E136: 21.64 | F136: =ROUND(D136*E136,2) -> 1,246.46 | G136: 57.60 | H136: ='Bm 03'!I136 -> 0 | I136: =G136+H136 -> 57.60 | J136: =ROUND(G136*E136,2) -> 1,246.46 | K136: ='Bm 03'!L136 -> 0 | L136: =J136+K136 -> 1,246.46 | M136: =J136/F136 -> 100.00% | N136: =L136/F136 -> 100.00%
A137: 19 | B137: INSTALAÇÕES HIDRÁULICAS | F137: =SUM(F138:F143) -> 710.99 | J137: =SUM(J138:J143) -> 0 | K137: =SUM(K138:K143) -> 710.99 | L137: =SUM(L138:L143) -> 710.99 | M137: =J137/F137 -> 0.00% | N137: =L137/F137 -> 100.00%
A138: 19.1 | B138: Adaptador com flnge e anel de vedação, PVC, soldavel, DN 25 mm X 3/4", instalado em reservação de água de edificação que possua reservatório de fibra/fibrocimento, fornecimento e instalação. | C138: Unidade | D138: 3.00 | E138: 21.95 | F138: =ROUND(D138*E138,2) -> 65.85 | H138: ='Bm 03'!I138 -> 3.00 | I138: =G138+H138 -> 3.00 | J138: =ROUND(G138*E138,2) -> 0 | K138: ='Bm 03'!L138 -> 65.85 | L138: =J138+K138 -> 65.85 | M138: 0.00% | N138: 100.00%
A139: 19.2 | B139: Adaptador com flnge e anel de vedação, PVC, soldavel, DN 50 mm X 1 1/24", instalado em reservação de água de edificação que possua reservatório de fibra/fibrocimento, fornecimento e instalação. | C139: Unidade | D139: 2.00 | E139: 48.96 | F139: 97.92 | H139: ='Bm 03'!I139 -> 2.00 | I139: 2.00 | J139: 0 | K139: ='Bm 03'!L139 -> 97.92 | L139: 97.92 | M139: 0.00% | N139: 100.00%
A140: 19.3 | B140: Joelho de 90 graus, CPVC, soldavel, DN 25 mm, instalado em reservação de água de edificação. | C140: Unidade | D140: 4.00 | E140: 13.63 | F140: 54.52 | H140: ='Bm 03'!I140 -> 4.00 | I140: 4.00 | J140: 0 | K140: ='Bm 03'!L140 -> 54.52 | L140: 54.52 | M140: 0.00% | N140: 100.00%
A141: 19.4 | B141: Joelho de 90 graus, CPVC, soldavel, DN 50 mm, instalado em reservação de água de edificação. | C141: Unidade | D141: 6.00 | E141: 65.91 | F141: 395.46 | H141: ='Bm 03'!I141 -> 6.00 | I141: 6.00 | J141: 0 | K141: ='Bm 03'!L141 -> 395.46 | L141: 395.46 | M141: 0.00% | N141: 100.00%
A142: 19.5 | B142: Joelho 90 graus com bucha de latão, PVC, soldável, DN 25 mm X 1/2" instalado em ramal ou sub-ramal de água - Fornecimento e instalação. | C142: Unidade | D142: 2.00 | E142: 12.83 | F142: 25.66 | H142: ='Bm 03'!I142 -> 2.00 | I142: 2.00 | J142: 0 | K142: ='Bm 03'!L142 -> 25.66 | L142: 25.66 | M142: 0.00% | N142: 100.00%
A143: 19.6 | B143: Tubo PVC, soldável, DN 40 mm, instalado em prumada de água - Fornecimento e instalação. | C143: M | D143: 6.00 | E143: 11.93 | F143: 71.58 | H143: ='Bm 03'!I143 -> 6.00 | I143: 6.00 | J143: 0 | K143: ='Bm 03'!L143 -> 71.58 | L143: 71.58 | M143: 0.00% | N143: 100.00%
A144: 20 | B144: INSTALAÇÕES SANITÁRIAS | F144: =SUM(F145:F149) -> 1,420.85 | J144: =SUM(J145:J149) -> 0 | K144: =SUM(K145:K149) -> 1,420.85 | L144: =SUM(L145:L149) -> 1,420.85 | M144: 0.00% | N144: 100.00%
A145: 20.1 | B145: Junção simples , PVC, serie normal, esgoto predial, DN 100 X 100 mm, junta elástica, fornecido e instalado em ramal de descarga ou ramal de esgotosanitário. | C145: Unidade | D145: 5.00 | E145: 39.53 | F145: =ROUND(D145*E145,2) -> 197.65 | H145: ='Bm 03'!I145 -> 5.00 | I145: =G145+H145 -> 5.00 | J145: =ROUND(G145*E145,2) -> 0 | K145: ='Bm 03'!L145 -> 197.65 | L145: =J145+K145 -> 197.65 | M145: 0.00% | N145: 100.00%
A146: 20.2 | B146: Junção simples, PVC, serie R, água pluvial, DN 100 X 75 mm, junta elástica, fornecido e instalado em ramal de encaminhamento. | C146: Unidade | D146: 5.00 | E146: 53.80 | F146: =ROUND(D146*E146,2) -> 269.00 | H146: ='Bm 03'!I146 -> 5.00 | I146: =G146+H146 -> 5.00 | J146: =ROUND(G146*E146,2) -> 0 | K146: ='Bm 03'!L146 -> 269.00 | L146: =J146+K146 -> 269.00 | M146: 0.00% | N146: 100.00%
A147: 20.3 | B147: Tubo PVC, serie normal, esgoto predial, DN 100 mm, fornecido e instalado em ramal de descarga ou ramal de esgoto sanitário. | C147: m | D147: 23.00 | E147: 37.75 | F147: =ROUND(D147*E147,2) -> 868.25 | H147: ='Bm 03'!I147 -> 23.00 | I147: =G147+H147 -> 23.00 | J147: =ROUND(G147*E147,2) -> 0 | K147: ='Bm 03'!L147 -> 868.25 | L147: =J147+K147 -> 868.25 | M147: 0.00% | N147: 100.00%
A148: 20.4 | B148: Tubo PVC, serie normal, esgoto predial, DN 40 mm, fornecido e instalado em ramal de descarga ou ramal de esgoto sanitário. | C148: m | D148: 2.00 | E148: 13.47 | F148: =ROUND(D148*E148,2) -> 26.94 | H148: ='Bm 03'!I148 -> 2.00 | I148: =G148+H148 -> 2.00 | J148: =ROUND(G148*E148,2) -> 0 | K148: ='Bm 03'!L148 -> 26.94 | L148: =J148+K148 -> 26.94 | M148: 0.00% | N148: 100.00%
A149: 20.5 | B149: Tubo PVC, serie normal, esgoto predial, DN 50 mm, fornecido e instalado em ramal de descarga ou ramal de esgoto sanitário. | C149: m | D149: 3.00 | E149: 19.67 | F149: =ROUND(D149*E149,2) -> 59.01 | H149: ='Bm 03'!I149 -> 3.00 | I149: =G149+H149 -> 3.00 | J149: =ROUND(G149*E149,2) -> 0 | K149: ='Bm 03'!L149 -> 59.01 | L149: =J149+K149 -> 59.01 | M149: 0.00% | N149: 100.00%
A150: 21 | B150: NSTALAÇÕES ELÉTRICAS | F150: =SUM(F151:F152) -> 143.22 | J150: =SUM(J151:J152) -> 0 | K150: =SUM(K151:K152) -> 143.22 | L150: =SUM(L151:L152) -> 143.22 | M150: 0.00% | N150: 100.00%
A151: 21.1 | B151: Caixa retangular 4" X 2" em PVC, intalada em parede - Fornecimento e instalação. | C151: Unidade | D151: 8.00 | E151: 8.47 | F151: =ROUND(D151*E151,2) -> 67.76 | H151: ='Bm 03'!I151 -> 8.00 | I151: =G151+H151 -> 8.00 | J151: =ROUND(G151*E151,2) -> 0 | K151: ='Bm 03'!L151 -> 67.76 | L151: =J151+K151 -> 67.76 | M151: 0.00% | N151: 100.00%
A152: 21.2 | B152: Caixa octogonal 4" X 4", PVC, instalada em laje - Fornecimento e instalação. | C152: Unidade | D152: 7.00 | E152: 10.78 | F152: =ROUND(D152*E152,2) -> 75.46 | H152: ='Bm 03'!I152 -> 7.00 | I152: =G152+H152 -> 7.00 | J152: =ROUND(G152*E152,2) -> 0 | K152: ='Bm 03'!L152 -> 75.46 | L152: =J152+K152 -> 75.46 | M152: 0.00% | N152: 100.00%
A153: 22 | B153: SERVIÇOS DIVERSOS | F153: =SUM(F154) -> 599.52 | J153: =SUM(J154) -> 0 | K153: =SUM(K154) -> 0 | L153: =SUM(L154) -> 0 | M153: =J153/F153 -> 0.00% | N153: =L153/F153 -> 0.00%
A154: 22.1 | B154: Chuveiro elétrico comum corpo plastico tipo ducha, fornecimento e instalação | C154: Unidade | D154: 8.00 | E154: 74.94 | F154: =ROUND(D154*E154,2) -> 599.52 | H154: ='Bm 03'!I154 -> 0 | I154: =G154+H154 -> 0 | J154: =ROUND(G154*E154,2) -> 0 | K154: ='Bm 03'!L154 -> 0 | L154: =J154+K154 -> 0 | M154: =J154/F154 -> 0.00% | N154: =L154/F154 -> 0.00%
A155: 23 | B155: URBANIZAÇÃO DA ÁREA EXTERNA DA QUADRA | F155: =SUM(F156:F174) -> 169,960.05 | J155: =SUM(J156:J174) -> 53,385.96 | K155: =SUM(K156:K174) -> 101,187.69 | L155: =SUM(L156:L174) -> 154,573.65 | M155: =J155/F155 -> 31.41% | N155: =L155/F155 -> 90.95%
A156: 23.1 | B156: Escavação manual solo de 1a.cat. prof. até 1.50m | C156: m3 | D156: 1.66 | E156: 42.51 | F156: =ROUND(D156*E156,2) -> 70.57 | H156: ='Bm 03'!I156 -> 1.66 | I156: =G156+H156 -> 1.66 | J156: =ROUND(G156*E156,2) -> 0 | K156: ='Bm 03'!L156 -> 70.57 | L156: =J156+K156 -> 70.57 | M156: =J156/F156 -> 0.00% | N156: =L156/F156 -> 100.00%
A157: 23.2 | B157: Corte e dobra de aço AÇO CA-50, diametro de 8.0 MM, utilizado em estruturas diversas. | C157: kg | D157: 260.96 | E157: 7.30 | F157: 1,905.01 | H157: ='Bm 03'!I157 -> 260.96 | I157: 260.96 | J157: 0 | K157: ='Bm 03'!L157 -> 1,905.01 | L157: 1,905.01 | M157: 0.00% | N157: 100.00%
A158: 23.3 | B158: Corte e dobra de aço AÇO CA-60, diametro de 5.0 MM, utilizado em estruturas diversas. | C158: kg | D158: 97.15 | E158: 7.47 | F158: 725.71 | H158: ='Bm 03'!I158 -> 97.15 | I158: 97.15 | J158: 0 | K158: ='Bm 03'!L158 -> 725.71 | L158: 725.71 | M158: 0.00% | N158: 100.00%
A159: 23.4 | B159: Forma plana chapa compensada plastificada, esp.= 12mm util. 5x | C159: m2 | D159: 82.94 | E159: 26.35 | F159: 2,185.47 | H159: ='Bm 03'!I159 -> 82.94 | I159: 82.94 | J159: 0 | K159: ='Bm 03'!L159 -> 2,185.47 | L159: 2,185.47 | M159: 0.00% | N159: 100.00%
A160: 23.5 | B160: Concretagem de peças, FCK = 25 MPA, Com uso de baldes com seção media menor ou igual a 0,25 m2 - Lançamento, adensamento e acabamento. | C160: m3 | D160: 3.53 | E160: 531.32 | F160: 1,875.56 | H160: ='Bm 03'!I160 -> 3.53 | I160: 3.53 | J160: 0 | K160: ='Bm 03'!L160 -> 1,875.56 | L160: 1,875.56 | M160: 0.00% | N160: 100.00%
A161: 23.6 | B161: Alvenaria de tijolo cerâmico (9x19x24)cm, e= 0,09m, com argamassa (traço 1:2:8 - cimento/cal/areia), junta de 2,0cm | C161: m2 | D161: 119.58 | E161: 39.63 | F161: 4,738.96 | H161: ='Bm 03'!I161 -> 119.58 | I161: 119.58 | J161: 0 | K161: ='Bm 03'!L161 -> 4,738.96 | L161: 4,738.96 | M161: 0.00% | N161: 100.00%
A162: 23.7 | B162: Alvenaria de tijolo cerâmico (9x19x24)cm, e= 0,19m, com argamassa (traço 1:2:8 - cimento/cal/areia), junta de 2,0cm | C162: m2 | D162: 32.45 | E162: 67.91 | F162: 2,203.68 | H162: ='Bm 03'!I162 -> 32.45 | I162: 32.45 | J162: 0 | K162: ='Bm 03'!L162 -> 2,203.68 | L162: 2,203.68 | M162: 0.00% | N162: 100.00%
A163: 23.8 | B163: Elemento vazado de concreto (40x40x7cm) assentados com argamassa (imento e areia traço 1:3) | C163: m2 | D163: 53.68 | E163: 53.62 | F163: 2,878.32 | H163: ='Bm 03'!I163 -> 53.68 | I163: 53.68 | J163: 0 | K163: ='Bm 03'!L163 -> 2,878.32 | L163: 2,878.32 | M163: 0.00% | N163: 100.00%
A164: 23.9 | B164: Piso em concreto simples desempolado (esp.=5cm), inclusive contrapiso | C164: m2 | D164: 94.28 | E164: 25.78 | F164: 2,430.54 | G164: 14.28 | H164: ='Bm 03'!I164 -> 80.00 | I164: 94.28 | J164: 368.14 | K164: ='Bm 03'!L164 -> 2,062.40 | L164: 2,430.54 | M164: 15.15% | N164: 100.00%
A165: 23.10 | B165: Assentamento de guia (meio fio) em trecho reto,confeccionada em concreto pré-fabricada, dimensões 100X15X13X30 CM (COMPRIMENTO X BASE INFERIOR X BASE SUPERIOR X ALTURA), para vias urbanas. | C165: M | D165: 100.00 | E165: 41.95 | F165: 4,195.00 | H165: ='Bm 03'!I165 -> 100.00 | I165: 100.00 | J165: 0 | K165: ='Bm 03'!L165 -> 4,195.00 | L165: 4,195.00 | M165: 0.00% | N165: 100.00%
A166: 23.11 | B166: Chapisco c/ argamassa de cimento e areia s/ peneirar traço 1:3 esp.= 5mm p/ parede | C166: m2 | D166: 527.98 | E166: 6.19 | F166: 3,268.20 | H166: ='Bm 03'!I166 -> 527.98 | I166: 527.98 | J166: 0 | K166: ='Bm 03'!L166 -> 3,268.20 | L166: 3,268.20 | M166: 0.00% | N166: 100.00%
A167: 23.12 | B167: Reboco c/argamassa pré-fabricada, adesivo de alta resistência p/tinta epóxi esp= 5mmp/parede | C167: m2 | D167: 711.12 | E167: 19.95 | F167: 14,186.84 | H167: ='Bm 03'!I167 -> 711.12 | I167: 711.12 | J167: 0 | K167: ='Bm 03'!L167 -> 14,186.85 | L167: 14,186.85 | M167: 0.00% | N167: 100.00%
A168: 23.13 | B168: Aterro c/ controle, mat. c/ aquisição compactação manual | C168: m3 | D168: 35.10 | E168: 143.78 | F168: 5,046.68 | H168: ='Bm 03'!I168 -> 35.10 | I168: 35.10 | J168: 0 | K168: ='Bm 03'!L168 -> 5,046.68 | L168: 5,046.68 | M168: 0.00% | N168: 100.00%
A169: 23.14 | B169: Execução de passeio (calçada) ou piso de concreto moldado in loco, usinado, acabamento convencional, Espessura de 6 CM, ARMADO. | C169: m2 | D169: 36.75 | E169: 55.99 | F169: 2,057.63 | H169: ='Bm 03'!I169 -> 36.75 | I169: 36.75 | J169: 0 | K169: ='Bm 03'!L169 -> 2,057.63 | L169: 2,057.63 | M169: 0.00% | N169: 100.00%
A170: 23.15 | B170: Lastro de concreto magro, aplicado em pisos ou radiers, Espessura de 5 cm. | C170: m2 | D170: 30.50 | E170: 25.25 | F170: 770.13 | H170: ='Bm 03'!I170 -> 30.50 | I170: 30.50 | J170: 0 | K170: ='Bm 03'!L170 -> 770.13 | L170: 770.13 | M170: 0.00% | N170: 100.00%
A171: 23.16 | B171: Guarda corpo em tubo de aço galvanizado de 1 1/2" | C171: M | D171: 24.50 | E171: 253.83 | F171: 6,218.84 | H171: ='Bm 03'!I171 -> 0 | I171: 0 | J171: 0 | K171: ='Bm 03'!L171 -> 0 | L171: 0 | M171: 0.00% | N171: 0.00%
A172: 23.17 | B172: Execução de pátio/estacionamento em piso intertravado, com bloco retangular cor natural de 20 X 10 cm, espessura de 8 CM. | C172: m2 | D172: 1,764.31 | E172: 60.10 | F172: 106,035.03 | G172: 882.16 | H172: ='Bm 03'!I172 -> 882.16 | I172: 1,764.32 | J172: 53,017.82 | K172: ='Bm 03'!L172 -> 53,017.52 | L172: 106,035.34 | M172: 50.00% | N172: 100.00%
A173: 23.18 | B173: Pintura de acabamento com aplicação de 02 demaõs de tinta acrílica | C173: m2 | D173: 764.80 | E173: 11.23 | F173: 8,588.70 | H173: ='Bm 03'!I173 -> 0 | I173: 0 | J173: 0 | K173: ='Bm 03'!L173 -> 0 | L173: 0 | M173: 0.00% | N173: 0.00%
A174: 23.19 | B174: Esmalte sintético em estrutura de aço carbono 50 micracom revólver, inclusive base. | C174: m2 | D174: 36.75 | E174: 15.76 | F174: 579.18 | H174: ='Bm 03'!I174 -> 0 | I174: 0 | J174: 0 | K174: ='Bm 03'!L174 -> 0 | L174: 0 | M174: 0.00% | N174: 0.00%
A176: TOTAL | F176: =F9+F11+F13+F18+F21+F27+F36+F47+F54+F60+F90+F97+F110+F115+F125+F129+F133+F135+F137+F144+F150+F153+F155 -> 524,984.02 | J176: =J9+J11+J13+J18+J21+J27+J36+J47+J54+J60+J90+J97+J110+J115+J125+J129+J133+J135+J137+J144+J150+J153+J155 -> 96,798.73 | K176: =K9+K11+K13+K18+K21+K27+K36+K47+K54+K60+K90+K97+K110+K115+K125+K129+K133+K135+K137+K144+K150+K153+K155 -> 290,449.60 | L176: =L9+L11+L13+L18+L21+L27+L36+L47+L54+L60+L90+L97+L110+L115+L125+L129+L133+L135+L137+L144+L150+L153+L155 -> 387,248.33 | M176: =J176/F176 -> 18.44% | N176: =L176/F176 -> 73.76%
B181: LUMA PROJETOS E CONSTRUÇÕES LTDA | G181: Resp.: Técnico Fiscalização da Obra | L181: Prefeitura Municipal
B182: CNPJ: 08.869.425/0001-43 | G182: Carimbo e Assinatura | L182: Carimbo e Assinatura
E186: Valor total medido para ser pago pelo saldo do FNDE | F186: =J97+J90+J60+J54+J47+J36+J27+J21+J18+J13+J11+J9 -> R$ 38,356.35
E187: Valor total medido para ser pago com recursos proprios | F187: =J110+J115+J125+J129+J133+J135+J137+J144+J150+J153+J155 -> R$ 58,442.38
E188: VALOR TOTAL DA MEDIÇÃO 04: | F188: =F186+F187 -> R$ 96,798.73 | G188: (noventa e seis mil setecentos e noventa e oito reais e setenta e três centavos)

Sheet MEMÓRIA DE CÁLCULO 5 (2) (hidden)
C2: EMBASA - EMPRESA BAIANA DE ÁGUAS E SANEAMENTO S. A . | M2: MODALIDADE : CONCORRÊNCIA NACIONAL
C3: TIPO DE EMPREENDIMENTO: RECUPERAÇÃO DA ÁREA DE JAZIDA DEGRADADA REMANESCENTE DA CONSTRUÇÃO DA BARRAGEM DE SANTA HELENA | M3: DATA DA PROPOSTA: 08/11/2010
I4: MEMÓRIA DE CÁLCULO | M4: INÍCIO DA OBRA: 03/01/2011
C5: AGENTE FINANCEIRO: RECURSOS PRÓPRIOS | I5: MEDIÇÃO Nº 05 | M5: FIM DA OBRA: 03/05/2011
C6: CONTRATADA: TECTRAN BAHIA LTDA | M6: VALOR DO CONTRATO INICIAL: R$ = 1.180.944,81
C7: LOCALIZAÇÃO: BARRAGEM DE SANTA HELENA | F7: PERÍODO DA MEDIÇÃO: 01/05/2011 a 31/05/2011 | M7: VALOR DO CONTRATO ATUALIZADO: R$ = 1.180.944,81
C8: DATA DE ASSINATURA DO CONTRATO: 01/12/2010 | M8: CONTRATO Nº 1205/10
C9: PROJETO:
C10: RECUPERAÇÃO DA ÁREA DE JAZIDA DEGRADADA REMANESCENTE DA CONSTRUÇÃO DA BARRAGEM DE SANTA HELENA
C12: ITEM | D12: CODIGO | E12: DESCRIÇÃO DOS SERVIÇOS | F12: U N | G12: P.UNIT | H12: QUANTIDADE | I12: DIMENSÕES | N12: QUANTIDADES ACUMULADAS
H13: CONTRATADA | I13: COMPRIMENTO | J13: LARGURA | K13: ALTURA | L13: Nº DE VEZES | M13: MEDIDO | N13: TOTAL ANTERIOR | O13: TOTAL NO PERIODO | P13: TOTAL GERAL | Q13: SALDO | R13: SALDO
C16: 01 | E16: MOBILIZAÇÃO E DESMOBILIZAÇÃO DO CANTEIRO DE OBRA
C17: 01.01 | E17: MOBILIZAÇÃO E DESMOBILIZAÇÃO DO CANTEIRO DE OBRA
C18: 01.01.01 | E18: MOBILIZAÇÃO E DESMOBILIZAÇÃO DO CANTEIRO DE OBRA
C19: 01.01.01.01 | D19: 019201 | E19: MOBILIZAÇÃO E INSTALAÇÃO DE CANTEIRO DE OBRAS | F19: vb | G19: 41,990.00 | H19: 1.00 | M19: VERBA | N19: 1.00 | P19: =N19+O19 -> 1.00 | Q19: =H19-P19 -> 0
C20: 01.01.01.02 | D20: 019204 | E20: DESMOBILIZAÇÃO DE CANTEIRO DE OBRAS | F20: vb | G20: 4,680.00 | H20: 1.00 | N20: 0.00 | P20: =N20+O20 -> 0.00 | Q20: =H20-P20 -> 1.00
C21: 01.01.01.03 | D21: 030110 | E21: PLACA DE IDENTIFICAÇÃO DA OBRA PADRÃO EMBASA, INCLUSIVE FORNECIMENTO, TRANSPORTE E INSTALAÇÃO (DP0301-04) | F21: m2 | G21: 89.47 | H21: 12.00 | N21: 8.00 | P21: =N21+O21 -> 8.00 | Q21: =H21-P21 -> 4.00
E22: TOTAL DO SUBITEM 01.01.01
E23: TOTAL DO SUBITEM 01.01
E24: TOTAL DO SUBITEM 01
C26: 02 | E26: SERVIÇOS PRELIMINARES
C27: 02.01 | E27: SERVIÇOS PRELIMINARES
C28: 02.01.01 | E28: MOVIMENTO DE TERRA
C29: 02.01.01.01 | D29: 020301 | E29: LIMPEZA MANUAL DO TERRENO, INCLUSIVE RASPAGEM, JUNTAMENTO E QUEIMA DO MATERIAL | F29: m2 | G29: 1.72 | H29: 5,000.00 | I29: 120.00 | J29: =2000/120 -> 16.67 | L29: 1.00 | M29: =I29*J29*L29 -> 2,000.00 | N29: 3,000.00 | O29: 2,000.00 | P29: =N29+O29 -> 5,000.00 | Q29: =H29-P29 -> 0
C30: 02.01.01.02 | D30: 050661 | E30: REGULARIZACAO DE TALUDES POR PROCESSO MANUAL | F30: m2 | G30: 1.46 | H30: 5,000.00 | N30: 1,500.00 | O30: 3,500.00 | P30: =N30+O30 -> 5,000.00 | Q30: =H30-P30 -> 0
E31: LADO DIREITO SETOR E e F | F31: m2 | L31: 1.00 | M31: =I31*K3:K31*L31 -> 0
E32: LADO ESQUERDO SETOR E e F | F32: m2 | I32: =210*10 -> 2,100.00 | K32: 1,400.00 | L32: 1.00 | M32: =I32+K32 -> 3,500.00
L34: TOTAL | M34: =SUM(M31:M32) -> 3,500.00
C35: 02.01.01.03 | D35: 050613 | E35: ESCAVAÇÃO E TRANSPORTE ATÉ 30m C/ TRATOR DE ESTEIRAS C/ LAMINA, P/ EMPILHAMENTO EM MATERIAL DE 1a CAT | F35: m3 | G35: 1.55 | H35: 5,000.00 | N35: 17,100.00 | P35: =N35+O35 -> 17,100.00 | Q35: =H35-P35 -> -12100.00
E36: LADO DIREITO SETOR A, B e C | F36: m3 | M36: =I36*J36*K36*L36 -> 0
E37: LADO DIREITO SETOR A, B e C | F37: m3 | M37: =I37*J37*K37*L37 -> 0
E38: LADO ESQUERDO SETOR A, B e C | F38: m3 | M38: =I38*J38*K38*L38 -> 0
L40: TOTAL | M40: =SUM(M36:M38) -> 0
C41: 02.01.01.04 | D41: 060104 | E41: CARGA E DESCARGA DE SOLO | F41: m3 | G41: 1.76 | H41: 5,000.00 | N41: 17,100.00 | P41: =N41+O41 -> 17,100.00 | Q41: =H41-P41 -> -12100.00
E42: LADO DIREITO SETOR A, B e C | M42: =I42*J42*K42*L42 -> 0
E43: LADO DIREITO SETOR A, B e C | M43: =I43*J43*K43*L43 -> 0
E44: LADO ESQUERDO SETOR A, B e C | M44: =I44*J44*K44*L44 -> 0
L46: TOTAL | M46: =SUM(M42:M44) -> 0
C47: 02.01.01.05 | D47: 060204 | E47: MOMENTO DE TRANSPORTE DE SOLO, EM CAMINHÃO BASCULANTE | F47: m3xkm | G47: 0.52 | H47: 5,000.00 | N47: 17,100.00 | P47: =N47+O47 -> 17,100.00 | Q47: =H47-P47 -> -12100.00
E48: LADO DIREITO SETOR A, B e C | M48: =I48*J48*K48*L48 -> 0
E49: LADO DIREITO SETOR A, B e C | M49: =I49*J49*K49*L49 -> 0
E50: LADO ESQUERDO SETOR A, B e C | M50: =I50*J50*K50*L50 -> 0
L52: TOTAL | M52: =SUM(M48:M50) -> 0
C54: 02.01.01.06 | D54: 060125 | E54: ESPALHAMENTO MECANICO DE SOLO EM BOTA-FORA | F54: m3 | G54: 1.04 | H54: 5,000.00 | N54: 17,100.00 | P54: =N54+O54 -> 17,100.00 | Q54: =H54-P54 -> -12100.00
E55: LADO DIREITO SETOR A, B e C | M55: =I55*J55*K55*L55 -> 0
E56: LADO DIREITO SETOR A, B e C | M56: =I56*J56*K56*L56 -> 0
E57: LADO ESQUERDO SETOR A, B e C | M57: =I57*J57*K57*L57 -> 0
L59: TOTAL | M59: =SUM(M55:M57) -> 0
C61: 02.01.01.08 | D61: 020407 | E61: ROÇAGEM EM CAPOEIRA DENSA A MACHADO, INCLUSIVE RASPAGEM MANUAL, JUNTAMENTO, QUEIMA DO MATERIAL E REMOÇÃO MANUAL DOS RESIDUOS PARA FORA DA ÁREA ROÇADA | F61: m2 | G61: 3.45 | H61: 1.000,00 | N61: 1,000.00 | P61: =N61+O61 -> 1,000.00 | Q61: =H61-P61 -> 0
C62: 02.01.01.09 | D62: 050310 | E62: ESCAVAÇÃO MANUAL DE POÇOS E CAVAS DE FUNDAÇÃO EM SOLO DE 1a CATEGORIA EXECUTADA C/ PROFUNDIDADE ACIMA DE 4,50m | F62: m3 | G62: 21.74 | H62: 1.000,00 | I62: 514.00 | J62: 0.80 | K62: 0.30 | L62: 1.00 | M62: =I62*J62*K62*L62 -> 123.36 | O62: 123.36 | P62: =N62+O62 -> 123.36 | Q62: =H62-P62 -> 876.64
C63: 02.01.01.10 | D63: 050404 | E63: EXECUÇÃO DE ATERRO EM VALAS POCOS/CAVAS DE FUNDAÇÃO COM FORNECIMENTO DE AREIA, INCLUSIVE LANÇAMENTO, ESPALHAMENTO, COMPACTAÇÃO C/ PLACA VIBRATORIA, SOQUETE PNEUMATICO OU SOQUETE MANUAL | F63: m3 | G63: 25.03 | H63: 1.000,00 | Q63: =H63-P63 -> 1,000.00
C64: 02.01.01.11 | D64: 050807 | E64: COMPACTAÇÃO DE ATERRO P/ ENSECADEIRAS C/ SOLO, INCLUSIVE DESTORROAMENTO, UMIDECIMENTO, HOMOGENEIZAÇÃO E COMPACTAÇÃO C/ ROLO | F64: m3 | G64: 1.46 | H64: 1.000,00 | M64: =I64*J64*K64*L64 -> 0.00 | N64: 8,100.00 | P64: =N64+O64 -> 8,100.00 | Q64: =H64-P64 -> -7100.00
E65: LADO DIREITO SETOR A e B
E66: LADO DIREITO SETOR A e B
C67: 02.01.01.12 | D67: 050658 | E67: REGULARIZACAO DE TALUDES POR PROCESSO MECANICO | F67: m2 | G67: 0.12 | H67: 10,000.00 | N67: 10,000.00 | P67: =N67+O67 -> 10,000.00 | Q67: =H67-P67 -> 0
E68: TOTAL DO SUBITEM 02.01.01
E69: TOTAL DO SUBITEM 02.01
E70: TOTAL DO SUBITEM 02
C71: 03 | E71: DRENAGEM
C72: 03.01 | E72: DRENAGEM
C73: 03.01.01 | E73: SERVICOS DIVERSOS
C74: 03.01.01.01 | D74: 100307 | E74: CAIXA DE PASSAGEM RECEPÇÃO EM ALVENARIA DE TIJOLO MACIÇO, TAMPA EM CONCRETO ARMADO, SEÇÃO INTERNA 1,00X1,00m, h<=1,30 m (CP TIPO III / CR TIPO III) DP1003-01/02 | F74: un | G74: 770.52 | H74: 10.00 | M74: 5.00 | N74: 5.00 | P74: =O74+N74 -> 5.00 | Q74: =H74-P74 -> 5.00
C75: 03.01.01.02 | D75: 119121 | E75: FORNECIMENTO E EXECUÇÃO DE CANALETA REVESTIDA COM SINTEMAX (0,80x0,30)m CONFORME PROJETO | F75: m | G75: 35.00 | H75: 1,500.00 | Q75: 1,500.00
C76: 03.01.01.03 | D76: 119122 | E76: FORNECIMENTO E EXECUÇÃO DE LEIRAS DE PROTEÇÃO, INCLUSIVE CAMADA DE TERRA VEGETAL, TRANSPORTE E IRRIGAÇÃO ATÉ A PEGA TOTAL, CONFORME PROJETO | F76: m | G76: 15.00 | H76: 500.00 | Q76: 500.00
C77: 03.01.01.04 | D77: 119123 | E77: FORNECIMENTO E EXECUÇÃO DE REGULARIZAÇÃO COM FEIXES DE FIBRAS VEGETAIS INCLUSIVE TRANSPORTE, CONFORME PROJETO | F77: m | G77: 18.01 | H77: 1,200.00 | Q77: 1,200.00
C78: 03.01.01.05 | D78: 119120 | E78: FORNECIMENTO E INSTALAÇÃO DE ESTRUTURAS DISSIPADORAS DE ENERGIA (DESCIDAS D'AGUA) COM BERMALONGA D20 / D40 CONFORME PROJETO (50% DE CADA) | F78: m | G78: 15.00 | H78: 2,500.00 | Q78: 2,500.00
C79: 03.01.01.06 | D79: 110619 | E79: EXECUÇÃO DE DESCIDA D'AGUA EM ALVENARIA DE PEDRA ARGAMASSADA S/ REVESTIMENTO (DP1106-01) | F79: m3 | G79: 274.43 | H79: 200.00 | Q79: 200.00
C80: 03.01.01.07 | D80: 119124 | E80: FORNECIMENTO E CONSTRUÇÃO DE CALHAS VERDES DEDRENAGEM COM (0,40x0,40)m REVESTIDA COM BIOMANTAS INCLUSIVE TRANSPORTE, CONFORME PROJETO | F80: m | G80: 35.00 | H80: 500.00 | Q80: 500.00
C81: 03.01.01.08 | D81: 119125 | E81: CONSTRUÇÃO DE BACIAS DE RETENÇÃO UTILIZANDO MAQUINAS DE TERRAPLENAGEM INCLUSIVE DESLOCAMENTO DOS EQUIPAMENTOS, CONFORME PROJETO | F81: m3 | G81: 28.00 | H81: 4,000.00 | M81: =I81*J81*K81*L81 -> 0 | N81: 11,120.00 | P81: =N81+O81 -> 11,120.00 | Q81: 0.00
E82: BACIA 02 | M82: =I82*J82*K82*L82 -> 0
E83: LIGAÇÃO BACIA 02 ATÉ BACIA 03 | M83: =I83*J83*K83*L83 -> 0
E84: BACIA 03 | M84: 0
E85: LIGAÇÃO BACIA 03 ATÉ BACIA 04 | M85: 0
E86: BACIA 04 | M86: 0
E87: LIGAÇÃO BACIA 04 ATÉ SETORES A, B e C | M87: 0
E88: CONFORMAÇÕES LATERAIS DAS BACIAS | M88: 0
L90: TOTAL | M90: =SUM(M82:M88) -> 0
E91: TOTAL DO SUBITEM 03.01.01
E92: TOTAL DO SUBITEM 03.01
E93: TOTAL DO SUBITEM 03.01
C95: 04 | E95: CERCAMENTO
C96: 04.01 | E96: CERCAMENTO
C97: 04.01.01 | E97: SERVIÇOS DIVERSOS
C98: 04.01.01.01 | D98: 029207 | E98: REMOÇÃO DE CERCA C/TELA E/OU ARAME | F98: m | G98: 9.18 | H98: 500.00 | Q98: =H98-P98 -> 500.00
C99: 04.01.01.02 | D99: 180401 | E99: CERCA C/ TELA DE ARAME GALVANIZADO REVESTIDA EM PVC C/MALHA DE 2", 12BWG C/ ESTACAS DE CONCRETO PRE-MOLDADAS,C/ PONTA INCLINADA E DIMENSÕES DE 0,10x0,10x3,00m, (DP1804-01) | F99: m | G99: 87.83 | H99: 500.00 | Q99: =H99-P99 -> 500.00
C100: 04.01.01.03 | D100: 189401 | E100: REPARO DE CERCA C/ ARAME FARPADO | F100: m | G100: 15.46 | H100: 300.00 | Q100: =H100-P100 -> 300.00
E101: TOTAL DO SUBITEM 04.01.01
E102: TOTAL DO SUBITEM 04.01
E103: TOTAL DO SUBITEM 04
C105: 05 | E105: REVESTIMENTO VEGETAL DE TALUDES, BERMAS E AREAS SEMI-PLANAS CONFORME ESPECIFICAÇÃO
C106: 05.01 | E106: REVESTIMENTO VEGETAL DE TALUDES, BERMAS E AREAS SEMI-PLANAS CONFORME ESPECIFICAÇÃO
C107: 05.01.01 | E107: SERVIÇOS DIVERSOS
C108: 05.01.01.01 | D108: 119126 | E108: EXECUÇÃO DE REVEGETAÇÃO HIDRO-SEMEADURA EM AREAS PLANAS OU SEMI PLANAS, INCLUSIVE ACOMPANHAMENTO, TRANSPORTE E IRRIGAÇÃO ATÉ A PEGA TOTAL, CONFORME PROJETO | F108: m2 | G108: 1.50 | H108: 50,000.00 | L108: TOTAL | M108: =M109+M110+M111 -> 22,205.00 | O108: 22,205.00 | P108: =O108+N108 -> 22,205.00 | Q108: =H108-P108 -> 27,795.00
I109: 690.00 | K109: 16.00 | M109: =I109*K109 -> 11,040.00
I110: =M110/K110 -> 601.34 | K110: 14.90 | M110: 8,960.00
I111: 441.00 | K111: 5.00 | M111: =K111*I111 -> 2,205.00
C112: 05.01.01.02 | D112: 180607 | E112: PLANTIO DE ARVORES, C/ h >= 2,00 m, INCLUSIVE PREPARO E ADUBAÇÃO DO SOLO E IRRIGAÇÃO ATÉ A PEGA TOTAL | F112: un | G112: 38.13 | H112: 2,000.00 | M112: 300.00 | O112: 300.00 | P112: =O112+N112 -> 300.00 | Q112: 1,700.00
C113: 05.01.01.03 | D113: 180601 | E113: PLANTIO DE GRAMA EM PLACA, INCLUSIVE CAMADA DE TERRA VEGETAL, e=0,05m, TRANSPORTE E IRRIGAÇÃO ATÉ A PEGA TOTAL | F113: m2 | G113: 10.92 | H113: 2,000.00 | M113: 1,000.00 | O113: 1,000.00 | P113: 1,000.00 | Q113: 1,000.00
C114: 05.01.01.04 | D114: 119127 | E114: FORNECIMENTO E EXECUÇÃO DE CORDÃO VEGETADO COM CAPIM VETIVER, INCLUSIVE CAMADA DE TERRA VEGETAL, TRANSPORTE E IRRIGAÇÃO ATÉ A PEGA TOTAL, CONFORME PROJETO | F114: m | G114: 18.01 | H114: 1,500.00 | M114: 750.00 | O114: 750.00 | P114: 750.00 | Q114: 750.00
C115: 05.01.01.05 | D115: 119128 | E115: FORNECIMENTO E INSTALAÇÃO DE BIOMANTAS DE PALHA UNIDIMENCIONAL TIPO TELA BIOTEXTIL 400 UP, INCLUSIVE TRANSPORTE, CONFORME PROJETO | F115: m2 | G115: 4.90 | H115: 5,000.00 | M115: 2,500.00 | O115: 2,500.00 | P115: 2,500.00 | Q115: 2,500.00
C116: 05.01.01.06 | D116: 119129 | E116: FORNECIMENTO E INSTALAÇÃO DE BIOMANTAS ANTI EROSIVAS DE FIBRA DE COCO TRIDIMENSIONAL, TIPO TELA BIOTEXTIL 400 TF, INCLUSIVE TRANSPORTE, CONFORME PROJETO | F116: m2 | G116: 14.00 | H116: 7,000.00 | M116: 3,500.00 | O116: 3,500.00 | P116: 3,500.00 | Q116: 3,500.00
C117: 05.01.01.07 | D117: 119130 | E117: FORNECIMENTO E INSTALAÇÃO DE BIOMANTAS ANTI EROSIVAS DE FIBRA DE COCO BIDIMENSIONAL, TIPO TELA FIBRAX 300 BF, INCLUSIVE TRANSPORTE, COMFORME PROJETO | F117: m2 | G117: 6.90 | H117: 7,000.00 | M117: 3,500.00 | O117: 3,500.00 | P117: 3,500.00 | Q117: 3,500.00
C118: 05.01.01.08 | D118: 119131 | E118: FORNECIMENTO E FIXAÇÃO DE GRAMPOS DE AÇO CA-50, CONFORME PROJETO | F118: un | G118: 2.00 | H118: 4,000.00 | M118: 2,000.00 | O118: 2,000.00 | P118: 2,000.00 | Q118: 2,000.00
C119: 05.01.01.09 | D119: 110704 | E119: ENROCAMENTO C/ PEDRA DE MÃO, C/ ARRUMAÇÃO MANUAL, INCLUSIVE FORNECIMENTO DO MATERIAL | F119: m3 | G119: 126.49 | H119: 100.00 | M119: =L119*K119*J119*I119 -> 0 | N119: 30.00 | P119: =N119+O119 -> 30.00 | Q119: 70.00
E120: TOTAL DO SUBITEM 05.01.01
E121: TOTAL DO SUBITEM 05.01
E122: TOTAL DO SUBITEM 05
C124: 06 | E124: SERVIÇOS COMPLEMENTARES
C125: 06.01 | E125: SERVIÇOS COMPLEMENTARES
C126: 06.01.01 | E126: SERVIÇOS COMPLEMENTARES
C127: 06.01.01.01 | D127: 020407 | E127: ROÇAGEM EM CAPOEIRA DENSA A MACHADO, INCLUSIVE RASPAGEM MANUAL, JUNTAMENTO, QUEIMA DO MATERIAL E REMOÇÃO MANUAL DOS RESIDUOS P/FORA DA ÁREA ROÇADA | F127: m2 | G127: 3.45 | H127: 5,000.00 | N127: 2,000.00 | P127: =N127+O127 -> 2,000.00 | Q127: =H127-P127 -> 3000.00
E128: LADO DIREITO SETOR A e B | M128: =I128*J128*L128 -> 0
E129: LADO ESQUERDO SETOR A e B | M129: =I129*J129*L129 -> 0
L131: TOTAL | M131: =SUM(M128:M129) -> 0
C132: 06.01.01.02 | D132: 119132 | E132: LIMPEZA DE CANALETAS | F132: m | G132: 6.49 | H132: 1,000.00 | Q132: =H132-P132 -> 1,000.00
E133: TOTAL DO SUBITEM 06.01.01
E134: TOTAL DO SUBITEM 06.01
E135: TOTAL DO SUBITEM 06
C137: 07 | E137: CONTENÇÕES
C138: 07.01 | E138: CONTENÇÕES
C139: 07.01.01 | E139: SERVIÇOS DIVERSOS
C140: 07.01.01.01 | D140: 119136 | E140: FORNECIMENTO E COLOCAÇÃO DE PIQUETES DE MADEIRA PARA CONTENÇÃO DOS ROLOS DAS MANTAS, INCLUSIVE TRANSPORTE, CONFORME PROJETO | F140: m | G140: 0.39 | H140: 5,000.00 | Q140: =H140-P140 -> 5,000.00
C141: 07.01.01.02 | D141: 119133 | E141: EXECUÇÃO DE CONTENÇÃO C/ SOLO-PNEUS, INCLUSIVE FORNECIMENTO, TRANSPORTE E ENCHIMENTO DOS PNEUS, CONFORME PROJETO | F141: m3 | G141: 50.00 | H141: 500.00 | Q141: 500.00
C142: 07.01.01.03 | D142: 119134 | E142: FORNECIMENTO E EXECUÇÃO DAS PALICADAS DE MADEIRA IMUNIZADAS, INCLUSIVE TRANSPORTE, CONFORME PROJETO | F142: m | G142: 149.99 | H142: 250.00 | N142: 60.00 | P142: =N142+O142 -> 60.00 | Q142: =H142-P142 -> 190.00
C143: 07.01.01.04 | D143: 119135 | E143: FORNECIMENTO E COLOCAÇÃO DOS SACOS DE JUTA, INCLUSIVE TRANSPORTE, CONFORME PROJETO | F143: m | G143: 2.00 | H143: 2,500.00 | I143: =800/1.4 -> 571.43 | J143: 1.40 | M143: =I143*J143 -> 800.00 | O143: 600.00 | P143: =N143+O143 -> 600.00 | Q143: 1,900.00
C144: 07.01.01.05 | D144: 110704 | E144: ENROCAMENTO C/ PEDRA DE MÃO, C/ ARRUMAÇÃO MANUAL, INCLUSIVE FORNECIMENTO DE MATERIAL | F144: m3 | G144: 126.49 | H144: 200.00 | I144: 800.00 | J144: 1.40 | K144: 0.10 | M144: =I144*J144*K144 -> 112.00 | O144: 112.00 | P144: =N144+O144 -> 112.00 | Q144: 88.00
C145: 07.01.01.06 | D145: 180607 | E145: PLANTIO DE ARVORES, C/ h >= 2,00 m, INCLUSIVE PREPARO E ADUBAÇÃO DO SOLO E IRRIGAÇÃO ATÉ A PEGA TOTAL | F145: un | G145: 38.13 | H145: 2,000.00 | Q145: 2,000.00
C146: 07.01.01.07 | D146: 111016 | E146: FORNECIMENTO E COLOCAÇÃO DE MANTA GEOTEXTIL TECIDA C/ GRAMATURA DE 445 g/mý | F146: m2 | G146: 11.06 | H146: 3,000.00 | Q146: 3,000.00
E147: TOTAL DO SUBITEM 07.01.01
E148: TOTAL DO SUBITEM 07.01
E149: TOTAL DO SUBITEM 07

Sheet RESUMO (hidden)
A3: RESUMO DA MEDIÇÃO
A4: ANEXO-FATURA Nº
A5: OBRA: BARRAGEM LAGOA DA TORTA - OBRAS COMPLEMENTARES | B5: RECUPERAÇÃO DA ÁREA DE JAZIDA DEGRADADA REMANECENTE DA CONSTRUÇÃO DA BARRAGEM DE SANTA HELENA | H5: MEDIÇÃO Nº 01
A6: CONTRATADA: TECTRAN BAHIA LTDA | D6: CONTRATO Nº 1205/10 | H6: PERÍODO DA MEDIÇÃO: | J6: 03/01 a 31/01/2011
A8: ITEM | B8: UNIDADES | C8: QUANTIDADE EXECUTADA | D8: CENTRO | E8: VALORES EM R$
D9: DE | E9: SERVIÇOS | F9: MATERIAIS | H9: EQUIPAMENTO | I9: TOTAL | J9: REAJUSTE | K9: TOTAL GERAL
D10: CUSTO | F10: FºFº | G10: PVC
A11: 1.0 | B11: CANTEIRO DE OBRA | C11: 40% | E11: ='[1]MEDIÇÃO 01'!K19 -> 17,635.80 | I11: =E11+F11+G11+H11 -> 17,635.80 | K11: =I11+J11 -> 17,635.80
A14: 2.0 | B14: SERVIÇOS PRELIMINARES | E14: ='[1]MEDIÇÃO 01'!K38 -> 3,981.60 | I14: =E14+F14+G14+H14 -> 3,981.60 | K14: =I14+J14 -> 3,981.60
A17: 3.0 | B17: DRENAGEM | E17: ='[1]MEDIÇÃO 01'!K54 -> 116,169.98 | I17: =E17+F17+G17+H17 -> 116,169.98 | K17: =I17+J17 -> 116,169.98
A20: 4.0 | B20: CERCAMENTO | E20: ='[1]MEDIÇÃO 01'!K65 -> 0 | I20: =E20+F20+G20+H20 -> 0 | K20: =I20+J20 -> 0
A23: 5.0 | B23: REVESTIMENTO VEGETAL | E23: ='[1]MEDIÇÃO 01'!K87 -> 0 | I23: =E23+F23+G23+H23 -> 0 | K23: =I23+J23 -> 0
A26: 6.0 | B26: SERVIÇOS COMPLEMETARES | E26: ='[1]MEDIÇÃO 01'!K97 -> 0 | I26: =E26+F26+G26+H26 -> 0 | K26: =I26+J26 -> 0
A29: 7.0 | B29: CONTENÇÕES | E29: ='[1]MEDIÇÃO 01'!J112 -> 0 | I29: =E29+F29+G29+H29 -> 0 | K29: =I29+J29 -> 0
B32: TOTAL GERAL | E32: =SUM(E11:E31) -> 137,787.38 | I32: =SUM(I11:I31) -> 137,787.38 | J32: =SUM(J11:J31) -> 0 | K32: =SUM(K11:K31) -> 137,787.38
B34: ÍNDICES DE REAJUSTAMENTO
C37: TECTRAN BAHIA LTDA | H37: EMBASA - Empresa Baiana de Águas e Saneamento S/A
C38: Engº Fernando Gomes de Oliveira | H38: Engª Sandra Maria Araújo Ideião

Sheet MEDIÇÃO 03 copia (hidden)
A1: EMBASA - EMPRESA BAIANA DE ÁGUAS E SANEAMENTO S. A . | J1: MODALIDADE: CONCORRÊNCIA NACIONAL
A2: PROGRAMA: | J2: DATA DA PROPOSTA: 08/11/2010
A3: TIPO DE EMPREENDIMENTO: RECUPERAÇÃO DA ÁREA DE JAZIDA CONSTRUÇÃO DA BARRAGEM DE SANTA HELENA | G3: MEDIÇÃO Nº 03 | J3: INÍCIO DA OBRA: 03/01/2011
A4: AGENTE FINANCEIRO: RECURSOS PRÓPRIOS | J4: FIM DA OBRA: 03/05/2011
A5: CONTRATADA: TECTRAN BAHIA LTDA | J5: VALOR DO CONTRATO INICIAL: R$ 1.180.944,81
A6: LOCALIZAÇÃO: DIAS D'ÁVILA - MATA DE SÃO JOÃO - BA | D6: PERÍODO DA MEDIÇÃO: | F6: 01/03/2011 a | G6: 2011-03-31 | J6: VALOR DO CONTRATO ATUALIZADO: R$1.180.944,81
A7: DATA DE ASSINATURA DO CONTRATO: 18/02/2010 | J7: CONTRATO Nº: 1.205/10
A8: ÍTEM | B8: CÓDIGO | C8: DESCRIÇÃO DOS SERVIÇOS | D8: UN | E8: P. UNIT. | F8: QUANTIDADE | K8: VALOR EM R$
F9: MEDIDO | G9: MEDIDO ANTERIOR | H9: MEDIDO ACUMULADO | I9: CONTRATADO | J9: SALDO | K9: MEDIDO | L9: MEDIDO ANTERIOR | M9: MEDIDO ACUMULADO | N9: CONTRATADO | O9: SALDO
A10: 01 | C10: MOBILIZAÇÃO E DESMOBILIZAÇÃO DO CANTEIRO DE OBRA
A11: 01.01 | C11: MOBILIZAÇÃO E DESMOBILIZAÇÃO DO CANTEIRO DE OBRA
A12: 01.01.01 | C12: MOBILIZAÇÃO E DESMOBILIZAÇÃO DO CANTEIRO DE OBRA
A13: 01.01.01.01 | B13: 019201 | C13: MOBILIZACÃO E INSTALACÃO DE CANTEIRO DE OBRAS | D13: vb | E13: 41,990.00 | F13: 0.20 | G13: 0.40 | H13: =F13+G13 -> 0.60 | I13: 1.00 | J13: =I13-H13 -> 0.40 | K13: =ROUND($E13*F13,2) -> 8,398.00 | L13: 25,194.00 | M13: =ROUND($E13*H13,2) -> 25,194.00 | N13: 41,990.00 | O13: 16,796.00
A14: 01.01.01.02 | B14: 019204 | C14: DESMOBILIZACÃO DE CANTEIRO DE OBRAS | D14: vb | E14: 4,680.00 | I14: 1.00 | J14: =I14-H14 -> 1.00 | N14: 4,680.00 | O14: 4,680.00
A15: 01.01.01.03 | B15: 030110 | C15: PLACA DE IDENTIFICACAO DA OBRA PADRAO EMBASA, INCLUSIVE FORNECIMENTO, TRANSPORTE E INSTALAÇÃO (DP0301-04) | D15: m² | E15: 89.47 | F15: 8.00 | H15: =F15+G15 -> 8.00 | I15: 12.00 | J15: =I15-H15 -> 4.00 | K15: =ROUND($E15*F15,2) -> 715.76 | L15: 715.76 | M15: 715.76 | N15: 1,073.64 | O15: 357.88
C17: TOTAL DO SUBITEM 01.01 | K17: =SUM(K10:K16) -> 9,113.76 | L17: =SUM(L10:L16) -> 25,909.76 | M17: =SUM(M10:M16) -> 25,909.76 | N17: =SUM(N10:N16) -> 47,743.64 | O17: =SUM(O10:O16) -> 21,833.88
C18: TOTAL DO SUBITEM 01 | K18: =K17 -> 9,113.76 | L18: =L17 -> 25,909.76 | M18: =M17 -> 25,909.76 | N18: =N17 -> 47,743.64 | O18: =O17 -> 21,833.88
C19: TOTAL DO SUBITEM 01 COM K= 1,05 | K19: =ROUND(K18*1.05,2) -> 9,569.45 | L19: =ROUND(L18*1.05,2) -> 27,205.25 | M19: =ROUND(M18*1.05,2) -> 27,205.25 | N19: =ROUND(N18*1.05,2) -> 50,130.82 | O19: =ROUND(O18*1.05,2) -> 22,925.57
A21: 02 | C21: SERVIÇOS PRELIMINARES
A22: 02.01 | C22: SERVIÇOS PRELIMINARES
A23: 02.01.01 | C23: MOVIMENTO DE TERRA
A24: 02.01.01.01 | B24: 020301 | C24: LIMPEZA MANUAL DO TERRENO, INCLUSIVE RASPAGEM, JUNTAMENTO E QUEIMA DO MATERIAL | D24: m² | E24: 1.72 | G24: 1,600.00 | H24: =F24+G24 -> 1,600.00 | I24: 5,000.00 | J24: =I24-H24 -> 3,400.00 | L24: =ROUND($E24*G24,2) -> 2,752.00 | M24: =ROUND($E24*H24,2) -> 2,752.00 | N24: 8,600.00 | O24: 5,848.00
A25: 02.01.01.02 | B25: 050661 | C25: REGULARIZAÇÃO DE TALUDES POR PROCESSO MANUAL | D25: m² | E25: 1.46 | I25: 5,000.00 | J25: =I25-H25 -> 5,000.00 | N25: 7,300.00 | O25: 7,300.00
A26: 02.01.01.03 | B26: 050613 | C26: ESCAVAÇÃO E TRANSPORTE ATÉ 30m C/ TRATOR DE ESTEIRAS C/ LAMINA, P/ EMPILHAMENTO EM MATERIAL DE 1ª CAT. | D26: m³ | E26: 1.55 | F26: 5,000.00 | H26: =F26+G26 -> 5,000.00 | I26: 5,000.00 | K26: =ROUND($E26*F26,2) -> 7,750.00 | M26: 7,750.00 | N26: 7,750.00
A27: 02.01.01.04 | B27: 060104 | C27: CARGA E DESCARGA DE SOLO | D27: m³ | E27: 1.76 | F27: 5,000.00 | H27: =F27+G27 -> 5,000.00 | I27: 5,000.00 | K27: =ROUND($E27*F27,2) -> 8,800.00 | M27: 8,800.00 | N27: 8,800.00
A28: 02.01.01.05 | B28: 060204 | C28: MOMENTO DE TRANSPORTE DE SOLO, EM CAMINHAO BASCULANTE | D28: m³xkm | E28: 0.52 | F28: 5,000.00 | H28: =F28+G28 -> 5,000.00 | I28: 5,000.00 | K28: =ROUND($E28*F28,2) -> 2,600.00 | M28: 2,600.00 | N28: 2,600.00
A29: 02.01.01.06 | B29: 060125 | C29: ESPALHAMENTO MECANICO DE SOLO EM BOTA-FORA | D29: m³ | E29: 1.04 | F29: 4,000.00 | G29: 1,000.00 | H29: =F29+G29 -> 5,000.00 | I29: 5,000.00 | K29: =ROUND($E29*F29,2) -> 4,160.00 | L29: =ROUND($E29*G29,2) -> 1,040.00 | M29: 5,200.00 | N29: 5,200.00
A30: 02.01.01.08 | B30: 020407 | C30: ROÇAGEM EM CAPOEIRA DENSA A MACHADO, INCLUSIVE RASPAGEM MANUAL, JUNTAMENTO, QUEIMA DO MATERIAL E REMOÇÃO MANUAL DOS RESÍODOS PARA FORA DA ÁREA ROÇADA | D30: m² | E30: 3.45 | I30: 1,000.00 | J30: =I30-H30 -> 1,000.00 | N30: 3,450.00 | O30: 3,450.00
A31: 02.01.01.09 | B31: 050310 | C31: ESCAVAÇÃO MANUAL DE POÇOS E CAVAS DE FUNDAÇÃO EM SOLO DE 1ª CATEGORIA EXECUTADA C/ PROFUNDIDADE ACIMA DE 4,50m | D31: m³ | E31: 21.74 | I31: 1,000.00 | J31: =I31-H31 -> 1,000.00 | N31: 21,740.00 | O31: 21,740.00
A32: 02.01.01.10 | B32: 050404 | C32: EXECUÇÃO DE ATERRO EM VALAS POÇOS/CAVAS DE FUNDAÇÃO COM FORNECIMENTO DE AREIA, INCLUSIVE LANÇAMENTO, ESPALHAMENTO, COMPACTAÇÃO C/ PLACA VIBRATORIA, SOQUETE PNEUMATICO OU SOQUETE MANUAL | D32: m³ | E32: 25.03 | I32: 1,000.00 | J32: =I32-H32 -> 1,000.00 | N32: 25,030.00 | O32: 25,030.00
A33: 02.01.01.11 | B33: 050807 | C33: COMPACTACÃO DE ATERRO P/ ENSECADEIRAS C/ SOLO, INCLUSIVE DESTORROAMENTO, UMIDECIMENTO, HOMOGENEIZAÇÃO E COMPACTAÇÃO C/ ROLO | D33: m³ | E33: 1.46 | F33: 1,000.00 | H33: =F33+G33 -> 1,000.00 | I33: 1,000.00 | K33: =ROUND($E33*F33,2) -> 1,460.00 | M33: 1,460.00 | N33: 1,460.00
A34: 02.01.01.12 | B34: 050658 | C34: REGULARIZAÇÃO DE TALUDES POR PROCESSO MECÂNICO | D34: m² | E34: 0.12 | I34: 10,000.00 | J34: =I34-H34 -> 10,000.00 | N34: 1,200.00 | O34: 1,200.00
C36: TOTAL DO SUBITEM 02.01 | K36: =SUM(K24:K35) -> 24,770.00 | L36: =SUM(L24:L35) -> 3,792.00 | M36: =SUM(M24:M35) -> 28,562.00 | N36: =SUM(N24:N35) -> 93,130.00 | O36: =SUM(O24:O35) -> 64,568.00
C37: TOTAL DO SUBITEM 02 | K37: =K36 -> 24,770.00 | L37: =L36 -> 3,792.00 | M37: =M36 -> 28,562.00 | N37: =N36 -> 93,130.00 | O37: =O36 -> 64,568.00
C38: TOTAL DO SUBITEM 02 COM K= 1,05 | K38: =ROUND(K37*1.05,2) -> 26,008.50 | L38: =ROUND(L37*1.05,2) -> 3,981.60 | M38: =ROUND(M37*1.05,2) -> 29,990.10 | N38: =ROUND(N37*1.05,2) -> 97,786.50 | O38: =ROUND(O37*1.05,2) -> 67,796.40
A40: 03 | C40: DRENAGEM
A41: 03.01 | C41: DRENAGEM
A42: 03.01.01 | C42: SERVIÇOS DIVERSOS
A43: 03.01.01.01 | B43: 100307 | C43: CAIXA DE PASSAGEM/RECEPCAO EM ALVEN. DE TIJOLO MACICO, TAMPA EM CONCRETO ARMADO, SECAO INTERNA 1,00 X 1,00m, h<=1,30 m (CP TIPO III / CR TIPO III) DP1003-01/02 | D43: un | E43: 770.52 | I43: 10.00 | J43: =I43-H43 -> 10.00 | N43: =ROUND($E43*I43,2) -> 7,705.20 | O43: 7,705.20
A44: 03.01.01.02 | B44: 119121 | C44: FORNECIMENTO E EXECUCAO DE CANALETA REVESTIDA COM SINTEMAX (0,80x0,30)m CONFORME PROJETO. | D44: m | E44: 35.00 | I44: 1,500.00 | J44: 1,500.00 | N44: 52,500.00 | O44: 52,500.00
A45: 03.01.01.03 | B45: 119122 | C45: FORNECIMENTO E EXECUCAO DE LEIRAS DE PROTECAO, INCLUSIVE CAMADA DE TERRA VEGETAL, TRANSPORTE E IRRIGACAO ATE A PEGA TOTAL, CONFORME PROJETO. | D45: m | E45: 15.00 | I45: 500.00 | J45: 500.00 | N45: 7,500.00 | O45: 7,500.00
A46: 03.01.01.04 | B46: 119123 | C46: FORNECIMENTO E EXECUCAO DE REGULARIZACAO COM FEIXES DE FIBRAS VEGETAIS INCLUSIVE TRANSPORTE, CONFORME PROJETO. | D46: m | E46: 18.01 | I46: 1,200.00 | J46: 1,200.00 | N46: 21,612.00 | O46: 21,612.00
A47: 03.01.01.05 | B47: 119120 | C47: FORNECIMENTO E INSTALAÇAO DE ESTRUTURAS DISSIPADORAS DE ENERGIA (DESCIDAS D'AGUA) COM BERMALONGA D20 / D40 CONFORME PROJETO (50% DE CADA) | D47: m | E47: 15.00 | I47: 2,500.00 | J47: 2,500.00 | N47: 37,500.00 | O47: 37,500.00
A48: 03.01.01.06 | B48: 110619 | C48: EXECUÇÃO DE DESCIDA D'AGUA EM ALVENARIA DE PEDRA ARGAMASSADA S/ REVESTIMENTO (DP1106-01) | D48: m³ | E48: 274.43 | I48: 200.00 | J48: 200.00 | N48: 54,886.00 | O48: 54,886.00
A49: 03.01.01.07 | B49: 119124 | C49: FORNECIMENTO E CONSTRUCAO DE CALHAS VERDES DE DRENAGEM COM (0,40x0,40)m REVESTIDA COM BIOMANTAS INCLUSIVE TRANSPORTE, CONFORME PROJETO. | D49: m | E49: 35.00 | I49: 500.00 | J49: 500.00 | N49: 17,500.00 | O49: 17,500.00
A50: 03.01.01.08 | B50: 119125 | C50: CONSTRUCAO DE BACIAS DE RETENÇAO UTILIZANDO MAQUINAS DE TERRAPLENAGEM INCLUSIVE DESLOCAMENTO DOS EQUIPAMENTOS, CONFORME PROJETO. | D50: m³ | E50: 28.00 | F50: 48.64 | G50: 3,951.36 | H50: =F50+G50 -> 4,000.00 | I50: 4,000.00 | K50: =ROUND($E50*F50,2) -> 1,361.92 | L50: 110,638.08 | M50: 112,000.00 | N50: 112,000.00
C52: TOTAL DO SUBITEM 03.01 | K52: =SUM(K43:K51) -> 1,361.92 | L52: =SUM(L43:L51) -> 110,638.08 | M52: =SUM(M43:M51) -> 112,000.00 | N52: =SUM(N43:N51) -> 311,203.20 | O52: =SUM(O43:O51) -> 199,203.20
C53: TOTAL DO SUBITEM 03 | K53: =K52 -> 1,361.92 | L53: =L52 -> 110,638.08 | M53: =M52 -> 112,000.00 | N53: =N52 -> 311,203.20 | O53: =O52 -> 199,203.20
C54: TOTAL DO SUBITEM 03 COM K= 1,05 | K54: =ROUND(K53*1.05,2) -> 1,430.02 | L54: =ROUND(L53*1.05,2) -> 116,169.98 | M54: =ROUND(M53*1.05,2) -> 117,600.00 | N54: =ROUND(N53*1.05,2) -> 326,763.36 | O54: =ROUND(O53*1.05,2) -> 209,163.36
A58: 04 | C58: CERCAMENTO
A59: 04.01 | C59: CERCAMENTO
A60: 04.01.01 | C60: SERVIÇOS DIVERSOS
A61: 04.01.01.01 | B61: 029207 | C61: REMOCAO DE CERCA C/TELA E/OU ARAME. | D61: m | E61: 9.18 | I61: 500.00 | J61: =I61-H61 -> 500.00 | N61: =ROUND($E61*I61,2) -> 4,590.00 | O61: 4,590.00
A62: 04.01.01.02 | B62: 180401 | C62: CERCA C/ TELA DE ARAME GALVANIZADO REVESTIDA EM PVC C/MALHA DE 2", 12BWG C/ ESTACAS DE CONCRETO PRE-MOLDADAS,C/ PONTA INCLINADA E DIMENSOES DE 0,10x0,10x3,00m, (DP1804-01) | D62: m | E62: 87.83 | I62: 500.00 | J62: =I62-H62 -> 500.00 | N62: 43,915.00 | O62: 43,915.00
A63: 04.01.01.03 | B63: 189401 | C63: REPARO DE CERCA C/ ARAME FARPADO. | D63: m | E63: 15.46 | I63: 300.00 | J63: =I63-H63 -> 300.00 | N63: 4,638.00 | O63: 4,638.00
C65: TOTAL DO SUBITEM 04.01 | N65: =SUM(N61:N64) -> 53,143.00 | O65: =SUM(O61:O64) -> 53,143.00
C66: TOTAL DO SUBITEM 04 | N66: =N65 -> 53,143.00 | O66: =O65 -> 53,143.00
C67: TOTAL DO SUBITEM 04 COM K= 1,05 | N67: =ROUND(N66*1.05,2) -> 55,800.15 | O67: =ROUND(O66*1.05,2) -> 55,800.15
H70: =F70+G70 -> 0 | J70: =I70-H70 -> 0 | K70: =ROUND($E70*F70,2) -> 0
A72: 05 | C72: REVESTIMENTO VEGETAL DE TALUDES, BERMAS E AREAS SEMI-PLANAS CONFORME ESPECIFICAÇÃO
A73: 05.01 | C73: REVESTIMENTO VEGETAL DE TALUDES, BERMAS E AREAS SEMI-PLANAS CONFORME ESPECIFICAÇÃO
A74: 05.01.01 | C74: SERVICOS DIVERSOS
A75: 05.01.01.01 | B75: 119126 | C75: EXECUÇÃO DE REVEGETAÇÃO HIDRO-SEMEADURA EM AREAS PLANAS OU SEMI PLANAS, INCLUSIVE ACOMPANHAMENTO, TRANSPORTE E IRRIGACAO ATE A PEGA TOTAL, CONFORME PROJETO. | D75: m² | E75: 1.50 | I75: 50,000.00 | J75: =I75-H75 -> 50,000.00 | N75: =ROUND($E75*I75,2) -> 75,000.00 | O75: 75,000.00
A76: 05.01.01.02 | B76: 180607 | C76: PLANTIO DE ARVORES, C/ h >= 2,00 m, INCLUSIVE PREPARO E ADUBAÇÃO DO SOLO E IRRIGAÇÃO ATE A PEGA TOTAL | D76: un | E76: 38.13 | I76: 2,000.00 | J76: 2,000.00 | N76: 76,260.00 | O76: 76,260.00
A77: 05.01.01.03 | B77: 180601 | C77: PLANTIO DE GRAMA EM PLACA,INCLUSIVE CAMADA DE TERRA VEGETAL, e=0,05m, TRANSPORTE E IRRIGAÇÕO ATÉ A PEGA TOTAL | D77: m² | E77: 10.92 | I77: 2,000.00 | J77: 2,000.00 | N77: 21,840.00 | O77: 21,840.00
A78: 05.01.01.04 | B78: 119127 | C78: FORNECIMENTO E EXECUÇÃO DE CORDÃO VEGETADO COM CAPIM VETIVER, INCLUSIVE CAMADA DE TERRA VEGETAL, TRANSPORTE E IRRIGAÇÃO ATÉ A PEGA TOTAL, CONFORME PROJETO. | D78: m | E78: 18.01 | I78: 1,500.00 | J78: 1,500.00 | N78: 27,015.00 | O78: 27,015.00
A79: 05.01.01.05 | B79: 119128 | C79: FORNECIMENTO E INSTALAÇÃO DE BIOMANTAS DE PALHA UNIDIMENCIONAL TIPO TELA BIOTEXTIL 400 UP,INCLUSIVE TRANSPORTE, CONFORME PROJETO. | D79: m² | E79: 4.90 | I79: 5,000.00 | J79: 5,000.00 | N79: 24,500.00 | O79: 24,500.00
A80: 05.01.01.06 | B80: 119129 | C80: FORNECIMENTO E INSTALAÇÃO DE BIOMANTAS ANTI EROSIVAS DE FIBRA DE COCO TRIDIMENSIONAL, TIPO TELA BIOTEXTIL 400 TF, INCLUSIVE TRANSPORTE,CONFORME PROJETO. | D80: m² | E80: 14.00 | I80: 7,000.00 | J80: 7,000.00 | N80: 98,000.00 | O80: 98,000.00
A81: 05.01.01.07 | B81: 119130 | C81: FORNECIMENTO E INSTALAÇÃO DE BIOMANTAS ANTI EROSIVAS DE FIBRA DE COCO BIDIMENSIONAL, TIPO TELA FIBRAX 300 BF, INCLUSIVE TRANSPORTE, COMFORME PROJETO. | D81: m² | E81: 6.90 | I81: 7,000.00 | J81: 7,000.00 | N81: 48,300.00 | O81: 48,300.00
A82: 05.01.01.08 | B82: 119131 | C82: FORNECIMENTO E FIXAÇÃO DE GRAMPOS DE AÇO CA-50, CONFORME PROJETO. | D82: un | E82: 2.00 | I82: 4,000.00 | J82: 4,000.00 | N82: 8,000.00 | O82: 8,000.00
A83: 05.01.01.09 | B83: 110704 | C83: ENROCAMENTO C/ PEDRA DE MÃO, C/ ARRUMAÇÃO MANUAL, INCLUSIVE FORNECIMENTO DO MATERIAL | D83: m³ | E83: 126.49 | I83: 100.00 | J83: 100.00 | N83: 12,649.00 | O83: 12,649.00
C85: TOTAL DO SUBITEM 05.01 | N85: =SUM(N75:N83) -> 391,564.00 | O85: =SUM(O75:O83) -> 391,564.00
C86: TOTAL DO SUBITEM 05 | N86: =N85 -> 391,564.00 | O86: =O85 -> 391,564.00
C87: TOTAL DO SUBITEM 05 COM K= 1,05 | N87: =ROUND(N86*1.05,2) -> 411,142.20 | O87: =ROUND(O86*1.05,2) -> 411,142.20
A89: 06 | C89: SERVIÇOS COMPLEMENTARES
A90: 06.01 | C90: SERVIÇOS COMPLEMENTARES
A91: 06.01.01 | C91: SERVIÇOS COMPLEMENTARES
A92: 06.01.01.01 | B92: 020407 | C92: ROÇAGEM EM CAPOEIRA DENSA A MACHADO,INCLUSIVE RASPAGEM,MANUAL,JUNTAMENTO,QUEIMA DO MATERIAL E REMOÇÃO MANUAL DOS RESIDUOS P/FORA DA AREA ROÇADA. | D92: m² | E92: 3.45 | F92: 1000.00 | H92: 1,000.00 | I92: 5,000.00 | J92: 4,000.00 | K92: =ROUND($E92*F92,2) -> 3,450.00 | M92: =K92+L92 -> 3,450.00 | N92: =E92*I92 -> 17,250.00 | O92: =N92-M92 -> 13,800.00
A93: 06.01.01.02 | B93: 119132 | C93: LIMPEZA DE CANALETAS | D93: m | E93: 6.49 | I93: 1,000.00 | J93: 1,000.00 | N93: =E93*I93 -> 6,490.00 | O93: =N93-M93 -> 6,490.00
C95: TOTAL DO SUBITEM 06.01 | K95: =SUM(K92:K94) -> 3,450.00 | M95: =SUM(M92:M94) -> 3,450.00 | N95: =SUM(N92:N93) -> 23,740.00 | O95: =N95-M95 -> 20,290.00
C96: TOTAL DO SUBITEM 06 | K96: =K95 -> 3,450.00 | M96: =M95 -> 3,450.00 | N96: =N95 -> 23,740.00 | O96: =N96-M96 -> 20,290.00
C97: TOTAL DO SUBITEM 06 COM K= 1,05 | K97: =ROUND(K96*1.05,2) -> 3,622.50 | M97: =ROUND(M96*1.05,2) -> 3,622.50 | N97: =1.05*N96 -> 24,927.00 | O97: =N97-M97 -> 21,304.50
A99: 07 | C99: CONTENÇÕES
A100: 07.01 | C100: CONTENÇÕES
A101: 07.01.01 | C101: SERVICOS DIVERSOS
A102: 07.01.01.01 | B102: 119136 | C102: FORNECIMENTO E COLOCAÇÃO DE PIQUETES DE MADEIRA PARA CONTENÇÃO DOS ROLOS DAS MANTAS,INCLUSIVE TRANSPORTE, CONFORME PROJETO. | D102: m | E102: 0.39 | I102: 5,000.00 | J102: 5,000.00 | N102: =ROUND($E102*I102,2) -> 1,950.00 | O102: 1,950.00
A103: 07.01.01.02 | B103: 119133 | C103: EXECUÇÃO DE CONTENÇÃO C/ SOLO-PNEUS, INCLUSIVE, FORNECIMENTO, TRANSPORTE E ENCHIMENTO DOS PNEUS, CONFORME PROJETO | D103: m³ | E103: 50.00 | I103: 500.00 | J103: 500.00 | N103: 25,000.00 | O103: 25,000.00
A104: 07.01.01.03 | B104: 119134 | C104: FORNECIMENTO E EXECUÇÃO DAS PALICADAS DE MADEIRA IMUNIZADAS,INCLUSIVE TRANSPORTE, CONFORME PROJETO. | D104: m | E104: 149.99 | I104: 250.00 | J104: 250.00 | N104: 37,497.50 | O104: 37,497.50
A105: 07.01.01.04 | B105: 119135 | C105: FORNECIMENTO E COLOCAÇÃO DOS SACOS DE JUTA, INCLUSIVE TRANSPORTE, CONFORME PROJETO. | D105: m | E105: 2.00 | I105: 2,500.00 | J105: 2,500.00 | N105: 5,000.00 | O105: 5,000.00
A106: 07.01.01.05 | B106: 110704 | C106: ENROCAMENTO C/ PEDRA DE MAO, C/ ARRUMAÇÃO MANUAL, INCLUSIVE FORNECIMENTO DO MATERIAL | D106: m³ | E106: 126.49 | I106: 200.00 | J106: 200.00 | N106: 25,298.00 | O106: 25,298.00
A107: 07.01.01.06 | B107: 180607 | C107: PLANTIO DE ARVORES, C/ h >= 2,00 m, INCLUSIVE PREPARO E ADUBAÇÃO DO SOLO E IRRIGAÇÃO ATÉ A PEGA TOTAL | D107: un | E107: 38.13 | I107: 2,000.00 | J107: 2,000.00 | N107: 76,260.00 | O107: 76,260.00
A108: 07.01.01.07 | B108: 111016 | C108: FORNECIMENTO E COLOCAÇÃO DE MANTA GEOTEXTIL TECIDA C/ GRAMATURA DE 445 g/mý | D108: m² | E108: 11.06 | I108: 3,000.00 | J108: 3,000.00 | N108: 33,180.00 | O108: 33,180.00
C110: TOTAL DO SUBITEM 07.01 | N110: =SUM(N102:N109) -> 204,185.50 | O110: =SUM(O102:O109) -> 204,185.50
C111: TOTAL DO SUBITEM 07 | N111: =N110 -> 204,185.50 | O111: =O110 -> 204,185.50
C112: TOTAL DO SUBITEM 07 COM K= 1,05 | N112: =ROUND(N111*1.05,2) -> 214,394.78 | O112: =ROUND(O111*1.05,2) -> 214,394.78
A114: TOTAL GERAL SERVIÇOS | K114: =K18+K37+K53+K66+K86+K96+K111 -> 38,695.68 | L114: =L18+L37+L53+L66+L86+L96+L111 -> 140,339.84 | M114: =M18+M37+M53+M66+M86+M96+M111 -> 169,921.76 | N114: =N18+N37+N53+N66+N86+N96+N111 -> 1,124,709.34 | O114: =O18+O37+O53+O66+O86+O96+O111 -> 954,787.58
A115: TOTAL GERAL SERVIÇOS COM K= 1,05 | K115: =ROUND(K114*1.05,2) -> 40,630.46 | L115: =ROUND(L114*1.05,2) -> 147,356.83 | M115: =ROUND(M114*1.05,2) -> 178,417.85 | N115: =ROUND(N114*1.05,2) -> 1,180,944.81 | O115: =ROUND(O114*1.05,2) -> 1,002,526.96 | P115: =M115+O115 -> 1,180,944.81
C120: CONSTRUTORA: TECTRAN BAHIA LTDA | H120: FISCALIZAÇÃO: EMBASA - EMPRESA BAIANA DE ÁGUAS E SANEAMENTO S/A
C121: Engº Fernando Gomes de Oliveira | G121: Engª Sandra Maria Araújo Ideião
L125: =K115+L115 -> 187,987.29 | M125: =K114+L114 -> 179,035.52
M126: =M125*1.05 -> 187,987.30 | N126: =P115-M126 -> 992,957.51

Sheet MEDIÇÃO 02 (2) (hidden)
A1: EMBASA - EMPRESA BAIANA DE ÁGUAS E SANEAMENTO S. A . | J1: MODALIDADE: CONCORRÊNCIA NACIONAL
A2: PROGRAMA: | J2: DATA DA PROPOSTA: 08/11/2010
A3: TIPO DE EMPREENDIMENTO: RECUPERAÇÃO DA ÁREA DE JAZIDA CONSTRUÇÃO DA BARRAGEM DE SANTA HELENA | G3: MEDIÇÃO Nº 02 | J3: INÍCIO DA OBRA: 03/01/2011
A4: AGENTE FINANCEIRO: RECURSOS PRÓPRIOS | J4: FIM DA OBRA: 03/05/2011
A5: CONTRATADA: TECTRAN BAHIA LTDA | J5: VALOR DO CONTRATO INICIAL: R$ 1.180.944,81
A6: LOCALIZAÇÃO: DIAS D'ÁVILA - MATA DE SÃO JOÃO - BA | D6: PERÍODO DA MEDIÇÃO: | F6: 01/02/2011 a | G6: 2011-02-28 | J6: VALOR DO CONTRATO ATUALIZADO: R$1.180.944,81
A7: DATA DE ASSINATURA DO CONTRATO: 18/02/2010 | J7: CONTRATO Nº: 1.205/10
A8: ÍTEM | B8: CÓDIGO | C8: DESCRIÇÃO DOS SERVIÇOS | D8: UN | E8: P. UNIT. | F8: QUANTIDADE | K8: VALOR EM R$
F9: MEDIDO | G9: MEDIDO ANTERIOR | H9: MEDIDO ACUMULADO | I9: CONTRATADO | J9: SALDO | K9: MEDIDO | L9: MEDIDO ANTERIOR | M9: MEDIDO ACUMULADO | N9: CONTRATADO | O9: SALDO
A10: 01 | C10: MOBILIZAÇÃO E DESMOBILIZAÇÃO DO CANTEIRO DE OBRA | H10: =F10+G10 -> 0 | J10: =I10-H10 -> 0 | K10: =ROUND($E10*F10,2) -> 0
A11: 01.01 | C11: MOBILIZAÇÃO E DESMOBILIZAÇÃO DO CANTEIRO DE OBRA | H11: 0 | J11: =I11-H11 -> 0 | K11: 0
A12: 01.01.01 | C12: MOBILIZAÇÃO E DESMOBILIZAÇÃO DO CANTEIRO DE OBRA | H12: 0 | J12: =I12-H12 -> 0 | K12: 0
A13: 01.01.01.01 | B13: 019201 | C13: MOBILIZACÃO E INSTALACÃO DE CANTEIRO DE OBRAS | D13: vb | E13: 41,990.00 | F13: 0.20 | G13: 0.40 | H13: 0.60 | I13: 1.00 | J13: =I13-H13 -> 0.40 | K13: 8,398.00 | L13: 16,796.00 | M13: 25,194.00 | N13: 41,990.00 | O13: 16,796.00
A14: 01.01.01.02 | B14: 019204 | C14: DESMOBILIZACÃO DE CANTEIRO DE OBRAS | D14: vb | E14: 4,680.00 | H14: 0 | I14: 1.00 | J14: =I14-H14 -> 1.00 | K14: 0 | L14: 0 | M14: 0 | N14: 4,680.00 | O14: 4,680.00
A15: 01.01.01.03 | B15: 030110 | C15: PLACA DE IDENTIFICACAO DA OBRA PADRAO EMBASA, INCLUSIVE FORNECIMENTO, TRANSPORTE E INSTALAÇÃO (DP0301-04) | D15: m² | E15: 89.47 | F15: 8.00 | H15: 8.00 | I15: 12.00 | J15: 4.00 | K15: 715.76 | L15: 0 | M15: 715.76 | N15: 1,073.64 | O15: 357.88
H16: 0 | J16: 0 | K16: 0
C17: TOTAL DO SUBITEM 01.01 | H17: 0 | J17: 0 | K17: =SUM(K10:K16) -> 9,113.76 | L17: =SUM(L10:L16) -> 16,796.00 | M17: =SUM(M10:M16) -> 25,909.76 | N17: =SUM(N10:N16) -> 47,743.64 | O17: =SUM(O10:O16) -> 21,833.88
C18: TOTAL DO SUBITEM 01 | H18: 0 | J18: 0 | K18: =K17 -> 9,113.76 | L18: =L17 -> 16,796.00 | M18: =M17 -> 25,909.76 | N18: =N17 -> 47,743.64 | O18: =O17 -> 21,833.88
C19: TOTAL DO SUBITEM 01 COM K= 1,05 | H19: 0 | J19: 0 | K19: =ROUND(K18*1.05,2) -> 9,569.45 | L19: =ROUND(L18*1.05,2) -> 17,635.80 | M19: =ROUND(M18*1.05,2) -> 27,205.25 | N19: =ROUND(N18*1.05,2) -> 50,130.82 | O19: =ROUND(O18*1.05,2) -> 22,925.57
H20: 0 | J20: 0 | K20: 0
A21: 02 | C21: SERVIÇOS PRELIMINARES | H21: 0 | J21: 0 | K21: 0
A22: 02.01 | C22: SERVIÇOS PRELIMINARES | H22: 0 | J22: 0 | K22: 0
A23: 02.01.01 | C23: MOVIMENTO DE TERRA | H23: 0 | J23: 0 | K23: 0
A24: 02.01.01.01 | B24: 020301 | C24: LIMPEZA MANUAL DO TERRENO, INCLUSIVE RASPAGEM, JUNTAMENTO E QUEIMA DO MATERIAL | D24: m² | E24: 1.72 | G24: 1,600.00 | H24: 1,600.00 | I24: 5,000.00 | J24: 3,400.00 | K24: 0 | L24: 2,752.00 | M24: 2,752.00 | N24: 8,600.00 | O24: 5,848.00
A25: 02.01.01.02 | B25: 050661 | C25: REGULARIZAÇÃO DE TALUDES POR PROCESSO MANUAL | D25: m² | E25: 1.46 | H25: 0 | I25: 5,000.00 | J25: 5,000.00 | K25: 0 | L25: 0 | M25: 0 | N25: 7,300.00 | O25: 7,300.00
A26: 02.01.01.03 | B26: 050613 | C26: ESCAVAÇÃO E TRANSPORTE ATÉ 30m C/ TRATOR DE ESTEIRAS C/ LAMINA, P/ EMPILHAMENTO EM MATERIAL DE 1ª CAT. | D26: m³ | E26: 1.55 | F26: 5,000.00 | H26: 5,000.00 | I26: 5,000.00 | J26: 0 | K26: 7,750.00 | L26: 0 | M26: 7,750.00 | N26: 7,750.00 | O26: 0
A27: 02.01.01.04 | B27: 060104 | C27: CARGA E DESCARGA DE SOLO | D27: m³ | E27: 1.76 | F27: 5,000.00 | H27: 5,000.00 | I27: 5,000.00 | J27: 0 | K27: 8,800.00 | L27: 0 | M27: 8,800.00 | N27: 8,800.00 | O27: 0
A28: 02.01.01.05 | B28: 060204 | C28: MOMENTO DE TRANSPORTE DE SOLO, EM CAMINHAO BASCULANTE | D28: m³xkm | E28: 0.52 | F28: 5,000.00 | H28: 5,000.00 | I28: 5,000.00 | J28: 0 | K28: 2,600.00 | L28: 0 | M28: 2,600.00 | N28: 2,600.00 | O28: 0
A29: 02.01.01.06 | B29: 060125 | C29: ESPALHAMENTO MECANICO DE SOLO EM BOTA-FORA | D29: m³ | E29: 1.04 | F29: 4,000.00 | G29: 1,000.00 | H29: 5,000.00 | I29: 5,000.00 | J29: 0 | K29: 4,160.00 | L29: 1,040.00 | M29: 5,200.00 | N29: 5,200.00 | O29: 0
A30: 02.01.01.08 | B30: 020407 | C30: ROÇAGEM EM CAPOEIRA DENSA A MACHADO, INCLUSIVE RASPAGEM MANUAL, JUNTAMENTO, QUEIMA DO MATERIAL E REMOÇÃO MANUAL DOS RESÍODOS PARA FORA DA ÁREA ROÇADA | D30: m² | E30: 3.45 | H30: 0 | I30: 1,000.00 | J30: 1,000.00 | K30: 0 | L30: 0 | M30: 0 | N30: 3,450.00 | O30: 3,450.00
A31: 02.01.01.09 | B31: 050310 | C31: ESCAVAÇÃO MANUAL DE POÇOS E CAVAS DE FUNDAÇÃO EM SOLO DE 1ª CATEGORIA EXECUTADA C/ PROFUNDIDADE ACIMA DE 4,50m | D31: m³ | E31: 21.74 | H31: 0 | I31: 1,000.00 | J31: 1,000.00 | K31: 0 | L31: 0 | M31: 0 | N31: 21,740.00 | O31: 21,740.00
A32: 02.01.01.10 | B32: 050404 | C32: EXECUÇÃO DE ATERRO EM VALAS POÇOS/CAVAS DE FUNDAÇÃO COM FORNECIMENTO DE AREIA, INCLUSIVE LANÇAMENTO, ESPALHAMENTO, COMPACTAÇÃO C/ PLACA VIBRATORIA, SOQUETE PNEUMATICO OU SOQUETE MANUAL | D32: m³ | E32: 25.03 | H32: 0 | I32: 1,000.00 | J32: 1,000.00 | K32: 0 | L32: 0 | M32: 0 | N32: 25,030.00 | O32: 25,030.00
A33: 02.01.01.11 | B33: 050807 | C33: COMPACTACÃO DE ATERRO P/ ENSECADEIRAS C/ SOLO, INCLUSIVE DESTORROAMENTO, UMIDECIMENTO, HOMOGENEIZAÇÃO E COMPACTAÇÃO C/ ROLO | D33: m³ | E33: 1.46 | F33: 1,000.00 | H33: 1,000.00 | I33: 1,000.00 | J33: 0 | K33: 1,460.00 | L33: 0 | M33: 1,460.00 | N33: 1,460.00 | O33: 0
A34: 02.01.01.12 | B34: 050658 | C34: REGULARIZAÇÃO DE TALUDES POR PROCESSO MECÂNICO | D34: m² | E34: 0.12 | H34: 0 | I34: 10,000.00 | J34: 10,000.00 | K34: 0 | L34: 0 | M34: 0 | N34: 1,200.00 | O34: 1,200.00
H35: 0 | J35: 0 | K35: 0
C36: TOTAL DO SUBITEM 02.01 | H36: 0 | J36: 0 | K36: =SUM(K24:K35) -> 24,770.00 | L36: =SUM(L24:L35) -> 3,792.00 | M36: =SUM(M24:M35) -> 28,562.00 | N36: =SUM(N24:N35) -> 93,130.00 | O36: =SUM(O24:O35) -> 64,568.00
C37: TOTAL DO SUBITEM 02 | H37: 0 | J37: 0 | K37: =K36 -> 24,770.00 | L37: =L36 -> 3,792.00 | M37: =M36 -> 28,562.00 | N37: =N36 -> 93,130.00 | O37: =O36 -> 64,568.00
C38: TOTAL DO SUBITEM 02 COM K= 1,05 | H38: 0 | J38: 0 | K38: =ROUND(K37*1.05,2) -> 26,008.50 | L38: =ROUND(L37*1.05,2) -> 3,981.60 | M38: =ROUND(M37*1.05,2) -> 29,990.10 | N38: =ROUND(N37*1.05,2) -> 97,786.50 | O38: =ROUND(O37*1.05,2) -> 67,796.40
H39: 0 | J39: 0 | K39: 0
A40: 03 | C40: DRENAGEM | H40: 0 | J40: 0 | K40: 0
A41: 03.01 | C41: DRENAGEM | H41: 0 | J41: 0 | K41: 0
A42: 03.01.01 | C42: SERVIÇOS DIVERSOS | H42: 0 | J42: 0 | K42: =ROUND($E42*F42,2) -> 0
A43: 03.01.01.01 | B43: 100307 | C43: CAIXA DE PASSAGEM/RECEPCAO EM ALVEN. DE TIJOLO MACICO, TAMPA EM CONCRETO ARMADO, SECAO INTERNA 1,00 X 1,00m, h<=1,30 m (CP TIPO III / CR TIPO III) DP1003-01/02 | D43: un | E43: 770.52 | H43: 0 | I43: 10.00 | J43: 10.00 | K43: 0 | L43: =ROUND($E43*G43,2) -> 0 | M43: 0 | N43: 7,705.20 | O43: 7,705.20
A44: 03.01.01.02 | B44: 119121 | C44: FORNECIMENTO E EXECUCAO DE CANALETA REVESTIDA COM SINTEMAX (0,80x0,30)m CONFORME PROJETO. | D44: m | E44: 35.00 | H44: 0 | I44: 1,500.00 | J44: 1,500.00 | K44: 0 | L44: 0 | M44: 0 | N44: 52,500.00 | O44: 52,500.00
A45: 03.01.01.03 | B45: 119122 | C45: FORNECIMENTO E EXECUCAO DE LEIRAS DE PROTECAO, INCLUSIVE CAMADA DE TERRA VEGETAL, TRANSPORTE E IRRIGACAO ATE A PEGA TOTAL, CONFORME PROJETO. | D45: m | E45: 15.00 | H45: 0 | I45: 500.00 | J45: 500.00 | K45: 0 | L45: 0 | M45: 0 | N45: 7,500.00 | O45: 7,500.00
A46: 03.01.01.04 | B46: 119123 | C46: FORNECIMENTO E EXECUCAO DE REGULARIZACAO COM FEIXES DE FIBRAS VEGETAIS INCLUSIVE TRANSPORTE, CONFORME PROJETO. | D46: m | E46: 18.01 | H46: 0 | I46: 1,200.00 | J46: 1,200.00 | K46: 0 | L46: 0 | M46: 0 | N46: 21,612.00 | O46: 21,612.00
A47: 03.01.01.05 | B47: 119120 | C47: FORNECIMENTO E INSTALAÇAO DE ESTRUTURAS DISSIPADORAS DE ENERGIA (DESCIDAS D'AGUA) COM BERMALONGA D20 / D40 CONFORME PROJETO (50% DE CADA) | D47: m | E47: 15.00 | H47: 0 | I47: 2,500.00 | J47: 2,500.00 | K47: 0 | L47: 0 | M47: 0 | N47: 37,500.00 | O47: 37,500.00
A48: 03.01.01.06 | B48: 110619 | C48: EXECUÇÃO DE DESCIDA D'AGUA EM ALVENARIA DE PEDRA ARGAMASSADA S/ REVESTIMENTO (DP1106-01) | D48: m³ | E48: 274.43 | H48: 0 | I48: 200.00 | J48: 200.00 | K48: 0 | L48: 0 | M48: 0 | N48: 54,886.00 | O48: 54,886.00
A49: 03.01.01.07 | B49: 119124 | C49: FORNECIMENTO E CONSTRUCAO DE CALHAS VERDES DE DRENAGEM COM (0,40x0,40)m REVESTIDA COM BIOMANTAS INCLUSIVE TRANSPORTE, CONFORME PROJETO. | D49: m | E49: 35.00 | H49: 0 | I49: 500.00 | J49: 500.00 | K49: 0 | L49: 0 | M49: 0 | N49: 17,500.00 | O49: 17,500.00
A50: 03.01.01.08 | B50: 119125 | C50: CONSTRUCAO DE BACIAS DE RETENÇAO UTILIZANDO MAQUINAS DE TERRAPLENAGEM INCLUSIVE DESLOCAMENTO DOS EQUIPAMENTOS, CONFORME PROJETO. | D50: m³ | E50: 28.00 | F50: 48.64 | G50: 3,951.36 | H50: 4,000.00 | I50: 4,000.00 | J50: 0 | K50: 1,361.92 | L50: 110,638.08 | M50: 112,000.00 | N50: 112,000.00 | O50: 0
H51: 0 | J51: 0 | K51: 0
C52: TOTAL DO SUBITEM 03.01 | H52: 0 | J52: 0 | K52: =SUM(K43:K51) -> 1,361.92 | L52: =SUM(L43:L51) -> 110,638.08 | M52: =SUM(M43:M51) -> 112,000.00 | N52: =SUM(N43:N51) -> 311,203.20 | O52: =SUM(O43:O51) -> 199,203.20
C53: TOTAL DO SUBITEM 03 | H53: 0 | J53: 0 | K53: =K52 -> 1,361.92 | L53: =L52 -> 110,638.08 | M53: =M52 -> 112,000.00 | N53: =N52 -> 311,203.20 | O53: =O52 -> 199,203.20
C54: TOTAL DO SUBITEM 03 COM K= 1,05 | H54: 0 | J54: 0 | K54: =ROUND(K53*1.05,2) -> 1,430.02 | L54: =ROUND(L53*1.05,2) -> 116,169.98 | M54: =ROUND(M53*1.05,2) -> 117,600.00 | N54: =ROUND(N53*1.05,2) -> 326,763.36 | O54: =ROUND(O53*1.05,2) -> 209,163.36
H57: 0 | J57: 0 | K57: =ROUND($E57*F57,2) -> 0
A58: 04 | C58: CERCAMENTO | H58: 0 | J58: 0 | K58: 0
A59: 04.01 | C59: CERCAMENTO | H59: 0 | J59: 0 | K59: 0
A60: 04.01.01 | C60: SERVIÇOS DIVERSOS | H60: 0 | J60: 0 | K60: 0
A61: 04.01.01.01 | B61: 029207 | C61: REMOCAO DE CERCA C/TELA E/OU ARAME. | D61: m | E61: 9.18 | H61: 0 | I61: 500.00 | J61: 500.00 | K61: 0 | L61: =ROUND($E61*G61,2) -> 0 | M61: 0 | N61: 4,590.00 | O61: 4,590.00
A62: 04.01.01.02 | B62: 180401 | C62: CERCA C/ TELA DE ARAME GALVANIZADO REVESTIDA EM PVC C/MALHA DE 2", 12BWG C/ ESTACAS DE CONCRETO PRE-MOLDADAS,C/ PONTA INCLINADA E DIMENSOES DE 0,10x0,10x3,00m, (DP1804-01) | D62: m | E62: 87.83 | H62: 0 | I62: 500.00 | J62: 500.00 | K62: 0 | L62: 0 | M62: 0 | N62: 43,915.00 | O62: 43,915.00
A63: 04.01.01.03 | B63: 189401 | C63: REPARO DE CERCA C/ ARAME FARPADO. | D63: m | E63: 15.46 | H63: 0 | I63: 300.00 | J63: 300.00 | K63: 0 | L63: 0 | M63: 0 | N63: 4,638.00 | O63: 4,638.00
H64: 0 | J64: 0 | K64: 0
C65: TOTAL DO SUBITEM 04.01 | H65: 0 | J65: 0 | L65: =SUM(L61:L64) -> 0 | M65: =SUM(M61:M64) -> 0 | N65: =SUM(N61:N64) -> 53,143.00 | O65: =SUM(O61:O64) -> 53,143.00
C66: TOTAL DO SUBITEM 04 | H66: 0 | J66: 0 | L66: =L65 -> 0 | M66: =M65 -> 0 | N66: =N65 -> 53,143.00 | O66: =O65 -> 53,143.00
C67: TOTAL DO SUBITEM 04 COM K= 1,05 | H67: 0 | J67: 0 | L67: =ROUND(L66*1.05,2) -> 0 | M67: =ROUND(M66*1.05,2) -> 0 | N67: =ROUND(N66*1.05,2) -> 55,800.15 | O67: =ROUND(O66*1.05,2) -> 55,800.15
H68: 0 | J68: 0 | K68: =ROUND($E68*F68,2) -> 0
C71: CONSTRUTORA: TECTRAN BAHIA LTDA | H71: FISCALIZAÇÃO: EMBASA - EMPRESA BAIANA DE ÁGUAS E SANEAMENTO S/A
C72: Engº Fernando Gomes de Oliveira | G72: Engª Sandra Maria Araújo Ideião
A74: 05 | C74: REVESTIMENTO VEGETAL DE TALUDES, BERMAS E AREAS SEMI-PLANAS CONFORME ESPECIFICAÇÃO | H74: =F74+G74 -> 0 | J74: =I74-H74 -> 0 | K74: =ROUND($E74*F74,2) -> 0
A75: 05.01 | C75: REVESTIMENTO VEGETAL DE TALUDES, BERMAS E AREAS SEMI-PLANAS CONFORME ESPECIFICAÇÃO | H75: 0 | J75: 0 | K75: 0
A76: 05.01.01 | C76: SERVICOS DIVERSOS | H76: 0 | J76: 0 | K76: 0
A77: 05.01.01.01 | B77: 119126 | C77: EXECUÇÃO DE REVEGETAÇÃO HIDRO-SEMEADURARA EM AREAS PLANAS OU SEMI PLANAS, INCLUSIVE ACOMPANHAMENTO, TRANSPORTE E IRRIGACAO ATE A PEGA TOTAL, CONFORME PROJETO. | D77: m² | E77: 1.50 | H77: 0 | I77: 50,000.00 | J77: 50,000.00 | K77: 0 | L77: =ROUND($E77*G77,2) -> 0 | M77: 0 | N77: 75,000.00 | O77: 75,000.00
A78: 05.01.01.02 | B78: 180607 | C78: PLANTIO DE ARVORES, C/ h >= 2,00 m, INCLUSIVE PREPARO E ADUBAÇÃO DO SOLO E IRRIGAÇÃO ATE A PEGA TOTAL | D78: un | E78: 38.13 | H78: 0 | I78: 2,000.00 | J78: 2,000.00 | K78: 0 | L78: 0 | M78: 0 | N78: 76,260.00 | O78: 76,260.00
A79: 05.01.01.03 | B79: 180601 | C79: PLANTIO DE GRAMA EM PLACA,INCLUSIVE CAMADA DE TERRA VEGETAL, e=0,05m, TRANSPORTE E IRRIGAÇÕO ATÉ A PEGA TOTAL | D79: m² | E79: 10.92 | H79: 0 | I79: 2,000.00 | J79: 2,000.00 | K79: 0 | L79: 0 | M79: 0 | N79: 21,840.00 | O79: 21,840.00
A80: 05.01.01.04 | B80: 119127 | C80: FORNECIMENTO E EXECUÇÃO DE CORDÃO VEGETADO COM CAPIM VETIVER, INCLUSIVE CAMADA DE TERRA VEGETAL, TRANSPORTE E IRRIGAÇÃO ATÉ A PEGA TOTAL, CONFORME PROJETO. | D80: m | E80: 18.01 | H80: 0 | I80: 1,500.00 | J80: 1,500.00 | K80: 0 | L80: 0 | M80: 0 | N80: 27,015.00 | O80: 27,015.00
A81: 05.01.01.05 | B81: 119128 | C81: FORNECIMENTO E INSTALAÇÃO DE BIOMANTAS DE PALHA UNIDIMENCIONAL TIPO TELA BIOTEXTIL 400 UP,INCLUSIVE TRANSPORTE, CONFORME PROJETO. | D81: m² | E81: 4.90 | H81: 0 | I81: 5,000.00 | J81: 5,000.00 | K81: 0 | L81: =SUM(L77:L80) -> 0 | M81: 0 | N81: =ROUND($E81*I81,2) -> 24,500.00 | O81: 24,500.00
A82: 05.01.01.06 | B82: 119129 | C82: FORNECIMENTO E INSTALAÇÃO DE BIOMANTAS ANTI EROSIVAS DE FIBRA DE COCO TRIDIMENSIONAL, TIPO TELA BIOTEXTIL 400 TF, INCLUSIVE TRANSPORTE,CONFORME PROJETO. | D82: m² | E82: 14.00 | H82: 0 | I82: 7,000.00 | J82: 7,000.00 | K82: 0 | L82: 0 | M82: 0 | N82: 98,000.00 | O82: 98,000.00
A83: 05.01.01.07 | B83: 119130 | C83: FORNECIMENTO E INSTALAÇÃO DE BIOMANTAS ANTI EROSIVAS DE FIBRA DE COCO BIDIMENSIONAL, TIPO TELA FIBRAX 300 BF, INCLUSIVE TRANSPORTE, COMFORME PROJETO. | D83: m² | E83: 6.90 | H83: 0 | I83: 7,000.00 | J83: 7,000.00 | K83: 0 | L83: 0 | M83: 0 | N83: 48,300.00 | O83: 48,300.00
A84: 05.01.01.08 | B84: 119131 | C84: FORNECIMENTO E FIXAÇÃO DE GRAMPOS DE AÇO CA-50, CONFORME PROJETO. | D84: un | E84: 2.00 | H84: 0 | I84: 4,000.00 | J84: 4,000.00 | K84: 0 | L84: =ROUND($E84*G84,2) -> 0 | M84: =ROUND($E84*H84,2) -> 0 | N84: 8,000.00 | O84: 8,000.00
A85: 05.01.01.09 | B85: 110704 | C85: ENROCAMENTO C/ PEDRA DE MÃO, C/ ARRUMAÇÃO MANUAL, INCLUSIVE FORNECIMENTO DO MATERIAL | D85: m³ | E85: 126.49 | H85: 0 | I85: 100.00 | J85: 100.00 | K85: 0 | L85: =ROUND($E85*G85,2) -> 0 | M85: =ROUND($E85*H85,2) -> 0 | N85: 12,649.00 | O85: 12,649.00
H86: 0 | J86: 0 | K86: 0
C87: TOTAL DO SUBITEM 05.01 | H87: 0 | J87: 0 | K87: 0 | L87: =SUM(L77:L85) -> 0 | M87: =SUM(M77:M85) -> 0 | N87: =SUM(N77:N85) -> 391,564.00 | O87: =SUM(O77:O85) -> 391,564.00
C88: TOTAL DO SUBITEM 05 | H88: 0 | J88: 0 | K88: 0 | L88: =L87 -> 0 | M88: =M87 -> 0 | N88: =N87 -> 391,564.00 | O88: =O87 -> 391,564.00
C89: TOTAL DO SUBITEM 05 COM K= 1,05 | H89: 0 | J89: 0 | K89: 0 | L89: =ROUND(L88*1.05,2) -> 0 | M89: =ROUND(M88*1.05,2) -> 0 | N89: =ROUND(N88*1.05,2) -> 411,142.20 | O89: =ROUND(O88*1.05,2) -> 411,142.20
H90: 0 | J90: 0 | K90: 0
A91: 06 | C91: SERVIÇOS COMPLEMENTARES | H91: 0 | J91: 0 | K91: 0
A92: 06.01 | C92: SERVIÇOS COMPLEMENTARES | H92: 0 | J92: 0 | K92: 0
A93: 06.01.01 | C93: SERVIÇOS COMPLEMENTARES | H93: 0 | J93: 0 | K93: 0
A94: 06.01.01.01 | B94: 020407 | C94: ROÇAGEM EM CAPOEIRA DENSA A MACHADO,INCLUSIVE RASPAGEM,MANUAL,JUNTAMENTO,QUEIMA DO MATERIAL E REMOÇÃO MANUAL DOS RESIDUOS P/FORA DA AREA ROÇADA. | D94: m² | E94: 3.45 | F94: 1000.00 | H94: 1,000.00 | I94: 5,000.00 | J94: 4,000.00 | K94: 3,450.00 | L94: =SUM(L92:L93) -> 0 | M94: =K94+L94 -> 3,450.00 | N94: =E94*I94 -> 17,250.00 | O94: =N94-M94 -> 13,800.00
A95: 06.01.01.02 | B95: 119132 | C95: LIMPEZA DE CANALETAS | D95: m | E95: 6.49 | H95: 0 | I95: 1,000.00 | J95: 1,000.00 | K95: 0 | L95: =SUM(L93:L94) -> 0 | N95: =E95*I95 -> 6,490.00 | O95: =N95-M95 -> 6,490.00
H96: 0 | J96: 0 | K96: 0 | L96: =SUM(L94:L95) -> 0
C97: TOTAL DO SUBITEM 06.01 | H97: 0 | J97: 0 | K97: =SUM(K94:K96) -> 3,450.00 | L97: =SUM(L94:L96) -> 0 | M97: =SUM(M94:M96) -> 3,450.00 | N97: =SUM(N94:N95) -> 23,740.00 | O97: =N97-M97 -> 20,290.00
C98: TOTAL DO SUBITEM 06 | H98: 0 | J98: 0 | K98: =K97 -> 3,450.00 | L98: =L97 -> 0 | M98: =M97 -> 3,450.00 | N98: =N97 -> 23,740.00 | O98: =N98-M98 -> 20,290.00
C99: TOTAL DO SUBITEM 06 COM K= 1,05 | H99: 0 | J99: 0 | K99: =ROUND(K98*1.05,2) -> 3,622.50 | L99: =ROUND(L98*1.05,2) -> 0 | M99: =ROUND(M98*1.05,2) -> 3,622.50 | N99: =1.05*N98 -> 24,927.00 | O99: =N99-M99 -> 21,304.50
H100: 0 | J100: 0 | K100: =ROUND($E100*F100,2) -> 0
A101: 07 | C101: CONTENÇÕES | H101: 0 | J101: 0 | K101: 0
A102: 07.01 | C102: CONTENÇÕES | H102: 0 | J102: 0 | K102: 0
A103: 07.01.01 | C103: SERVICOS DIVERSOS | H103: 0 | J103: 0 | K103: 0
A104: 07.01.01.01 | B104: 119136 | C104: FORNECIMENTO E COLOCAÇÃO DE PIQUETES DE MADEIRA PARA CONTENÇÃO DOS ROLOS DAS MANTAS,INCLUSIVE TRANSPORTE, CONFORME PROJETO. | D104: m | E104: 0.39 | H104: 0 | I104: 5,000.00 | J104: 5,000.00 | K104: 0 | L104: =ROUND($E104*G104,2) -> 0 | M104: 0 | N104: 1,950.00 | O104: 1,950.00
A105: 07.01.01.02 | B105: 119133 | C105: EXECUÇÃO DE CONTENÇÃO C/ SOLO-PNEUS, INCLUSIVE, FORNECIMENTO, TRANSPORTE E ENCHIMENTO DOS PNEUS, CONFORME PROJETO | D105: m³ | E105: 50.00 | H105: 0 | I105: 500.00 | J105: 500.00 | K105: 0 | L105: 0 | M105: 0 | N105: 25,000.00 | O105: 25,000.00
A106: 07.01.01.03 | B106: 119134 | C106: FORNECIMENTO E EXECUÇÃO DAS PALICADAS DE MADEIRA IMUNIZADAS,INCLUSIVE TRANSPORTE, CONFORME PROJETO. | D106: m | E106: 149.99 | H106: 0 | I106: 250.00 | J106: 250.00 | K106: 0 | L106: 0 | M106: 0 | N106: 37,497.50 | O106: 37,497.50
A107: 07.01.01.04 | B107: 119135 | C107: FORNECIMENTO E COLOCAÇÃO DOS SACOS DE JUTA, INCLUSIVE TRANSPORTE, CONFORME PROJETO. | D107: m | E107: 2.00 | H107: 0 | I107: 2,500.00 | J107: 2,500.00 | K107: 0 | L107: 0 | M107: 0 | N107: 5,000.00 | O107: 5,000.00
A108: 07.01.01.05 | B108: 110704 | C108: ENROCAMENTO C/ PEDRA DE MAO, C/ ARRUMAÇÃO MANUAL, INCLUSIVE FORNECIMENTO DO MATERIAL | D108: m³ | E108: 126.49 | H108: 0 | I108: 200.00 | J108: 200.00 | K108: 0 | L108: =SUM(L104:L107) -> 0 | M108: =SUM(M104:M107) -> 0 | N108: =ROUND($E108*I108,2) -> 25,298.00 | O108: 25,298.00
A109: 07.01.01.06 | B109: 180607 | C109: PLANTIO DE ARVORES, C/ h >= 2,00 m, INCLUSIVE PREPARO E ADUBAÇÃO DO SOLO E IRRIGAÇÃO ATÉ A PEGA TOTAL | D109: un | E109: 38.13 | H109: 0 | I109: 2,000.00 | J109: 2,000.00 | K109: 0 | N109: 76,260.00 | O109: 76,260.00
A110: 07.01.01.07 | B110: 111016 | C110: FORNECIMENTO E COLOCAÇÃO DE MANTA GEOTEXTIL TECIDA C/ GRAMATURA DE 445 g/mý | D110: m² | E110: 11.06 | H110: 0 | I110: 3,000.00 | J110: 3,000.00 | K110: 0 | N110: 33,180.00 | O110: 33,180.00
H111: 0 | J111: 0 | K111: 0
C112: TOTAL DO SUBITEM 07.01 | H112: 0 | J112: 0 | K112: 0 | L112: =SUM(L104:L111) -> 0 | M112: =SUM(M104:M111) -> 0 | N112: =SUM(N104:N111) -> 204,185.50 | O112: =SUM(O104:O111) -> 204,185.50
C113: TOTAL DO SUBITEM 07 | H113: 0 | J113: 0 | K113: 0 | L113: =L112 -> 0 | M113: =M112 -> 0 | N113: =N112 -> 204,185.50 | O113: =O112 -> 204,185.50
C114: TOTAL DO SUBITEM 07 COM K= 1,05 | H114: 0 | J114: 0 | K114: 0 | L114: =ROUND(L113*1.05,2) -> 0 | M114: =ROUND(M113*1.05,2) -> 0 | N114: =ROUND(N113*1.05,2) -> 214,394.78 | O114: =ROUND(O113*1.05,2) -> 214,394.78
A116: TOTAL GERAL SERVIÇOS | K116: =K18+K37+K53+K66+K88+K98+K113 -> 38,695.68 | L116: =L18+L37+L53+L66+L88+L98+L113 -> 131,226.08 | M116: =M18+M37+M53+M66+M88+M98+M113 -> 169,921.76 | N116: =N18+N37+N53+N66+N88+N98+N113 -> 1,124,709.34 | O116: =O18+O37+O53+O66+O88+O98+O113 -> 954,787.58
A117: TOTAL GERAL SERVIÇOS COM K= 1,05 | K117: =ROUND(K116*1.05,2) -> 40,630.46 | L117: =ROUND(L116*1.05,2) -> 137,787.38 | M117: =ROUND(M116*1.05,2) -> 178,417.85 | N117: =ROUND(N116*1.05,2) -> 1,180,944.81 | O117: =ROUND(O116*1.05,2) -> 1,002,526.96 | P117: =M117+O117 -> 1,180,944.81
C120: CONSTRUTORA: TECTRAN BAHIA LTDA | H120: FISCALIZAÇÃO: EMBASA - EMPRESA BAIANA DE ÁGUAS E SANEAMENTO S/A
C121: Engº Fernando Gomes de Oliveira | G121: Engª Sandra Maria Araújo Ideião
